Workbook

Sheet Start Here
C1: DEBT-FREE DATE CALCULATOR
C3: Turn your debt numbers into a clear, personalized path to financial freedom.
A6: HOW TO USE YOUR CALCULATOR
A8: 1 | B8: ENTER YOUR DEBTS Open the Debt Calculator tab and enter each debt, balance, APR, and minimum payment.
A10: 2 | B10: CHOOSE YOUR STRATEGY Select Snowball or Avalanche and enter the extra monthly amount you can add.
A12: 3 | B12: REVIEW YOUR DEBT FREEDOM REPORT Open the Debt Freedom Report tab to see your projected payoff date, priority debt, three immediate actions, and today’s quick win.
A14: 4 | B14: LET THE PAYMENTS ROLL FORWARD When any debt is paid off, keep paying the same total amount. The calculator redirects that freed payment to the first remaining debt in your Snowball or Avalanche order.
A17: IMPORTANT: This calculator provides educational estimates only and is not individualized financial, tax, legal, or investment advice.

Sheet Debt Calculator
A1: TRUE DEBT ROLLOVER PAYOFF CALCULATOR
A4: SETTINGS | L4: CALCULATOR SUMMARY
A5: Payoff Strategy | B5: Snowball | L5: Total Debt ($) | M5: =SUM(B12:B26) -> 207000
A6: Extra Monthly Payment ($) | B6: 0 | L6: Total Minimum Payments ($) | M6: =SUM(D12:D26) -> 2385
A7: Quick-Win Payment Today ($) | B7: 25 | L7: Total Monthly Payment ($) | M7: =M6+B6 -> 2385
A8: Calculation Date | B8: 2026-07-15 | L8: Priority Debt | M8: =IFERROR(INDEX(A12:A26,MATCH(1,G12:G26,0)),"Enter debt data") -> Personal Loan
L9: Highest APR Debt | M9: =IFERROR(INDEX(A12:A26,MATCH(MAX(C12:C26),C12:C26,0)),"Enter debt data") -> Credit Card
L10: Estimated Months to Debt-Free | M10: =IF(COUNT(B12:B26)=0,"",IF(COUNTIF(H12:H26,"480+")>0,"480+",MAX(H12:H26))) -> 101
A11: Debt Name | B11: Current Balance ($) | C11: APR (%) | D11: Minimum Payment ($) | E11: Snowball Rank | F11: Avalanche Rank | G11: Selected Rank | H11: Est. Months | I11: Est. Payoff Date | J11: Notes | L11: Estimated Debt-Free Date | M11: =IF(OR(M10="",M10="480+"),"",EDATE(B8,M10)) -> 2034-12-15
A12: mortagage | B12: 150000 | C12: 3 | D12: 1500 | E12: =IF(B12="","",COUNTIFS($B$12:$B$26,">0",$B$12:$B$26,"<"&B12)+COUNTIFS($B$12:B12,B12)) -> 5 | F12: =IF(B12="","",COUNTIFS($B$12:$B$26,">0",$C$12:$C$26,">"&C12)+COUNTIFS($C$12:C12,C12,$B$12:B12,">0")) -> 4 | G12: =IF(B12="","",IF($B$5="Snowball",E12,F12)) -> 5 | H12: =IF(G12="","",IFERROR(INDEX('Calculation Engine - Do Not Edi'!$F$2:$F$16,MATCH(G12,'Calculation Engine - Do Not Edi'!$A$2:$A$16,0)),"480+")) -> 101 | I12: =IF(OR(H12="",H12="480+"),"",EDATE($B$8,H12)) -> 2034-12-15 | J12: =IF(B12="","",IF(G12=1,"Current target — receives minimum, extra, and all freed payments","Pays minimum until it becomes the first active debt")) -> Pays minimum until it becomes the first active debt
A13: Student Loan | B13: 30000 | C13: 2.5 | D13: 180 | E13: 4 | F13: 5 | G13: 4 | H13: =IF(G13="","",IFERROR(INDEX('Calculation Engine - Do Not Edi'!$F$2:$F$16,MATCH(G13,'Calculation Engine - Do Not Edi'!$A$2:$A$16,0)),"480+")) -> 78 | I13: 2033-01-15 | J13: Pays minimum until it becomes the first active debt
A14: Car Loan | B14: 20000 | C14: 8 | D14: 500 | E14: 3 | F14: 3 | G14: 3 | H14: =IF(G14="","",IFERROR(INDEX('Calculation Engine - Do Not Edi'!$F$2:$F$16,MATCH(G14,'Calculation Engine - Do Not Edi'!$A$2:$A$16,0)),"480+")) -> 47 | I14: 2030-06-15 | J14: Pays minimum until it becomes the first active debt
A15: Credit Card | B15: 5000 | C15: 25 | D15: 105 | E15: 2 | F15: 1 | G15: 2 | H15: =IF(G15="","",IFERROR(INDEX('Calculation Engine - Do Not Edi'!$F$2:$F$16,MATCH(G15,'Calculation Engine - Do Not Edi'!$A$2:$A$16,0)),"480+")) -> 50 | I15: 2030-09-15 | J15: Pays minimum until it becomes the first active debt
A16: Personal Loan | B16: 2000 | C16: 10 | D16: 100 | E16: 1 | F16: 2 | G16: 1 | H16: =IF(G16="","",IFERROR(INDEX('Calculation Engine - Do Not Edi'!$F$2:$F$16,MATCH(G16,'Calculation Engine - Do Not Edi'!$A$2:$A$16,0)),"480+")) -> 22 | I16: 2028-05-15 | J16: Current target — receives minimum, extra, and all freed payments
A17: Debt 6 | H17: =IF(G17="","",IFERROR(INDEX('Calculation Engine - Do Not Edi'!$F$2:$F$16,MATCH(G17,'Calculation Engine - Do Not Edi'!$A$2:$A$16,0)),"480+")) -> 
A18: Debt 7 | H18: =IF(G18="","",IFERROR(INDEX('Calculation Engine - Do Not Edi'!$F$2:$F$16,MATCH(G18,'Calculation Engine - Do Not Edi'!$A$2:$A$16,0)),"480+")) -> 
A19: Debt 8 | H19: =IF(G19="","",IFERROR(INDEX('Calculation Engine - Do Not Edi'!$F$2:$F$16,MATCH(G19,'Calculation Engine - Do Not Edi'!$A$2:$A$16,0)),"480+")) -> 
A20: Debt 9 | H20: =IF(G20="","",IFERROR(INDEX('Calculation Engine - Do Not Edi'!$F$2:$F$16,MATCH(G20,'Calculation Engine - Do Not Edi'!$A$2:$A$16,0)),"480+")) -> 
A21: Debt 10 | H21: =IF(G21="","",IFERROR(INDEX('Calculation Engine - Do Not Edi'!$F$2:$F$16,MATCH(G21,'Calculation Engine - Do Not Edi'!$A$2:$A$16,0)),"480+")) -> 
A22: Debt 11 | H22: =IF(G22="","",IFERROR(INDEX('Calculation Engine - Do Not Edi'!$F$2:$F$16,MATCH(G22,'Calculation Engine - Do Not Edi'!$A$2:$A$16,0)),"480+")) -> 
A23: Debt 12 | H23: =IF(G23="","",IFERROR(INDEX('Calculation Engine - Do Not Edi'!$F$2:$F$16,MATCH(G23,'Calculation Engine - Do Not Edi'!$A$2:$A$16,0)),"480+")) -> 
A24: Debt 13 | H24: =IF(G24="","",IFERROR(INDEX('Calculation Engine - Do Not Edi'!$F$2:$F$16,MATCH(G24,'Calculation Engine - Do Not Edi'!$A$2:$A$16,0)),"480+")) -> 
A25: Debt 14 | H25: =IF(G25="","",IFERROR(INDEX('Calculation Engine - Do Not Edi'!$F$2:$F$16,MATCH(G25,'Calculation Engine - Do Not Edi'!$A$2:$A$16,0)),"480+")) -> 
A26: Debt 15 | H26: =IF(G26="","",IFERROR(INDEX('Calculation Engine - Do Not Edi'!$F$2:$F$16,MATCH(G26,'Calculation Engine - Do Not Edi'!$A$2:$A$16,0)),"480+")) -> 

Sheet Debt Freedom Report
C1: YOUR PERSONALIZED DEBT-FREEDOM REPORT
C4: Your personalized results show where to focus first—and what to do today.
C7: Clarity creates direction. Consistent action creates financial freedom.
A10: 1 | YOUR DEBT-FREE SNAPSHOT
A12: TOTAL DEBT | C12: MONTHLY PAYMENT | G12: STRATEGY | I12: DEBT-FREE DATE
A13: =IF(SUM('Debt Calculator'!B12:B26)=0,"ENTER DEBTS",SUM('Debt Calculator'!B12:B26)) -> 207000 | C13: =IF(SUM('Debt Calculator'!D12:D26)=0,"—",SUM('Debt Calculator'!D12:D26)+'Debt Calculator'!B6) -> 2385 | E13: =IFERROR(INDEX('Debt Calculator'!A12:A26,MATCH(1,'Debt Calculator'!G12:G26,0)),"ENTER DEBTS") -> Personal Loan | G13: ='Debt Calculator'!B5 -> Snowball | I13: =IF(SUM('Debt Calculator'!B12:B26)=0,"COMPLETE ENTRIES",IF('Debt Calculator'!M11="","480+ MONTHS",TEXT('Debt Calculator'!M11,"mmmm yyyy"))) -> December 2034
A18: 2 | WHAT YOUR RESULTS MEAN
A20: =IF(SUM('Debt Calculator'!B12:B26)=0,"Complete the Debt Calculator tab to generate your personalized interpretation.","Based on your entries and true payment rollover, you are projected to become debt-free in approximately "&'Debt Calculator'!M10&" months. Your first priority is "&IFERROR(INDEX('Debt Calculator'!A12:A26,MATCH(1,'Debt Calculator'!G12:G26,0)),"your selected debt")&". When any debt is paid off, its freed payment is redirected to the first remaining debt in your selected payoff order. Keep the total monthly payment working until every balance reaches zero.") -> Based on your entries and true payment rollover, you are projected to become debt-free in approximately 101 months. Your first priority is Personal Loan. When any debt is paid off, its freed payment is redirected to the first remaining debt in your selected payoff order. Keep the total monthly payment working until every balance reaches zero.
A27: 3 | TAKE ACTION NOW
A29: YOUR 3 IMMEDIATE ACTION STEPS | G29: TODAY'S QUICK WIN
A31: 1 | B31: =IF(SUM('Debt Calculator'!B12:B26)=0,"Enter your debt information first.","PROTECT YOUR PLAN"&CHAR(10)&"Stop adding new charges to "&IFERROR(INDEX('Debt Calculator'!A12:A26,MATCH(1,'Debt Calculator'!G12:G26,0)),"your priority debt")&" and keep every other account current.") -> PROTECT YOUR PLAN Stop adding new charges to Personal Loan and keep every other account current. | G31: =IF(SUM('Debt Calculator'!B12:B26)=0,"Enter your debts to generate today’s quick win.","MAKE A $"&TEXT('Debt Calculator'!B7,"#,##0")&" EXTRA PAYMENT TODAY"&CHAR(10)&CHAR(10)&"Apply it to "&IFERROR(INDEX('Debt Calculator'!A12:A26,MATCH(1,'Debt Calculator'!G12:G26,0)),"your priority debt")&". One completed action creates momentum and proves that your plan has started.") -> MAKE A $25 EXTRA PAYMENT TODAY Apply it to Personal Loan. One completed action creates momentum and proves that your plan has started.
A36: 2 | B36: =IF(SUM('Debt Calculator'!B12:B26)=0,"","USE THE ROLLOVER METHOD"&CHAR(10)&"Direct your extra $"&TEXT('Debt Calculator'!B6,"#,##0")&" to "&IFERROR(INDEX('Debt Calculator'!A12:A26,MATCH(1,'Debt Calculator'!G12:G26,0)),"your priority debt")&". Each paid-off debt automatically adds its payment to the first remaining debt in your selected order.") -> USE THE ROLLOVER METHOD Direct your extra $0 to Personal Loan. Each paid-off debt automatically adds its payment to the first remaining debt in your selected order.
A41: 3 | B41: =IF(SUM('Debt Calculator'!B12:B26)=0,"","AUTOMATE CONSISTENCY"&CHAR(10)&"Schedule minimum payments and your extra payment immediately after payday so progress does not depend on memory or motivation.") -> AUTOMATE CONSISTENCY Schedule minimum payments and your extra payment immediately after payday so progress does not depend on memory or motivation.
A47: 4 | WHAT THIS REPORT DOES — AND WHAT COMES NEXT
A49: YOUR FREE REPORT ✓ Estimated debt-free date ✓ First debt to attack ✓ Recommended payoff strategy ✓ Three immediate actions ✓ One quick win for today | F49: INSIDE METABOLIC WEALTH CIRCLE ✓ Complete 90-day roadmap ✓ Weekly live coaching and accountability ✓ Full worksheet and calculator library ✓ Cash-flow and wealth-building systems ✓ Investing and financial-freedom training
A59: 5 | WHY PEOPLE TRUST METABOLIC MILLIONAIRE
A61: ★★★★★ TRUSTED BY A COMMUNITY OF 1,800+ PEOPLE BUILDING FINANCIAL FREEDOM Ken Botwe has an established history of positive customer feedback from his financial education courses and products. Customers consistently value the clarity, practical steps, and confidence they gain from having a structured plan. VETERAN OWNED • PRACTICAL STRATEGIES • STRUCTURED EDUCATION • SUPPORTIVE COMMUNITY
A68: 6 | TURN YOUR RESULTS INTO CONSISTENT PROGRESS
A70: =HYPERLINK("https://metabolicmillionaire.co/metabolic-wealth-circle","JOIN METABOLIC WEALTH CIRCLE"&CHAR(10)&"GET THE COMPLETE 90-DAY SYSTEM") -> JOIN METABOLIC WEALTH CIRCLE GET THE COMPLETE 90-DAY SYSTEM | I70: SCAN TO JOIN
A76: Educational estimates only. Actual results depend on the accuracy of the information entered and consistent implementation. Metabolic Millionaire does not provide individualized legal, tax, or investment advice.

Sheet Calculation Engine - Do Not Edi (hidden)
A1: Rank | B1: Debt Name | C1: Starting Balance ($) | D1: APR (%) | E1: Minimum Payment ($) | F1: Payoff Month | H1: Month | I1: Date | J1: =IF($B$2="","Rank 1",$B$2) -> Personal Loan | M1: =IF($B$3="","Rank 2",$B$3) -> Credit Card | P1: =IF($B$4="","Rank 3",$B$4) -> Car Loan | S1: =IF($B$5="","Rank 4",$B$5) -> Student Loan | V1: =IF($B$6="","Rank 5",$B$6) -> mortagage | Y1: =IF($B$7="","Rank 6",$B$7) -> Rank 6 | AB1: =IF($B$8="","Rank 7",$B$8) -> Rank 7 | AE1: =IF($B$9="","Rank 8",$B$9) -> Rank 8 | AH1: =IF($B$10="","Rank 9",$B$10) -> Rank 9 | AK1: =IF($B$11="","Rank 10",$B$11) -> Rank 10 | AN1: =IF($B$12="","Rank 11",$B$12) -> Rank 11 | AQ1: =IF($B$13="","Rank 12",$B$13) -> Rank 12 | AT1: =IF($B$14="","Rank 13",$B$14) -> Rank 13 | AW1: =IF($B$15="","Rank 14",$B$15) -> Rank 14 | AZ1: =IF($B$16="","Rank 15",$B$16) -> Rank 15
A2: 1 | B2: =IFERROR(INDEX('Debt Calculator'!$A$12:$A$26,MATCH(A2,'Debt Calculator'!$G$12:$G$26,0)),"") -> Personal Loan | C2: =IFERROR(INDEX('Debt Calculator'!$B$12:$B$26,MATCH(A2,'Debt Calculator'!$G$12:$G$26,0)),0) -> 2000 | D2: =IFERROR(INDEX('Debt Calculator'!$C$12:$C$26,MATCH(A2,'Debt Calculator'!$G$12:$G$26,0)),0) -> 10 | E2: =IFERROR(INDEX('Debt Calculator'!$D$12:$D$26,MATCH(A2,'Debt Calculator'!$G$12:$G$26,0)),0) -> 100 | F2: =IF(C2=0,"",IFERROR(MATCH(0,J$4:J$483,0),"480+")) -> 22 | J2: Balance | K2: Payment | L2: Carry Forward | M2: Balance | N2: Payment | O2: Carry Forward | P2: Balance | Q2: Payment | R2: Carry Forward | S2: Balance | T2: Payment | U2: Carry Forward | V2: Balance | W2: Payment | X2: Carry Forward | Y2: Balance | Z2: Payment | AA2: Carry Forward | AB2: Balance | AC2: Payment | AD2: Carry Forward | AE2: Balance | AF2: Payment | AG2: Carry Forward | AH2: Balance | AI2: Payment | AJ2: Carry Forward | AK2: Balance | AL2: Payment | AM2: Carry Forward | AN2: Balance | AO2: Payment | AP2: Carry Forward | AQ2: Balance | AR2: Payment | AS2: Carry Forward | AT2: Balance | AU2: Payment | AV2: Carry Forward | AW2: Balance | AX2: Payment | AY2: Carry Forward | AZ2: Balance | BA2: Payment | BB2: Carry Forward
A3: 2 | B3: =IFERROR(INDEX('Debt Calculator'!$A$12:$A$26,MATCH(A3,'Debt Calculator'!$G$12:$G$26,0)),"") -> Credit Card | C3: =IFERROR(INDEX('Debt Calculator'!$B$12:$B$26,MATCH(A3,'Debt Calculator'!$G$12:$G$26,0)),0) -> 5000 | D3: =IFERROR(INDEX('Debt Calculator'!$C$12:$C$26,MATCH(A3,'Debt Calculator'!$G$12:$G$26,0)),0) -> 25 | E3: =IFERROR(INDEX('Debt Calculator'!$D$12:$D$26,MATCH(A3,'Debt Calculator'!$G$12:$G$26,0)),0) -> 105 | F3: =IF(C3=0,"",IFERROR(MATCH(0,M$4:M$483,0),"480+")) -> 50 | H3: 0 | I3: ='Debt Calculator'!$B$8 -> 2026-07-15 | J3: =$C$2 -> 2000 | K3: =0 -> 0 | L3: 0 | M3: =$C$3 -> 5000 | N3: =0 -> 0 | O3: 0 | P3: =$C$4 -> 20000 | Q3: =0 -> 0 | R3: 0 | S3: =$C$5 -> 30000 | T3: =0 -> 0 | U3: 0 | V3: =$C$6 -> 150000 | W3: =0 -> 0 | X3: 0 | Y3: =$C$7 -> 0 | Z3: =0 -> 0 | AA3: 0 | AB3: =$C$8 -> 0 | AC3: =0 -> 0 | AD3: 0 | AE3: =$C$9 -> 0 | AF3: =0 -> 0 | AG3: 0 | AH3: =$C$10 -> 0 | AI3: =0 -> 0 | AJ3: 0 | AK3: =$C$11 -> 0 | AL3: =0 -> 0 | AM3: 0 | AN3: =$C$12 -> 0 | AO3: =0 -> 0 | AP3: 0 | AQ3: =$C$13 -> 0 | AR3: =0 -> 0 | AS3: 0 | AT3: =$C$14 -> 0 | AU3: =0 -> 0 | AV3: 0 | AW3: =$C$15 -> 0 | AX3: =0 -> 0 | AY3: 0 | AZ3: =$C$16 -> 0 | BA3: =0 -> 0 | BB3: 0
A4: 3 | B4: =IFERROR(INDEX('Debt Calculator'!$A$12:$A$26,MATCH(A4,'Debt Calculator'!$G$12:$G$26,0)),"") -> Car Loan | C4: =IFERROR(INDEX('Debt Calculator'!$B$12:$B$26,MATCH(A4,'Debt Calculator'!$G$12:$G$26,0)),0) -> 20000 | D4: =IFERROR(INDEX('Debt Calculator'!$C$12:$C$26,MATCH(A4,'Debt Calculator'!$G$12:$G$26,0)),0) -> 8 | E4: =IFERROR(INDEX('Debt Calculator'!$D$12:$D$26,MATCH(A4,'Debt Calculator'!$G$12:$G$26,0)),0) -> 500 | F4: =IF(C4=0,"",IFERROR(MATCH(0,P$4:P$483,0),"480+")) -> 47 | H4: =1 -> 1 | I4: =EDATE($I$3,H4) -> 2026-08-15 | J4: =MAX(0,(J3*(1+$D$2/1200))-IF(J3<=0,0,MIN((J3*(1+$D$2/1200)),($E$2+'Debt Calculator'!$B$6+IF(J3<=0,$E$2,0)+IF(M3<=0,$E$3,0)+IF(P3<=0,$E$4,0)+IF(S3<=0,$E$5,0)+IF(V3<=0,$E$6,0)+IF(Y3<=0,$E$7,0)+IF(AB3<=0,$E$8,0)+IF(AE3<=0,$E$9,0)+IF(AH3<=0,$E$10,0)+IF(AK3<=0,$E$11,0)+IF(AN3<=0,$E$12,0)+IF(AQ3<=0,$E$13,0)+IF(AT3<=0,$E$14,0)+IF(AW3<=0,$E$15,0)+IF(AZ3<=0,$E$16,0))))) -> 1916.666667 | K4: =IF(J3<=0,0,MIN((J3*(1+$D$2/1200)),($E$2+'Debt Calculator'!$B$6+IF(J3<=0,$E$2,0)+IF(M3<=0,$E$3,0)+IF(P3<=0,$E$4,0)+IF(S3<=0,$E$5,0)+IF(V3<=0,$E$6,0)+IF(Y3<=0,$E$7,0)+IF(AB3<=0,$E$8,0)+IF(AE3<=0,$E$9,0)+IF(AH3<=0,$E$10,0)+IF(AK3<=0,$E$11,0)+IF(AN3<=0,$E$12,0)+IF(AQ3<=0,$E$13,0)+IF(AT3<=0,$E$14,0)+IF(AW3<=0,$E$15,0)+IF(AZ3<=0,$E$16,0)))) -> 100 | L4: =IF(J3<=0,'Debt Calculator'!$B$6+IF(J3<=0,$E$2,0)+IF(M3<=0,$E$3,0)+IF(P3<=0,$E$4,0)+IF(S3<=0,$E$5,0)+IF(V3<=0,$E$6,0)+IF(Y3<=0,$E$7,0)+IF(AB3<=0,$E$8,0)+IF(AE3<=0,$E$9,0)+IF(AH3<=0,$E$10,0)+IF(AK3<=0,$E$11,0)+IF(AN3<=0,$E$12,0)+IF(AQ3<=0,$E$13,0)+IF(AT3<=0,$E$14,0)+IF(AW3<=0,$E$15,0)+IF(AZ3<=0,$E$16,0),MAX(0,($E$2+'Debt Calculator'!$B$6+IF(J3<=0,$E$2,0)+IF(M3<=0,$E$3,0)+IF(P3<=0,$E$4,0)+IF(S3<=0,$E$5,0)+IF(V3<=0,$E$6,0)+IF(Y3<=0,$E$7,0)+IF(AB3<=0,$E$8,0)+IF(AE3<=0,$E$9,0)+IF(AH3<=0,$E$10,0)+IF(AK3<=0,$E$11,0)+IF(AN3<=0,$E$12,0)+IF(AQ3<=0,$E$13,0)+IF(AT3<=0,$E$14,0)+IF(AW3<=0,$E$15,0)+IF(AZ3<=0,$E$16,0))-(J3*(1+$D$2/1200)))) -> 0 | M4: =MAX(0,(M3*(1+$D$3/1200))-IF(M3<=0,0,MIN((M3*(1+$D$3/1200)),($E$3+L4)))) -> 4999.166667 | N4: =IF(M3<=0,0,MIN((M3*(1+$D$3/1200)),($E$3+L4))) -> 105 | O4: =IF(M3<=0,L4,MAX(0,($E$3+L4)-(M3*(1+$D$3/1200)))) -> 0 | P4: =MAX(0,(P3*(1+$D$4/1200))-IF(P3<=0,0,MIN((P3*(1+$D$4/1200)),($E$4+O4)))) -> 19633.33333 | Q4: =IF(P3<=0,0,MIN((P3*(1+$D$4/1200)),($E$4+O4))) -> 500 | R4: =IF(P3<=0,O4,MAX(0,($E$4+O4)-(P3*(1+$D$4/1200)))) -> 0 | S4: =MAX(0,(S3*(1+$D$5/1200))-IF(S3<=0,0,MIN((S3*(1+$D$5/1200)),($E$5+R4)))) -> 29882.5 | T4: =IF(S3<=0,0,MIN((S3*(1+$D$5/1200)),($E$5+R4))) -> 180 | U4: =IF(S3<=0,R4,MAX(0,($E$5+R4)-(S3*(1+$D$5/1200)))) -> 0 | V4: =MAX(0,(V3*(1+$D$6/1200))-IF(V3<=0,0,MIN((V3*(1+$D$6/1200)),($E$6+U4)))) -> 148875 | W4: =IF(V3<=0,0,MIN((V3*(1+$D$6/1200)),($E$6+U4))) -> 1500 | X4: =IF(V3<=0,U4,MAX(0,($E$6+U4)-(V3*(1+$D$6/1200)))) -> 0 | Y4: =MAX(0,(Y3*(1+$D$7/1200))-IF(Y3<=0,0,MIN((Y3*(1+$D$7/1200)),($E$7+X4)))) -> 0 | Z4: =IF(Y3<=0,0,MIN((Y3*(1+$D$7/1200)),($E$7+X4))) -> 0 | AA4: =IF(Y3<=0,X4,MAX(0,($E$7+X4)-(Y3*(1+$D$7/1200)))) -> 0 | AB4: =MAX(0,(AB3*(1+$D$8/1200))-IF(AB3<=0,0,MIN((AB3*(1+$D$8/1200)),($E$8+AA4)))) -> 0 | AC4: =IF(AB3<=0,0,MIN((AB3*(1+$D$8/1200)),($E$8+AA4))) -> 0 | AD4: =IF(AB3<=0,AA4,MAX(0,($E$8+AA4)-(AB3*(1+$D$8/1200)))) -> 0 | AE4: =MAX(0,(AE3*(1+$D$9/1200))-IF(AE3<=0,0,MIN((AE3*(1+$D$9/1200)),($E$9+AD4)))) -> 0 | AF4: =IF(AE3<=0,0,MIN((AE3*(1+$D$9/1200)),($E$9+AD4))) -> 0 | AG4: =IF(AE3<=0,AD4,MAX(0,($E$9+AD4)-(AE3*(1+$D$9/1200)))) -> 0 | AH4: =MAX(0,(AH3*(1+$D$10/1200))-IF(AH3<=0,0,MIN((AH3*(1+$D$10/1200)),($E$10+AG4)))) -> 0 | AI4: =IF(AH3<=0,0,MIN((AH3*(1+$D$10/1200)),($E$10+AG4))) -> 0 | AJ4: =IF(AH3<=0,AG4,MAX(0,($E$10+AG4)-(AH3*(1+$D$10/1200)))) -> 0 | AK4: =MAX(0,(AK3*(1+$D$11/1200))-IF(AK3<=0,0,MIN((AK3*(1+$D$11/1200)),($E$11+AJ4)))) -> 0 | AL4: =IF(AK3<=0,0,MIN((AK3*(1+$D$11/1200)),($E$11+AJ4))) -> 0 | AM4: =IF(AK3<=0,AJ4,MAX(0,($E$11+AJ4)-(AK3*(1+$D$11/1200)))) -> 0 | AN4: =MAX(0,(AN3*(1+$D$12/1200))-IF(AN3<=0,0,MIN((AN3*(1+$D$12/1200)),($E$12+AM4)))) -> 0 | AO4: =IF(AN3<=0,0,MIN((AN3*(1+$D$12/1200)),($E$12+AM4))) -> 0 | AP4: =IF(AN3<=0,AM4,MAX(0,($E$12+AM4)-(AN3*(1+$D$12/1200)))) -> 0 | AQ4: =MAX(0,(AQ3*(1+$D$13/1200))-IF(AQ3<=0,0,MIN((AQ3*(1+$D$13/1200)),($E$13+AP4)))) -> 0 | AR4: =IF(AQ3<=0,0,MIN((AQ3*(1+$D$13/1200)),($E$13+AP4))) -> 0 | AS4: =IF(AQ3<=0,AP4,MAX(0,($E$13+AP4)-(AQ3*(1+$D$13/1200)))) -> 0 | AT4: =MAX(0,(AT3*(1+$D$14/1200))-IF(AT3<=0,0,MIN((AT3*(1+$D$14/1200)),($E$14+AS4)))) -> 0 | AU4: =IF(AT3<=0,0,MIN((AT3*(1+$D$14/1200)),($E$14+AS4))) -> 0 | AV4: =IF(AT3<=0,AS4,MAX(0,($E$14+AS4)-(AT3*(1+$D$14/1200)))) -> 0 | AW4: =MAX(0,(AW3*(1+$D$15/1200))-IF(AW3<=0,0,MIN((AW3*(1+$D$15/1200)),($E$15+AV4)))) -> 0 | AX4: =IF(AW3<=0,0,MIN((AW3*(1+$D$15/1200)),($E$15+AV4))) -> 0 | AY4: =IF(AW3<=0,AV4,MAX(0,($E$15+AV4)-(AW3*(1+$D$15/1200)))) -> 0 | AZ4: =MAX(0,(AZ3*(1+$D$16/1200))-IF(AZ3<=0,0,MIN((AZ3*(1+$D$16/1200)),($E$16+AY4)))) -> 0 | BA4: =IF(AZ3<=0,0,MIN((AZ3*(1+$D$16/1200)),($E$16+AY4))) -> 0 | BB4: =IF(AZ3<=0,AY4,MAX(0,($E$16+AY4)-(AZ3*(1+$D$16/1200)))) -> 0
A5: 4 | B5: =IFERROR(INDEX('Debt Calculator'!$A$12:$A$26,MATCH(A5,'Debt Calculator'!$G$12:$G$26,0)),"") -> Student Loan | C5: =IFERROR(INDEX('Debt Calculator'!$B$12:$B$26,MATCH(A5,'Debt Calculator'!$G$12:$G$26,0)),0) -> 30000 | D5: =IFERROR(INDEX('Debt Calculator'!$C$12:$C$26,MATCH(A5,'Debt Calculator'!$G$12:$G$26,0)),0) -> 2.5 | E5: =IFERROR(INDEX('Debt Calculator'!$D$12:$D$26,MATCH(A5,'Debt Calculator'!$G$12:$G$26,0)),0) -> 180 | F5: =IF(C5=0,"",IFERROR(MATCH(0,S$4:S$483,0),"480+")) -> 78 | H5: =2 -> 2 | I5: 2026-09-15 | J5: =MAX(0,(J4*(1+$D$2/1200))-IF(J4<=0,0,MIN((J4*(1+$D$2/1200)),($E$2+'Debt Calculator'!$B$6+IF(J4<=0,$E$2,0)+IF(M4<=0,$E$3,0)+IF(P4<=0,$E$4,0)+IF(S4<=0,$E$5,0)+IF(V4<=0,$E$6,0)+IF(Y4<=0,$E$7,0)+IF(AB4<=0,$E$8,0)+IF(AE4<=0,$E$9,0)+IF(AH4<=0,$E$10,0)+IF(AK4<=0,$E$11,0)+IF(AN4<=0,$E$12,0)+IF(AQ4<=0,$E$13,0)+IF(AT4<=0,$E$14,0)+IF(AW4<=0,$E$15,0)+IF(AZ4<=0,$E$16,0))))) -> 1832.638889 | K5: =IF(J4<=0,0,MIN((J4*(1+$D$2/1200)),($E$2+'Debt Calculator'!$B$6+IF(J4<=0,$E$2,0)+IF(M4<=0,$E$3,0)+IF(P4<=0,$E$4,0)+IF(S4<=0,$E$5,0)+IF(V4<=0,$E$6,0)+IF(Y4<=0,$E$7,0)+IF(AB4<=0,$E$8,0)+IF(AE4<=0,$E$9,0)+IF(AH4<=0,$E$10,0)+IF(AK4<=0,$E$11,0)+IF(AN4<=0,$E$12,0)+IF(AQ4<=0,$E$13,0)+IF(AT4<=0,$E$14,0)+IF(AW4<=0,$E$15,0)+IF(AZ4<=0,$E$16,0)))) -> 100 | L5: =IF(J4<=0,'Debt Calculator'!$B$6+IF(J4<=0,$E$2,0)+IF(M4<=0,$E$3,0)+IF(P4<=0,$E$4,0)+IF(S4<=0,$E$5,0)+IF(V4<=0,$E$6,0)+IF(Y4<=0,$E$7,0)+IF(AB4<=0,$E$8,0)+IF(AE4<=0,$E$9,0)+IF(AH4<=0,$E$10,0)+IF(AK4<=0,$E$11,0)+IF(AN4<=0,$E$12,0)+IF(AQ4<=0,$E$13,0)+IF(AT4<=0,$E$14,0)+IF(AW4<=0,$E$15,0)+IF(AZ4<=0,$E$16,0),MAX(0,($E$2+'Debt Calculator'!$B$6+IF(J4<=0,$E$2,0)+IF(M4<=0,$E$3,0)+IF(P4<=0,$E$4,0)+IF(S4<=0,$E$5,0)+IF(V4<=0,$E$6,0)+IF(Y4<=0,$E$7,0)+IF(AB4<=0,$E$8,0)+IF(AE4<=0,$E$9,0)+IF(AH4<=0,$E$10,0)+IF(AK4<=0,$E$11,0)+IF(AN4<=0,$E$12,0)+IF(AQ4<=0,$E$13,0)+IF(AT4<=0,$E$14,0)+IF(AW4<=0,$E$15,0)+IF(AZ4<=0,$E$16,0))-(J4*(1+$D$2/1200)))) -> 0 | M5: 4998.315972 | N5: 105 | O5: 0 | P5: 19264.22222 | Q5: 500 | R5: 0 | S5: 29764.75521 | T5: 180 | U5: 0 | V5: 147747.1875 | W5: 1500 | X5: 0 | Y5: 0 | Z5: 0 | AA5: 0 | AB5: 0 | AC5: 0 | AD5: 0 | AE5: 0 | AF5: 0 | AG5: 0 | AH5: 0 | AI5: 0 | AJ5: 0 | AK5: 0 | AL5: 0 | AM5: 0 | AN5: 0 | AO5: 0 | AP5: 0 | AQ5: 0 | AR5: 0 | AS5: 0 | AT5: 0 | AU5: 0 | AV5: 0 | AW5: 0 | AX5: 0 | AY5: 0 | AZ5: 0 | BA5: 0 | BB5: 0
A6: 5 | B6: =IFERROR(INDEX('Debt Calculator'!$A$12:$A$26,MATCH(A6,'Debt Calculator'!$G$12:$G$26,0)),"") -> mortagage | C6: =IFERROR(INDEX('Debt Calculator'!$B$12:$B$26,MATCH(A6,'Debt Calculator'!$G$12:$G$26,0)),0) -> 150000 | D6: =IFERROR(INDEX('Debt Calculator'!$C$12:$C$26,MATCH(A6,'Debt Calculator'!$G$12:$G$26,0)),0) -> 3 | E6: =IFERROR(INDEX('Debt Calculator'!$D$12:$D$26,MATCH(A6,'Debt Calculator'!$G$12:$G$26,0)),0) -> 1500 | F6: =IF(C6=0,"",IFERROR(MATCH(0,V$4:V$483,0),"480+")) -> 101 | H6: =3 -> 3 | I6: 2026-10-15 | J6: =MAX(0,(J5*(1+$D$2/1200))-IF(J5<=0,0,MIN((J5*(1+$D$2/1200)),($E$2+'Debt Calculator'!$B$6+IF(J5<=0,$E$2,0)+IF(M5<=0,$E$3,0)+IF(P5<=0,$E$4,0)+IF(S5<=0,$E$5,0)+IF(V5<=0,$E$6,0)+IF(Y5<=0,$E$7,0)+IF(AB5<=0,$E$8,0)+IF(AE5<=0,$E$9,0)+IF(AH5<=0,$E$10,0)+IF(AK5<=0,$E$11,0)+IF(AN5<=0,$E$12,0)+IF(AQ5<=0,$E$13,0)+IF(AT5<=0,$E$14,0)+IF(AW5<=0,$E$15,0)+IF(AZ5<=0,$E$16,0))))) -> 1747.91088 | K6: =IF(J5<=0,0,MIN((J5*(1+$D$2/1200)),($E$2+'Debt Calculator'!$B$6+IF(J5<=0,$E$2,0)+IF(M5<=0,$E$3,0)+IF(P5<=0,$E$4,0)+IF(S5<=0,$E$5,0)+IF(V5<=0,$E$6,0)+IF(Y5<=0,$E$7,0)+IF(AB5<=0,$E$8,0)+IF(AE5<=0,$E$9,0)+IF(AH5<=0,$E$10,0)+IF(AK5<=0,$E$11,0)+IF(AN5<=0,$E$12,0)+IF(AQ5<=0,$E$13,0)+IF(AT5<=0,$E$14,0)+IF(AW5<=0,$E$15,0)+IF(AZ5<=0,$E$16,0)))) -> 100 | L6: =IF(J5<=0,'Debt Calculator'!$B$6+IF(J5<=0,$E$2,0)+IF(M5<=0,$E$3,0)+IF(P5<=0,$E$4,0)+IF(S5<=0,$E$5,0)+IF(V5<=0,$E$6,0)+IF(Y5<=0,$E$7,0)+IF(AB5<=0,$E$8,0)+IF(AE5<=0,$E$9,0)+IF(AH5<=0,$E$10,0)+IF(AK5<=0,$E$11,0)+IF(AN5<=0,$E$12,0)+IF(AQ5<=0,$E$13,0)+IF(AT5<=0,$E$14,0)+IF(AW5<=0,$E$15,0)+IF(AZ5<=0,$E$16,0),MAX(0,($E$2+'Debt Calculator'!$B$6+IF(J5<=0,$E$2,0)+IF(M5<=0,$E$3,0)+IF(P5<=0,$E$4,0)+IF(S5<=0,$E$5,0)+IF(V5<=0,$E$6,0)+IF(Y5<=0,$E$7,0)+IF(AB5<=0,$E$8,0)+IF(AE5<=0,$E$9,0)+IF(AH5<=0,$E$10,0)+IF(AK5<=0,$E$11,0)+IF(AN5<=0,$E$12,0)+IF(AQ5<=0,$E$13,0)+IF(AT5<=0,$E$14,0)+IF(AW5<=0,$E$15,0)+IF(AZ5<=0,$E$16,0))-(J5*(1+$D$2/1200)))) -> 0 | M6: 4997.447555 | N6: 105 | O6: 0 | P6: 18892.65037 | Q6: 500 | R6: 0 | S6: 29646.76512 | T6: 180 | U6: 0 | V6: 146616.5555 | W6: 1500 | X6: 0 | Y6: 0 | Z6: 0 | AA6: 0 | AB6: 0 | AC6: 0 | AD6: 0 | AE6: 0 | AF6: 0 | AG6: 0 | AH6: 0 | AI6: 0 | AJ6: 0 | AK6: 0 | AL6: 0 | AM6: 0 | AN6: 0 | AO6: 0 | AP6: 0 | AQ6: 0 | AR6: 0 | AS6: 0 | AT6: 0 | AU6: 0 | AV6: 0 | AW6: 0 | AX6: 0 | AY6: 0 | AZ6: 0 | BA6: 0 | BB6: 0
A7: 6 | B7: =IFERROR(INDEX('Debt Calculator'!$A$12:$A$26,MATCH(A7,'Debt Calculator'!$G$12:$G$26,0)),"") ->  | C7: =IFERROR(INDEX('Debt Calculator'!$B$12:$B$26,MATCH(A7,'Debt Calculator'!$G$12:$G$26,0)),0) -> 0 | D7: =IFERROR(INDEX('Debt Calculator'!$C$12:$C$26,MATCH(A7,'Debt Calculator'!$G$12:$G$26,0)),0) -> 0 | E7: =IFERROR(INDEX('Debt Calculator'!$D$12:$D$26,MATCH(A7,'Debt Calculator'!$G$12:$G$26,0)),0) -> 0 | F7: =IF(C7=0,"",IFERROR(MATCH(0,Y$4:Y$483,0),"480+")) ->  | H7: =4 -> 4 | I7: 2026-11-15 | J7: =MAX(0,(J6*(1+$D$2/1200))-IF(J6<=0,0,MIN((J6*(1+$D$2/1200)),($E$2+'Debt Calculator'!$B$6+IF(J6<=0,$E$2,0)+IF(M6<=0,$E$3,0)+IF(P6<=0,$E$4,0)+IF(S6<=0,$E$5,0)+IF(V6<=0,$E$6,0)+IF(Y6<=0,$E$7,0)+IF(AB6<=0,$E$8,0)+IF(AE6<=0,$E$9,0)+IF(AH6<=0,$E$10,0)+IF(AK6<=0,$E$11,0)+IF(AN6<=0,$E$12,0)+IF(AQ6<=0,$E$13,0)+IF(AT6<=0,$E$14,0)+IF(AW6<=0,$E$15,0)+IF(AZ6<=0,$E$16,0))))) -> 1662.476804 | K7: =IF(J6<=0,0,MIN((J6*(1+$D$2/1200)),($E$2+'Debt Calculator'!$B$6+IF(J6<=0,$E$2,0)+IF(M6<=0,$E$3,0)+IF(P6<=0,$E$4,0)+IF(S6<=0,$E$5,0)+IF(V6<=0,$E$6,0)+IF(Y6<=0,$E$7,0)+IF(AB6<=0,$E$8,0)+IF(AE6<=0,$E$9,0)+IF(AH6<=0,$E$10,0)+IF(AK6<=0,$E$11,0)+IF(AN6<=0,$E$12,0)+IF(AQ6<=0,$E$13,0)+IF(AT6<=0,$E$14,0)+IF(AW6<=0,$E$15,0)+IF(AZ6<=0,$E$16,0)))) -> 100 | L7: =IF(J6<=0,'Debt Calculator'!$B$6+IF(J6<=0,$E$2,0)+IF(M6<=0,$E$3,0)+IF(P6<=0,$E$4,0)+IF(S6<=0,$E$5,0)+IF(V6<=0,$E$6,0)+IF(Y6<=0,$E$7,0)+IF(AB6<=0,$E$8,0)+IF(AE6<=0,$E$9,0)+IF(AH6<=0,$E$10,0)+IF(AK6<=0,$E$11,0)+IF(AN6<=0,$E$12,0)+IF(AQ6<=0,$E$13,0)+IF(AT6<=0,$E$14,0)+IF(AW6<=0,$E$15,0)+IF(AZ6<=0,$E$16,0),MAX(0,($E$2+'Debt Calculator'!$B$6+IF(J6<=0,$E$2,0)+IF(M6<=0,$E$3,0)+IF(P6<=0,$E$4,0)+IF(S6<=0,$E$5,0)+IF(V6<=0,$E$6,0)+IF(Y6<=0,$E$7,0)+IF(AB6<=0,$E$8,0)+IF(AE6<=0,$E$9,0)+IF(AH6<=0,$E$10,0)+IF(AK6<=0,$E$11,0)+IF(AN6<=0,$E$12,0)+IF(AQ6<=0,$E$13,0)+IF(AT6<=0,$E$14,0)+IF(AW6<=0,$E$15,0)+IF(AZ6<=0,$E$16,0))-(J6*(1+$D$2/1200)))) -> 0 | M7: 4996.561046 | N7: 105 | O7: 0 | P7: 18518.60137 | Q7: 500 | R7: 0 | S7: 29528.52921 | T7: 180 | U7: 0 | V7: 145483.0969 | W7: 1500 | X7: 0 | Y7: 0 | Z7: 0 | AA7: 0 | AB7: 0 | AC7: 0 | AD7: 0 | AE7: 0 | AF7: 0 | AG7: 0 | AH7: 0 | AI7: 0 | AJ7: 0 | AK7: 0 | AL7: 0 | AM7: 0 | AN7: 0 | AO7: 0 | AP7: 0 | AQ7: 0 | AR7: 0 | AS7: 0 | AT7: 0 | AU7: 0 | AV7: 0 | AW7: 0 | AX7: 0 | AY7: 0 | AZ7: 0 | BA7: 0 | BB7: 0
A8: 7 | B8: =IFERROR(INDEX('Debt Calculator'!$A$12:$A$26,MATCH(A8,'Debt Calculator'!$G$12:$G$26,0)),"") ->  | C8: =IFERROR(INDEX('Debt Calculator'!$B$12:$B$26,MATCH(A8,'Debt Calculator'!$G$12:$G$26,0)),0) -> 0 | D8: =IFERROR(INDEX('Debt Calculator'!$C$12:$C$26,MATCH(A8,'Debt Calculator'!$G$12:$G$26,0)),0) -> 0 | E8: =IFERROR(INDEX('Debt Calculator'!$D$12:$D$26,MATCH(A8,'Debt Calculator'!$G$12:$G$26,0)),0) -> 0 | F8: =IF(C8=0,"",IFERROR(MATCH(0,AB$4:AB$483,0),"480+")) ->  | H8: =5 -> 5 | I8: 2026-12-15 | J8: =MAX(0,(J7*(1+$D$2/1200))-IF(J7<=0,0,MIN((J7*(1+$D$2/1200)),($E$2+'Debt Calculator'!$B$6+IF(J7<=0,$E$2,0)+IF(M7<=0,$E$3,0)+IF(P7<=0,$E$4,0)+IF(S7<=0,$E$5,0)+IF(V7<=0,$E$6,0)+IF(Y7<=0,$E$7,0)+IF(AB7<=0,$E$8,0)+IF(AE7<=0,$E$9,0)+IF(AH7<=0,$E$10,0)+IF(AK7<=0,$E$11,0)+IF(AN7<=0,$E$12,0)+IF(AQ7<=0,$E$13,0)+IF(AT7<=0,$E$14,0)+IF(AW7<=0,$E$15,0)+IF(AZ7<=0,$E$16,0))))) -> 1576.330777 | K8: =IF(J7<=0,0,MIN((J7*(1+$D$2/1200)),($E$2+'Debt Calculator'!$B$6+IF(J7<=0,$E$2,0)+IF(M7<=0,$E$3,0)+IF(P7<=0,$E$4,0)+IF(S7<=0,$E$5,0)+IF(V7<=0,$E$6,0)+IF(Y7<=0,$E$7,0)+IF(AB7<=0,$E$8,0)+IF(AE7<=0,$E$9,0)+IF(AH7<=0,$E$10,0)+IF(AK7<=0,$E$11,0)+IF(AN7<=0,$E$12,0)+IF(AQ7<=0,$E$13,0)+IF(AT7<=0,$E$14,0)+IF(AW7<=0,$E$15,0)+IF(AZ7<=0,$E$16,0)))) -> 100 | L8: =IF(J7<=0,'Debt Calculator'!$B$6+IF(J7<=0,$E$2,0)+IF(M7<=0,$E$3,0)+IF(P7<=0,$E$4,0)+IF(S7<=0,$E$5,0)+IF(V7<=0,$E$6,0)+IF(Y7<=0,$E$7,0)+IF(AB7<=0,$E$8,0)+IF(AE7<=0,$E$9,0)+IF(AH7<=0,$E$10,0)+IF(AK7<=0,$E$11,0)+IF(AN7<=0,$E$12,0)+IF(AQ7<=0,$E$13,0)+IF(AT7<=0,$E$14,0)+IF(AW7<=0,$E$15,0)+IF(AZ7<=0,$E$16,0),MAX(0,($E$2+'Debt Calculator'!$B$6+IF(J7<=0,$E$2,0)+IF(M7<=0,$E$3,0)+IF(P7<=0,$E$4,0)+IF(S7<=0,$E$5,0)+IF(V7<=0,$E$6,0)+IF(Y7<=0,$E$7,0)+IF(AB7<=0,$E$8,0)+IF(AE7<=0,$E$9,0)+IF(AH7<=0,$E$10,0)+IF(AK7<=0,$E$11,0)+IF(AN7<=0,$E$12,0)+IF(AQ7<=0,$E$13,0)+IF(AT7<=0,$E$14,0)+IF(AW7<=0,$E$15,0)+IF(AZ7<=0,$E$16,0))-(J7*(1+$D$2/1200)))) -> 0 | M8: 4995.656067 | N8: 105 | O8: 0 | P8: 18142.05872 | Q8: 500 | R8: 0 | S8: 29410.04698 | T8: 180 | U8: 0 | V8: 144346.8046 | W8: 1500 | X8: 0 | Y8: 0 | Z8: 0 | AA8: 0 | AB8: 0 | AC8: 0 | AD8: 0 | AE8: 0 | AF8: 0 | AG8: 0 | AH8: 0 | AI8: 0 | AJ8: 0 | AK8: 0 | AL8: 0 | AM8: 0 | AN8: 0 | AO8: 0 | AP8: 0 | AQ8: 0 | AR8: 0 | AS8: 0 | AT8: 0 | AU8: 0 | AV8: 0 | AW8: 0 | AX8: 0 | AY8: 0 | AZ8: 0 | BA8: 0 | BB8: 0
A9: 8 | B9: =IFERROR(INDEX('Debt Calculator'!$A$12:$A$26,MATCH(A9,'Debt Calculator'!$G$12:$G$26,0)),"") ->  | C9: =IFERROR(INDEX('Debt Calculator'!$B$12:$B$26,MATCH(A9,'Debt Calculator'!$G$12:$G$26,0)),0) -> 0 | D9: =IFERROR(INDEX('Debt Calculator'!$C$12:$C$26,MATCH(A9,'Debt Calculator'!$G$12:$G$26,0)),0) -> 0 | E9: =IFERROR(INDEX('Debt Calculator'!$D$12:$D$26,MATCH(A9,'Debt Calculator'!$G$12:$G$26,0)),0) -> 0 | F9: =IF(C9=0,"",IFERROR(MATCH(0,AE$4:AE$483,0),"480+")) ->  | H9: =6 -> 6 | I9: 2027-01-15 | J9: =MAX(0,(J8*(1+$D$2/1200))-IF(J8<=0,0,MIN((J8*(1+$D$2/1200)),($E$2+'Debt Calculator'!$B$6+IF(J8<=0,$E$2,0)+IF(M8<=0,$E$3,0)+IF(P8<=0,$E$4,0)+IF(S8<=0,$E$5,0)+IF(V8<=0,$E$6,0)+IF(Y8<=0,$E$7,0)+IF(AB8<=0,$E$8,0)+IF(AE8<=0,$E$9,0)+IF(AH8<=0,$E$10,0)+IF(AK8<=0,$E$11,0)+IF(AN8<=0,$E$12,0)+IF(AQ8<=0,$E$13,0)+IF(AT8<=0,$E$14,0)+IF(AW8<=0,$E$15,0)+IF(AZ8<=0,$E$16,0))))) -> 1489.466867 | K9: =IF(J8<=0,0,MIN((J8*(1+$D$2/1200)),($E$2+'Debt Calculator'!$B$6+IF(J8<=0,$E$2,0)+IF(M8<=0,$E$3,0)+IF(P8<=0,$E$4,0)+IF(S8<=0,$E$5,0)+IF(V8<=0,$E$6,0)+IF(Y8<=0,$E$7,0)+IF(AB8<=0,$E$8,0)+IF(AE8<=0,$E$9,0)+IF(AH8<=0,$E$10,0)+IF(AK8<=0,$E$11,0)+IF(AN8<=0,$E$12,0)+IF(AQ8<=0,$E$13,0)+IF(AT8<=0,$E$14,0)+IF(AW8<=0,$E$15,0)+IF(AZ8<=0,$E$16,0)))) -> 100 | L9: =IF(J8<=0,'Debt Calculator'!$B$6+IF(J8<=0,$E$2,0)+IF(M8<=0,$E$3,0)+IF(P8<=0,$E$4,0)+IF(S8<=0,$E$5,0)+IF(V8<=0,$E$6,0)+IF(Y8<=0,$E$7,0)+IF(AB8<=0,$E$8,0)+IF(AE8<=0,$E$9,0)+IF(AH8<=0,$E$10,0)+IF(AK8<=0,$E$11,0)+IF(AN8<=0,$E$12,0)+IF(AQ8<=0,$E$13,0)+IF(AT8<=0,$E$14,0)+IF(AW8<=0,$E$15,0)+IF(AZ8<=0,$E$16,0),MAX(0,($E$2+'Debt Calculator'!$B$6+IF(J8<=0,$E$2,0)+IF(M8<=0,$E$3,0)+IF(P8<=0,$E$4,0)+IF(S8<=0,$E$5,0)+IF(V8<=0,$E$6,0)+IF(Y8<=0,$E$7,0)+IF(AB8<=0,$E$8,0)+IF(AE8<=0,$E$9,0)+IF(AH8<=0,$E$10,0)+IF(AK8<=0,$E$11,0)+IF(AN8<=0,$E$12,0)+IF(AQ8<=0,$E$13,0)+IF(AT8<=0,$E$14,0)+IF(AW8<=0,$E$15,0)+IF(AZ8<=0,$E$16,0))-(J8*(1+$D$2/1200)))) -> 0 | M9: 4994.732236 | N9: 105 | O9: 0 | P9: 17763.00577 | Q9: 500 | R9: 0 | S9: 29291.31791 | T9: 180 | U9: 0 | V9: 143207.6716 | W9: 1500 | X9: 0 | Y9: 0 | Z9: 0 | AA9: 0 | AB9: 0 | AC9: 0 | AD9: 0 | AE9: 0 | AF9: 0 | AG9: 0 | AH9: 0 | AI9: 0 | AJ9: 0 | AK9: 0 | AL9: 0 | AM9: 0 | AN9: 0 | AO9: 0 | AP9: 0 | AQ9: 0 | AR9: 0 | AS9: 0 | AT9: 0 | AU9: 0 | AV9: 0 | AW9: 0 | AX9: 0 | AY9: 0 | AZ9: 0 | BA9: 0 | BB9: 0
A10: 9 | B10: =IFERROR(INDEX('Debt Calculator'!$A$12:$A$26,MATCH(A10,'Debt Calculator'!$G$12:$G$26,0)),"") ->  | C10: =IFERROR(INDEX('Debt Calculator'!$B$12:$B$26,MATCH(A10,'Debt Calculator'!$G$12:$G$26,0)),0) -> 0 | D10: =IFERROR(INDEX('Debt Calculator'!$C$12:$C$26,MATCH(A10,'Debt Calculator'!$G$12:$G$26,0)),0) -> 0 | E10: =IFERROR(INDEX('Debt Calculator'!$D$12:$D$26,MATCH(A10,'Debt Calculator'!$G$12:$G$26,0)),0) -> 0 | F10: =IF(C10=0,"",IFERROR(MATCH(0,AH$4:AH$483,0),"480+")) ->  | H10: =7 -> 7 | I10: 2027-02-15 | J10: =MAX(0,(J9*(1+$D$2/1200))-IF(J9<=0,0,MIN((J9*(1+$D$2/1200)),($E$2+'Debt Calculator'!$B$6+IF(J9<=0,$E$2,0)+IF(M9<=0,$E$3,0)+IF(P9<=0,$E$4,0)+IF(S9<=0,$E$5,0)+IF(V9<=0,$E$6,0)+IF(Y9<=0,$E$7,0)+IF(AB9<=0,$E$8,0)+IF(AE9<=0,$E$9,0)+IF(AH9<=0,$E$10,0)+IF(AK9<=0,$E$11,0)+IF(AN9<=0,$E$12,0)+IF(AQ9<=0,$E$13,0)+IF(AT9<=0,$E$14,0)+IF(AW9<=0,$E$15,0)+IF(AZ9<=0,$E$16,0))))) -> 1401.879091 | K10: =IF(J9<=0,0,MIN((J9*(1+$D$2/1200)),($E$2+'Debt Calculator'!$B$6+IF(J9<=0,$E$2,0)+IF(M9<=0,$E$3,0)+IF(P9<=0,$E$4,0)+IF(S9<=0,$E$5,0)+IF(V9<=0,$E$6,0)+IF(Y9<=0,$E$7,0)+IF(AB9<=0,$E$8,0)+IF(AE9<=0,$E$9,0)+IF(AH9<=0,$E$10,0)+IF(AK9<=0,$E$11,0)+IF(AN9<=0,$E$12,0)+IF(AQ9<=0,$E$13,0)+IF(AT9<=0,$E$14,0)+IF(AW9<=0,$E$15,0)+IF(AZ9<=0,$E$16,0)))) -> 100 | L10: =IF(J9<=0,'Debt Calculator'!$B$6+IF(J9<=0,$E$2,0)+IF(M9<=0,$E$3,0)+IF(P9<=0,$E$4,0)+IF(S9<=0,$E$5,0)+IF(V9<=0,$E$6,0)+IF(Y9<=0,$E$7,0)+IF(AB9<=0,$E$8,0)+IF(AE9<=0,$E$9,0)+IF(AH9<=0,$E$10,0)+IF(AK9<=0,$E$11,0)+IF(AN9<=0,$E$12,0)+IF(AQ9<=0,$E$13,0)+IF(AT9<=0,$E$14,0)+IF(AW9<=0,$E$15,0)+IF(AZ9<=0,$E$16,0),MAX(0,($E$2+'Debt Calculator'!$B$6+IF(J9<=0,$E$2,0)+IF(M9<=0,$E$3,0)+IF(P9<=0,$E$4,0)+IF(S9<=0,$E$5,0)+IF(V9<=0,$E$6,0)+IF(Y9<=0,$E$7,0)+IF(AB9<=0,$E$8,0)+IF(AE9<=0,$E$9,0)+IF(AH9<=0,$E$10,0)+IF(AK9<=0,$E$11,0)+IF(AN9<=0,$E$12,0)+IF(AQ9<=0,$E$13,0)+IF(AT9<=0,$E$14,0)+IF(AW9<=0,$E$15,0)+IF(AZ9<=0,$E$16,0))-(J9*(1+$D$2/1200)))) -> 0 | M10: 4993.789157 | N10: 105 | O10: 0 | P10: 17381.42581 | Q10: 500 | R10: 0 | S10: 29172.34149 | T10: 180 | U10: 0 | V10: 142065.6908 | W10: 1500 | X10: 0 | Y10: 0 | Z10: 0 | AA10: 0 | AB10: 0 | AC10: 0 | AD10: 0 | AE10: 0 | AF10: 0 | AG10: 0 | AH10: 0 | AI10: 0 | AJ10: 0 | AK10: 0 | AL10: 0 | AM10: 0 | AN10: 0 | AO10: 0 | AP10: 0 | AQ10: 0 | AR10: 0 | AS10: 0 | AT10: 0 | AU10: 0 | AV10: 0 | AW10: 0 | AX10: 0 | AY10: 0 | AZ10: 0 | BA10: 0 | BB10: 0
A11: 10 | B11: =IFERROR(INDEX('Debt Calculator'!$A$12:$A$26,MATCH(A11,'Debt Calculator'!$G$12:$G$26,0)),"") ->  | C11: =IFERROR(INDEX('Debt Calculator'!$B$12:$B$26,MATCH(A11,'Debt Calculator'!$G$12:$G$26,0)),0) -> 0 | D11: =IFERROR(INDEX('Debt Calculator'!$C$12:$C$26,MATCH(A11,'Debt Calculator'!$G$12:$G$26,0)),0) -> 0 | E11: =IFERROR(INDEX('Debt Calculator'!$D$12:$D$26,MATCH(A11,'Debt Calculator'!$G$12:$G$26,0)),0) -> 0 | F11: =IF(C11=0,"",IFERROR(MATCH(0,AK$4:AK$483,0),"480+")) ->  | H11: =8 -> 8 | I11: 2027-03-15 | J11: =MAX(0,(J10*(1+$D$2/1200))-IF(J10<=0,0,MIN((J10*(1+$D$2/1200)),($E$2+'Debt Calculator'!$B$6+IF(J10<=0,$E$2,0)+IF(M10<=0,$E$3,0)+IF(P10<=0,$E$4,0)+IF(S10<=0,$E$5,0)+IF(V10<=0,$E$6,0)+IF(Y10<=0,$E$7,0)+IF(AB10<=0,$E$8,0)+IF(AE10<=0,$E$9,0)+IF(AH10<=0,$E$10,0)+IF(AK10<=0,$E$11,0)+IF(AN10<=0,$E$12,0)+IF(AQ10<=0,$E$13,0)+IF(AT10<=0,$E$14,0)+IF(AW10<=0,$E$15,0)+IF(AZ10<=0,$E$16,0))))) -> 1313.561416 | K11: =IF(J10<=0,0,MIN((J10*(1+$D$2/1200)),($E$2+'Debt Calculator'!$B$6+IF(J10<=0,$E$2,0)+IF(M10<=0,$E$3,0)+IF(P10<=0,$E$4,0)+IF(S10<=0,$E$5,0)+IF(V10<=0,$E$6,0)+IF(Y10<=0,$E$7,0)+IF(AB10<=0,$E$8,0)+IF(AE10<=0,$E$9,0)+IF(AH10<=0,$E$10,0)+IF(AK10<=0,$E$11,0)+IF(AN10<=0,$E$12,0)+IF(AQ10<=0,$E$13,0)+IF(AT10<=0,$E$14,0)+IF(AW10<=0,$E$15,0)+IF(AZ10<=0,$E$16,0)))) -> 100 | L11: =IF(J10<=0,'Debt Calculator'!$B$6+IF(J10<=0,$E$2,0)+IF(M10<=0,$E$3,0)+IF(P10<=0,$E$4,0)+IF(S10<=0,$E$5,0)+IF(V10<=0,$E$6,0)+IF(Y10<=0,$E$7,0)+IF(AB10<=0,$E$8,0)+IF(AE10<=0,$E$9,0)+IF(AH10<=0,$E$10,0)+IF(AK10<=0,$E$11,0)+IF(AN10<=0,$E$12,0)+IF(AQ10<=0,$E$13,0)+IF(AT10<=0,$E$14,0)+IF(AW10<=0,$E$15,0)+IF(AZ10<=0,$E$16,0),MAX(0,($E$2+'Debt Calculator'!$B$6+IF(J10<=0,$E$2,0)+IF(M10<=0,$E$3,0)+IF(P10<=0,$E$4,0)+IF(S10<=0,$E$5,0)+IF(V10<=0,$E$6,0)+IF(Y10<=0,$E$7,0)+IF(AB10<=0,$E$8,0)+IF(AE10<=0,$E$9,0)+IF(AH10<=0,$E$10,0)+IF(AK10<=0,$E$11,0)+IF(AN10<=0,$E$12,0)+IF(AQ10<=0,$E$13,0)+IF(AT10<=0,$E$14,0)+IF(AW10<=0,$E$15,0)+IF(AZ10<=0,$E$16,0))-(J10*(1+$D$2/1200)))) -> 0 | M11: 4992.826431 | N11: 105 | O11: 0 | P11: 16997.30198 | Q11: 500 | R11: 0 | S11: 29053.1172 | T11: 180 | U11: 0 | V11: 140920.855 | W11: 1500 | X11: 0 | Y11: 0 | Z11: 0 | AA11: 0 | AB11: 0 | AC11: 0 | AD11: 0 | AE11: 0 | AF11: 0 | AG11: 0 | AH11: 0 | AI11: 0 | AJ11: 0 | AK11: 0 | AL11: 0 | AM11: 0 | AN11: 0 | AO11: 0 | AP11: 0 | AQ11: 0 | AR11: 0 | AS11: 0 | AT11: 0 | AU11: 0 | AV11: 0 | AW11: 0 | AX11: 0 | AY11: 0 | AZ11: 0 | BA11: 0 | BB11: 0
A12: 11 | B12: =IFERROR(INDEX('Debt Calculator'!$A$12:$A$26,MATCH(A12,'Debt Calculator'!$G$12:$G$26,0)),"") ->  | C12: =IFERROR(INDEX('Debt Calculator'!$B$12:$B$26,MATCH(A12,'Debt Calculator'!$G$12:$G$26,0)),0) -> 0 | D12: =IFERROR(INDEX('Debt Calculator'!$C$12:$C$26,MATCH(A12,'Debt Calculator'!$G$12:$G$26,0)),0) -> 0 | E12: =IFERROR(INDEX('Debt Calculator'!$D$12:$D$26,MATCH(A12,'Debt Calculator'!$G$12:$G$26,0)),0) -> 0 | F12: =IF(C12=0,"",IFERROR(MATCH(0,AN$4:AN$483,0),"480+")) ->  | H12: =9 -> 9 | I12: 2027-04-15 | J12: =MAX(0,(J11*(1+$D$2/1200))-IF(J11<=0,0,MIN((J11*(1+$D$2/1200)),($E$2+'Debt Calculator'!$B$6+IF(J11<=0,$E$2,0)+IF(M11<=0,$E$3,0)+IF(P11<=0,$E$4,0)+IF(S11<=0,$E$5,0)+IF(V11<=0,$E$6,0)+IF(Y11<=0,$E$7,0)+IF(AB11<=0,$E$8,0)+IF(AE11<=0,$E$9,0)+IF(AH11<=0,$E$10,0)+IF(AK11<=0,$E$11,0)+IF(AN11<=0,$E$12,0)+IF(AQ11<=0,$E$13,0)+IF(AT11<=0,$E$14,0)+IF(AW11<=0,$E$15,0)+IF(AZ11<=0,$E$16,0))))) -> 1224.507762 | K12: =IF(J11<=0,0,MIN((J11*(1+$D$2/1200)),($E$2+'Debt Calculator'!$B$6+IF(J11<=0,$E$2,0)+IF(M11<=0,$E$3,0)+IF(P11<=0,$E$4,0)+IF(S11<=0,$E$5,0)+IF(V11<=0,$E$6,0)+IF(Y11<=0,$E$7,0)+IF(AB11<=0,$E$8,0)+IF(AE11<=0,$E$9,0)+IF(AH11<=0,$E$10,0)+IF(AK11<=0,$E$11,0)+IF(AN11<=0,$E$12,0)+IF(AQ11<=0,$E$13,0)+IF(AT11<=0,$E$14,0)+IF(AW11<=0,$E$15,0)+IF(AZ11<=0,$E$16,0)))) -> 100 | L12: =IF(J11<=0,'Debt Calculator'!$B$6+IF(J11<=0,$E$2,0)+IF(M11<=0,$E$3,0)+IF(P11<=0,$E$4,0)+IF(S11<=0,$E$5,0)+IF(V11<=0,$E$6,0)+IF(Y11<=0,$E$7,0)+IF(AB11<=0,$E$8,0)+IF(AE11<=0,$E$9,0)+IF(AH11<=0,$E$10,0)+IF(AK11<=0,$E$11,0)+IF(AN11<=0,$E$12,0)+IF(AQ11<=0,$E$13,0)+IF(AT11<=0,$E$14,0)+IF(AW11<=0,$E$15,0)+IF(AZ11<=0,$E$16,0),MAX(0,($E$2+'Debt Calculator'!$B$6+IF(J11<=0,$E$2,0)+IF(M11<=0,$E$3,0)+IF(P11<=0,$E$4,0)+IF(S11<=0,$E$5,0)+IF(V11<=0,$E$6,0)+IF(Y11<=0,$E$7,0)+IF(AB11<=0,$E$8,0)+IF(AE11<=0,$E$9,0)+IF(AH11<=0,$E$10,0)+IF(AK11<=0,$E$11,0)+IF(AN11<=0,$E$12,0)+IF(AQ11<=0,$E$13,0)+IF(AT11<=0,$E$14,0)+IF(AW11<=0,$E$15,0)+IF(AZ11<=0,$E$16,0))-(J11*(1+$D$2/1200)))) -> 0 | M12: 4991.843649 | N12: 105 | O12: 0 | P12: 16610.61733 | Q12: 500 | R12: 0 | S12: 28933.64453 | T12: 180 | U12: 0 | V12: 139773.1572 | W12: 1500 | X12: 0 | Y12: 0 | Z12: 0 | AA12: 0 | AB12: 0 | AC12: 0 | AD12: 0 | AE12: 0 | AF12: 0 | AG12: 0 | AH12: 0 | AI12: 0 | AJ12: 0 | AK12: 0 | AL12: 0 | AM12: 0 | AN12: 0 | AO12: 0 | AP12: 0 | AQ12: 0 | AR12: 0 | AS12: 0 | AT12: 0 | AU12: 0 | AV12: 0 | AW12: 0 | AX12: 0 | AY12: 0 | AZ12: 0 | BA12: 0 | BB12: 0
A13: 12 | B13: =IFERROR(INDEX('Debt Calculator'!$A$12:$A$26,MATCH(A13,'Debt Calculator'!$G$12:$G$26,0)),"") ->  | C13: =IFERROR(INDEX('Debt Calculator'!$B$12:$B$26,MATCH(A13,'Debt Calculator'!$G$12:$G$26,0)),0) -> 0 | D13: =IFERROR(INDEX('Debt Calculator'!$C$12:$C$26,MATCH(A13,'Debt Calculator'!$G$12:$G$26,0)),0) -> 0 | E13: =IFERROR(INDEX('Debt Calculator'!$D$12:$D$26,MATCH(A13,'Debt Calculator'!$G$12:$G$26,0)),0) -> 0 | F13: =IF(C13=0,"",IFERROR(MATCH(0,AQ$4:AQ$483,0),"480+")) ->  | H13: =10 -> 10 | I13: 2027-05-15 | J13: =MAX(0,(J12*(1+$D$2/1200))-IF(J12<=0,0,MIN((J12*(1+$D$2/1200)),($E$2+'Debt Calculator'!$B$6+IF(J12<=0,$E$2,0)+IF(M12<=0,$E$3,0)+IF(P12<=0,$E$4,0)+IF(S12<=0,$E$5,0)+IF(V12<=0,$E$6,0)+IF(Y12<=0,$E$7,0)+IF(AB12<=0,$E$8,0)+IF(AE12<=0,$E$9,0)+IF(AH12<=0,$E$10,0)+IF(AK12<=0,$E$11,0)+IF(AN12<=0,$E$12,0)+IF(AQ12<=0,$E$13,0)+IF(AT12<=0,$E$14,0)+IF(AW12<=0,$E$15,0)+IF(AZ12<=0,$E$16,0))))) -> 1134.711993 | K13: =IF(J12<=0,0,MIN((J12*(1+$D$2/1200)),($E$2+'Debt Calculator'!$B$6+IF(J12<=0,$E$2,0)+IF(M12<=0,$E$3,0)+IF(P12<=0,$E$4,0)+IF(S12<=0,$E$5,0)+IF(V12<=0,$E$6,0)+IF(Y12<=0,$E$7,0)+IF(AB12<=0,$E$8,0)+IF(AE12<=0,$E$9,0)+IF(AH12<=0,$E$10,0)+IF(AK12<=0,$E$11,0)+IF(AN12<=0,$E$12,0)+IF(AQ12<=0,$E$13,0)+IF(AT12<=0,$E$14,0)+IF(AW12<=0,$E$15,0)+IF(AZ12<=0,$E$16,0)))) -> 100 | L13: =IF(J12<=0,'Debt Calculator'!$B$6+IF(J12<=0,$E$2,0)+IF(M12<=0,$E$3,0)+IF(P12<=0,$E$4,0)+IF(S12<=0,$E$5,0)+IF(V12<=0,$E$6,0)+IF(Y12<=0,$E$7,0)+IF(AB12<=0,$E$8,0)+IF(AE12<=0,$E$9,0)+IF(AH12<=0,$E$10,0)+IF(AK12<=0,$E$11,0)+IF(AN12<=0,$E$12,0)+IF(AQ12<=0,$E$13,0)+IF(AT12<=0,$E$14,0)+IF(AW12<=0,$E$15,0)+IF(AZ12<=0,$E$16,0),MAX(0,($E$2+'Debt Calculator'!$B$6+IF(J12<=0,$E$2,0)+IF(M12<=0,$E$3,0)+IF(P12<=0,$E$4,0)+IF(S12<=0,$E$5,0)+IF(V12<=0,$E$6,0)+IF(Y12<=0,$E$7,0)+IF(AB12<=0,$E$8,0)+IF(AE12<=0,$E$9,0)+IF(AH12<=0,$E$10,0)+IF(AK12<=0,$E$11,0)+IF(AN12<=0,$E$12,0)+IF(AQ12<=0,$E$13,0)+IF(AT12<=0,$E$14,0)+IF(AW12<=0,$E$15,0)+IF(AZ12<=0,$E$16,0))-(J12*(1+$D$2/1200)))) -> 0 | M13: 4990.840391 | N13: 105 | O13: 0 | P13: 16221.35478 | Q13: 500 | R13: 0 | S13: 28813.92295 | T13: 180 | U13: 0 | V13: 138622.59 | W13: 1500 | X13: 0 | Y13: 0 | Z13: 0 | AA13: 0 | AB13: 0 | AC13: 0 | AD13: 0 | AE13: 0 | AF13: 0 | AG13: 0 | AH13: 0 | AI13: 0 | AJ13: 0 | AK13: 0 | AL13: 0 | AM13: 0 | AN13: 0 | AO13: 0 | AP13: 0 | AQ13: 0 | AR13: 0 | AS13: 0 | AT13: 0 | AU13: 0 | AV13: 0 | AW13: 0 | AX13: 0 | AY13: 0 | AZ13: 0 | BA13: 0 | BB13: 0
A14: 13 | B14: =IFERROR(INDEX('Debt Calculator'!$A$12:$A$26,MATCH(A14,'Debt Calculator'!$G$12:$G$26,0)),"") ->  | C14: =IFERROR(INDEX('Debt Calculator'!$B$12:$B$26,MATCH(A14,'Debt Calculator'!$G$12:$G$26,0)),0) -> 0 | D14: =IFERROR(INDEX('Debt Calculator'!$C$12:$C$26,MATCH(A14,'Debt Calculator'!$G$12:$G$26,0)),0) -> 0 | E14: =IFERROR(INDEX('Debt Calculator'!$D$12:$D$26,MATCH(A14,'Debt Calculator'!$G$12:$G$26,0)),0) -> 0 | F14: =IF(C14=0,"",IFERROR(MATCH(0,AT$4:AT$483,0),"480+")) ->  | H14: =11 -> 11 | I14: 2027-06-15 | J14: =MAX(0,(J13*(1+$D$2/1200))-IF(J13<=0,0,MIN((J13*(1+$D$2/1200)),($E$2+'Debt Calculator'!$B$6+IF(J13<=0,$E$2,0)+IF(M13<=0,$E$3,0)+IF(P13<=0,$E$4,0)+IF(S13<=0,$E$5,0)+IF(V13<=0,$E$6,0)+IF(Y13<=0,$E$7,0)+IF(AB13<=0,$E$8,0)+IF(AE13<=0,$E$9,0)+IF(AH13<=0,$E$10,0)+IF(AK13<=0,$E$11,0)+IF(AN13<=0,$E$12,0)+IF(AQ13<=0,$E$13,0)+IF(AT13<=0,$E$14,0)+IF(AW13<=0,$E$15,0)+IF(AZ13<=0,$E$16,0))))) -> 1044.167926 | K14: =IF(J13<=0,0,MIN((J13*(1+$D$2/1200)),($E$2+'Debt Calculator'!$B$6+IF(J13<=0,$E$2,0)+IF(M13<=0,$E$3,0)+IF(P13<=0,$E$4,0)+IF(S13<=0,$E$5,0)+IF(V13<=0,$E$6,0)+IF(Y13<=0,$E$7,0)+IF(AB13<=0,$E$8,0)+IF(AE13<=0,$E$9,0)+IF(AH13<=0,$E$10,0)+IF(AK13<=0,$E$11,0)+IF(AN13<=0,$E$12,0)+IF(AQ13<=0,$E$13,0)+IF(AT13<=0,$E$14,0)+IF(AW13<=0,$E$15,0)+IF(AZ13<=0,$E$16,0)))) -> 100 | L14: =IF(J13<=0,'Debt Calculator'!$B$6+IF(J13<=0,$E$2,0)+IF(M13<=0,$E$3,0)+IF(P13<=0,$E$4,0)+IF(S13<=0,$E$5,0)+IF(V13<=0,$E$6,0)+IF(Y13<=0,$E$7,0)+IF(AB13<=0,$E$8,0)+IF(AE13<=0,$E$9,0)+IF(AH13<=0,$E$10,0)+IF(AK13<=0,$E$11,0)+IF(AN13<=0,$E$12,0)+IF(AQ13<=0,$E$13,0)+IF(AT13<=0,$E$14,0)+IF(AW13<=0,$E$15,0)+IF(AZ13<=0,$E$16,0),MAX(0,($E$2+'Debt Calculator'!$B$6+IF(J13<=0,$E$2,0)+IF(M13<=0,$E$3,0)+IF(P13<=0,$E$4,0)+IF(S13<=0,$E$5,0)+IF(V13<=0,$E$6,0)+IF(Y13<=0,$E$7,0)+IF(AB13<=0,$E$8,0)+IF(AE13<=0,$E$9,0)+IF(AH13<=0,$E$10,0)+IF(AK13<=0,$E$11,0)+IF(AN13<=0,$E$12,0)+IF(AQ13<=0,$E$13,0)+IF(AT13<=0,$E$14,0)+IF(AW13<=0,$E$15,0)+IF(AZ13<=0,$E$16,0))-(J13*(1+$D$2/1200)))) -> 0 | M14: 4989.816233 | N14: 105 | O14: 0 | P14: 15829.49714 | Q14: 500 | R14: 0 | S14: 28693.95196 | T14: 180 | U14: 0 | V14: 137469.1465 | W14: 1500 | X14: 0 | Y14: 0 | Z14: 0 | AA14: 0 | AB14: 0 | AC14: 0 | AD14: 0 | AE14: 0 | AF14: 0 | AG14: 0 | AH14: 0 | AI14: 0 | AJ14: 0 | AK14: 0 | AL14: 0 | AM14: 0 | AN14: 0 | AO14: 0 | AP14: 0 | AQ14: 0 | AR14: 0 | AS14: 0 | AT14: 0 | AU14: 0 | AV14: 0 | AW14: 0 | AX14: 0 | AY14: 0 | AZ14: 0 | BA14: 0 | BB14: 0
A15: 14 | B15: =IFERROR(INDEX('Debt Calculator'!$A$12:$A$26,MATCH(A15,'Debt Calculator'!$G$12:$G$26,0)),"") ->  | C15: =IFERROR(INDEX('Debt Calculator'!$B$12:$B$26,MATCH(A15,'Debt Calculator'!$G$12:$G$26,0)),0) -> 0 | D15: =IFERROR(INDEX('Debt Calculator'!$C$12:$C$26,MATCH(A15,'Debt Calculator'!$G$12:$G$26,0)),0) -> 0 | E15: =IFERROR(INDEX('Debt Calculator'!$D$12:$D$26,MATCH(A15,'Debt Calculator'!$G$12:$G$26,0)),0) -> 0 | F15: =IF(C15=0,"",IFERROR(MATCH(0,AW$4:AW$483,0),"480+")) ->  | H15: =12 -> 12 | I15: 2027-07-15 | J15: =MAX(0,(J14*(1+$D$2/1200))-IF(J14<=0,0,MIN((J14*(1+$D$2/1200)),($E$2+'Debt Calculator'!$B$6+IF(J14<=0,$E$2,0)+IF(M14<=0,$E$3,0)+IF(P14<=0,$E$4,0)+IF(S14<=0,$E$5,0)+IF(V14<=0,$E$6,0)+IF(Y14<=0,$E$7,0)+IF(AB14<=0,$E$8,0)+IF(AE14<=0,$E$9,0)+IF(AH14<=0,$E$10,0)+IF(AK14<=0,$E$11,0)+IF(AN14<=0,$E$12,0)+IF(AQ14<=0,$E$13,0)+IF(AT14<=0,$E$14,0)+IF(AW14<=0,$E$15,0)+IF(AZ14<=0,$E$16,0))))) -> 952.8693256 | K15: =IF(J14<=0,0,MIN((J14*(1+$D$2/1200)),($E$2+'Debt Calculator'!$B$6+IF(J14<=0,$E$2,0)+IF(M14<=0,$E$3,0)+IF(P14<=0,$E$4,0)+IF(S14<=0,$E$5,0)+IF(V14<=0,$E$6,0)+IF(Y14<=0,$E$7,0)+IF(AB14<=0,$E$8,0)+IF(AE14<=0,$E$9,0)+IF(AH14<=0,$E$10,0)+IF(AK14<=0,$E$11,0)+IF(AN14<=0,$E$12,0)+IF(AQ14<=0,$E$13,0)+IF(AT14<=0,$E$14,0)+IF(AW14<=0,$E$15,0)+IF(AZ14<=0,$E$16,0)))) -> 100 | L15: =IF(J14<=0,'Debt Calculator'!$B$6+IF(J14<=0,$E$2,0)+IF(M14<=0,$E$3,0)+IF(P14<=0,$E$4,0)+IF(S14<=0,$E$5,0)+IF(V14<=0,$E$6,0)+IF(Y14<=0,$E$7,0)+IF(AB14<=0,$E$8,0)+IF(AE14<=0,$E$9,0)+IF(AH14<=0,$E$10,0)+IF(AK14<=0,$E$11,0)+IF(AN14<=0,$E$12,0)+IF(AQ14<=0,$E$13,0)+IF(AT14<=0,$E$14,0)+IF(AW14<=0,$E$15,0)+IF(AZ14<=0,$E$16,0),MAX(0,($E$2+'Debt Calculator'!$B$6+IF(J14<=0,$E$2,0)+IF(M14<=0,$E$3,0)+IF(P14<=0,$E$4,0)+IF(S14<=0,$E$5,0)+IF(V14<=0,$E$6,0)+IF(Y14<=0,$E$7,0)+IF(AB14<=0,$E$8,0)+IF(AE14<=0,$E$9,0)+IF(AH14<=0,$E$10,0)+IF(AK14<=0,$E$11,0)+IF(AN14<=0,$E$12,0)+IF(AQ14<=0,$E$13,0)+IF(AT14<=0,$E$14,0)+IF(AW14<=0,$E$15,0)+IF(AZ14<=0,$E$16,0))-(J14*(1+$D$2/1200)))) -> 0 | M15: 4988.770738 | N15: 105 | O15: 0 | P15: 15435.02713 | Q15: 500 | R15: 0 | S15: 28573.73103 | T15: 180 | U15: 0 | V15: 136312.8194 | W15: 1500 | X15: 0 | Y15: 0 | Z15: 0 | AA15: 0 | AB15: 0 | AC15: 0 | AD15: 0 | AE15: 0 | AF15: 0 | AG15: 0 | AH15: 0 | AI15: 0 | AJ15: 0 | AK15: 0 | AL15: 0 | AM15: 0 | AN15: 0 | AO15: 0 | AP15: 0 | AQ15: 0 | AR15: 0 | AS15: 0 | AT15: 0 | AU15: 0 | AV15: 0 | AW15: 0 | AX15: 0 | AY15: 0 | AZ15: 0 | BA15: 0 | BB15: 0
A16: 15 | B16: =IFERROR(INDEX('Debt Calculator'!$A$12:$A$26,MATCH(A16,'Debt Calculator'!$G$12:$G$26,0)),"") ->  | C16: =IFERROR(INDEX('Debt Calculator'!$B$12:$B$26,MATCH(A16,'Debt Calculator'!$G$12:$G$26,0)),0) -> 0 | D16: =IFERROR(INDEX('Debt Calculator'!$C$12:$C$26,MATCH(A16,'Debt Calculator'!$G$12:$G$26,0)),0) -> 0 | E16: =IFERROR(INDEX('Debt Calculator'!$D$12:$D$26,MATCH(A16,'Debt Calculator'!$G$12:$G$26,0)),0) -> 0 | F16: =IF(C16=0,"",IFERROR(MATCH(0,AZ$4:AZ$483,0),"480+")) ->  | H16: =13 -> 13 | I16: 2027-08-15 | J16: =MAX(0,(J15*(1+$D$2/1200))-IF(J15<=0,0,MIN((J15*(1+$D$2/1200)),($E$2+'Debt Calculator'!$B$6+IF(J15<=0,$E$2,0)+IF(M15<=0,$E$3,0)+IF(P15<=0,$E$4,0)+IF(S15<=0,$E$5,0)+IF(V15<=0,$E$6,0)+IF(Y15<=0,$E$7,0)+IF(AB15<=0,$E$8,0)+IF(AE15<=0,$E$9,0)+IF(AH15<=0,$E$10,0)+IF(AK15<=0,$E$11,0)+IF(AN15<=0,$E$12,0)+IF(AQ15<=0,$E$13,0)+IF(AT15<=0,$E$14,0)+IF(AW15<=0,$E$15,0)+IF(AZ15<=0,$E$16,0))))) -> 860.8099033 | K16: =IF(J15<=0,0,MIN((J15*(1+$D$2/1200)),($E$2+'Debt Calculator'!$B$6+IF(J15<=0,$E$2,0)+IF(M15<=0,$E$3,0)+IF(P15<=0,$E$4,0)+IF(S15<=0,$E$5,0)+IF(V15<=0,$E$6,0)+IF(Y15<=0,$E$7,0)+IF(AB15<=0,$E$8,0)+IF(AE15<=0,$E$9,0)+IF(AH15<=0,$E$10,0)+IF(AK15<=0,$E$11,0)+IF(AN15<=0,$E$12,0)+IF(AQ15<=0,$E$13,0)+IF(AT15<=0,$E$14,0)+IF(AW15<=0,$E$15,0)+IF(AZ15<=0,$E$16,0)))) -> 100 | L16: =IF(J15<=0,'Debt Calculator'!$B$6+IF(J15<=0,$E$2,0)+IF(M15<=0,$E$3,0)+IF(P15<=0,$E$4,0)+IF(S15<=0,$E$5,0)+IF(V15<=0,$E$6,0)+IF(Y15<=0,$E$7,0)+IF(AB15<=0,$E$8,0)+IF(AE15<=0,$E$9,0)+IF(AH15<=0,$E$10,0)+IF(AK15<=0,$E$11,0)+IF(AN15<=0,$E$12,0)+IF(AQ15<=0,$E$13,0)+IF(AT15<=0,$E$14,0)+IF(AW15<=0,$E$15,0)+IF(AZ15<=0,$E$16,0),MAX(0,($E$2+'Debt Calculator'!$B$6+IF(J15<=0,$E$2,0)+IF(M15<=0,$E$3,0)+IF(P15<=0,$E$4,0)+IF(S15<=0,$E$5,0)+IF(V15<=0,$E$6,0)+IF(Y15<=0,$E$7,0)+IF(AB15<=0,$E$8,0)+IF(AE15<=0,$E$9,0)+IF(AH15<=0,$E$10,0)+IF(AK15<=0,$E$11,0)+IF(AN15<=0,$E$12,0)+IF(AQ15<=0,$E$13,0)+IF(AT15<=0,$E$14,0)+IF(AW15<=0,$E$15,0)+IF(AZ15<=0,$E$16,0))-(J15*(1+$D$2/1200)))) -> 0 | M16: 4987.703461 | N16: 105 | O16: 0 | P16: 15037.92731 | Q16: 500 | R16: 0 | S16: 28453.25963 | T16: 180 | U16: 0 | V16: 135153.6014 | W16: 1500 | X16: 0 | Y16: 0 | Z16: 0 | AA16: 0 | AB16: 0 | AC16: 0 | AD16: 0 | AE16: 0 | AF16: 0 | AG16: 0 | AH16: 0 | AI16: 0 | AJ16: 0 | AK16: 0 | AL16: 0 | AM16: 0 | AN16: 0 | AO16: 0 | AP16: 0 | AQ16: 0 | AR16: 0 | AS16: 0 | AT16: 0 | AU16: 0 | AV16: 0 | AW16: 0 | AX16: 0 | AY16: 0 | AZ16: 0 | BA16: 0 | BB16: 0
H17: =14 -> 14 | I17: 2027-09-15 | J17: =MAX(0,(J16*(1+$D$2/1200))-IF(J16<=0,0,MIN((J16*(1+$D$2/1200)),($E$2+'Debt Calculator'!$B$6+IF(J16<=0,$E$2,0)+IF(M16<=0,$E$3,0)+IF(P16<=0,$E$4,0)+IF(S16<=0,$E$5,0)+IF(V16<=0,$E$6,0)+IF(Y16<=0,$E$7,0)+IF(AB16<=0,$E$8,0)+IF(AE16<=0,$E$9,0)+IF(AH16<=0,$E$10,0)+IF(AK16<=0,$E$11,0)+IF(AN16<=0,$E$12,0)+IF(AQ16<=0,$E$13,0)+IF(AT16<=0,$E$14,0)+IF(AW16<=0,$E$15,0)+IF(AZ16<=0,$E$16,0))))) -> 767.9833192 | K17: =IF(J16<=0,0,MIN((J16*(1+$D$2/1200)),($E$2+'Debt Calculator'!$B$6+IF(J16<=0,$E$2,0)+IF(M16<=0,$E$3,0)+IF(P16<=0,$E$4,0)+IF(S16<=0,$E$5,0)+IF(V16<=0,$E$6,0)+IF(Y16<=0,$E$7,0)+IF(AB16<=0,$E$8,0)+IF(AE16<=0,$E$9,0)+IF(AH16<=0,$E$10,0)+IF(AK16<=0,$E$11,0)+IF(AN16<=0,$E$12,0)+IF(AQ16<=0,$E$13,0)+IF(AT16<=0,$E$14,0)+IF(AW16<=0,$E$15,0)+IF(AZ16<=0,$E$16,0)))) -> 100 | L17: =IF(J16<=0,'Debt Calculator'!$B$6+IF(J16<=0,$E$2,0)+IF(M16<=0,$E$3,0)+IF(P16<=0,$E$4,0)+IF(S16<=0,$E$5,0)+IF(V16<=0,$E$6,0)+IF(Y16<=0,$E$7,0)+IF(AB16<=0,$E$8,0)+IF(AE16<=0,$E$9,0)+IF(AH16<=0,$E$10,0)+IF(AK16<=0,$E$11,0)+IF(AN16<=0,$E$12,0)+IF(AQ16<=0,$E$13,0)+IF(AT16<=0,$E$14,0)+IF(AW16<=0,$E$15,0)+IF(AZ16<=0,$E$16,0),MAX(0,($E$2+'Debt Calculator'!$B$6+IF(J16<=0,$E$2,0)+IF(M16<=0,$E$3,0)+IF(P16<=0,$E$4,0)+IF(S16<=0,$E$5,0)+IF(V16<=0,$E$6,0)+IF(Y16<=0,$E$7,0)+IF(AB16<=0,$E$8,0)+IF(AE16<=0,$E$9,0)+IF(AH16<=0,$E$10,0)+IF(AK16<=0,$E$11,0)+IF(AN16<=0,$E$12,0)+IF(AQ16<=0,$E$13,0)+IF(AT16<=0,$E$14,0)+IF(AW16<=0,$E$15,0)+IF(AZ16<=0,$E$16,0))-(J16*(1+$D$2/1200)))) -> 0 | M17: 4986.61395 | N17: 105 | O17: 0 | P17: 14638.18016 | Q17: 500 | R17: 0 | S17: 28332.53726 | T17: 180 | U17: 0 | V17: 133991.4854 | W17: 1500 | X17: 0 | Y17: 0 | Z17: 0 | AA17: 0 | AB17: 0 | AC17: 0 | AD17: 0 | AE17: 0 | AF17: 0 | AG17: 0 | AH17: 0 | AI17: 0 | AJ17: 0 | AK17: 0 | AL17: 0 | AM17: 0 | AN17: 0 | AO17: 0 | AP17: 0 | AQ17: 0 | AR17: 0 | AS17: 0 | AT17: 0 | AU17: 0 | AV17: 0 | AW17: 0 | AX17: 0 | AY17: 0 | AZ17: 0 | BA17: 0 | BB17: 0
H18: =15 -> 15 | I18: 2027-10-15 | J18: =MAX(0,(J17*(1+$D$2/1200))-IF(J17<=0,0,MIN((J17*(1+$D$2/1200)),($E$2+'Debt Calculator'!$B$6+IF(J17<=0,$E$2,0)+IF(M17<=0,$E$3,0)+IF(P17<=0,$E$4,0)+IF(S17<=0,$E$5,0)+IF(V17<=0,$E$6,0)+IF(Y17<=0,$E$7,0)+IF(AB17<=0,$E$8,0)+IF(AE17<=0,$E$9,0)+IF(AH17<=0,$E$10,0)+IF(AK17<=0,$E$11,0)+IF(AN17<=0,$E$12,0)+IF(AQ17<=0,$E$13,0)+IF(AT17<=0,$E$14,0)+IF(AW17<=0,$E$15,0)+IF(AZ17<=0,$E$16,0))))) -> 674.3831802 | K18: =IF(J17<=0,0,MIN((J17*(1+$D$2/1200)),($E$2+'Debt Calculator'!$B$6+IF(J17<=0,$E$2,0)+IF(M17<=0,$E$3,0)+IF(P17<=0,$E$4,0)+IF(S17<=0,$E$5,0)+IF(V17<=0,$E$6,0)+IF(Y17<=0,$E$7,0)+IF(AB17<=0,$E$8,0)+IF(AE17<=0,$E$9,0)+IF(AH17<=0,$E$10,0)+IF(AK17<=0,$E$11,0)+IF(AN17<=0,$E$12,0)+IF(AQ17<=0,$E$13,0)+IF(AT17<=0,$E$14,0)+IF(AW17<=0,$E$15,0)+IF(AZ17<=0,$E$16,0)))) -> 100 | L18: =IF(J17<=0,'Debt Calculator'!$B$6+IF(J17<=0,$E$2,0)+IF(M17<=0,$E$3,0)+IF(P17<=0,$E$4,0)+IF(S17<=0,$E$5,0)+IF(V17<=0,$E$6,0)+IF(Y17<=0,$E$7,0)+IF(AB17<=0,$E$8,0)+IF(AE17<=0,$E$9,0)+IF(AH17<=0,$E$10,0)+IF(AK17<=0,$E$11,0)+IF(AN17<=0,$E$12,0)+IF(AQ17<=0,$E$13,0)+IF(AT17<=0,$E$14,0)+IF(AW17<=0,$E$15,0)+IF(AZ17<=0,$E$16,0),MAX(0,($E$2+'Debt Calculator'!$B$6+IF(J17<=0,$E$2,0)+IF(M17<=0,$E$3,0)+IF(P17<=0,$E$4,0)+IF(S17<=0,$E$5,0)+IF(V17<=0,$E$6,0)+IF(Y17<=0,$E$7,0)+IF(AB17<=0,$E$8,0)+IF(AE17<=0,$E$9,0)+IF(AH17<=0,$E$10,0)+IF(AK17<=0,$E$11,0)+IF(AN17<=0,$E$12,0)+IF(AQ17<=0,$E$13,0)+IF(AT17<=0,$E$14,0)+IF(AW17<=0,$E$15,0)+IF(AZ17<=0,$E$16,0))-(J17*(1+$D$2/1200)))) -> 0 | M18: 4985.501741 | N18: 105 | O18: 0 | P18: 14235.76802 | Q18: 500 | R18: 0 | S18: 28211.56338 | T18: 180 | U18: 0 | V18: 132826.4642 | W18: 1500 | X18: 0 | Y18: 0 | Z18: 0 | AA18: 0 | AB18: 0 | AC18: 0 | AD18: 0 | AE18: 0 | AF18: 0 | AG18: 0 | AH18: 0 | AI18: 0 | AJ18: 0 | AK18: 0 | AL18: 0 | AM18: 0 | AN18: 0 | AO18: 0 | AP18: 0 | AQ18: 0 | AR18: 0 | AS18: 0 | AT18: 0 | AU18: 0 | AV18: 0 | AW18: 0 | AX18: 0 | AY18: 0 | AZ18: 0 | BA18: 0 | BB18: 0
H19: =16 -> 16 | I19: 2027-11-15 | J19: =MAX(0,(J18*(1+$D$2/1200))-IF(J18<=0,0,MIN((J18*(1+$D$2/1200)),($E$2+'Debt Calculator'!$B$6+IF(J18<=0,$E$2,0)+IF(M18<=0,$E$3,0)+IF(P18<=0,$E$4,0)+IF(S18<=0,$E$5,0)+IF(V18<=0,$E$6,0)+IF(Y18<=0,$E$7,0)+IF(AB18<=0,$E$8,0)+IF(AE18<=0,$E$9,0)+IF(AH18<=0,$E$10,0)+IF(AK18<=0,$E$11,0)+IF(AN18<=0,$E$12,0)+IF(AQ18<=0,$E$13,0)+IF(AT18<=0,$E$14,0)+IF(AW18<=0,$E$15,0)+IF(AZ18<=0,$E$16,0))))) -> 580.00304 | K19: =IF(J18<=0,0,MIN((J18*(1+$D$2/1200)),($E$2+'Debt Calculator'!$B$6+IF(J18<=0,$E$2,0)+IF(M18<=0,$E$3,0)+IF(P18<=0,$E$4,0)+IF(S18<=0,$E$5,0)+IF(V18<=0,$E$6,0)+IF(Y18<=0,$E$7,0)+IF(AB18<=0,$E$8,0)+IF(AE18<=0,$E$9,0)+IF(AH18<=0,$E$10,0)+IF(AK18<=0,$E$11,0)+IF(AN18<=0,$E$12,0)+IF(AQ18<=0,$E$13,0)+IF(AT18<=0,$E$14,0)+IF(AW18<=0,$E$15,0)+IF(AZ18<=0,$E$16,0)))) -> 100 | L19: =IF(J18<=0,'Debt Calculator'!$B$6+IF(J18<=0,$E$2,0)+IF(M18<=0,$E$3,0)+IF(P18<=0,$E$4,0)+IF(S18<=0,$E$5,0)+IF(V18<=0,$E$6,0)+IF(Y18<=0,$E$7,0)+IF(AB18<=0,$E$8,0)+IF(AE18<=0,$E$9,0)+IF(AH18<=0,$E$10,0)+IF(AK18<=0,$E$11,0)+IF(AN18<=0,$E$12,0)+IF(AQ18<=0,$E$13,0)+IF(AT18<=0,$E$14,0)+IF(AW18<=0,$E$15,0)+IF(AZ18<=0,$E$16,0),MAX(0,($E$2+'Debt Calculator'!$B$6+IF(J18<=0,$E$2,0)+IF(M18<=0,$E$3,0)+IF(P18<=0,$E$4,0)+IF(S18<=0,$E$5,0)+IF(V18<=0,$E$6,0)+IF(Y18<=0,$E$7,0)+IF(AB18<=0,$E$8,0)+IF(AE18<=0,$E$9,0)+IF(AH18<=0,$E$10,0)+IF(AK18<=0,$E$11,0)+IF(AN18<=0,$E$12,0)+IF(AQ18<=0,$E$13,0)+IF(AT18<=0,$E$14,0)+IF(AW18<=0,$E$15,0)+IF(AZ18<=0,$E$16,0))-(J18*(1+$D$2/1200)))) -> 0 | M19: 4984.36636 | N19: 105 | O19: 0 | P19: 13830.67314 | Q19: 500 | R19: 0 | S19: 28090.33747 | T19: 180 | U19: 0 | V19: 131658.5303 | W19: 1500 | X19: 0 | Y19: 0 | Z19: 0 | AA19: 0 | AB19: 0 | AC19: 0 | AD19: 0 | AE19: 0 | AF19: 0 | AG19: 0 | AH19: 0 | AI19: 0 | AJ19: 0 | AK19: 0 | AL19: 0 | AM19: 0 | AN19: 0 | AO19: 0 | AP19: 0 | AQ19: 0 | AR19: 0 | AS19: 0 | AT19: 0 | AU19: 0 | AV19: 0 | AW19: 0 | AX19: 0 | AY19: 0 | AZ19: 0 | BA19: 0 | BB19: 0
H20: =17 -> 17 | I20: 2027-12-15 | J20: =MAX(0,(J19*(1+$D$2/1200))-IF(J19<=0,0,MIN((J19*(1+$D$2/1200)),($E$2+'Debt Calculator'!$B$6+IF(J19<=0,$E$2,0)+IF(M19<=0,$E$3,0)+IF(P19<=0,$E$4,0)+IF(S19<=0,$E$5,0)+IF(V19<=0,$E$6,0)+IF(Y19<=0,$E$7,0)+IF(AB19<=0,$E$8,0)+IF(AE19<=0,$E$9,0)+IF(AH19<=0,$E$10,0)+IF(AK19<=0,$E$11,0)+IF(AN19<=0,$E$12,0)+IF(AQ19<=0,$E$13,0)+IF(AT19<=0,$E$14,0)+IF(AW19<=0,$E$15,0)+IF(AZ19<=0,$E$16,0))))) -> 484.8363987 | K20: =IF(J19<=0,0,MIN((J19*(1+$D$2/1200)),($E$2+'Debt Calculator'!$B$6+IF(J19<=0,$E$2,0)+IF(M19<=0,$E$3,0)+IF(P19<=0,$E$4,0)+IF(S19<=0,$E$5,0)+IF(V19<=0,$E$6,0)+IF(Y19<=0,$E$7,0)+IF(AB19<=0,$E$8,0)+IF(AE19<=0,$E$9,0)+IF(AH19<=0,$E$10,0)+IF(AK19<=0,$E$11,0)+IF(AN19<=0,$E$12,0)+IF(AQ19<=0,$E$13,0)+IF(AT19<=0,$E$14,0)+IF(AW19<=0,$E$15,0)+IF(AZ19<=0,$E$16,0)))) -> 100 | L20: =IF(J19<=0,'Debt Calculator'!$B$6+IF(J19<=0,$E$2,0)+IF(M19<=0,$E$3,0)+IF(P19<=0,$E$4,0)+IF(S19<=0,$E$5,0)+IF(V19<=0,$E$6,0)+IF(Y19<=0,$E$7,0)+IF(AB19<=0,$E$8,0)+IF(AE19<=0,$E$9,0)+IF(AH19<=0,$E$10,0)+IF(AK19<=0,$E$11,0)+IF(AN19<=0,$E$12,0)+IF(AQ19<=0,$E$13,0)+IF(AT19<=0,$E$14,0)+IF(AW19<=0,$E$15,0)+IF(AZ19<=0,$E$16,0),MAX(0,($E$2+'Debt Calculator'!$B$6+IF(J19<=0,$E$2,0)+IF(M19<=0,$E$3,0)+IF(P19<=0,$E$4,0)+IF(S19<=0,$E$5,0)+IF(V19<=0,$E$6,0)+IF(Y19<=0,$E$7,0)+IF(AB19<=0,$E$8,0)+IF(AE19<=0,$E$9,0)+IF(AH19<=0,$E$10,0)+IF(AK19<=0,$E$11,0)+IF(AN19<=0,$E$12,0)+IF(AQ19<=0,$E$13,0)+IF(AT19<=0,$E$14,0)+IF(AW19<=0,$E$15,0)+IF(AZ19<=0,$E$16,0))-(J19*(1+$D$2/1200)))) -> 0 | M20: 4983.207326 | N20: 105 | O20: 0 | P20: 13422.87763 | Q20: 500 | R20: 0 | S20: 27968.859 | T20: 180 | U20: 0 | V20: 130487.6766 | W20: 1500 | X20: 0 | Y20: 0 | Z20: 0 | AA20: 0 | AB20: 0 | AC20: 0 | AD20: 0 | AE20: 0 | AF20: 0 | AG20: 0 | AH20: 0 | AI20: 0 | AJ20: 0 | AK20: 0 | AL20: 0 | AM20: 0 | AN20: 0 | AO20: 0 | AP20: 0 | AQ20: 0 | AR20: 0 | AS20: 0 | AT20: 0 | AU20: 0 | AV20: 0 | AW20: 0 | AX20: 0 | AY20: 0 | AZ20: 0 | BA20: 0 | BB20: 0
H21: =18 -> 18 | I21: 2028-01-15 | J21: =MAX(0,(J20*(1+$D$2/1200))-IF(J20<=0,0,MIN((J20*(1+$D$2/1200)),($E$2+'Debt Calculator'!$B$6+IF(J20<=0,$E$2,0)+IF(M20<=0,$E$3,0)+IF(P20<=0,$E$4,0)+IF(S20<=0,$E$5,0)+IF(V20<=0,$E$6,0)+IF(Y20<=0,$E$7,0)+IF(AB20<=0,$E$8,0)+IF(AE20<=0,$E$9,0)+IF(AH20<=0,$E$10,0)+IF(AK20<=0,$E$11,0)+IF(AN20<=0,$E$12,0)+IF(AQ20<=0,$E$13,0)+IF(AT20<=0,$E$14,0)+IF(AW20<=0,$E$15,0)+IF(AZ20<=0,$E$16,0))))) -> 388.876702 | K21: =IF(J20<=0,0,MIN((J20*(1+$D$2/1200)),($E$2+'Debt Calculator'!$B$6+IF(J20<=0,$E$2,0)+IF(M20<=0,$E$3,0)+IF(P20<=0,$E$4,0)+IF(S20<=0,$E$5,0)+IF(V20<=0,$E$6,0)+IF(Y20<=0,$E$7,0)+IF(AB20<=0,$E$8,0)+IF(AE20<=0,$E$9,0)+IF(AH20<=0,$E$10,0)+IF(AK20<=0,$E$11,0)+IF(AN20<=0,$E$12,0)+IF(AQ20<=0,$E$13,0)+IF(AT20<=0,$E$14,0)+IF(AW20<=0,$E$15,0)+IF(AZ20<=0,$E$16,0)))) -> 100 | L21: =IF(J20<=0,'Debt Calculator'!$B$6+IF(J20<=0,$E$2,0)+IF(M20<=0,$E$3,0)+IF(P20<=0,$E$4,0)+IF(S20<=0,$E$5,0)+IF(V20<=0,$E$6,0)+IF(Y20<=0,$E$7,0)+IF(AB20<=0,$E$8,0)+IF(AE20<=0,$E$9,0)+IF(AH20<=0,$E$10,0)+IF(AK20<=0,$E$11,0)+IF(AN20<=0,$E$12,0)+IF(AQ20<=0,$E$13,0)+IF(AT20<=0,$E$14,0)+IF(AW20<=0,$E$15,0)+IF(AZ20<=0,$E$16,0),MAX(0,($E$2+'Debt Calculator'!$B$6+IF(J20<=0,$E$2,0)+IF(M20<=0,$E$3,0)+IF(P20<=0,$E$4,0)+IF(S20<=0,$E$5,0)+IF(V20<=0,$E$6,0)+IF(Y20<=0,$E$7,0)+IF(AB20<=0,$E$8,0)+IF(AE20<=0,$E$9,0)+IF(AH20<=0,$E$10,0)+IF(AK20<=0,$E$11,0)+IF(AN20<=0,$E$12,0)+IF(AQ20<=0,$E$13,0)+IF(AT20<=0,$E$14,0)+IF(AW20<=0,$E$15,0)+IF(AZ20<=0,$E$16,0))-(J20*(1+$D$2/1200)))) -> 0 | M21: 4982.024145 | N21: 105 | O21: 0 | P21: 13012.36348 | Q21: 500 | R21: 0 | S21: 27847.12746 | T21: 180 | U21: 0 | V21: 129313.8958 | W21: 1500 | X21: 0 | Y21: 0 | Z21: 0 | AA21: 0 | AB21: 0 | AC21: 0 | AD21: 0 | AE21: 0 | AF21: 0 | AG21: 0 | AH21: 0 | AI21: 0 | AJ21: 0 | AK21: 0 | AL21: 0 | AM21: 0 | AN21: 0 | AO21: 0 | AP21: 0 | AQ21: 0 | AR21: 0 | AS21: 0 | AT21: 0 | AU21: 0 | AV21: 0 | AW21: 0 | AX21: 0 | AY21: 0 | AZ21: 0 | BA21: 0 | BB21: 0
H22: =19 -> 19 | I22: 2028-02-15 | J22: =MAX(0,(J21*(1+$D$2/1200))-IF(J21<=0,0,MIN((J21*(1+$D$2/1200)),($E$2+'Debt Calculator'!$B$6+IF(J21<=0,$E$2,0)+IF(M21<=0,$E$3,0)+IF(P21<=0,$E$4,0)+IF(S21<=0,$E$5,0)+IF(V21<=0,$E$6,0)+IF(Y21<=0,$E$7,0)+IF(AB21<=0,$E$8,0)+IF(AE21<=0,$E$9,0)+IF(AH21<=0,$E$10,0)+IF(AK21<=0,$E$11,0)+IF(AN21<=0,$E$12,0)+IF(AQ21<=0,$E$13,0)+IF(AT21<=0,$E$14,0)+IF(AW21<=0,$E$15,0)+IF(AZ21<=0,$E$16,0))))) -> 292.1173412 | K22: =IF(J21<=0,0,MIN((J21*(1+$D$2/1200)),($E$2+'Debt Calculator'!$B$6+IF(J21<=0,$E$2,0)+IF(M21<=0,$E$3,0)+IF(P21<=0,$E$4,0)+IF(S21<=0,$E$5,0)+IF(V21<=0,$E$6,0)+IF(Y21<=0,$E$7,0)+IF(AB21<=0,$E$8,0)+IF(AE21<=0,$E$9,0)+IF(AH21<=0,$E$10,0)+IF(AK21<=0,$E$11,0)+IF(AN21<=0,$E$12,0)+IF(AQ21<=0,$E$13,0)+IF(AT21<=0,$E$14,0)+IF(AW21<=0,$E$15,0)+IF(AZ21<=0,$E$16,0)))) -> 100 | L22: =IF(J21<=0,'Debt Calculator'!$B$6+IF(J21<=0,$E$2,0)+IF(M21<=0,$E$3,0)+IF(P21<=0,$E$4,0)+IF(S21<=0,$E$5,0)+IF(V21<=0,$E$6,0)+IF(Y21<=0,$E$7,0)+IF(AB21<=0,$E$8,0)+IF(AE21<=0,$E$9,0)+IF(AH21<=0,$E$10,0)+IF(AK21<=0,$E$11,0)+IF(AN21<=0,$E$12,0)+IF(AQ21<=0,$E$13,0)+IF(AT21<=0,$E$14,0)+IF(AW21<=0,$E$15,0)+IF(AZ21<=0,$E$16,0),MAX(0,($E$2+'Debt Calculator'!$B$6+IF(J21<=0,$E$2,0)+IF(M21<=0,$E$3,0)+IF(P21<=0,$E$4,0)+IF(S21<=0,$E$5,0)+IF(V21<=0,$E$6,0)+IF(Y21<=0,$E$7,0)+IF(AB21<=0,$E$8,0)+IF(AE21<=0,$E$9,0)+IF(AH21<=0,$E$10,0)+IF(AK21<=0,$E$11,0)+IF(AN21<=0,$E$12,0)+IF(AQ21<=0,$E$13,0)+IF(AT21<=0,$E$14,0)+IF(AW21<=0,$E$15,0)+IF(AZ21<=0,$E$16,0))-(J21*(1+$D$2/1200)))) -> 0 | M22: 4980.816315 | N22: 105 | O22: 0 | P22: 12599.11257 | Q22: 500 | R22: 0 | S22: 27725.14231 | T22: 180 | U22: 0 | V22: 128137.1806 | W22: 1500 | X22: 0 | Y22: 0 | Z22: 0 | AA22: 0 | AB22: 0 | AC22: 0 | AD22: 0 | AE22: 0 | AF22: 0 | AG22: 0 | AH22: 0 | AI22: 0 | AJ22: 0 | AK22: 0 | AL22: 0 | AM22: 0 | AN22: 0 | AO22: 0 | AP22: 0 | AQ22: 0 | AR22: 0 | AS22: 0 | AT22: 0 | AU22: 0 | AV22: 0 | AW22: 0 | AX22: 0 | AY22: 0 | AZ22: 0 | BA22: 0 | BB22: 0
H23: =20 -> 20 | I23: 2028-03-15 | J23: =MAX(0,(J22*(1+$D$2/1200))-IF(J22<=0,0,MIN((J22*(1+$D$2/1200)),($E$2+'Debt Calculator'!$B$6+IF(J22<=0,$E$2,0)+IF(M22<=0,$E$3,0)+IF(P22<=0,$E$4,0)+IF(S22<=0,$E$5,0)+IF(V22<=0,$E$6,0)+IF(Y22<=0,$E$7,0)+IF(AB22<=0,$E$8,0)+IF(AE22<=0,$E$9,0)+IF(AH22<=0,$E$10,0)+IF(AK22<=0,$E$11,0)+IF(AN22<=0,$E$12,0)+IF(AQ22<=0,$E$13,0)+IF(AT22<=0,$E$14,0)+IF(AW22<=0,$E$15,0)+IF(AZ22<=0,$E$16,0))))) -> 194.5516523 | K23: =IF(J22<=0,0,MIN((J22*(1+$D$2/1200)),($E$2+'Debt Calculator'!$B$6+IF(J22<=0,$E$2,0)+IF(M22<=0,$E$3,0)+IF(P22<=0,$E$4,0)+IF(S22<=0,$E$5,0)+IF(V22<=0,$E$6,0)+IF(Y22<=0,$E$7,0)+IF(AB22<=0,$E$8,0)+IF(AE22<=0,$E$9,0)+IF(AH22<=0,$E$10,0)+IF(AK22<=0,$E$11,0)+IF(AN22<=0,$E$12,0)+IF(AQ22<=0,$E$13,0)+IF(AT22<=0,$E$14,0)+IF(AW22<=0,$E$15,0)+IF(AZ22<=0,$E$16,0)))) -> 100 | L23: =IF(J22<=0,'Debt Calculator'!$B$6+IF(J22<=0,$E$2,0)+IF(M22<=0,$E$3,0)+IF(P22<=0,$E$4,0)+IF(S22<=0,$E$5,0)+IF(V22<=0,$E$6,0)+IF(Y22<=0,$E$7,0)+IF(AB22<=0,$E$8,0)+IF(AE22<=0,$E$9,0)+IF(AH22<=0,$E$10,0)+IF(AK22<=0,$E$11,0)+IF(AN22<=0,$E$12,0)+IF(AQ22<=0,$E$13,0)+IF(AT22<=0,$E$14,0)+IF(AW22<=0,$E$15,0)+IF(AZ22<=0,$E$16,0),MAX(0,($E$2+'Debt Calculator'!$B$6+IF(J22<=0,$E$2,0)+IF(M22<=0,$E$3,0)+IF(P22<=0,$E$4,0)+IF(S22<=0,$E$5,0)+IF(V22<=0,$E$6,0)+IF(Y22<=0,$E$7,0)+IF(AB22<=0,$E$8,0)+IF(AE22<=0,$E$9,0)+IF(AH22<=0,$E$10,0)+IF(AK22<=0,$E$11,0)+IF(AN22<=0,$E$12,0)+IF(AQ22<=0,$E$13,0)+IF(AT22<=0,$E$14,0)+IF(AW22<=0,$E$15,0)+IF(AZ22<=0,$E$16,0))-(J22*(1+$D$2/1200)))) -> 0 | M23: 4979.583322 | N23: 105 | O23: 0 | P23: 12183.10666 | Q23: 500 | R23: 0 | S23: 27602.90302 | T23: 180 | U23: 0 | V23: 126957.5235 | W23: 1500 | X23: 0 | Y23: 0 | Z23: 0 | AA23: 0 | AB23: 0 | AC23: 0 | AD23: 0 | AE23: 0 | AF23: 0 | AG23: 0 | AH23: 0 | AI23: 0 | AJ23: 0 | AK23: 0 | AL23: 0 | AM23: 0 | AN23: 0 | AO23: 0 | AP23: 0 | AQ23: 0 | AR23: 0 | AS23: 0 | AT23: 0 | AU23: 0 | AV23: 0 | AW23: 0 | AX23: 0 | AY23: 0 | AZ23: 0 | BA23: 0 | BB23: 0
H24: =21 -> 21 | I24: 2028-04-15 | J24: =MAX(0,(J23*(1+$D$2/1200))-IF(J23<=0,0,MIN((J23*(1+$D$2/1200)),($E$2+'Debt Calculator'!$B$6+IF(J23<=0,$E$2,0)+IF(M23<=0,$E$3,0)+IF(P23<=0,$E$4,0)+IF(S23<=0,$E$5,0)+IF(V23<=0,$E$6,0)+IF(Y23<=0,$E$7,0)+IF(AB23<=0,$E$8,0)+IF(AE23<=0,$E$9,0)+IF(AH23<=0,$E$10,0)+IF(AK23<=0,$E$11,0)+IF(AN23<=0,$E$12,0)+IF(AQ23<=0,$E$13,0)+IF(AT23<=0,$E$14,0)+IF(AW23<=0,$E$15,0)+IF(AZ23<=0,$E$16,0))))) -> 96.17291611 | K24: =IF(J23<=0,0,MIN((J23*(1+$D$2/1200)),($E$2+'Debt Calculator'!$B$6+IF(J23<=0,$E$2,0)+IF(M23<=0,$E$3,0)+IF(P23<=0,$E$4,0)+IF(S23<=0,$E$5,0)+IF(V23<=0,$E$6,0)+IF(Y23<=0,$E$7,0)+IF(AB23<=0,$E$8,0)+IF(AE23<=0,$E$9,0)+IF(AH23<=0,$E$10,0)+IF(AK23<=0,$E$11,0)+IF(AN23<=0,$E$12,0)+IF(AQ23<=0,$E$13,0)+IF(AT23<=0,$E$14,0)+IF(AW23<=0,$E$15,0)+IF(AZ23<=0,$E$16,0)))) -> 100 | L24: =IF(J23<=0,'Debt Calculator'!$B$6+IF(J23<=0,$E$2,0)+IF(M23<=0,$E$3,0)+IF(P23<=0,$E$4,0)+IF(S23<=0,$E$5,0)+IF(V23<=0,$E$6,0)+IF(Y23<=0,$E$7,0)+IF(AB23<=0,$E$8,0)+IF(AE23<=0,$E$9,0)+IF(AH23<=0,$E$10,0)+IF(AK23<=0,$E$11,0)+IF(AN23<=0,$E$12,0)+IF(AQ23<=0,$E$13,0)+IF(AT23<=0,$E$14,0)+IF(AW23<=0,$E$15,0)+IF(AZ23<=0,$E$16,0),MAX(0,($E$2+'Debt Calculator'!$B$6+IF(J23<=0,$E$2,0)+IF(M23<=0,$E$3,0)+IF(P23<=0,$E$4,0)+IF(S23<=0,$E$5,0)+IF(V23<=0,$E$6,0)+IF(Y23<=0,$E$7,0)+IF(AB23<=0,$E$8,0)+IF(AE23<=0,$E$9,0)+IF(AH23<=0,$E$10,0)+IF(AK23<=0,$E$11,0)+IF(AN23<=0,$E$12,0)+IF(AQ23<=0,$E$13,0)+IF(AT23<=0,$E$14,0)+IF(AW23<=0,$E$15,0)+IF(AZ23<=0,$E$16,0))-(J23*(1+$D$2/1200)))) -> 0 | M24: 4978.324641 | N24: 105 | O24: 0 | P24: 11764.32737 | Q24: 500 | R24: 0 | S24: 27480.40907 | T24: 180 | U24: 0 | V24: 125774.9173 | W24: 1500 | X24: 0 | Y24: 0 | Z24: 0 | AA24: 0 | AB24: 0 | AC24: 0 | AD24: 0 | AE24: 0 | AF24: 0 | AG24: 0 | AH24: 0 | AI24: 0 | AJ24: 0 | AK24: 0 | AL24: 0 | AM24: 0 | AN24: 0 | AO24: 0 | AP24: 0 | AQ24: 0 | AR24: 0 | AS24: 0 | AT24: 0 | AU24: 0 | AV24: 0 | AW24: 0 | AX24: 0 | AY24: 0 | AZ24: 0 | BA24: 0 | BB24: 0
H25: =22 -> 22 | I25: 2028-05-15 | J25: =MAX(0,(J24*(1+$D$2/1200))-IF(J24<=0,0,MIN((J24*(1+$D$2/1200)),($E$2+'Debt Calculator'!$B$6+IF(J24<=0,$E$2,0)+IF(M24<=0,$E$3,0)+IF(P24<=0,$E$4,0)+IF(S24<=0,$E$5,0)+IF(V24<=0,$E$6,0)+IF(Y24<=0,$E$7,0)+IF(AB24<=0,$E$8,0)+IF(AE24<=0,$E$9,0)+IF(AH24<=0,$E$10,0)+IF(AK24<=0,$E$11,0)+IF(AN24<=0,$E$12,0)+IF(AQ24<=0,$E$13,0)+IF(AT24<=0,$E$14,0)+IF(AW24<=0,$E$15,0)+IF(AZ24<=0,$E$16,0))))) -> 0 | K25: =IF(J24<=0,0,MIN((J24*(1+$D$2/1200)),($E$2+'Debt Calculator'!$B$6+IF(J24<=0,$E$2,0)+IF(M24<=0,$E$3,0)+IF(P24<=0,$E$4,0)+IF(S24<=0,$E$5,0)+IF(V24<=0,$E$6,0)+IF(Y24<=0,$E$7,0)+IF(AB24<=0,$E$8,0)+IF(AE24<=0,$E$9,0)+IF(AH24<=0,$E$10,0)+IF(AK24<=0,$E$11,0)+IF(AN24<=0,$E$12,0)+IF(AQ24<=0,$E$13,0)+IF(AT24<=0,$E$14,0)+IF(AW24<=0,$E$15,0)+IF(AZ24<=0,$E$16,0)))) -> 96.97435707 | L25: =IF(J24<=0,'Debt Calculator'!$B$6+IF(J24<=0,$E$2,0)+IF(M24<=0,$E$3,0)+IF(P24<=0,$E$4,0)+IF(S24<=0,$E$5,0)+IF(V24<=0,$E$6,0)+IF(Y24<=0,$E$7,0)+IF(AB24<=0,$E$8,0)+IF(AE24<=0,$E$9,0)+IF(AH24<=0,$E$10,0)+IF(AK24<=0,$E$11,0)+IF(AN24<=0,$E$12,0)+IF(AQ24<=0,$E$13,0)+IF(AT24<=0,$E$14,0)+IF(AW24<=0,$E$15,0)+IF(AZ24<=0,$E$16,0),MAX(0,($E$2+'Debt Calculator'!$B$6+IF(J24<=0,$E$2,0)+IF(M24<=0,$E$3,0)+IF(P24<=0,$E$4,0)+IF(S24<=0,$E$5,0)+IF(V24<=0,$E$6,0)+IF(Y24<=0,$E$7,0)+IF(AB24<=0,$E$8,0)+IF(AE24<=0,$E$9,0)+IF(AH24<=0,$E$10,0)+IF(AK24<=0,$E$11,0)+IF(AN24<=0,$E$12,0)+IF(AQ24<=0,$E$13,0)+IF(AT24<=0,$E$14,0)+IF(AW24<=0,$E$15,0)+IF(AZ24<=0,$E$16,0))-(J24*(1+$D$2/1200)))) -> 3.025642926 | M25: 4974.014095 | N25: 108.0256429 | O25: 0 | P25: 11342.75622 | Q25: 500 | R25: 0 | S25: 27357.65992 | T25: 180 | U25: 0 | V25: 124589.3546 | W25: 1500 | X25: 0 | Y25: 0 | Z25: 0 | AA25: 0 | AB25: 0 | AC25: 0 | AD25: 0 | AE25: 0 | AF25: 0 | AG25: 0 | AH25: 0 | AI25: 0 | AJ25: 0 | AK25: 0 | AL25: 0 | AM25: 0 | AN25: 0 | AO25: 0 | AP25: 0 | AQ25: 0 | AR25: 0 | AS25: 0 | AT25: 0 | AU25: 0 | AV25: 0 | AW25: 0 | AX25: 0 | AY25: 0 | AZ25: 0 | BA25: 0 | BB25: 0
H26: =23 -> 23 | I26: 2028-06-15 | J26: =MAX(0,(J25*(1+$D$2/1200))-IF(J25<=0,0,MIN((J25*(1+$D$2/1200)),($E$2+'Debt Calculator'!$B$6+IF(J25<=0,$E$2,0)+IF(M25<=0,$E$3,0)+IF(P25<=0,$E$4,0)+IF(S25<=0,$E$5,0)+IF(V25<=0,$E$6,0)+IF(Y25<=0,$E$7,0)+IF(AB25<=0,$E$8,0)+IF(AE25<=0,$E$9,0)+IF(AH25<=0,$E$10,0)+IF(AK25<=0,$E$11,0)+IF(AN25<=0,$E$12,0)+IF(AQ25<=0,$E$13,0)+IF(AT25<=0,$E$14,0)+IF(AW25<=0,$E$15,0)+IF(AZ25<=0,$E$16,0))))) -> 0 | K26: =IF(J25<=0,0,MIN((J25*(1+$D$2/1200)),($E$2+'Debt Calculator'!$B$6+IF(J25<=0,$E$2,0)+IF(M25<=0,$E$3,0)+IF(P25<=0,$E$4,0)+IF(S25<=0,$E$5,0)+IF(V25<=0,$E$6,0)+IF(Y25<=0,$E$7,0)+IF(AB25<=0,$E$8,0)+IF(AE25<=0,$E$9,0)+IF(AH25<=0,$E$10,0)+IF(AK25<=0,$E$11,0)+IF(AN25<=0,$E$12,0)+IF(AQ25<=0,$E$13,0)+IF(AT25<=0,$E$14,0)+IF(AW25<=0,$E$15,0)+IF(AZ25<=0,$E$16,0)))) -> 0 | L26: =IF(J25<=0,'Debt Calculator'!$B$6+IF(J25<=0,$E$2,0)+IF(M25<=0,$E$3,0)+IF(P25<=0,$E$4,0)+IF(S25<=0,$E$5,0)+IF(V25<=0,$E$6,0)+IF(Y25<=0,$E$7,0)+IF(AB25<=0,$E$8,0)+IF(AE25<=0,$E$9,0)+IF(AH25<=0,$E$10,0)+IF(AK25<=0,$E$11,0)+IF(AN25<=0,$E$12,0)+IF(AQ25<=0,$E$13,0)+IF(AT25<=0,$E$14,0)+IF(AW25<=0,$E$15,0)+IF(AZ25<=0,$E$16,0),MAX(0,($E$2+'Debt Calculator'!$B$6+IF(J25<=0,$E$2,0)+IF(M25<=0,$E$3,0)+IF(P25<=0,$E$4,0)+IF(S25<=0,$E$5,0)+IF(V25<=0,$E$6,0)+IF(Y25<=0,$E$7,0)+IF(AB25<=0,$E$8,0)+IF(AE25<=0,$E$9,0)+IF(AH25<=0,$E$10,0)+IF(AK25<=0,$E$11,0)+IF(AN25<=0,$E$12,0)+IF(AQ25<=0,$E$13,0)+IF(AT25<=0,$E$14,0)+IF(AW25<=0,$E$15,0)+IF(AZ25<=0,$E$16,0))-(J25*(1+$D$2/1200)))) -> 100 | M26: 4872.639388 | N26: 205 | O26: 0 | P26: 10918.37459 | Q26: 500 | R26: 0 | S26: 27234.65505 | T26: 180 | U26: 0 | V26: 123400.828 | W26: 1500 | X26: 0 | Y26: 0 | Z26: 0 | AA26: 0 | AB26: 0 | AC26: 0 | AD26: 0 | AE26: 0 | AF26: 0 | AG26: 0 | AH26: 0 | AI26: 0 | AJ26: 0 | AK26: 0 | AL26: 0 | AM26: 0 | AN26: 0 | AO26: 0 | AP26: 0 | AQ26: 0 | AR26: 0 | AS26: 0 | AT26: 0 | AU26: 0 | AV26: 0 | AW26: 0 | AX26: 0 | AY26: 0 | AZ26: 0 | BA26: 0 | BB26: 0
H27: =24 -> 24 | I27: 2028-07-15 | J27: =MAX(0,(J26*(1+$D$2/1200))-IF(J26<=0,0,MIN((J26*(1+$D$2/1200)),($E$2+'Debt Calculator'!$B$6+IF(J26<=0,$E$2,0)+IF(M26<=0,$E$3,0)+IF(P26<=0,$E$4,0)+IF(S26<=0,$E$5,0)+IF(V26<=0,$E$6,0)+IF(Y26<=0,$E$7,0)+IF(AB26<=0,$E$8,0)+IF(AE26<=0,$E$9,0)+IF(AH26<=0,$E$10,0)+IF(AK26<=0,$E$11,0)+IF(AN26<=0,$E$12,0)+IF(AQ26<=0,$E$13,0)+IF(AT26<=0,$E$14,0)+IF(AW26<=0,$E$15,0)+IF(AZ26<=0,$E$16,0))))) -> 0 | K27: =IF(J26<=0,0,MIN((J26*(1+$D$2/1200)),($E$2+'Debt Calculator'!$B$6+IF(J26<=0,$E$2,0)+IF(M26<=0,$E$3,0)+IF(P26<=0,$E$4,0)+IF(S26<=0,$E$5,0)+IF(V26<=0,$E$6,0)+IF(Y26<=0,$E$7,0)+IF(AB26<=0,$E$8,0)+IF(AE26<=0,$E$9,0)+IF(AH26<=0,$E$10,0)+IF(AK26<=0,$E$11,0)+IF(AN26<=0,$E$12,0)+IF(AQ26<=0,$E$13,0)+IF(AT26<=0,$E$14,0)+IF(AW26<=0,$E$15,0)+IF(AZ26<=0,$E$16,0)))) -> 0 | L27: =IF(J26<=0,'Debt Calculator'!$B$6+IF(J26<=0,$E$2,0)+IF(M26<=0,$E$3,0)+IF(P26<=0,$E$4,0)+IF(S26<=0,$E$5,0)+IF(V26<=0,$E$6,0)+IF(Y26<=0,$E$7,0)+IF(AB26<=0,$E$8,0)+IF(AE26<=0,$E$9,0)+IF(AH26<=0,$E$10,0)+IF(AK26<=0,$E$11,0)+IF(AN26<=0,$E$12,0)+IF(AQ26<=0,$E$13,0)+IF(AT26<=0,$E$14,0)+IF(AW26<=0,$E$15,0)+IF(AZ26<=0,$E$16,0),MAX(0,($E$2+'Debt Calculator'!$B$6+IF(J26<=0,$E$2,0)+IF(M26<=0,$E$3,0)+IF(P26<=0,$E$4,0)+IF(S26<=0,$E$5,0)+IF(V26<=0,$E$6,0)+IF(Y26<=0,$E$7,0)+IF(AB26<=0,$E$8,0)+IF(AE26<=0,$E$9,0)+IF(AH26<=0,$E$10,0)+IF(AK26<=0,$E$11,0)+IF(AN26<=0,$E$12,0)+IF(AQ26<=0,$E$13,0)+IF(AT26<=0,$E$14,0)+IF(AW26<=0,$E$15,0)+IF(AZ26<=0,$E$16,0))-(J26*(1+$D$2/1200)))) -> 100 | M27: 4769.152709 | N27: 205 | O27: 0 | P27: 10491.16375 | Q27: 500 | R27: 0 | S27: 27111.39391 | T27: 180 | U27: 0 | V27: 122209.3301 | W27: 1500 | X27: 0 | Y27: 0 | Z27: 0 | AA27: 0 | AB27: 0 | AC27: 0 | AD27: 0 | AE27: 0 | AF27: 0 | AG27: 0 | AH27: 0 | AI27: 0 | AJ27: 0 | AK27: 0 | AL27: 0 | AM27: 0 | AN27: 0 | AO27: 0 | AP27: 0 | AQ27: 0 | AR27: 0 | AS27: 0 | AT27: 0 | AU27: 0 | AV27: 0 | AW27: 0 | AX27: 0 | AY27: 0 | AZ27: 0 | BA27: 0 | BB27: 0
H28: =25 -> 25 | I28: 2028-08-15 | J28: =MAX(0,(J27*(1+$D$2/1200))-IF(J27<=0,0,MIN((J27*(1+$D$2/1200)),($E$2+'Debt Calculator'!$B$6+IF(J27<=0,$E$2,0)+IF(M27<=0,$E$3,0)+IF(P27<=0,$E$4,0)+IF(S27<=0,$E$5,0)+IF(V27<=0,$E$6,0)+IF(Y27<=0,$E$7,0)+IF(AB27<=0,$E$8,0)+IF(AE27<=0,$E$9,0)+IF(AH27<=0,$E$10,0)+IF(AK27<=0,$E$11,0)+IF(AN27<=0,$E$12,0)+IF(AQ27<=0,$E$13,0)+IF(AT27<=0,$E$14,0)+IF(AW27<=0,$E$15,0)+IF(AZ27<=0,$E$16,0))))) -> 0 | K28: =IF(J27<=0,0,MIN((J27*(1+$D$2/1200)),($E$2+'Debt Calculator'!$B$6+IF(J27<=0,$E$2,0)+IF(M27<=0,$E$3,0)+IF(P27<=0,$E$4,0)+IF(S27<=0,$E$5,0)+IF(V27<=0,$E$6,0)+IF(Y27<=0,$E$7,0)+IF(AB27<=0,$E$8,0)+IF(AE27<=0,$E$9,0)+IF(AH27<=0,$E$10,0)+IF(AK27<=0,$E$11,0)+IF(AN27<=0,$E$12,0)+IF(AQ27<=0,$E$13,0)+IF(AT27<=0,$E$14,0)+IF(AW27<=0,$E$15,0)+IF(AZ27<=0,$E$16,0)))) -> 0 | L28: =IF(J27<=0,'Debt Calculator'!$B$6+IF(J27<=0,$E$2,0)+IF(M27<=0,$E$3,0)+IF(P27<=0,$E$4,0)+IF(S27<=0,$E$5,0)+IF(V27<=0,$E$6,0)+IF(Y27<=0,$E$7,0)+IF(AB27<=0,$E$8,0)+IF(AE27<=0,$E$9,0)+IF(AH27<=0,$E$10,0)+IF(AK27<=0,$E$11,0)+IF(AN27<=0,$E$12,0)+IF(AQ27<=0,$E$13,0)+IF(AT27<=0,$E$14,0)+IF(AW27<=0,$E$15,0)+IF(AZ27<=0,$E$16,0),MAX(0,($E$2+'Debt Calculator'!$B$6+IF(J27<=0,$E$2,0)+IF(M27<=0,$E$3,0)+IF(P27<=0,$E$4,0)+IF(S27<=0,$E$5,0)+IF(V27<=0,$E$6,0)+IF(Y27<=0,$E$7,0)+IF(AB27<=0,$E$8,0)+IF(AE27<=0,$E$9,0)+IF(AH27<=0,$E$10,0)+IF(AK27<=0,$E$11,0)+IF(AN27<=0,$E$12,0)+IF(AQ27<=0,$E$13,0)+IF(AT27<=0,$E$14,0)+IF(AW27<=0,$E$15,0)+IF(AZ27<=0,$E$16,0))-(J27*(1+$D$2/1200)))) -> 100 | M28: 4663.510057 | N28: 205 | O28: 0 | P28: 10061.10485 | Q28: 500 | R28: 0 | S28: 26987.87598 | T28: 180 | U28: 0 | V28: 121014.8534 | W28: 1500 | X28: 0 | Y28: 0 | Z28: 0 | AA28: 0 | AB28: 0 | AC28: 0 | AD28: 0 | AE28: 0 | AF28: 0 | AG28: 0 | AH28: 0 | AI28: 0 | AJ28: 0 | AK28: 0 | AL28: 0 | AM28: 0 | AN28: 0 | AO28: 0 | AP28: 0 | AQ28: 0 | AR28: 0 | AS28: 0 | AT28: 0 | AU28: 0 | AV28: 0 | AW28: 0 | AX28: 0 | AY28: 0 | AZ28: 0 | BA28: 0 | BB28: 0
H29: =26 -> 26 | I29: 2028-09-15 | J29: =MAX(0,(J28*(1+$D$2/1200))-IF(J28<=0,0,MIN((J28*(1+$D$2/1200)),($E$2+'Debt Calculator'!$B$6+IF(J28<=0,$E$2,0)+IF(M28<=0,$E$3,0)+IF(P28<=0,$E$4,0)+IF(S28<=0,$E$5,0)+IF(V28<=0,$E$6,0)+IF(Y28<=0,$E$7,0)+IF(AB28<=0,$E$8,0)+IF(AE28<=0,$E$9,0)+IF(AH28<=0,$E$10,0)+IF(AK28<=0,$E$11,0)+IF(AN28<=0,$E$12,0)+IF(AQ28<=0,$E$13,0)+IF(AT28<=0,$E$14,0)+IF(AW28<=0,$E$15,0)+IF(AZ28<=0,$E$16,0))))) -> 0 | K29: =IF(J28<=0,0,MIN((J28*(1+$D$2/1200)),($E$2+'Debt Calculator'!$B$6+IF(J28<=0,$E$2,0)+IF(M28<=0,$E$3,0)+IF(P28<=0,$E$4,0)+IF(S28<=0,$E$5,0)+IF(V28<=0,$E$6,0)+IF(Y28<=0,$E$7,0)+IF(AB28<=0,$E$8,0)+IF(AE28<=0,$E$9,0)+IF(AH28<=0,$E$10,0)+IF(AK28<=0,$E$11,0)+IF(AN28<=0,$E$12,0)+IF(AQ28<=0,$E$13,0)+IF(AT28<=0,$E$14,0)+IF(AW28<=0,$E$15,0)+IF(AZ28<=0,$E$16,0)))) -> 0 | L29: =IF(J28<=0,'Debt Calculator'!$B$6+IF(J28<=0,$E$2,0)+IF(M28<=0,$E$3,0)+IF(P28<=0,$E$4,0)+IF(S28<=0,$E$5,0)+IF(V28<=0,$E$6,0)+IF(Y28<=0,$E$7,0)+IF(AB28<=0,$E$8,0)+IF(AE28<=0,$E$9,0)+IF(AH28<=0,$E$10,0)+IF(AK28<=0,$E$11,0)+IF(AN28<=0,$E$12,0)+IF(AQ28<=0,$E$13,0)+IF(AT28<=0,$E$14,0)+IF(AW28<=0,$E$15,0)+IF(AZ28<=0,$E$16,0),MAX(0,($E$2+'Debt Calculator'!$B$6+IF(J28<=0,$E$2,0)+IF(M28<=0,$E$3,0)+IF(P28<=0,$E$4,0)+IF(S28<=0,$E$5,0)+IF(V28<=0,$E$6,0)+IF(Y28<=0,$E$7,0)+IF(AB28<=0,$E$8,0)+IF(AE28<=0,$E$9,0)+IF(AH28<=0,$E$10,0)+IF(AK28<=0,$E$11,0)+IF(AN28<=0,$E$12,0)+IF(AQ28<=0,$E$13,0)+IF(AT28<=0,$E$14,0)+IF(AW28<=0,$E$15,0)+IF(AZ28<=0,$E$16,0))-(J28*(1+$D$2/1200)))) -> 100 | M29: 4555.666516 | N29: 205 | O29: 0 | P29: 9628.178878 | Q29: 500 | R29: 0 | S29: 26864.10072 | T29: 180 | U29: 0 | V29: 119817.3905 | W29: 1500 | X29: 0 | Y29: 0 | Z29: 0 | AA29: 0 | AB29: 0 | AC29: 0 | AD29: 0 | AE29: 0 | AF29: 0 | AG29: 0 | AH29: 0 | AI29: 0 | AJ29: 0 | AK29: 0 | AL29: 0 | AM29: 0 | AN29: 0 | AO29: 0 | AP29: 0 | AQ29: 0 | AR29: 0 | AS29: 0 | AT29: 0 | AU29: 0 | AV29: 0 | AW29: 0 | AX29: 0 | AY29: 0 | AZ29: 0 | BA29: 0 | BB29: 0
H30: =27 -> 27 | I30: 2028-10-15 | J30: =MAX(0,(J29*(1+$D$2/1200))-IF(J29<=0,0,MIN((J29*(1+$D$2/1200)),($E$2+'Debt Calculator'!$B$6+IF(J29<=0,$E$2,0)+IF(M29<=0,$E$3,0)+IF(P29<=0,$E$4,0)+IF(S29<=0,$E$5,0)+IF(V29<=0,$E$6,0)+IF(Y29<=0,$E$7,0)+IF(AB29<=0,$E$8,0)+IF(AE29<=0,$E$9,0)+IF(AH29<=0,$E$10,0)+IF(AK29<=0,$E$11,0)+IF(AN29<=0,$E$12,0)+IF(AQ29<=0,$E$13,0)+IF(AT29<=0,$E$14,0)+IF(AW29<=0,$E$15,0)+IF(AZ29<=0,$E$16,0))))) -> 0 | K30: =IF(J29<=0,0,MIN((J29*(1+$D$2/1200)),($E$2+'Debt Calculator'!$B$6+IF(J29<=0,$E$2,0)+IF(M29<=0,$E$3,0)+IF(P29<=0,$E$4,0)+IF(S29<=0,$E$5,0)+IF(V29<=0,$E$6,0)+IF(Y29<=0,$E$7,0)+IF(AB29<=0,$E$8,0)+IF(AE29<=0,$E$9,0)+IF(AH29<=0,$E$10,0)+IF(AK29<=0,$E$11,0)+IF(AN29<=0,$E$12,0)+IF(AQ29<=0,$E$13,0)+IF(AT29<=0,$E$14,0)+IF(AW29<=0,$E$15,0)+IF(AZ29<=0,$E$16,0)))) -> 0 | L30: =IF(J29<=0,'Debt Calculator'!$B$6+IF(J29<=0,$E$2,0)+IF(M29<=0,$E$3,0)+IF(P29<=0,$E$4,0)+IF(S29<=0,$E$5,0)+IF(V29<=0,$E$6,0)+IF(Y29<=0,$E$7,0)+IF(AB29<=0,$E$8,0)+IF(AE29<=0,$E$9,0)+IF(AH29<=0,$E$10,0)+IF(AK29<=0,$E$11,0)+IF(AN29<=0,$E$12,0)+IF(AQ29<=0,$E$13,0)+IF(AT29<=0,$E$14,0)+IF(AW29<=0,$E$15,0)+IF(AZ29<=0,$E$16,0),MAX(0,($E$2+'Debt Calculator'!$B$6+IF(J29<=0,$E$2,0)+IF(M29<=0,$E$3,0)+IF(P29<=0,$E$4,0)+IF(S29<=0,$E$5,0)+IF(V29<=0,$E$6,0)+IF(Y29<=0,$E$7,0)+IF(AB29<=0,$E$8,0)+IF(AE29<=0,$E$9,0)+IF(AH29<=0,$E$10,0)+IF(AK29<=0,$E$11,0)+IF(AN29<=0,$E$12,0)+IF(AQ29<=0,$E$13,0)+IF(AT29<=0,$E$14,0)+IF(AW29<=0,$E$15,0)+IF(AZ29<=0,$E$16,0))-(J29*(1+$D$2/1200)))) -> 100 | M30: 4445.576236 | N30: 205 | O30: 0 | P30: 9192.366737 | Q30: 500 | R30: 0 | S30: 26740.0676 | T30: 180 | U30: 0 | V30: 118616.934 | W30: 1500 | X30: 0 | Y30: 0 | Z30: 0 | AA30: 0 | AB30: 0 | AC30: 0 | AD30: 0 | AE30: 0 | AF30: 0 | AG30: 0 | AH30: 0 | AI30: 0 | AJ30: 0 | AK30: 0 | AL30: 0 | AM30: 0 | AN30: 0 | AO30: 0 | AP30: 0 | AQ30: 0 | AR30: 0 | AS30: 0 | AT30: 0 | AU30: 0 | AV30: 0 | AW30: 0 | AX30: 0 | AY30: 0 | AZ30: 0 | BA30: 0 | BB30: 0
H31: =28 -> 28 | I31: 2028-11-15 | J31: =MAX(0,(J30*(1+$D$2/1200))-IF(J30<=0,0,MIN((J30*(1+$D$2/1200)),($E$2+'Debt Calculator'!$B$6+IF(J30<=0,$E$2,0)+IF(M30<=0,$E$3,0)+IF(P30<=0,$E$4,0)+IF(S30<=0,$E$5,0)+IF(V30<=0,$E$6,0)+IF(Y30<=0,$E$7,0)+IF(AB30<=0,$E$8,0)+IF(AE30<=0,$E$9,0)+IF(AH30<=0,$E$10,0)+IF(AK30<=0,$E$11,0)+IF(AN30<=0,$E$12,0)+IF(AQ30<=0,$E$13,0)+IF(AT30<=0,$E$14,0)+IF(AW30<=0,$E$15,0)+IF(AZ30<=0,$E$16,0))))) -> 0 | K31: =IF(J30<=0,0,MIN((J30*(1+$D$2/1200)),($E$2+'Debt Calculator'!$B$6+IF(J30<=0,$E$2,0)+IF(M30<=0,$E$3,0)+IF(P30<=0,$E$4,0)+IF(S30<=0,$E$5,0)+IF(V30<=0,$E$6,0)+IF(Y30<=0,$E$7,0)+IF(AB30<=0,$E$8,0)+IF(AE30<=0,$E$9,0)+IF(AH30<=0,$E$10,0)+IF(AK30<=0,$E$11,0)+IF(AN30<=0,$E$12,0)+IF(AQ30<=0,$E$13,0)+IF(AT30<=0,$E$14,0)+IF(AW30<=0,$E$15,0)+IF(AZ30<=0,$E$16,0)))) -> 0 | L31: =IF(J30<=0,'Debt Calculator'!$B$6+IF(J30<=0,$E$2,0)+IF(M30<=0,$E$3,0)+IF(P30<=0,$E$4,0)+IF(S30<=0,$E$5,0)+IF(V30<=0,$E$6,0)+IF(Y30<=0,$E$7,0)+IF(AB30<=0,$E$8,0)+IF(AE30<=0,$E$9,0)+IF(AH30<=0,$E$10,0)+IF(AK30<=0,$E$11,0)+IF(AN30<=0,$E$12,0)+IF(AQ30<=0,$E$13,0)+IF(AT30<=0,$E$14,0)+IF(AW30<=0,$E$15,0)+IF(AZ30<=0,$E$16,0),MAX(0,($E$2+'Debt Calculator'!$B$6+IF(J30<=0,$E$2,0)+IF(M30<=0,$E$3,0)+IF(P30<=0,$E$4,0)+IF(S30<=0,$E$5,0)+IF(V30<=0,$E$6,0)+IF(Y30<=0,$E$7,0)+IF(AB30<=0,$E$8,0)+IF(AE30<=0,$E$9,0)+IF(AH30<=0,$E$10,0)+IF(AK30<=0,$E$11,0)+IF(AN30<=0,$E$12,0)+IF(AQ30<=0,$E$13,0)+IF(AT30<=0,$E$14,0)+IF(AW30<=0,$E$15,0)+IF(AZ30<=0,$E$16,0))-(J30*(1+$D$2/1200)))) -> 100 | M31: 4333.192407 | N31: 205 | O31: 0 | P31: 8753.649182 | Q31: 500 | R31: 0 | S31: 26615.77607 | T31: 180 | U31: 0 | V31: 117413.4764 | W31: 1500 | X31: 0 | Y31: 0 | Z31: 0 | AA31: 0 | AB31: 0 | AC31: 0 | AD31: 0 | AE31: 0 | AF31: 0 | AG31: 0 | AH31: 0 | AI31: 0 | AJ31: 0 | AK31: 0 | AL31: 0 | AM31: 0 | AN31: 0 | AO31: 0 | AP31: 0 | AQ31: 0 | AR31: 0 | AS31: 0 | AT31: 0 | AU31: 0 | AV31: 0 | AW31: 0 | AX31: 0 | AY31: 0 | AZ31: 0 | BA31: 0 | BB31: 0
H32: =29 -> 29 | I32: 2028-12-15 | J32: =MAX(0,(J31*(1+$D$2/1200))-IF(J31<=0,0,MIN((J31*(1+$D$2/1200)),($E$2+'Debt Calculator'!$B$6+IF(J31<=0,$E$2,0)+IF(M31<=0,$E$3,0)+IF(P31<=0,$E$4,0)+IF(S31<=0,$E$5,0)+IF(V31<=0,$E$6,0)+IF(Y31<=0,$E$7,0)+IF(AB31<=0,$E$8,0)+IF(AE31<=0,$E$9,0)+IF(AH31<=0,$E$10,0)+IF(AK31<=0,$E$11,0)+IF(AN31<=0,$E$12,0)+IF(AQ31<=0,$E$13,0)+IF(AT31<=0,$E$14,0)+IF(AW31<=0,$E$15,0)+IF(AZ31<=0,$E$16,0))))) -> 0 | K32: =IF(J31<=0,0,MIN((J31*(1+$D$2/1200)),($E$2+'Debt Calculator'!$B$6+IF(J31<=0,$E$2,0)+IF(M31<=0,$E$3,0)+IF(P31<=0,$E$4,0)+IF(S31<=0,$E$5,0)+IF(V31<=0,$E$6,0)+IF(Y31<=0,$E$7,0)+IF(AB31<=0,$E$8,0)+IF(AE31<=0,$E$9,0)+IF(AH31<=0,$E$10,0)+IF(AK31<=0,$E$11,0)+IF(AN31<=0,$E$12,0)+IF(AQ31<=0,$E$13,0)+IF(AT31<=0,$E$14,0)+IF(AW31<=0,$E$15,0)+IF(AZ31<=0,$E$16,0)))) -> 0 | L32: =IF(J31<=0,'Debt Calculator'!$B$6+IF(J31<=0,$E$2,0)+IF(M31<=0,$E$3,0)+IF(P31<=0,$E$4,0)+IF(S31<=0,$E$5,0)+IF(V31<=0,$E$6,0)+IF(Y31<=0,$E$7,0)+IF(AB31<=0,$E$8,0)+IF(AE31<=0,$E$9,0)+IF(AH31<=0,$E$10,0)+IF(AK31<=0,$E$11,0)+IF(AN31<=0,$E$12,0)+IF(AQ31<=0,$E$13,0)+IF(AT31<=0,$E$14,0)+IF(AW31<=0,$E$15,0)+IF(AZ31<=0,$E$16,0),MAX(0,($E$2+'Debt Calculator'!$B$6+IF(J31<=0,$E$2,0)+IF(M31<=0,$E$3,0)+IF(P31<=0,$E$4,0)+IF(S31<=0,$E$5,0)+IF(V31<=0,$E$6,0)+IF(Y31<=0,$E$7,0)+IF(AB31<=0,$E$8,0)+IF(AE31<=0,$E$9,0)+IF(AH31<=0,$E$10,0)+IF(AK31<=0,$E$11,0)+IF(AN31<=0,$E$12,0)+IF(AQ31<=0,$E$13,0)+IF(AT31<=0,$E$14,0)+IF(AW31<=0,$E$15,0)+IF(AZ31<=0,$E$16,0))-(J31*(1+$D$2/1200)))) -> 100 | M32: 4218.467249 | N32: 205 | O32: 0 | P32: 8312.006843 | Q32: 500 | R32: 0 | S32: 26491.22561 | T32: 180 | U32: 0 | V32: 116207.01 | W32: 1500 | X32: 0 | Y32: 0 | Z32: 0 | AA32: 0 | AB32: 0 | AC32: 0 | AD32: 0 | AE32: 0 | AF32: 0 | AG32: 0 | AH32: 0 | AI32: 0 | AJ32: 0 | AK32: 0 | AL32: 0 | AM32: 0 | AN32: 0 | AO32: 0 | AP32: 0 | AQ32: 0 | AR32: 0 | AS32: 0 | AT32: 0 | AU32: 0 | AV32: 0 | AW32: 0 | AX32: 0 | AY32: 0 | AZ32: 0 | BA32: 0 | BB32: 0
H33: =30 -> 30 | I33: 2029-01-15 | J33: =MAX(0,(J32*(1+$D$2/1200))-IF(J32<=0,0,MIN((J32*(1+$D$2/1200)),($E$2+'Debt Calculator'!$B$6+IF(J32<=0,$E$2,0)+IF(M32<=0,$E$3,0)+IF(P32<=0,$E$4,0)+IF(S32<=0,$E$5,0)+IF(V32<=0,$E$6,0)+IF(Y32<=0,$E$7,0)+IF(AB32<=0,$E$8,0)+IF(AE32<=0,$E$9,0)+IF(AH32<=0,$E$10,0)+IF(AK32<=0,$E$11,0)+IF(AN32<=0,$E$12,0)+IF(AQ32<=0,$E$13,0)+IF(AT32<=0,$E$14,0)+IF(AW32<=0,$E$15,0)+IF(AZ32<=0,$E$16,0))))) -> 0 | K33: =IF(J32<=0,0,MIN((J32*(1+$D$2/1200)),($E$2+'Debt Calculator'!$B$6+IF(J32<=0,$E$2,0)+IF(M32<=0,$E$3,0)+IF(P32<=0,$E$4,0)+IF(S32<=0,$E$5,0)+IF(V32<=0,$E$6,0)+IF(Y32<=0,$E$7,0)+IF(AB32<=0,$E$8,0)+IF(AE32<=0,$E$9,0)+IF(AH32<=0,$E$10,0)+IF(AK32<=0,$E$11,0)+IF(AN32<=0,$E$12,0)+IF(AQ32<=0,$E$13,0)+IF(AT32<=0,$E$14,0)+IF(AW32<=0,$E$15,0)+IF(AZ32<=0,$E$16,0)))) -> 0 | L33: =IF(J32<=0,'Debt Calculator'!$B$6+IF(J32<=0,$E$2,0)+IF(M32<=0,$E$3,0)+IF(P32<=0,$E$4,0)+IF(S32<=0,$E$5,0)+IF(V32<=0,$E$6,0)+IF(Y32<=0,$E$7,0)+IF(AB32<=0,$E$8,0)+IF(AE32<=0,$E$9,0)+IF(AH32<=0,$E$10,0)+IF(AK32<=0,$E$11,0)+IF(AN32<=0,$E$12,0)+IF(AQ32<=0,$E$13,0)+IF(AT32<=0,$E$14,0)+IF(AW32<=0,$E$15,0)+IF(AZ32<=0,$E$16,0),MAX(0,($E$2+'Debt Calculator'!$B$6+IF(J32<=0,$E$2,0)+IF(M32<=0,$E$3,0)+IF(P32<=0,$E$4,0)+IF(S32<=0,$E$5,0)+IF(V32<=0,$E$6,0)+IF(Y32<=0,$E$7,0)+IF(AB32<=0,$E$8,0)+IF(AE32<=0,$E$9,0)+IF(AH32<=0,$E$10,0)+IF(AK32<=0,$E$11,0)+IF(AN32<=0,$E$12,0)+IF(AQ32<=0,$E$13,0)+IF(AT32<=0,$E$14,0)+IF(AW32<=0,$E$15,0)+IF(AZ32<=0,$E$16,0))-(J32*(1+$D$2/1200)))) -> 100 | M33: 4101.351983 | N33: 205 | O33: 0 | P33: 7867.420222 | Q33: 500 | R33: 0 | S33: 26366.41566 | T33: 180 | U33: 0 | V33: 114997.5276 | W33: 1500 | X33: 0 | Y33: 0 | Z33: 0 | AA33: 0 | AB33: 0 | AC33: 0 | AD33: 0 | AE33: 0 | AF33: 0 | AG33: 0 | AH33: 0 | AI33: 0 | AJ33: 0 | AK33: 0 | AL33: 0 | AM33: 0 | AN33: 0 | AO33: 0 | AP33: 0 | AQ33: 0 | AR33: 0 | AS33: 0 | AT33: 0 | AU33: 0 | AV33: 0 | AW33: 0 | AX33: 0 | AY33: 0 | AZ33: 0 | BA33: 0 | BB33: 0
H34: =31 -> 31 | I34: 2029-02-15 | J34: =MAX(0,(J33*(1+$D$2/1200))-IF(J33<=0,0,MIN((J33*(1+$D$2/1200)),($E$2+'Debt Calculator'!$B$6+IF(J33<=0,$E$2,0)+IF(M33<=0,$E$3,0)+IF(P33<=0,$E$4,0)+IF(S33<=0,$E$5,0)+IF(V33<=0,$E$6,0)+IF(Y33<=0,$E$7,0)+IF(AB33<=0,$E$8,0)+IF(AE33<=0,$E$9,0)+IF(AH33<=0,$E$10,0)+IF(AK33<=0,$E$11,0)+IF(AN33<=0,$E$12,0)+IF(AQ33<=0,$E$13,0)+IF(AT33<=0,$E$14,0)+IF(AW33<=0,$E$15,0)+IF(AZ33<=0,$E$16,0))))) -> 0 | K34: =IF(J33<=0,0,MIN((J33*(1+$D$2/1200)),($E$2+'Debt Calculator'!$B$6+IF(J33<=0,$E$2,0)+IF(M33<=0,$E$3,0)+IF(P33<=0,$E$4,0)+IF(S33<=0,$E$5,0)+IF(V33<=0,$E$6,0)+IF(Y33<=0,$E$7,0)+IF(AB33<=0,$E$8,0)+IF(AE33<=0,$E$9,0)+IF(AH33<=0,$E$10,0)+IF(AK33<=0,$E$11,0)+IF(AN33<=0,$E$12,0)+IF(AQ33<=0,$E$13,0)+IF(AT33<=0,$E$14,0)+IF(AW33<=0,$E$15,0)+IF(AZ33<=0,$E$16,0)))) -> 0 | L34: =IF(J33<=0,'Debt Calculator'!$B$6+IF(J33<=0,$E$2,0)+IF(M33<=0,$E$3,0)+IF(P33<=0,$E$4,0)+IF(S33<=0,$E$5,0)+IF(V33<=0,$E$6,0)+IF(Y33<=0,$E$7,0)+IF(AB33<=0,$E$8,0)+IF(AE33<=0,$E$9,0)+IF(AH33<=0,$E$10,0)+IF(AK33<=0,$E$11,0)+IF(AN33<=0,$E$12,0)+IF(AQ33<=0,$E$13,0)+IF(AT33<=0,$E$14,0)+IF(AW33<=0,$E$15,0)+IF(AZ33<=0,$E$16,0),MAX(0,($E$2+'Debt Calculator'!$B$6+IF(J33<=0,$E$2,0)+IF(M33<=0,$E$3,0)+IF(P33<=0,$E$4,0)+IF(S33<=0,$E$5,0)+IF(V33<=0,$E$6,0)+IF(Y33<=0,$E$7,0)+IF(AB33<=0,$E$8,0)+IF(AE33<=0,$E$9,0)+IF(AH33<=0,$E$10,0)+IF(AK33<=0,$E$11,0)+IF(AN33<=0,$E$12,0)+IF(AQ33<=0,$E$13,0)+IF(AT33<=0,$E$14,0)+IF(AW33<=0,$E$15,0)+IF(AZ33<=0,$E$16,0))-(J33*(1+$D$2/1200)))) -> 100 | M34: 3981.796816 | N34: 205 | O34: 0 | P34: 7419.86969 | Q34: 500 | R34: 0 | S34: 26241.34569 | T34: 180 | U34: 0 | V34: 113785.0214 | W34: 1500 | X34: 0 | Y34: 0 | Z34: 0 | AA34: 0 | AB34: 0 | AC34: 0 | AD34: 0 | AE34: 0 | AF34: 0 | AG34: 0 | AH34: 0 | AI34: 0 | AJ34: 0 | AK34: 0 | AL34: 0 | AM34: 0 | AN34: 0 | AO34: 0 | AP34: 0 | AQ34: 0 | AR34: 0 | AS34: 0 | AT34: 0 | AU34: 0 | AV34: 0 | AW34: 0 | AX34: 0 | AY34: 0 | AZ34: 0 | BA34: 0 | BB34: 0
H35: =32 -> 32 | I35: 2029-03-15 | J35: =MAX(0,(J34*(1+$D$2/1200))-IF(J34<=0,0,MIN((J34*(1+$D$2/1200)),($E$2+'Debt Calculator'!$B$6+IF(J34<=0,$E$2,0)+IF(M34<=0,$E$3,0)+IF(P34<=0,$E$4,0)+IF(S34<=0,$E$5,0)+IF(V34<=0,$E$6,0)+IF(Y34<=0,$E$7,0)+IF(AB34<=0,$E$8,0)+IF(AE34<=0,$E$9,0)+IF(AH34<=0,$E$10,0)+IF(AK34<=0,$E$11,0)+IF(AN34<=0,$E$12,0)+IF(AQ34<=0,$E$13,0)+IF(AT34<=0,$E$14,0)+IF(AW34<=0,$E$15,0)+IF(AZ34<=0,$E$16,0))))) -> 0 | K35: =IF(J34<=0,0,MIN((J34*(1+$D$2/1200)),($E$2+'Debt Calculator'!$B$6+IF(J34<=0,$E$2,0)+IF(M34<=0,$E$3,0)+IF(P34<=0,$E$4,0)+IF(S34<=0,$E$5,0)+IF(V34<=0,$E$6,0)+IF(Y34<=0,$E$7,0)+IF(AB34<=0,$E$8,0)+IF(AE34<=0,$E$9,0)+IF(AH34<=0,$E$10,0)+IF(AK34<=0,$E$11,0)+IF(AN34<=0,$E$12,0)+IF(AQ34<=0,$E$13,0)+IF(AT34<=0,$E$14,0)+IF(AW34<=0,$E$15,0)+IF(AZ34<=0,$E$16,0)))) -> 0 | L35: =IF(J34<=0,'Debt Calculator'!$B$6+IF(J34<=0,$E$2,0)+IF(M34<=0,$E$3,0)+IF(P34<=0,$E$4,0)+IF(S34<=0,$E$5,0)+IF(V34<=0,$E$6,0)+IF(Y34<=0,$E$7,0)+IF(AB34<=0,$E$8,0)+IF(AE34<=0,$E$9,0)+IF(AH34<=0,$E$10,0)+IF(AK34<=0,$E$11,0)+IF(AN34<=0,$E$12,0)+IF(AQ34<=0,$E$13,0)+IF(AT34<=0,$E$14,0)+IF(AW34<=0,$E$15,0)+IF(AZ34<=0,$E$16,0),MAX(0,($E$2+'Debt Calculator'!$B$6+IF(J34<=0,$E$2,0)+IF(M34<=0,$E$3,0)+IF(P34<=0,$E$4,0)+IF(S34<=0,$E$5,0)+IF(V34<=0,$E$6,0)+IF(Y34<=0,$E$7,0)+IF(AB34<=0,$E$8,0)+IF(AE34<=0,$E$9,0)+IF(AH34<=0,$E$10,0)+IF(AK34<=0,$E$11,0)+IF(AN34<=0,$E$12,0)+IF(AQ34<=0,$E$13,0)+IF(AT34<=0,$E$14,0)+IF(AW34<=0,$E$15,0)+IF(AZ34<=0,$E$16,0))-(J34*(1+$D$2/1200)))) -> 100 | M35: 3859.750917 | N35: 205 | O35: 0 | P35: 6969.335488 | Q35: 500 | R35: 0 | S35: 26116.01516 | T35: 180 | U35: 0 | V35: 112569.4839 | W35: 1500 | X35: 0 | Y35: 0 | Z35: 0 | AA35: 0 | AB35: 0 | AC35: 0 | AD35: 0 | AE35: 0 | AF35: 0 | AG35: 0 | AH35: 0 | AI35: 0 | AJ35: 0 | AK35: 0 | AL35: 0 | AM35: 0 | AN35: 0 | AO35: 0 | AP35: 0 | AQ35: 0 | AR35: 0 | AS35: 0 | AT35: 0 | AU35: 0 | AV35: 0 | AW35: 0 | AX35: 0 | AY35: 0 | AZ35: 0 | BA35: 0 | BB35: 0
H36: =33 -> 33 | I36: 2029-04-15 | J36: =MAX(0,(J35*(1+$D$2/1200))-IF(J35<=0,0,MIN((J35*(1+$D$2/1200)),($E$2+'Debt Calculator'!$B$6+IF(J35<=0,$E$2,0)+IF(M35<=0,$E$3,0)+IF(P35<=0,$E$4,0)+IF(S35<=0,$E$5,0)+IF(V35<=0,$E$6,0)+IF(Y35<=0,$E$7,0)+IF(AB35<=0,$E$8,0)+IF(AE35<=0,$E$9,0)+IF(AH35<=0,$E$10,0)+IF(AK35<=0,$E$11,0)+IF(AN35<=0,$E$12,0)+IF(AQ35<=0,$E$13,0)+IF(AT35<=0,$E$14,0)+IF(AW35<=0,$E$15,0)+IF(AZ35<=0,$E$16,0))))) -> 0 | K36: =IF(J35<=0,0,MIN((J35*(1+$D$2/1200)),($E$2+'Debt Calculator'!$B$6+IF(J35<=0,$E$2,0)+IF(M35<=0,$E$3,0)+IF(P35<=0,$E$4,0)+IF(S35<=0,$E$5,0)+IF(V35<=0,$E$6,0)+IF(Y35<=0,$E$7,0)+IF(AB35<=0,$E$8,0)+IF(AE35<=0,$E$9,0)+IF(AH35<=0,$E$10,0)+IF(AK35<=0,$E$11,0)+IF(AN35<=0,$E$12,0)+IF(AQ35<=0,$E$13,0)+IF(AT35<=0,$E$14,0)+IF(AW35<=0,$E$15,0)+IF(AZ35<=0,$E$16,0)))) -> 0 | L36: =IF(J35<=0,'Debt Calculator'!$B$6+IF(J35<=0,$E$2,0)+IF(M35<=0,$E$3,0)+IF(P35<=0,$E$4,0)+IF(S35<=0,$E$5,0)+IF(V35<=0,$E$6,0)+IF(Y35<=0,$E$7,0)+IF(AB35<=0,$E$8,0)+IF(AE35<=0,$E$9,0)+IF(AH35<=0,$E$10,0)+IF(AK35<=0,$E$11,0)+IF(AN35<=0,$E$12,0)+IF(AQ35<=0,$E$13,0)+IF(AT35<=0,$E$14,0)+IF(AW35<=0,$E$15,0)+IF(AZ35<=0,$E$16,0),MAX(0,($E$2+'Debt Calculator'!$B$6+IF(J35<=0,$E$2,0)+IF(M35<=0,$E$3,0)+IF(P35<=0,$E$4,0)+IF(S35<=0,$E$5,0)+IF(V35<=0,$E$6,0)+IF(Y35<=0,$E$7,0)+IF(AB35<=0,$E$8,0)+IF(AE35<=0,$E$9,0)+IF(AH35<=0,$E$10,0)+IF(AK35<=0,$E$11,0)+IF(AN35<=0,$E$12,0)+IF(AQ35<=0,$E$13,0)+IF(AT35<=0,$E$14,0)+IF(AW35<=0,$E$15,0)+IF(AZ35<=0,$E$16,0))-(J35*(1+$D$2/1200)))) -> 100 | M36: 3735.162394 | N36: 205 | O36: 0 | P36: 6515.797725 | Q36: 500 | R36: 0 | S36: 25990.42353 | T36: 180 | U36: 0 | V36: 111350.9077 | W36: 1500 | X36: 0 | Y36: 0 | Z36: 0 | AA36: 0 | AB36: 0 | AC36: 0 | AD36: 0 | AE36: 0 | AF36: 0 | AG36: 0 | AH36: 0 | AI36: 0 | AJ36: 0 | AK36: 0 | AL36: 0 | AM36: 0 | AN36: 0 | AO36: 0 | AP36: 0 | AQ36: 0 | AR36: 0 | AS36: 0 | AT36: 0 | AU36: 0 | AV36: 0 | AW36: 0 | AX36: 0 | AY36: 0 | AZ36: 0 | BA36: 0 | BB36: 0
H37: =34 -> 34 | I37: 2029-05-15 | J37: =MAX(0,(J36*(1+$D$2/1200))-IF(J36<=0,0,MIN((J36*(1+$D$2/1200)),($E$2+'Debt Calculator'!$B$6+IF(J36<=0,$E$2,0)+IF(M36<=0,$E$3,0)+IF(P36<=0,$E$4,0)+IF(S36<=0,$E$5,0)+IF(V36<=0,$E$6,0)+IF(Y36<=0,$E$7,0)+IF(AB36<=0,$E$8,0)+IF(AE36<=0,$E$9,0)+IF(AH36<=0,$E$10,0)+IF(AK36<=0,$E$11,0)+IF(AN36<=0,$E$12,0)+IF(AQ36<=0,$E$13,0)+IF(AT36<=0,$E$14,0)+IF(AW36<=0,$E$15,0)+IF(AZ36<=0,$E$16,0))))) -> 0 | K37: =IF(J36<=0,0,MIN((J36*(1+$D$2/1200)),($E$2+'Debt Calculator'!$B$6+IF(J36<=0,$E$2,0)+IF(M36<=0,$E$3,0)+IF(P36<=0,$E$4,0)+IF(S36<=0,$E$5,0)+IF(V36<=0,$E$6,0)+IF(Y36<=0,$E$7,0)+IF(AB36<=0,$E$8,0)+IF(AE36<=0,$E$9,0)+IF(AH36<=0,$E$10,0)+IF(AK36<=0,$E$11,0)+IF(AN36<=0,$E$12,0)+IF(AQ36<=0,$E$13,0)+IF(AT36<=0,$E$14,0)+IF(AW36<=0,$E$15,0)+IF(AZ36<=0,$E$16,0)))) -> 0 | L37: =IF(J36<=0,'Debt Calculator'!$B$6+IF(J36<=0,$E$2,0)+IF(M36<=0,$E$3,0)+IF(P36<=0,$E$4,0)+IF(S36<=0,$E$5,0)+IF(V36<=0,$E$6,0)+IF(Y36<=0,$E$7,0)+IF(AB36<=0,$E$8,0)+IF(AE36<=0,$E$9,0)+IF(AH36<=0,$E$10,0)+IF(AK36<=0,$E$11,0)+IF(AN36<=0,$E$12,0)+IF(AQ36<=0,$E$13,0)+IF(AT36<=0,$E$14,0)+IF(AW36<=0,$E$15,0)+IF(AZ36<=0,$E$16,0),MAX(0,($E$2+'Debt Calculator'!$B$6+IF(J36<=0,$E$2,0)+IF(M36<=0,$E$3,0)+IF(P36<=0,$E$4,0)+IF(S36<=0,$E$5,0)+IF(V36<=0,$E$6,0)+IF(Y36<=0,$E$7,0)+IF(AB36<=0,$E$8,0)+IF(AE36<=0,$E$9,0)+IF(AH36<=0,$E$10,0)+IF(AK36<=0,$E$11,0)+IF(AN36<=0,$E$12,0)+IF(AQ36<=0,$E$13,0)+IF(AT36<=0,$E$14,0)+IF(AW36<=0,$E$15,0)+IF(AZ36<=0,$E$16,0))-(J36*(1+$D$2/1200)))) -> 100 | M37: 3607.978277 | N37: 205 | O37: 0 | P37: 6059.236376 | Q37: 500 | R37: 0 | S37: 25864.57024 | T37: 180 | U37: 0 | V37: 110129.2849 | W37: 1500 | X37: 0 | Y37: 0 | Z37: 0 | AA37: 0 | AB37: 0 | AC37: 0 | AD37: 0 | AE37: 0 | AF37: 0 | AG37: 0 | AH37: 0 | AI37: 0 | AJ37: 0 | AK37: 0 | AL37: 0 | AM37: 0 | AN37: 0 | AO37: 0 | AP37: 0 | AQ37: 0 | AR37: 0 | AS37: 0 | AT37: 0 | AU37: 0 | AV37: 0 | AW37: 0 | AX37: 0 | AY37: 0 | AZ37: 0 | BA37: 0 | BB37: 0
H38: =35 -> 35 | I38: 2029-06-15 | J38: =MAX(0,(J37*(1+$D$2/1200))-IF(J37<=0,0,MIN((J37*(1+$D$2/1200)),($E$2+'Debt Calculator'!$B$6+IF(J37<=0,$E$2,0)+IF(M37<=0,$E$3,0)+IF(P37<=0,$E$4,0)+IF(S37<=0,$E$5,0)+IF(V37<=0,$E$6,0)+IF(Y37<=0,$E$7,0)+IF(AB37<=0,$E$8,0)+IF(AE37<=0,$E$9,0)+IF(AH37<=0,$E$10,0)+IF(AK37<=0,$E$11,0)+IF(AN37<=0,$E$12,0)+IF(AQ37<=0,$E$13,0)+IF(AT37<=0,$E$14,0)+IF(AW37<=0,$E$15,0)+IF(AZ37<=0,$E$16,0))))) -> 0 | K38: =IF(J37<=0,0,MIN((J37*(1+$D$2/1200)),($E$2+'Debt Calculator'!$B$6+IF(J37<=0,$E$2,0)+IF(M37<=0,$E$3,0)+IF(P37<=0,$E$4,0)+IF(S37<=0,$E$5,0)+IF(V37<=0,$E$6,0)+IF(Y37<=0,$E$7,0)+IF(AB37<=0,$E$8,0)+IF(AE37<=0,$E$9,0)+IF(AH37<=0,$E$10,0)+IF(AK37<=0,$E$11,0)+IF(AN37<=0,$E$12,0)+IF(AQ37<=0,$E$13,0)+IF(AT37<=0,$E$14,0)+IF(AW37<=0,$E$15,0)+IF(AZ37<=0,$E$16,0)))) -> 0 | L38: =IF(J37<=0,'Debt Calculator'!$B$6+IF(J37<=0,$E$2,0)+IF(M37<=0,$E$3,0)+IF(P37<=0,$E$4,0)+IF(S37<=0,$E$5,0)+IF(V37<=0,$E$6,0)+IF(Y37<=0,$E$7,0)+IF(AB37<=0,$E$8,0)+IF(AE37<=0,$E$9,0)+IF(AH37<=0,$E$10,0)+IF(AK37<=0,$E$11,0)+IF(AN37<=0,$E$12,0)+IF(AQ37<=0,$E$13,0)+IF(AT37<=0,$E$14,0)+IF(AW37<=0,$E$15,0)+IF(AZ37<=0,$E$16,0),MAX(0,($E$2+'Debt Calculator'!$B$6+IF(J37<=0,$E$2,0)+IF(M37<=0,$E$3,0)+IF(P37<=0,$E$4,0)+IF(S37<=0,$E$5,0)+IF(V37<=0,$E$6,0)+IF(Y37<=0,$E$7,0)+IF(AB37<=0,$E$8,0)+IF(AE37<=0,$E$9,0)+IF(AH37<=0,$E$10,0)+IF(AK37<=0,$E$11,0)+IF(AN37<=0,$E$12,0)+IF(AQ37<=0,$E$13,0)+IF(AT37<=0,$E$14,0)+IF(AW37<=0,$E$15,0)+IF(AZ37<=0,$E$16,0))-(J37*(1+$D$2/1200)))) -> 100 | M38: 3478.144491 | N38: 205 | O38: 0 | P38: 5599.631286 | Q38: 500 | R38: 0 | S38: 25738.45477 | T38: 180 | U38: 0 | V38: 108904.6081 | W38: 1500 | X38: 0 | Y38: 0 | Z38: 0 | AA38: 0 | AB38: 0 | AC38: 0 | AD38: 0 | AE38: 0 | AF38: 0 | AG38: 0 | AH38: 0 | AI38: 0 | AJ38: 0 | AK38: 0 | AL38: 0 | AM38: 0 | AN38: 0 | AO38: 0 | AP38: 0 | AQ38: 0 | AR38: 0 | AS38: 0 | AT38: 0 | AU38: 0 | AV38: 0 | AW38: 0 | AX38: 0 | AY38: 0 | AZ38: 0 | BA38: 0 | BB38: 0
H39: =36 -> 36 | I39: 2029-07-15 | J39: =MAX(0,(J38*(1+$D$2/1200))-IF(J38<=0,0,MIN((J38*(1+$D$2/1200)),($E$2+'Debt Calculator'!$B$6+IF(J38<=0,$E$2,0)+IF(M38<=0,$E$3,0)+IF(P38<=0,$E$4,0)+IF(S38<=0,$E$5,0)+IF(V38<=0,$E$6,0)+IF(Y38<=0,$E$7,0)+IF(AB38<=0,$E$8,0)+IF(AE38<=0,$E$9,0)+IF(AH38<=0,$E$10,0)+IF(AK38<=0,$E$11,0)+IF(AN38<=0,$E$12,0)+IF(AQ38<=0,$E$13,0)+IF(AT38<=0,$E$14,0)+IF(AW38<=0,$E$15,0)+IF(AZ38<=0,$E$16,0))))) -> 0 | K39: =IF(J38<=0,0,MIN((J38*(1+$D$2/1200)),($E$2+'Debt Calculator'!$B$6+IF(J38<=0,$E$2,0)+IF(M38<=0,$E$3,0)+IF(P38<=0,$E$4,0)+IF(S38<=0,$E$5,0)+IF(V38<=0,$E$6,0)+IF(Y38<=0,$E$7,0)+IF(AB38<=0,$E$8,0)+IF(AE38<=0,$E$9,0)+IF(AH38<=0,$E$10,0)+IF(AK38<=0,$E$11,0)+IF(AN38<=0,$E$12,0)+IF(AQ38<=0,$E$13,0)+IF(AT38<=0,$E$14,0)+IF(AW38<=0,$E$15,0)+IF(AZ38<=0,$E$16,0)))) -> 0 | L39: =IF(J38<=0,'Debt Calculator'!$B$6+IF(J38<=0,$E$2,0)+IF(M38<=0,$E$3,0)+IF(P38<=0,$E$4,0)+IF(S38<=0,$E$5,0)+IF(V38<=0,$E$6,0)+IF(Y38<=0,$E$7,0)+IF(AB38<=0,$E$8,0)+IF(AE38<=0,$E$9,0)+IF(AH38<=0,$E$10,0)+IF(AK38<=0,$E$11,0)+IF(AN38<=0,$E$12,0)+IF(AQ38<=0,$E$13,0)+IF(AT38<=0,$E$14,0)+IF(AW38<=0,$E$15,0)+IF(AZ38<=0,$E$16,0),MAX(0,($E$2+'Debt Calculator'!$B$6+IF(J38<=0,$E$2,0)+IF(M38<=0,$E$3,0)+IF(P38<=0,$E$4,0)+IF(S38<=0,$E$5,0)+IF(V38<=0,$E$6,0)+IF(Y38<=0,$E$7,0)+IF(AB38<=0,$E$8,0)+IF(AE38<=0,$E$9,0)+IF(AH38<=0,$E$10,0)+IF(AK38<=0,$E$11,0)+IF(AN38<=0,$E$12,0)+IF(AQ38<=0,$E$13,0)+IF(AT38<=0,$E$14,0)+IF(AW38<=0,$E$15,0)+IF(AZ38<=0,$E$16,0))-(J38*(1+$D$2/1200)))) -> 100 | M39: 3345.605835 | N39: 205 | O39: 0 | P39: 5136.962161 | Q39: 500 | R39: 0 | S39: 25612.07655 | T39: 180 | U39: 0 | V39: 107676.8697 | W39: 1500 | X39: 0 | Y39: 0 | Z39: 0 | AA39: 0 | AB39: 0 | AC39: 0 | AD39: 0 | AE39: 0 | AF39: 0 | AG39: 0 | AH39: 0 | AI39: 0 | AJ39: 0 | AK39: 0 | AL39: 0 | AM39: 0 | AN39: 0 | AO39: 0 | AP39: 0 | AQ39: 0 | AR39: 0 | AS39: 0 | AT39: 0 | AU39: 0 | AV39: 0 | AW39: 0 | AX39: 0 | AY39: 0 | AZ39: 0 | BA39: 0 | BB39: 0
H40: =37 -> 37 | I40: 2029-08-15 | J40: =MAX(0,(J39*(1+$D$2/1200))-IF(J39<=0,0,MIN((J39*(1+$D$2/1200)),($E$2+'Debt Calculator'!$B$6+IF(J39<=0,$E$2,0)+IF(M39<=0,$E$3,0)+IF(P39<=0,$E$4,0)+IF(S39<=0,$E$5,0)+IF(V39<=0,$E$6,0)+IF(Y39<=0,$E$7,0)+IF(AB39<=0,$E$8,0)+IF(AE39<=0,$E$9,0)+IF(AH39<=0,$E$10,0)+IF(AK39<=0,$E$11,0)+IF(AN39<=0,$E$12,0)+IF(AQ39<=0,$E$13,0)+IF(AT39<=0,$E$14,0)+IF(AW39<=0,$E$15,0)+IF(AZ39<=0,$E$16,0))))) -> 0 | K40: =IF(J39<=0,0,MIN((J39*(1+$D$2/1200)),($E$2+'Debt Calculator'!$B$6+IF(J39<=0,$E$2,0)+IF(M39<=0,$E$3,0)+IF(P39<=0,$E$4,0)+IF(S39<=0,$E$5,0)+IF(V39<=0,$E$6,0)+IF(Y39<=0,$E$7,0)+IF(AB39<=0,$E$8,0)+IF(AE39<=0,$E$9,0)+IF(AH39<=0,$E$10,0)+IF(AK39<=0,$E$11,0)+IF(AN39<=0,$E$12,0)+IF(AQ39<=0,$E$13,0)+IF(AT39<=0,$E$14,0)+IF(AW39<=0,$E$15,0)+IF(AZ39<=0,$E$16,0)))) -> 0 | L40: =IF(J39<=0,'Debt Calculator'!$B$6+IF(J39<=0,$E$2,0)+IF(M39<=0,$E$3,0)+IF(P39<=0,$E$4,0)+IF(S39<=0,$E$5,0)+IF(V39<=0,$E$6,0)+IF(Y39<=0,$E$7,0)+IF(AB39<=0,$E$8,0)+IF(AE39<=0,$E$9,0)+IF(AH39<=0,$E$10,0)+IF(AK39<=0,$E$11,0)+IF(AN39<=0,$E$12,0)+IF(AQ39<=0,$E$13,0)+IF(AT39<=0,$E$14,0)+IF(AW39<=0,$E$15,0)+IF(AZ39<=0,$E$16,0),MAX(0,($E$2+'Debt Calculator'!$B$6+IF(J39<=0,$E$2,0)+IF(M39<=0,$E$3,0)+IF(P39<=0,$E$4,0)+IF(S39<=0,$E$5,0)+IF(V39<=0,$E$6,0)+IF(Y39<=0,$E$7,0)+IF(AB39<=0,$E$8,0)+IF(AE39<=0,$E$9,0)+IF(AH39<=0,$E$10,0)+IF(AK39<=0,$E$11,0)+IF(AN39<=0,$E$12,0)+IF(AQ39<=0,$E$13,0)+IF(AT39<=0,$E$14,0)+IF(AW39<=0,$E$15,0)+IF(AZ39<=0,$E$16,0))-(J39*(1+$D$2/1200)))) -> 100 | M40: 3210.305957 | N40: 205 | O40: 0 | P40: 4671.208575 | Q40: 500 | R40: 0 | S40: 25485.43504 | T40: 180 | U40: 0 | V40: 106446.0618 | W40: 1500 | X40: 0 | Y40: 0 | Z40: 0 | AA40: 0 | AB40: 0 | AC40: 0 | AD40: 0 | AE40: 0 | AF40: 0 | AG40: 0 | AH40: 0 | AI40: 0 | AJ40: 0 | AK40: 0 | AL40: 0 | AM40: 0 | AN40: 0 | AO40: 0 | AP40: 0 | AQ40: 0 | AR40: 0 | AS40: 0 | AT40: 0 | AU40: 0 | AV40: 0 | AW40: 0 | AX40: 0 | AY40: 0 | AZ40: 0 | BA40: 0 | BB40: 0
H41: =38 -> 38 | I41: 2029-09-15 | J41: =MAX(0,(J40*(1+$D$2/1200))-IF(J40<=0,0,MIN((J40*(1+$D$2/1200)),($E$2+'Debt Calculator'!$B$6+IF(J40<=0,$E$2,0)+IF(M40<=0,$E$3,0)+IF(P40<=0,$E$4,0)+IF(S40<=0,$E$5,0)+IF(V40<=0,$E$6,0)+IF(Y40<=0,$E$7,0)+IF(AB40<=0,$E$8,0)+IF(AE40<=0,$E$9,0)+IF(AH40<=0,$E$10,0)+IF(AK40<=0,$E$11,0)+IF(AN40<=0,$E$12,0)+IF(AQ40<=0,$E$13,0)+IF(AT40<=0,$E$14,0)+IF(AW40<=0,$E$15,0)+IF(AZ40<=0,$E$16,0))))) -> 0 | K41: =IF(J40<=0,0,MIN((J40*(1+$D$2/1200)),($E$2+'Debt Calculator'!$B$6+IF(J40<=0,$E$2,0)+IF(M40<=0,$E$3,0)+IF(P40<=0,$E$4,0)+IF(S40<=0,$E$5,0)+IF(V40<=0,$E$6,0)+IF(Y40<=0,$E$7,0)+IF(AB40<=0,$E$8,0)+IF(AE40<=0,$E$9,0)+IF(AH40<=0,$E$10,0)+IF(AK40<=0,$E$11,0)+IF(AN40<=0,$E$12,0)+IF(AQ40<=0,$E$13,0)+IF(AT40<=0,$E$14,0)+IF(AW40<=0,$E$15,0)+IF(AZ40<=0,$E$16,0)))) -> 0 | L41: =IF(J40<=0,'Debt Calculator'!$B$6+IF(J40<=0,$E$2,0)+IF(M40<=0,$E$3,0)+IF(P40<=0,$E$4,0)+IF(S40<=0,$E$5,0)+IF(V40<=0,$E$6,0)+IF(Y40<=0,$E$7,0)+IF(AB40<=0,$E$8,0)+IF(AE40<=0,$E$9,0)+IF(AH40<=0,$E$10,0)+IF(AK40<=0,$E$11,0)+IF(AN40<=0,$E$12,0)+IF(AQ40<=0,$E$13,0)+IF(AT40<=0,$E$14,0)+IF(AW40<=0,$E$15,0)+IF(AZ40<=0,$E$16,0),MAX(0,($E$2+'Debt Calculator'!$B$6+IF(J40<=0,$E$2,0)+IF(M40<=0,$E$3,0)+IF(P40<=0,$E$4,0)+IF(S40<=0,$E$5,0)+IF(V40<=0,$E$6,0)+IF(Y40<=0,$E$7,0)+IF(AB40<=0,$E$8,0)+IF(AE40<=0,$E$9,0)+IF(AH40<=0,$E$10,0)+IF(AK40<=0,$E$11,0)+IF(AN40<=0,$E$12,0)+IF(AQ40<=0,$E$13,0)+IF(AT40<=0,$E$14,0)+IF(AW40<=0,$E$15,0)+IF(AZ40<=0,$E$16,0))-(J40*(1+$D$2/1200)))) -> 100 | M41: 3072.187331 | N41: 205 | O41: 0 | P41: 4202.349966 | Q41: 500 | R41: 0 | S41: 25358.5297 | T41: 180 | U41: 0 | V41: 105212.177 | W41: 1500 | X41: 0 | Y41: 0 | Z41: 0 | AA41: 0 | AB41: 0 | AC41: 0 | AD41: 0 | AE41: 0 | AF41: 0 | AG41: 0 | AH41: 0 | AI41: 0 | AJ41: 0 | AK41: 0 | AL41: 0 | AM41: 0 | AN41: 0 | AO41: 0 | AP41: 0 | AQ41: 0 | AR41: 0 | AS41: 0 | AT41: 0 | AU41: 0 | AV41: 0 | AW41: 0 | AX41: 0 | AY41: 0 | AZ41: 0 | BA41: 0 | BB41: 0
H42: =39 -> 39 | I42: 2029-10-15 | J42: =MAX(0,(J41*(1+$D$2/1200))-IF(J41<=0,0,MIN((J41*(1+$D$2/1200)),($E$2+'Debt Calculator'!$B$6+IF(J41<=0,$E$2,0)+IF(M41<=0,$E$3,0)+IF(P41<=0,$E$4,0)+IF(S41<=0,$E$5,0)+IF(V41<=0,$E$6,0)+IF(Y41<=0,$E$7,0)+IF(AB41<=0,$E$8,0)+IF(AE41<=0,$E$9,0)+IF(AH41<=0,$E$10,0)+IF(AK41<=0,$E$11,0)+IF(AN41<=0,$E$12,0)+IF(AQ41<=0,$E$13,0)+IF(AT41<=0,$E$14,0)+IF(AW41<=0,$E$15,0)+IF(AZ41<=0,$E$16,0))))) -> 0 | K42: =IF(J41<=0,0,MIN((J41*(1+$D$2/1200)),($E$2+'Debt Calculator'!$B$6+IF(J41<=0,$E$2,0)+IF(M41<=0,$E$3,0)+IF(P41<=0,$E$4,0)+IF(S41<=0,$E$5,0)+IF(V41<=0,$E$6,0)+IF(Y41<=0,$E$7,0)+IF(AB41<=0,$E$8,0)+IF(AE41<=0,$E$9,0)+IF(AH41<=0,$E$10,0)+IF(AK41<=0,$E$11,0)+IF(AN41<=0,$E$12,0)+IF(AQ41<=0,$E$13,0)+IF(AT41<=0,$E$14,0)+IF(AW41<=0,$E$15,0)+IF(AZ41<=0,$E$16,0)))) -> 0 | L42: =IF(J41<=0,'Debt Calculator'!$B$6+IF(J41<=0,$E$2,0)+IF(M41<=0,$E$3,0)+IF(P41<=0,$E$4,0)+IF(S41<=0,$E$5,0)+IF(V41<=0,$E$6,0)+IF(Y41<=0,$E$7,0)+IF(AB41<=0,$E$8,0)+IF(AE41<=0,$E$9,0)+IF(AH41<=0,$E$10,0)+IF(AK41<=0,$E$11,0)+IF(AN41<=0,$E$12,0)+IF(AQ41<=0,$E$13,0)+IF(AT41<=0,$E$14,0)+IF(AW41<=0,$E$15,0)+IF(AZ41<=0,$E$16,0),MAX(0,($E$2+'Debt Calculator'!$B$6+IF(J41<=0,$E$2,0)+IF(M41<=0,$E$3,0)+IF(P41<=0,$E$4,0)+IF(S41<=0,$E$5,0)+IF(V41<=0,$E$6,0)+IF(Y41<=0,$E$7,0)+IF(AB41<=0,$E$8,0)+IF(AE41<=0,$E$9,0)+IF(AH41<=0,$E$10,0)+IF(AK41<=0,$E$11,0)+IF(AN41<=0,$E$12,0)+IF(AQ41<=0,$E$13,0)+IF(AT41<=0,$E$14,0)+IF(AW41<=0,$E$15,0)+IF(AZ41<=0,$E$16,0))-(J41*(1+$D$2/1200)))) -> 100 | M42: 2931.191233 | N42: 205 | O42: 0 | P42: 3730.365632 | Q42: 500 | R42: 0 | S42: 25231.35997 | T42: 180 | U42: 0 | V42: 103975.2074 | W42: 1500 | X42: 0 | Y42: 0 | Z42: 0 | AA42: 0 | AB42: 0 | AC42: 0 | AD42: 0 | AE42: 0 | AF42: 0 | AG42: 0 | AH42: 0 | AI42: 0 | AJ42: 0 | AK42: 0 | AL42: 0 | AM42: 0 | AN42: 0 | AO42: 0 | AP42: 0 | AQ42: 0 | AR42: 0 | AS42: 0 | AT42: 0 | AU42: 0 | AV42: 0 | AW42: 0 | AX42: 0 | AY42: 0 | AZ42: 0 | BA42: 0 | BB42: 0
H43: =40 -> 40 | I43: 2029-11-15 | J43: =MAX(0,(J42*(1+$D$2/1200))-IF(J42<=0,0,MIN((J42*(1+$D$2/1200)),($E$2+'Debt Calculator'!$B$6+IF(J42<=0,$E$2,0)+IF(M42<=0,$E$3,0)+IF(P42<=0,$E$4,0)+IF(S42<=0,$E$5,0)+IF(V42<=0,$E$6,0)+IF(Y42<=0,$E$7,0)+IF(AB42<=0,$E$8,0)+IF(AE42<=0,$E$9,0)+IF(AH42<=0,$E$10,0)+IF(AK42<=0,$E$11,0)+IF(AN42<=0,$E$12,0)+IF(AQ42<=0,$E$13,0)+IF(AT42<=0,$E$14,0)+IF(AW42<=0,$E$15,0)+IF(AZ42<=0,$E$16,0))))) -> 0 | K43: =IF(J42<=0,0,MIN((J42*(1+$D$2/1200)),($E$2+'Debt Calculator'!$B$6+IF(J42<=0,$E$2,0)+IF(M42<=0,$E$3,0)+IF(P42<=0,$E$4,0)+IF(S42<=0,$E$5,0)+IF(V42<=0,$E$6,0)+IF(Y42<=0,$E$7,0)+IF(AB42<=0,$E$8,0)+IF(AE42<=0,$E$9,0)+IF(AH42<=0,$E$10,0)+IF(AK42<=0,$E$11,0)+IF(AN42<=0,$E$12,0)+IF(AQ42<=0,$E$13,0)+IF(AT42<=0,$E$14,0)+IF(AW42<=0,$E$15,0)+IF(AZ42<=0,$E$16,0)))) -> 0 | L43: =IF(J42<=0,'Debt Calculator'!$B$6+IF(J42<=0,$E$2,0)+IF(M42<=0,$E$3,0)+IF(P42<=0,$E$4,0)+IF(S42<=0,$E$5,0)+IF(V42<=0,$E$6,0)+IF(Y42<=0,$E$7,0)+IF(AB42<=0,$E$8,0)+IF(AE42<=0,$E$9,0)+IF(AH42<=0,$E$10,0)+IF(AK42<=0,$E$11,0)+IF(AN42<=0,$E$12,0)+IF(AQ42<=0,$E$13,0)+IF(AT42<=0,$E$14,0)+IF(AW42<=0,$E$15,0)+IF(AZ42<=0,$E$16,0),MAX(0,($E$2+'Debt Calculator'!$B$6+IF(J42<=0,$E$2,0)+IF(M42<=0,$E$3,0)+IF(P42<=0,$E$4,0)+IF(S42<=0,$E$5,0)+IF(V42<=0,$E$6,0)+IF(Y42<=0,$E$7,0)+IF(AB42<=0,$E$8,0)+IF(AE42<=0,$E$9,0)+IF(AH42<=0,$E$10,0)+IF(AK42<=0,$E$11,0)+IF(AN42<=0,$E$12,0)+IF(AQ42<=0,$E$13,0)+IF(AT42<=0,$E$14,0)+IF(AW42<=0,$E$15,0)+IF(AZ42<=0,$E$16,0))-(J42*(1+$D$2/1200)))) -> 100 | M43: 2787.257717 | N43: 205 | O43: 0 | P43: 3255.234736 | Q43: 500 | R43: 0 | S43: 25103.9253 | T43: 180 | U43: 0 | V43: 102735.1454 | W43: 1500 | X43: 0 | Y43: 0 | Z43: 0 | AA43: 0 | AB43: 0 | AC43: 0 | AD43: 0 | AE43: 0 | AF43: 0 | AG43: 0 | AH43: 0 | AI43: 0 | AJ43: 0 | AK43: 0 | AL43: 0 | AM43: 0 | AN43: 0 | AO43: 0 | AP43: 0 | AQ43: 0 | AR43: 0 | AS43: 0 | AT43: 0 | AU43: 0 | AV43: 0 | AW43: 0 | AX43: 0 | AY43: 0 | AZ43: 0 | BA43: 0 | BB43: 0
H44: =41 -> 41 | I44: 2029-12-15 | J44: =MAX(0,(J43*(1+$D$2/1200))-IF(J43<=0,0,MIN((J43*(1+$D$2/1200)),($E$2+'Debt Calculator'!$B$6+IF(J43<=0,$E$2,0)+IF(M43<=0,$E$3,0)+IF(P43<=0,$E$4,0)+IF(S43<=0,$E$5,0)+IF(V43<=0,$E$6,0)+IF(Y43<=0,$E$7,0)+IF(AB43<=0,$E$8,0)+IF(AE43<=0,$E$9,0)+IF(AH43<=0,$E$10,0)+IF(AK43<=0,$E$11,0)+IF(AN43<=0,$E$12,0)+IF(AQ43<=0,$E$13,0)+IF(AT43<=0,$E$14,0)+IF(AW43<=0,$E$15,0)+IF(AZ43<=0,$E$16,0))))) -> 0 | K44: =IF(J43<=0,0,MIN((J43*(1+$D$2/1200)),($E$2+'Debt Calculator'!$B$6+IF(J43<=0,$E$2,0)+IF(M43<=0,$E$3,0)+IF(P43<=0,$E$4,0)+IF(S43<=0,$E$5,0)+IF(V43<=0,$E$6,0)+IF(Y43<=0,$E$7,0)+IF(AB43<=0,$E$8,0)+IF(AE43<=0,$E$9,0)+IF(AH43<=0,$E$10,0)+IF(AK43<=0,$E$11,0)+IF(AN43<=0,$E$12,0)+IF(AQ43<=0,$E$13,0)+IF(AT43<=0,$E$14,0)+IF(AW43<=0,$E$15,0)+IF(AZ43<=0,$E$16,0)))) -> 0 | L44: =IF(J43<=0,'Debt Calculator'!$B$6+IF(J43<=0,$E$2,0)+IF(M43<=0,$E$3,0)+IF(P43<=0,$E$4,0)+IF(S43<=0,$E$5,0)+IF(V43<=0,$E$6,0)+IF(Y43<=0,$E$7,0)+IF(AB43<=0,$E$8,0)+IF(AE43<=0,$E$9,0)+IF(AH43<=0,$E$10,0)+IF(AK43<=0,$E$11,0)+IF(AN43<=0,$E$12,0)+IF(AQ43<=0,$E$13,0)+IF(AT43<=0,$E$14,0)+IF(AW43<=0,$E$15,0)+IF(AZ43<=0,$E$16,0),MAX(0,($E$2+'Debt Calculator'!$B$6+IF(J43<=0,$E$2,0)+IF(M43<=0,$E$3,0)+IF(P43<=0,$E$4,0)+IF(S43<=0,$E$5,0)+IF(V43<=0,$E$6,0)+IF(Y43<=0,$E$7,0)+IF(AB43<=0,$E$8,0)+IF(AE43<=0,$E$9,0)+IF(AH43<=0,$E$10,0)+IF(AK43<=0,$E$11,0)+IF(AN43<=0,$E$12,0)+IF(AQ43<=0,$E$13,0)+IF(AT43<=0,$E$14,0)+IF(AW43<=0,$E$15,0)+IF(AZ43<=0,$E$16,0))-(J43*(1+$D$2/1200)))) -> 100 | M44: 2640.325586 | N44: 205 | O44: 0 | P44: 2776.936301 | Q44: 500 | R44: 0 | S44: 24976.22514 | T44: 180 | U44: 0 | V44: 101491.9833 | W44: 1500 | X44: 0 | Y44: 0 | Z44: 0 | AA44: 0 | AB44: 0 | AC44: 0 | AD44: 0 | AE44: 0 | AF44: 0 | AG44: 0 | AH44: 0 | AI44: 0 | AJ44: 0 | AK44: 0 | AL44: 0 | AM44: 0 | AN44: 0 | AO44: 0 | AP44: 0 | AQ44: 0 | AR44: 0 | AS44: 0 | AT44: 0 | AU44: 0 | AV44: 0 | AW44: 0 | AX44: 0 | AY44: 0 | AZ44: 0 | BA44: 0 | BB44: 0
H45: =42 -> 42 | I45: 2030-01-15 | J45: =MAX(0,(J44*(1+$D$2/1200))-IF(J44<=0,0,MIN((J44*(1+$D$2/1200)),($E$2+'Debt Calculator'!$B$6+IF(J44<=0,$E$2,0)+IF(M44<=0,$E$3,0)+IF(P44<=0,$E$4,0)+IF(S44<=0,$E$5,0)+IF(V44<=0,$E$6,0)+IF(Y44<=0,$E$7,0)+IF(AB44<=0,$E$8,0)+IF(AE44<=0,$E$9,0)+IF(AH44<=0,$E$10,0)+IF(AK44<=0,$E$11,0)+IF(AN44<=0,$E$12,0)+IF(AQ44<=0,$E$13,0)+IF(AT44<=0,$E$14,0)+IF(AW44<=0,$E$15,0)+IF(AZ44<=0,$E$16,0))))) -> 0 | K45: =IF(J44<=0,0,MIN((J44*(1+$D$2/1200)),($E$2+'Debt Calculator'!$B$6+IF(J44<=0,$E$2,0)+IF(M44<=0,$E$3,0)+IF(P44<=0,$E$4,0)+IF(S44<=0,$E$5,0)+IF(V44<=0,$E$6,0)+IF(Y44<=0,$E$7,0)+IF(AB44<=0,$E$8,0)+IF(AE44<=0,$E$9,0)+IF(AH44<=0,$E$10,0)+IF(AK44<=0,$E$11,0)+IF(AN44<=0,$E$12,0)+IF(AQ44<=0,$E$13,0)+IF(AT44<=0,$E$14,0)+IF(AW44<=0,$E$15,0)+IF(AZ44<=0,$E$16,0)))) -> 0 | L45: =IF(J44<=0,'Debt Calculator'!$B$6+IF(J44<=0,$E$2,0)+IF(M44<=0,$E$3,0)+IF(P44<=0,$E$4,0)+IF(S44<=0,$E$5,0)+IF(V44<=0,$E$6,0)+IF(Y44<=0,$E$7,0)+IF(AB44<=0,$E$8,0)+IF(AE44<=0,$E$9,0)+IF(AH44<=0,$E$10,0)+IF(AK44<=0,$E$11,0)+IF(AN44<=0,$E$12,0)+IF(AQ44<=0,$E$13,0)+IF(AT44<=0,$E$14,0)+IF(AW44<=0,$E$15,0)+IF(AZ44<=0,$E$16,0),MAX(0,($E$2+'Debt Calculator'!$B$6+IF(J44<=0,$E$2,0)+IF(M44<=0,$E$3,0)+IF(P44<=0,$E$4,0)+IF(S44<=0,$E$5,0)+IF(V44<=0,$E$6,0)+IF(Y44<=0,$E$7,0)+IF(AB44<=0,$E$8,0)+IF(AE44<=0,$E$9,0)+IF(AH44<=0,$E$10,0)+IF(AK44<=0,$E$11,0)+IF(AN44<=0,$E$12,0)+IF(AQ44<=0,$E$13,0)+IF(AT44<=0,$E$14,0)+IF(AW44<=0,$E$15,0)+IF(AZ44<=0,$E$16,0))-(J44*(1+$D$2/1200)))) -> 100 | M45: 2490.33237 | N45: 205 | O45: 0 | P45: 2295.44921 | Q45: 500 | R45: 0 | S45: 24848.25895 | T45: 180 | U45: 0 | V45: 100245.7133 | W45: 1500 | X45: 0 | Y45: 0 | Z45: 0 | AA45: 0 | AB45: 0 | AC45: 0 | AD45: 0 | AE45: 0 | AF45: 0 | AG45: 0 | AH45: 0 | AI45: 0 | AJ45: 0 | AK45: 0 | AL45: 0 | AM45: 0 | AN45: 0 | AO45: 0 | AP45: 0 | AQ45: 0 | AR45: 0 | AS45: 0 | AT45: 0 | AU45: 0 | AV45: 0 | AW45: 0 | AX45: 0 | AY45: 0 | AZ45: 0 | BA45: 0 | BB45: 0
H46: =43 -> 43 | I46: 2030-02-15 | J46: =MAX(0,(J45*(1+$D$2/1200))-IF(J45<=0,0,MIN((J45*(1+$D$2/1200)),($E$2+'Debt Calculator'!$B$6+IF(J45<=0,$E$2,0)+IF(M45<=0,$E$3,0)+IF(P45<=0,$E$4,0)+IF(S45<=0,$E$5,0)+IF(V45<=0,$E$6,0)+IF(Y45<=0,$E$7,0)+IF(AB45<=0,$E$8,0)+IF(AE45<=0,$E$9,0)+IF(AH45<=0,$E$10,0)+IF(AK45<=0,$E$11,0)+IF(AN45<=0,$E$12,0)+IF(AQ45<=0,$E$13,0)+IF(AT45<=0,$E$14,0)+IF(AW45<=0,$E$15,0)+IF(AZ45<=0,$E$16,0))))) -> 0 | K46: =IF(J45<=0,0,MIN((J45*(1+$D$2/1200)),($E$2+'Debt Calculator'!$B$6+IF(J45<=0,$E$2,0)+IF(M45<=0,$E$3,0)+IF(P45<=0,$E$4,0)+IF(S45<=0,$E$5,0)+IF(V45<=0,$E$6,0)+IF(Y45<=0,$E$7,0)+IF(AB45<=0,$E$8,0)+IF(AE45<=0,$E$9,0)+IF(AH45<=0,$E$10,0)+IF(AK45<=0,$E$11,0)+IF(AN45<=0,$E$12,0)+IF(AQ45<=0,$E$13,0)+IF(AT45<=0,$E$14,0)+IF(AW45<=0,$E$15,0)+IF(AZ45<=0,$E$16,0)))) -> 0 | L46: =IF(J45<=0,'Debt Calculator'!$B$6+IF(J45<=0,$E$2,0)+IF(M45<=0,$E$3,0)+IF(P45<=0,$E$4,0)+IF(S45<=0,$E$5,0)+IF(V45<=0,$E$6,0)+IF(Y45<=0,$E$7,0)+IF(AB45<=0,$E$8,0)+IF(AE45<=0,$E$9,0)+IF(AH45<=0,$E$10,0)+IF(AK45<=0,$E$11,0)+IF(AN45<=0,$E$12,0)+IF(AQ45<=0,$E$13,0)+IF(AT45<=0,$E$14,0)+IF(AW45<=0,$E$15,0)+IF(AZ45<=0,$E$16,0),MAX(0,($E$2+'Debt Calculator'!$B$6+IF(J45<=0,$E$2,0)+IF(M45<=0,$E$3,0)+IF(P45<=0,$E$4,0)+IF(S45<=0,$E$5,0)+IF(V45<=0,$E$6,0)+IF(Y45<=0,$E$7,0)+IF(AB45<=0,$E$8,0)+IF(AE45<=0,$E$9,0)+IF(AH45<=0,$E$10,0)+IF(AK45<=0,$E$11,0)+IF(AN45<=0,$E$12,0)+IF(AQ45<=0,$E$13,0)+IF(AT45<=0,$E$14,0)+IF(AW45<=0,$E$15,0)+IF(AZ45<=0,$E$16,0))-(J45*(1+$D$2/1200)))) -> 100 | M46: 2337.214294 | N46: 205 | O46: 0 | P46: 1810.752205 | Q46: 500 | R46: 0 | S46: 24720.02615 | T46: 180 | U46: 0 | V46: 98996.32755 | W46: 1500 | X46: 0 | Y46: 0 | Z46: 0 | AA46: 0 | AB46: 0 | AC46: 0 | AD46: 0 | AE46: 0 | AF46: 0 | AG46: 0 | AH46: 0 | AI46: 0 | AJ46: 0 | AK46: 0 | AL46: 0 | AM46: 0 | AN46: 0 | AO46: 0 | AP46: 0 | AQ46: 0 | AR46: 0 | AS46: 0 | AT46: 0 | AU46: 0 | AV46: 0 | AW46: 0 | AX46: 0 | AY46: 0 | AZ46: 0 | BA46: 0 | BB46: 0
H47: =44 -> 44 | I47: 2030-03-15 | J47: =MAX(0,(J46*(1+$D$2/1200))-IF(J46<=0,0,MIN((J46*(1+$D$2/1200)),($E$2+'Debt Calculator'!$B$6+IF(J46<=0,$E$2,0)+IF(M46<=0,$E$3,0)+IF(P46<=0,$E$4,0)+IF(S46<=0,$E$5,0)+IF(V46<=0,$E$6,0)+IF(Y46<=0,$E$7,0)+IF(AB46<=0,$E$8,0)+IF(AE46<=0,$E$9,0)+IF(AH46<=0,$E$10,0)+IF(AK46<=0,$E$11,0)+IF(AN46<=0,$E$12,0)+IF(AQ46<=0,$E$13,0)+IF(AT46<=0,$E$14,0)+IF(AW46<=0,$E$15,0)+IF(AZ46<=0,$E$16,0))))) -> 0 | K47: =IF(J46<=0,0,MIN((J46*(1+$D$2/1200)),($E$2+'Debt Calculator'!$B$6+IF(J46<=0,$E$2,0)+IF(M46<=0,$E$3,0)+IF(P46<=0,$E$4,0)+IF(S46<=0,$E$5,0)+IF(V46<=0,$E$6,0)+IF(Y46<=0,$E$7,0)+IF(AB46<=0,$E$8,0)+IF(AE46<=0,$E$9,0)+IF(AH46<=0,$E$10,0)+IF(AK46<=0,$E$11,0)+IF(AN46<=0,$E$12,0)+IF(AQ46<=0,$E$13,0)+IF(AT46<=0,$E$14,0)+IF(AW46<=0,$E$15,0)+IF(AZ46<=0,$E$16,0)))) -> 0 | L47: =IF(J46<=0,'Debt Calculator'!$B$6+IF(J46<=0,$E$2,0)+IF(M46<=0,$E$3,0)+IF(P46<=0,$E$4,0)+IF(S46<=0,$E$5,0)+IF(V46<=0,$E$6,0)+IF(Y46<=0,$E$7,0)+IF(AB46<=0,$E$8,0)+IF(AE46<=0,$E$9,0)+IF(AH46<=0,$E$10,0)+IF(AK46<=0,$E$11,0)+IF(AN46<=0,$E$12,0)+IF(AQ46<=0,$E$13,0)+IF(AT46<=0,$E$14,0)+IF(AW46<=0,$E$15,0)+IF(AZ46<=0,$E$16,0),MAX(0,($E$2+'Debt Calculator'!$B$6+IF(J46<=0,$E$2,0)+IF(M46<=0,$E$3,0)+IF(P46<=0,$E$4,0)+IF(S46<=0,$E$5,0)+IF(V46<=0,$E$6,0)+IF(Y46<=0,$E$7,0)+IF(AB46<=0,$E$8,0)+IF(AE46<=0,$E$9,0)+IF(AH46<=0,$E$10,0)+IF(AK46<=0,$E$11,0)+IF(AN46<=0,$E$12,0)+IF(AQ46<=0,$E$13,0)+IF(AT46<=0,$E$14,0)+IF(AW46<=0,$E$15,0)+IF(AZ46<=0,$E$16,0))-(J46*(1+$D$2/1200)))) -> 100 | M47: 2180.906258 | N47: 205 | O47: 0 | P47: 1322.823886 | Q47: 500 | R47: 0 | S47: 24591.52621 | T47: 180 | U47: 0 | V47: 97743.81837 | W47: 1500 | X47: 0 | Y47: 0 | Z47: 0 | AA47: 0 | AB47: 0 | AC47: 0 | AD47: 0 | AE47: 0 | AF47: 0 | AG47: 0 | AH47: 0 | AI47: 0 | AJ47: 0 | AK47: 0 | AL47: 0 | AM47: 0 | AN47: 0 | AO47: 0 | AP47: 0 | AQ47: 0 | AR47: 0 | AS47: 0 | AT47: 0 | AU47: 0 | AV47: 0 | AW47: 0 | AX47: 0 | AY47: 0 | AZ47: 0 | BA47: 0 | BB47: 0
H48: =45 -> 45 | I48: 2030-04-15 | J48: =MAX(0,(J47*(1+$D$2/1200))-IF(J47<=0,0,MIN((J47*(1+$D$2/1200)),($E$2+'Debt Calculator'!$B$6+IF(J47<=0,$E$2,0)+IF(M47<=0,$E$3,0)+IF(P47<=0,$E$4,0)+IF(S47<=0,$E$5,0)+IF(V47<=0,$E$6,0)+IF(Y47<=0,$E$7,0)+IF(AB47<=0,$E$8,0)+IF(AE47<=0,$E$9,0)+IF(AH47<=0,$E$10,0)+IF(AK47<=0,$E$11,0)+IF(AN47<=0,$E$12,0)+IF(AQ47<=0,$E$13,0)+IF(AT47<=0,$E$14,0)+IF(AW47<=0,$E$15,0)+IF(AZ47<=0,$E$16,0))))) -> 0 | K48: =IF(J47<=0,0,MIN((J47*(1+$D$2/1200)),($E$2+'Debt Calculator'!$B$6+IF(J47<=0,$E$2,0)+IF(M47<=0,$E$3,0)+IF(P47<=0,$E$4,0)+IF(S47<=0,$E$5,0)+IF(V47<=0,$E$6,0)+IF(Y47<=0,$E$7,0)+IF(AB47<=0,$E$8,0)+IF(AE47<=0,$E$9,0)+IF(AH47<=0,$E$10,0)+IF(AK47<=0,$E$11,0)+IF(AN47<=0,$E$12,0)+IF(AQ47<=0,$E$13,0)+IF(AT47<=0,$E$14,0)+IF(AW47<=0,$E$15,0)+IF(AZ47<=0,$E$16,0)))) -> 0 | L48: =IF(J47<=0,'Debt Calculator'!$B$6+IF(J47<=0,$E$2,0)+IF(M47<=0,$E$3,0)+IF(P47<=0,$E$4,0)+IF(S47<=0,$E$5,0)+IF(V47<=0,$E$6,0)+IF(Y47<=0,$E$7,0)+IF(AB47<=0,$E$8,0)+IF(AE47<=0,$E$9,0)+IF(AH47<=0,$E$10,0)+IF(AK47<=0,$E$11,0)+IF(AN47<=0,$E$12,0)+IF(AQ47<=0,$E$13,0)+IF(AT47<=0,$E$14,0)+IF(AW47<=0,$E$15,0)+IF(AZ47<=0,$E$16,0),MAX(0,($E$2+'Debt Calculator'!$B$6+IF(J47<=0,$E$2,0)+IF(M47<=0,$E$3,0)+IF(P47<=0,$E$4,0)+IF(S47<=0,$E$5,0)+IF(V47<=0,$E$6,0)+IF(Y47<=0,$E$7,0)+IF(AB47<=0,$E$8,0)+IF(AE47<=0,$E$9,0)+IF(AH47<=0,$E$10,0)+IF(AK47<=0,$E$11,0)+IF(AN47<=0,$E$12,0)+IF(AQ47<=0,$E$13,0)+IF(AT47<=0,$E$14,0)+IF(AW47<=0,$E$15,0)+IF(AZ47<=0,$E$16,0))-(J47*(1+$D$2/1200)))) -> 100 | M48: 2021.341805 | N48: 205 | O48: 0 | P48: 831.642712 | Q48: 500 | R48: 0 | S48: 24462.75855 | T48: 180 | U48: 0 | V48: 96488.17791 | W48: 1500 | X48: 0 | Y48: 0 | Z48: 0 | AA48: 0 | AB48: 0 | AC48: 0 | AD48: 0 | AE48: 0 | AF48: 0 | AG48: 0 | AH48: 0 | AI48: 0 | AJ48: 0 | AK48: 0 | AL48: 0 | AM48: 0 | AN48: 0 | AO48: 0 | AP48: 0 | AQ48: 0 | AR48: 0 | AS48: 0 | AT48: 0 | AU48: 0 | AV48: 0 | AW48: 0 | AX48: 0 | AY48: 0 | AZ48: 0 | BA48: 0 | BB48: 0
H49: =46 -> 46 | I49: 2030-05-15 | J49: =MAX(0,(J48*(1+$D$2/1200))-IF(J48<=0,0,MIN((J48*(1+$D$2/1200)),($E$2+'Debt Calculator'!$B$6+IF(J48<=0,$E$2,0)+IF(M48<=0,$E$3,0)+IF(P48<=0,$E$4,0)+IF(S48<=0,$E$5,0)+IF(V48<=0,$E$6,0)+IF(Y48<=0,$E$7,0)+IF(AB48<=0,$E$8,0)+IF(AE48<=0,$E$9,0)+IF(AH48<=0,$E$10,0)+IF(AK48<=0,$E$11,0)+IF(AN48<=0,$E$12,0)+IF(AQ48<=0,$E$13,0)+IF(AT48<=0,$E$14,0)+IF(AW48<=0,$E$15,0)+IF(AZ48<=0,$E$16,0))))) -> 0 | K49: =IF(J48<=0,0,MIN((J48*(1+$D$2/1200)),($E$2+'Debt Calculator'!$B$6+IF(J48<=0,$E$2,0)+IF(M48<=0,$E$3,0)+IF(P48<=0,$E$4,0)+IF(S48<=0,$E$5,0)+IF(V48<=0,$E$6,0)+IF(Y48<=0,$E$7,0)+IF(AB48<=0,$E$8,0)+IF(AE48<=0,$E$9,0)+IF(AH48<=0,$E$10,0)+IF(AK48<=0,$E$11,0)+IF(AN48<=0,$E$12,0)+IF(AQ48<=0,$E$13,0)+IF(AT48<=0,$E$14,0)+IF(AW48<=0,$E$15,0)+IF(AZ48<=0,$E$16,0)))) -> 0 | L49: =IF(J48<=0,'Debt Calculator'!$B$6+IF(J48<=0,$E$2,0)+IF(M48<=0,$E$3,0)+IF(P48<=0,$E$4,0)+IF(S48<=0,$E$5,0)+IF(V48<=0,$E$6,0)+IF(Y48<=0,$E$7,0)+IF(AB48<=0,$E$8,0)+IF(AE48<=0,$E$9,0)+IF(AH48<=0,$E$10,0)+IF(AK48<=0,$E$11,0)+IF(AN48<=0,$E$12,0)+IF(AQ48<=0,$E$13,0)+IF(AT48<=0,$E$14,0)+IF(AW48<=0,$E$15,0)+IF(AZ48<=0,$E$16,0),MAX(0,($E$2+'Debt Calculator'!$B$6+IF(J48<=0,$E$2,0)+IF(M48<=0,$E$3,0)+IF(P48<=0,$E$4,0)+IF(S48<=0,$E$5,0)+IF(V48<=0,$E$6,0)+IF(Y48<=0,$E$7,0)+IF(AB48<=0,$E$8,0)+IF(AE48<=0,$E$9,0)+IF(AH48<=0,$E$10,0)+IF(AK48<=0,$E$11,0)+IF(AN48<=0,$E$12,0)+IF(AQ48<=0,$E$13,0)+IF(AT48<=0,$E$14,0)+IF(AW48<=0,$E$15,0)+IF(AZ48<=0,$E$16,0))-(J48*(1+$D$2/1200)))) -> 100 | M49: 1858.453093 | N49: 205 | O49: 0 | P49: 337.1869968 | Q49: 500 | R49: 0 | S49: 24333.72263 | T49: 180 | U49: 0 | V49: 95229.39836 | W49: 1500 | X49: 0 | Y49: 0 | Z49: 0 | AA49: 0 | AB49: 0 | AC49: 0 | AD49: 0 | AE49: 0 | AF49: 0 | AG49: 0 | AH49: 0 | AI49: 0 | AJ49: 0 | AK49: 0 | AL49: 0 | AM49: 0 | AN49: 0 | AO49: 0 | AP49: 0 | AQ49: 0 | AR49: 0 | AS49: 0 | AT49: 0 | AU49: 0 | AV49: 0 | AW49: 0 | AX49: 0 | AY49: 0 | AZ49: 0 | BA49: 0 | BB49: 0
H50: =47 -> 47 | I50: 2030-06-15 | J50: =MAX(0,(J49*(1+$D$2/1200))-IF(J49<=0,0,MIN((J49*(1+$D$2/1200)),($E$2+'Debt Calculator'!$B$6+IF(J49<=0,$E$2,0)+IF(M49<=0,$E$3,0)+IF(P49<=0,$E$4,0)+IF(S49<=0,$E$5,0)+IF(V49<=0,$E$6,0)+IF(Y49<=0,$E$7,0)+IF(AB49<=0,$E$8,0)+IF(AE49<=0,$E$9,0)+IF(AH49<=0,$E$10,0)+IF(AK49<=0,$E$11,0)+IF(AN49<=0,$E$12,0)+IF(AQ49<=0,$E$13,0)+IF(AT49<=0,$E$14,0)+IF(AW49<=0,$E$15,0)+IF(AZ49<=0,$E$16,0))))) -> 0 | K50: =IF(J49<=0,0,MIN((J49*(1+$D$2/1200)),($E$2+'Debt Calculator'!$B$6+IF(J49<=0,$E$2,0)+IF(M49<=0,$E$3,0)+IF(P49<=0,$E$4,0)+IF(S49<=0,$E$5,0)+IF(V49<=0,$E$6,0)+IF(Y49<=0,$E$7,0)+IF(AB49<=0,$E$8,0)+IF(AE49<=0,$E$9,0)+IF(AH49<=0,$E$10,0)+IF(AK49<=0,$E$11,0)+IF(AN49<=0,$E$12,0)+IF(AQ49<=0,$E$13,0)+IF(AT49<=0,$E$14,0)+IF(AW49<=0,$E$15,0)+IF(AZ49<=0,$E$16,0)))) -> 0 | L50: =IF(J49<=0,'Debt Calculator'!$B$6+IF(J49<=0,$E$2,0)+IF(M49<=0,$E$3,0)+IF(P49<=0,$E$4,0)+IF(S49<=0,$E$5,0)+IF(V49<=0,$E$6,0)+IF(Y49<=0,$E$7,0)+IF(AB49<=0,$E$8,0)+IF(AE49<=0,$E$9,0)+IF(AH49<=0,$E$10,0)+IF(AK49<=0,$E$11,0)+IF(AN49<=0,$E$12,0)+IF(AQ49<=0,$E$13,0)+IF(AT49<=0,$E$14,0)+IF(AW49<=0,$E$15,0)+IF(AZ49<=0,$E$16,0),MAX(0,($E$2+'Debt Calculator'!$B$6+IF(J49<=0,$E$2,0)+IF(M49<=0,$E$3,0)+IF(P49<=0,$E$4,0)+IF(S49<=0,$E$5,0)+IF(V49<=0,$E$6,0)+IF(Y49<=0,$E$7,0)+IF(AB49<=0,$E$8,0)+IF(AE49<=0,$E$9,0)+IF(AH49<=0,$E$10,0)+IF(AK49<=0,$E$11,0)+IF(AN49<=0,$E$12,0)+IF(AQ49<=0,$E$13,0)+IF(AT49<=0,$E$14,0)+IF(AW49<=0,$E$15,0)+IF(AZ49<=0,$E$16,0))-(J49*(1+$D$2/1200)))) -> 100 | M50: 1692.170866 | N50: 205 | O50: 0 | P50: 0 | Q50: 339.4349101 | R50: 160.5650899 | S50: 24043.8528 | T50: 340.5650899 | U50: 0 | V50: 93967.47185 | W50: 1500 | X50: 0 | Y50: 0 | Z50: 0 | AA50: 0 | AB50: 0 | AC50: 0 | AD50: 0 | AE50: 0 | AF50: 0 | AG50: 0 | AH50: 0 | AI50: 0 | AJ50: 0 | AK50: 0 | AL50: 0 | AM50: 0 | AN50: 0 | AO50: 0 | AP50: 0 | AQ50: 0 | AR50: 0 | AS50: 0 | AT50: 0 | AU50: 0 | AV50: 0 | AW50: 0 | AX50: 0 | AY50: 0 | AZ50: 0 | BA50: 0 | BB50: 0
H51: =48 -> 48 | I51: 2030-07-15 | J51: =MAX(0,(J50*(1+$D$2/1200))-IF(J50<=0,0,MIN((J50*(1+$D$2/1200)),($E$2+'Debt Calculator'!$B$6+IF(J50<=0,$E$2,0)+IF(M50<=0,$E$3,0)+IF(P50<=0,$E$4,0)+IF(S50<=0,$E$5,0)+IF(V50<=0,$E$6,0)+IF(Y50<=0,$E$7,0)+IF(AB50<=0,$E$8,0)+IF(AE50<=0,$E$9,0)+IF(AH50<=0,$E$10,0)+IF(AK50<=0,$E$11,0)+IF(AN50<=0,$E$12,0)+IF(AQ50<=0,$E$13,0)+IF(AT50<=0,$E$14,0)+IF(AW50<=0,$E$15,0)+IF(AZ50<=0,$E$16,0))))) -> 0 | K51: =IF(J50<=0,0,MIN((J50*(1+$D$2/1200)),($E$2+'Debt Calculator'!$B$6+IF(J50<=0,$E$2,0)+IF(M50<=0,$E$3,0)+IF(P50<=0,$E$4,0)+IF(S50<=0,$E$5,0)+IF(V50<=0,$E$6,0)+IF(Y50<=0,$E$7,0)+IF(AB50<=0,$E$8,0)+IF(AE50<=0,$E$9,0)+IF(AH50<=0,$E$10,0)+IF(AK50<=0,$E$11,0)+IF(AN50<=0,$E$12,0)+IF(AQ50<=0,$E$13,0)+IF(AT50<=0,$E$14,0)+IF(AW50<=0,$E$15,0)+IF(AZ50<=0,$E$16,0)))) -> 0 | L51: =IF(J50<=0,'Debt Calculator'!$B$6+IF(J50<=0,$E$2,0)+IF(M50<=0,$E$3,0)+IF(P50<=0,$E$4,0)+IF(S50<=0,$E$5,0)+IF(V50<=0,$E$6,0)+IF(Y50<=0,$E$7,0)+IF(AB50<=0,$E$8,0)+IF(AE50<=0,$E$9,0)+IF(AH50<=0,$E$10,0)+IF(AK50<=0,$E$11,0)+IF(AN50<=0,$E$12,0)+IF(AQ50<=0,$E$13,0)+IF(AT50<=0,$E$14,0)+IF(AW50<=0,$E$15,0)+IF(AZ50<=0,$E$16,0),MAX(0,($E$2+'Debt Calculator'!$B$6+IF(J50<=0,$E$2,0)+IF(M50<=0,$E$3,0)+IF(P50<=0,$E$4,0)+IF(S50<=0,$E$5,0)+IF(V50<=0,$E$6,0)+IF(Y50<=0,$E$7,0)+IF(AB50<=0,$E$8,0)+IF(AE50<=0,$E$9,0)+IF(AH50<=0,$E$10,0)+IF(AK50<=0,$E$11,0)+IF(AN50<=0,$E$12,0)+IF(AQ50<=0,$E$13,0)+IF(AT50<=0,$E$14,0)+IF(AW50<=0,$E$15,0)+IF(AZ50<=0,$E$16,0))-(J50*(1+$D$2/1200)))) -> 600 | M51: 1022.424425 | N51: 705 | O51: 0 | P51: 0 | Q51: 0 | R51: 0 | S51: 23913.94416 | T51: 180 | U51: 0 | V51: 92702.39053 | W51: 1500 | X51: 0 | Y51: 0 | Z51: 0 | AA51: 0 | AB51: 0 | AC51: 0 | AD51: 0 | AE51: 0 | AF51: 0 | AG51: 0 | AH51: 0 | AI51: 0 | AJ51: 0 | AK51: 0 | AL51: 0 | AM51: 0 | AN51: 0 | AO51: 0 | AP51: 0 | AQ51: 0 | AR51: 0 | AS51: 0 | AT51: 0 | AU51: 0 | AV51: 0 | AW51: 0 | AX51: 0 | AY51: 0 | AZ51: 0 | BA51: 0 | BB51: 0
H52: =49 -> 49 | I52: 2030-08-15 | J52: =MAX(0,(J51*(1+$D$2/1200))-IF(J51<=0,0,MIN((J51*(1+$D$2/1200)),($E$2+'Debt Calculator'!$B$6+IF(J51<=0,$E$2,0)+IF(M51<=0,$E$3,0)+IF(P51<=0,$E$4,0)+IF(S51<=0,$E$5,0)+IF(V51<=0,$E$6,0)+IF(Y51<=0,$E$7,0)+IF(AB51<=0,$E$8,0)+IF(AE51<=0,$E$9,0)+IF(AH51<=0,$E$10,0)+IF(AK51<=0,$E$11,0)+IF(AN51<=0,$E$12,0)+IF(AQ51<=0,$E$13,0)+IF(AT51<=0,$E$14,0)+IF(AW51<=0,$E$15,0)+IF(AZ51<=0,$E$16,0))))) -> 0 | K52: =IF(J51<=0,0,MIN((J51*(1+$D$2/1200)),($E$2+'Debt Calculator'!$B$6+IF(J51<=0,$E$2,0)+IF(M51<=0,$E$3,0)+IF(P51<=0,$E$4,0)+IF(S51<=0,$E$5,0)+IF(V51<=0,$E$6,0)+IF(Y51<=0,$E$7,0)+IF(AB51<=0,$E$8,0)+IF(AE51<=0,$E$9,0)+IF(AH51<=0,$E$10,0)+IF(AK51<=0,$E$11,0)+IF(AN51<=0,$E$12,0)+IF(AQ51<=0,$E$13,0)+IF(AT51<=0,$E$14,0)+IF(AW51<=0,$E$15,0)+IF(AZ51<=0,$E$16,0)))) -> 0 | L52: =IF(J51<=0,'Debt Calculator'!$B$6+IF(J51<=0,$E$2,0)+IF(M51<=0,$E$3,0)+IF(P51<=0,$E$4,0)+IF(S51<=0,$E$5,0)+IF(V51<=0,$E$6,0)+IF(Y51<=0,$E$7,0)+IF(AB51<=0,$E$8,0)+IF(AE51<=0,$E$9,0)+IF(AH51<=0,$E$10,0)+IF(AK51<=0,$E$11,0)+IF(AN51<=0,$E$12,0)+IF(AQ51<=0,$E$13,0)+IF(AT51<=0,$E$14,0)+IF(AW51<=0,$E$15,0)+IF(AZ51<=0,$E$16,0),MAX(0,($E$2+'Debt Calculator'!$B$6+IF(J51<=0,$E$2,0)+IF(M51<=0,$E$3,0)+IF(P51<=0,$E$4,0)+IF(S51<=0,$E$5,0)+IF(V51<=0,$E$6,0)+IF(Y51<=0,$E$7,0)+IF(AB51<=0,$E$8,0)+IF(AE51<=0,$E$9,0)+IF(AH51<=0,$E$10,0)+IF(AK51<=0,$E$11,0)+IF(AN51<=0,$E$12,0)+IF(AQ51<=0,$E$13,0)+IF(AT51<=0,$E$14,0)+IF(AW51<=0,$E$15,0)+IF(AZ51<=0,$E$16,0))-(J51*(1+$D$2/1200)))) -> 600 | M52: 338.7249343 | N52: 705 | O52: 0 | P52: 0 | Q52: 0 | R52: 0 | S52: 23783.76488 | T52: 180 | U52: 0 | V52: 91434.14651 | W52: 1500 | X52: 0 | Y52: 0 | Z52: 0 | AA52: 0 | AB52: 0 | AC52: 0 | AD52: 0 | AE52: 0 | AF52: 0 | AG52: 0 | AH52: 0 | AI52: 0 | AJ52: 0 | AK52: 0 | AL52: 0 | AM52: 0 | AN52: 0 | AO52: 0 | AP52: 0 | AQ52: 0 | AR52: 0 | AS52: 0 | AT52: 0 | AU52: 0 | AV52: 0 | AW52: 0 | AX52: 0 | AY52: 0 | AZ52: 0 | BA52: 0 | BB52: 0
H53: =50 -> 50 | I53: 2030-09-15 | J53: =MAX(0,(J52*(1+$D$2/1200))-IF(J52<=0,0,MIN((J52*(1+$D$2/1200)),($E$2+'Debt Calculator'!$B$6+IF(J52<=0,$E$2,0)+IF(M52<=0,$E$3,0)+IF(P52<=0,$E$4,0)+IF(S52<=0,$E$5,0)+IF(V52<=0,$E$6,0)+IF(Y52<=0,$E$7,0)+IF(AB52<=0,$E$8,0)+IF(AE52<=0,$E$9,0)+IF(AH52<=0,$E$10,0)+IF(AK52<=0,$E$11,0)+IF(AN52<=0,$E$12,0)+IF(AQ52<=0,$E$13,0)+IF(AT52<=0,$E$14,0)+IF(AW52<=0,$E$15,0)+IF(AZ52<=0,$E$16,0))))) -> 0 | K53: =IF(J52<=0,0,MIN((J52*(1+$D$2/1200)),($E$2+'Debt Calculator'!$B$6+IF(J52<=0,$E$2,0)+IF(M52<=0,$E$3,0)+IF(P52<=0,$E$4,0)+IF(S52<=0,$E$5,0)+IF(V52<=0,$E$6,0)+IF(Y52<=0,$E$7,0)+IF(AB52<=0,$E$8,0)+IF(AE52<=0,$E$9,0)+IF(AH52<=0,$E$10,0)+IF(AK52<=0,$E$11,0)+IF(AN52<=0,$E$12,0)+IF(AQ52<=0,$E$13,0)+IF(AT52<=0,$E$14,0)+IF(AW52<=0,$E$15,0)+IF(AZ52<=0,$E$16,0)))) -> 0 | L53: =IF(J52<=0,'Debt Calculator'!$B$6+IF(J52<=0,$E$2,0)+IF(M52<=0,$E$3,0)+IF(P52<=0,$E$4,0)+IF(S52<=0,$E$5,0)+IF(V52<=0,$E$6,0)+IF(Y52<=0,$E$7,0)+IF(AB52<=0,$E$8,0)+IF(AE52<=0,$E$9,0)+IF(AH52<=0,$E$10,0)+IF(AK52<=0,$E$11,0)+IF(AN52<=0,$E$12,0)+IF(AQ52<=0,$E$13,0)+IF(AT52<=0,$E$14,0)+IF(AW52<=0,$E$15,0)+IF(AZ52<=0,$E$16,0),MAX(0,($E$2+'Debt Calculator'!$B$6+IF(J52<=0,$E$2,0)+IF(M52<=0,$E$3,0)+IF(P52<=0,$E$4,0)+IF(S52<=0,$E$5,0)+IF(V52<=0,$E$6,0)+IF(Y52<=0,$E$7,0)+IF(AB52<=0,$E$8,0)+IF(AE52<=0,$E$9,0)+IF(AH52<=0,$E$10,0)+IF(AK52<=0,$E$11,0)+IF(AN52<=0,$E$12,0)+IF(AQ52<=0,$E$13,0)+IF(AT52<=0,$E$14,0)+IF(AW52<=0,$E$15,0)+IF(AZ52<=0,$E$16,0))-(J52*(1+$D$2/1200)))) -> 600 | M53: 0 | N53: 345.7817038 | O53: 359.2182962 | P53: 0 | Q53: 0 | R53: 359.2182962 | S53: 23294.09609 | T53: 539.2182962 | U53: 0 | V53: 90162.73187 | W53: 1500 | X53: 0 | Y53: 0 | Z53: 0 | AA53: 0 | AB53: 0 | AC53: 0 | AD53: 0 | AE53: 0 | AF53: 0 | AG53: 0 | AH53: 0 | AI53: 0 | AJ53: 0 | AK53: 0 | AL53: 0 | AM53: 0 | AN53: 0 | AO53: 0 | AP53: 0 | AQ53: 0 | AR53: 0 | AS53: 0 | AT53: 0 | AU53: 0 | AV53: 0 | AW53: 0 | AX53: 0 | AY53: 0 | AZ53: 0 | BA53: 0 | BB53: 0
H54: =51 -> 51 | I54: 2030-10-15 | J54: =MAX(0,(J53*(1+$D$2/1200))-IF(J53<=0,0,MIN((J53*(1+$D$2/1200)),($E$2+'Debt Calculator'!$B$6+IF(J53<=0,$E$2,0)+IF(M53<=0,$E$3,0)+IF(P53<=0,$E$4,0)+IF(S53<=0,$E$5,0)+IF(V53<=0,$E$6,0)+IF(Y53<=0,$E$7,0)+IF(AB53<=0,$E$8,0)+IF(AE53<=0,$E$9,0)+IF(AH53<=0,$E$10,0)+IF(AK53<=0,$E$11,0)+IF(AN53<=0,$E$12,0)+IF(AQ53<=0,$E$13,0)+IF(AT53<=0,$E$14,0)+IF(AW53<=0,$E$15,0)+IF(AZ53<=0,$E$16,0))))) -> 0 | K54: =IF(J53<=0,0,MIN((J53*(1+$D$2/1200)),($E$2+'Debt Calculator'!$B$6+IF(J53<=0,$E$2,0)+IF(M53<=0,$E$3,0)+IF(P53<=0,$E$4,0)+IF(S53<=0,$E$5,0)+IF(V53<=0,$E$6,0)+IF(Y53<=0,$E$7,0)+IF(AB53<=0,$E$8,0)+IF(AE53<=0,$E$9,0)+IF(AH53<=0,$E$10,0)+IF(AK53<=0,$E$11,0)+IF(AN53<=0,$E$12,0)+IF(AQ53<=0,$E$13,0)+IF(AT53<=0,$E$14,0)+IF(AW53<=0,$E$15,0)+IF(AZ53<=0,$E$16,0)))) -> 0 | L54: =IF(J53<=0,'Debt Calculator'!$B$6+IF(J53<=0,$E$2,0)+IF(M53<=0,$E$3,0)+IF(P53<=0,$E$4,0)+IF(S53<=0,$E$5,0)+IF(V53<=0,$E$6,0)+IF(Y53<=0,$E$7,0)+IF(AB53<=0,$E$8,0)+IF(AE53<=0,$E$9,0)+IF(AH53<=0,$E$10,0)+IF(AK53<=0,$E$11,0)+IF(AN53<=0,$E$12,0)+IF(AQ53<=0,$E$13,0)+IF(AT53<=0,$E$14,0)+IF(AW53<=0,$E$15,0)+IF(AZ53<=0,$E$16,0),MAX(0,($E$2+'Debt Calculator'!$B$6+IF(J53<=0,$E$2,0)+IF(M53<=0,$E$3,0)+IF(P53<=0,$E$4,0)+IF(S53<=0,$E$5,0)+IF(V53<=0,$E$6,0)+IF(Y53<=0,$E$7,0)+IF(AB53<=0,$E$8,0)+IF(AE53<=0,$E$9,0)+IF(AH53<=0,$E$10,0)+IF(AK53<=0,$E$11,0)+IF(AN53<=0,$E$12,0)+IF(AQ53<=0,$E$13,0)+IF(AT53<=0,$E$14,0)+IF(AW53<=0,$E$15,0)+IF(AZ53<=0,$E$16,0))-(J53*(1+$D$2/1200)))) -> 705 | M54: 0 | N54: 0 | O54: 705 | P54: 0 | Q54: 0 | R54: 705 | S54: 22457.62546 | T54: 885 | U54: 0 | V54: 88888.1387 | W54: 1500 | X54: 0 | Y54: 0 | Z54: 0 | AA54: 0 | AB54: 0 | AC54: 0 | AD54: 0 | AE54: 0 | AF54: 0 | AG54: 0 | AH54: 0 | AI54: 0 | AJ54: 0 | AK54: 0 | AL54: 0 | AM54: 0 | AN54: 0 | AO54: 0 | AP54: 0 | AQ54: 0 | AR54: 0 | AS54: 0 | AT54: 0 | AU54: 0 | AV54: 0 | AW54: 0 | AX54: 0 | AY54: 0 | AZ54: 0 | BA54: 0 | BB54: 0
H55: =52 -> 52 | I55: 2030-11-15 | J55: =MAX(0,(J54*(1+$D$2/1200))-IF(J54<=0,0,MIN((J54*(1+$D$2/1200)),($E$2+'Debt Calculator'!$B$6+IF(J54<=0,$E$2,0)+IF(M54<=0,$E$3,0)+IF(P54<=0,$E$4,0)+IF(S54<=0,$E$5,0)+IF(V54<=0,$E$6,0)+IF(Y54<=0,$E$7,0)+IF(AB54<=0,$E$8,0)+IF(AE54<=0,$E$9,0)+IF(AH54<=0,$E$10,0)+IF(AK54<=0,$E$11,0)+IF(AN54<=0,$E$12,0)+IF(AQ54<=0,$E$13,0)+IF(AT54<=0,$E$14,0)+IF(AW54<=0,$E$15,0)+IF(AZ54<=0,$E$16,0))))) -> 0 | K55: =IF(J54<=0,0,MIN((J54*(1+$D$2/1200)),($E$2+'Debt Calculator'!$B$6+IF(J54<=0,$E$2,0)+IF(M54<=0,$E$3,0)+IF(P54<=0,$E$4,0)+IF(S54<=0,$E$5,0)+IF(V54<=0,$E$6,0)+IF(Y54<=0,$E$7,0)+IF(AB54<=0,$E$8,0)+IF(AE54<=0,$E$9,0)+IF(AH54<=0,$E$10,0)+IF(AK54<=0,$E$11,0)+IF(AN54<=0,$E$12,0)+IF(AQ54<=0,$E$13,0)+IF(AT54<=0,$E$14,0)+IF(AW54<=0,$E$15,0)+IF(AZ54<=0,$E$16,0)))) -> 0 | L55: =IF(J54<=0,'Debt Calculator'!$B$6+IF(J54<=0,$E$2,0)+IF(M54<=0,$E$3,0)+IF(P54<=0,$E$4,0)+IF(S54<=0,$E$5,0)+IF(V54<=0,$E$6,0)+IF(Y54<=0,$E$7,0)+IF(AB54<=0,$E$8,0)+IF(AE54<=0,$E$9,0)+IF(AH54<=0,$E$10,0)+IF(AK54<=0,$E$11,0)+IF(AN54<=0,$E$12,0)+IF(AQ54<=0,$E$13,0)+IF(AT54<=0,$E$14,0)+IF(AW54<=0,$E$15,0)+IF(AZ54<=0,$E$16,0),MAX(0,($E$2+'Debt Calculator'!$B$6+IF(J54<=0,$E$2,0)+IF(M54<=0,$E$3,0)+IF(P54<=0,$E$4,0)+IF(S54<=0,$E$5,0)+IF(V54<=0,$E$6,0)+IF(Y54<=0,$E$7,0)+IF(AB54<=0,$E$8,0)+IF(AE54<=0,$E$9,0)+IF(AH54<=0,$E$10,0)+IF(AK54<=0,$E$11,0)+IF(AN54<=0,$E$12,0)+IF(AQ54<=0,$E$13,0)+IF(AT54<=0,$E$14,0)+IF(AW54<=0,$E$15,0)+IF(AZ54<=0,$E$16,0))-(J54*(1+$D$2/1200)))) -> 705 | M55: 0 | N55: 0 | O55: 705 | P55: 0 | Q55: 0 | R55: 705 | S55: 21619.41218 | T55: 885 | U55: 0 | V55: 87610.35905 | W55: 1500 | X55: 0 | Y55: 0 | Z55: 0 | AA55: 0 | AB55: 0 | AC55: 0 | AD55: 0 | AE55: 0 | AF55: 0 | AG55: 0 | AH55: 0 | AI55: 0 | AJ55: 0 | AK55: 0 | AL55: 0 | AM55: 0 | AN55: 0 | AO55: 0 | AP55: 0 | AQ55: 0 | AR55: 0 | AS55: 0 | AT55: 0 | AU55: 0 | AV55: 0 | AW55: 0 | AX55: 0 | AY55: 0 | AZ55: 0 | BA55: 0 | BB55: 0
H56: =53 -> 53 | I56: 2030-12-15 | J56: =MAX(0,(J55*(1+$D$2/1200))-IF(J55<=0,0,MIN((J55*(1+$D$2/1200)),($E$2+'Debt Calculator'!$B$6+IF(J55<=0,$E$2,0)+IF(M55<=0,$E$3,0)+IF(P55<=0,$E$4,0)+IF(S55<=0,$E$5,0)+IF(V55<=0,$E$6,0)+IF(Y55<=0,$E$7,0)+IF(AB55<=0,$E$8,0)+IF(AE55<=0,$E$9,0)+IF(AH55<=0,$E$10,0)+IF(AK55<=0,$E$11,0)+IF(AN55<=0,$E$12,0)+IF(AQ55<=0,$E$13,0)+IF(AT55<=0,$E$14,0)+IF(AW55<=0,$E$15,0)+IF(AZ55<=0,$E$16,0))))) -> 0 | K56: =IF(J55<=0,0,MIN((J55*(1+$D$2/1200)),($E$2+'Debt Calculator'!$B$6+IF(J55<=0,$E$2,0)+IF(M55<=0,$E$3,0)+IF(P55<=0,$E$4,0)+IF(S55<=0,$E$5,0)+IF(V55<=0,$E$6,0)+IF(Y55<=0,$E$7,0)+IF(AB55<=0,$E$8,0)+IF(AE55<=0,$E$9,0)+IF(AH55<=0,$E$10,0)+IF(AK55<=0,$E$11,0)+IF(AN55<=0,$E$12,0)+IF(AQ55<=0,$E$13,0)+IF(AT55<=0,$E$14,0)+IF(AW55<=0,$E$15,0)+IF(AZ55<=0,$E$16,0)))) -> 0 | L56: =IF(J55<=0,'Debt Calculator'!$B$6+IF(J55<=0,$E$2,0)+IF(M55<=0,$E$3,0)+IF(P55<=0,$E$4,0)+IF(S55<=0,$E$5,0)+IF(V55<=0,$E$6,0)+IF(Y55<=0,$E$7,0)+IF(AB55<=0,$E$8,0)+IF(AE55<=0,$E$9,0)+IF(AH55<=0,$E$10,0)+IF(AK55<=0,$E$11,0)+IF(AN55<=0,$E$12,0)+IF(AQ55<=0,$E$13,0)+IF(AT55<=0,$E$14,0)+IF(AW55<=0,$E$15,0)+IF(AZ55<=0,$E$16,0),MAX(0,($E$2+'Debt Calculator'!$B$6+IF(J55<=0,$E$2,0)+IF(M55<=0,$E$3,0)+IF(P55<=0,$E$4,0)+IF(S55<=0,$E$5,0)+IF(V55<=0,$E$6,0)+IF(Y55<=0,$E$7,0)+IF(AB55<=0,$E$8,0)+IF(AE55<=0,$E$9,0)+IF(AH55<=0,$E$10,0)+IF(AK55<=0,$E$11,0)+IF(AN55<=0,$E$12,0)+IF(AQ55<=0,$E$13,0)+IF(AT55<=0,$E$14,0)+IF(AW55<=0,$E$15,0)+IF(AZ55<=0,$E$16,0))-(J55*(1+$D$2/1200)))) -> 705 | M56: 0 | N56: 0 | O56: 705 | P56: 0 | Q56: 0 | R56: 705 | S56: 20779.45262 | T56: 885 | U56: 0 | V56: 86329.38495 | W56: 1500 | X56: 0 | Y56: 0 | Z56: 0 | AA56: 0 | AB56: 0 | AC56: 0 | AD56: 0 | AE56: 0 | AF56: 0 | AG56: 0 | AH56: 0 | AI56: 0 | AJ56: 0 | AK56: 0 | AL56: 0 | AM56: 0 | AN56: 0 | AO56: 0 | AP56: 0 | AQ56: 0 | AR56: 0 | AS56: 0 | AT56: 0 | AU56: 0 | AV56: 0 | AW56: 0 | AX56: 0 | AY56: 0 | AZ56: 0 | BA56: 0 | BB56: 0
H57: =54 -> 54 | I57: 2031-01-15 | J57: =MAX(0,(J56*(1+$D$2/1200))-IF(J56<=0,0,MIN((J56*(1+$D$2/1200)),($E$2+'Debt Calculator'!$B$6+IF(J56<=0,$E$2,0)+IF(M56<=0,$E$3,0)+IF(P56<=0,$E$4,0)+IF(S56<=0,$E$5,0)+IF(V56<=0,$E$6,0)+IF(Y56<=0,$E$7,0)+IF(AB56<=0,$E$8,0)+IF(AE56<=0,$E$9,0)+IF(AH56<=0,$E$10,0)+IF(AK56<=0,$E$11,0)+IF(AN56<=0,$E$12,0)+IF(AQ56<=0,$E$13,0)+IF(AT56<=0,$E$14,0)+IF(AW56<=0,$E$15,0)+IF(AZ56<=0,$E$16,0))))) -> 0 | K57: =IF(J56<=0,0,MIN((J56*(1+$D$2/1200)),($E$2+'Debt Calculator'!$B$6+IF(J56<=0,$E$2,0)+IF(M56<=0,$E$3,0)+IF(P56<=0,$E$4,0)+IF(S56<=0,$E$5,0)+IF(V56<=0,$E$6,0)+IF(Y56<=0,$E$7,0)+IF(AB56<=0,$E$8,0)+IF(AE56<=0,$E$9,0)+IF(AH56<=0,$E$10,0)+IF(AK56<=0,$E$11,0)+IF(AN56<=0,$E$12,0)+IF(AQ56<=0,$E$13,0)+IF(AT56<=0,$E$14,0)+IF(AW56<=0,$E$15,0)+IF(AZ56<=0,$E$16,0)))) -> 0 | L57: =IF(J56<=0,'Debt Calculator'!$B$6+IF(J56<=0,$E$2,0)+IF(M56<=0,$E$3,0)+IF(P56<=0,$E$4,0)+IF(S56<=0,$E$5,0)+IF(V56<=0,$E$6,0)+IF(Y56<=0,$E$7,0)+IF(AB56<=0,$E$8,0)+IF(AE56<=0,$E$9,0)+IF(AH56<=0,$E$10,0)+IF(AK56<=0,$E$11,0)+IF(AN56<=0,$E$12,0)+IF(AQ56<=0,$E$13,0)+IF(AT56<=0,$E$14,0)+IF(AW56<=0,$E$15,0)+IF(AZ56<=0,$E$16,0),MAX(0,($E$2+'Debt Calculator'!$B$6+IF(J56<=0,$E$2,0)+IF(M56<=0,$E$3,0)+IF(P56<=0,$E$4,0)+IF(S56<=0,$E$5,0)+IF(V56<=0,$E$6,0)+IF(Y56<=0,$E$7,0)+IF(AB56<=0,$E$8,0)+IF(AE56<=0,$E$9,0)+IF(AH56<=0,$E$10,0)+IF(AK56<=0,$E$11,0)+IF(AN56<=0,$E$12,0)+IF(AQ56<=0,$E$13,0)+IF(AT56<=0,$E$14,0)+IF(AW56<=0,$E$15,0)+IF(AZ56<=0,$E$16,0))-(J56*(1+$D$2/1200)))) -> 705 | M57: 0 | N57: 0 | O57: 705 | P57: 0 | Q57: 0 | R57: 705 | S57: 19937.74314 | T57: 885 | U57: 0 | V57: 85045.20841 | W57: 1500 | X57: 0 | Y57: 0 | Z57: 0 | AA57: 0 | AB57: 0 | AC57: 0 | AD57: 0 | AE57: 0 | AF57: 0 | AG57: 0 | AH57: 0 | AI57: 0 | AJ57: 0 | AK57: 0 | AL57: 0 | AM57: 0 | AN57: 0 | AO57: 0 | AP57: 0 | AQ57: 0 | AR57: 0 | AS57: 0 | AT57: 0 | AU57: 0 | AV57: 0 | AW57: 0 | AX57: 0 | AY57: 0 | AZ57: 0 | BA57: 0 | BB57: 0
H58: =55 -> 55 | I58: 2031-02-15 | J58: =MAX(0,(J57*(1+$D$2/1200))-IF(J57<=0,0,MIN((J57*(1+$D$2/1200)),($E$2+'Debt Calculator'!$B$6+IF(J57<=0,$E$2,0)+IF(M57<=0,$E$3,0)+IF(P57<=0,$E$4,0)+IF(S57<=0,$E$5,0)+IF(V57<=0,$E$6,0)+IF(Y57<=0,$E$7,0)+IF(AB57<=0,$E$8,0)+IF(AE57<=0,$E$9,0)+IF(AH57<=0,$E$10,0)+IF(AK57<=0,$E$11,0)+IF(AN57<=0,$E$12,0)+IF(AQ57<=0,$E$13,0)+IF(AT57<=0,$E$14,0)+IF(AW57<=0,$E$15,0)+IF(AZ57<=0,$E$16,0))))) -> 0 | K58: =IF(J57<=0,0,MIN((J57*(1+$D$2/1200)),($E$2+'Debt Calculator'!$B$6+IF(J57<=0,$E$2,0)+IF(M57<=0,$E$3,0)+IF(P57<=0,$E$4,0)+IF(S57<=0,$E$5,0)+IF(V57<=0,$E$6,0)+IF(Y57<=0,$E$7,0)+IF(AB57<=0,$E$8,0)+IF(AE57<=0,$E$9,0)+IF(AH57<=0,$E$10,0)+IF(AK57<=0,$E$11,0)+IF(AN57<=0,$E$12,0)+IF(AQ57<=0,$E$13,0)+IF(AT57<=0,$E$14,0)+IF(AW57<=0,$E$15,0)+IF(AZ57<=0,$E$16,0)))) -> 0 | L58: =IF(J57<=0,'Debt Calculator'!$B$6+IF(J57<=0,$E$2,0)+IF(M57<=0,$E$3,0)+IF(P57<=0,$E$4,0)+IF(S57<=0,$E$5,0)+IF(V57<=0,$E$6,0)+IF(Y57<=0,$E$7,0)+IF(AB57<=0,$E$8,0)+IF(AE57<=0,$E$9,0)+IF(AH57<=0,$E$10,0)+IF(AK57<=0,$E$11,0)+IF(AN57<=0,$E$12,0)+IF(AQ57<=0,$E$13,0)+IF(AT57<=0,$E$14,0)+IF(AW57<=0,$E$15,0)+IF(AZ57<=0,$E$16,0),MAX(0,($E$2+'Debt Calculator'!$B$6+IF(J57<=0,$E$2,0)+IF(M57<=0,$E$3,0)+IF(P57<=0,$E$4,0)+IF(S57<=0,$E$5,0)+IF(V57<=0,$E$6,0)+IF(Y57<=0,$E$7,0)+IF(AB57<=0,$E$8,0)+IF(AE57<=0,$E$9,0)+IF(AH57<=0,$E$10,0)+IF(AK57<=0,$E$11,0)+IF(AN57<=0,$E$12,0)+IF(AQ57<=0,$E$13,0)+IF(AT57<=0,$E$14,0)+IF(AW57<=0,$E$15,0)+IF(AZ57<=0,$E$16,0))-(J57*(1+$D$2/1200)))) -> 705 | M58: 0 | N58: 0 | O58: 705 | P58: 0 | Q58: 0 | R58: 705 | S58: 19094.28011 | T58: 885 | U58: 0 | V58: 83757.82143 | W58: 1500 | X58: 0 | Y58: 0 | Z58: 0 | AA58: 0 | AB58: 0 | AC58: 0 | AD58: 0 | AE58: 0 | AF58: 0 | AG58: 0 | AH58: 0 | AI58: 0 | AJ58: 0 | AK58: 0 | AL58: 0 | AM58: 0 | AN58: 0 | AO58: 0 | AP58: 0 | AQ58: 0 | AR58: 0 | AS58: 0 | AT58: 0 | AU58: 0 | AV58: 0 | AW58: 0 | AX58: 0 | AY58: 0 | AZ58: 0 | BA58: 0 | BB58: 0
H59: =56 -> 56 | I59: 2031-03-15 | J59: =MAX(0,(J58*(1+$D$2/1200))-IF(J58<=0,0,MIN((J58*(1+$D$2/1200)),($E$2+'Debt Calculator'!$B$6+IF(J58<=0,$E$2,0)+IF(M58<=0,$E$3,0)+IF(P58<=0,$E$4,0)+IF(S58<=0,$E$5,0)+IF(V58<=0,$E$6,0)+IF(Y58<=0,$E$7,0)+IF(AB58<=0,$E$8,0)+IF(AE58<=0,$E$9,0)+IF(AH58<=0,$E$10,0)+IF(AK58<=0,$E$11,0)+IF(AN58<=0,$E$12,0)+IF(AQ58<=0,$E$13,0)+IF(AT58<=0,$E$14,0)+IF(AW58<=0,$E$15,0)+IF(AZ58<=0,$E$16,0))))) -> 0 | K59: =IF(J58<=0,0,MIN((J58*(1+$D$2/1200)),($E$2+'Debt Calculator'!$B$6+IF(J58<=0,$E$2,0)+IF(M58<=0,$E$3,0)+IF(P58<=0,$E$4,0)+IF(S58<=0,$E$5,0)+IF(V58<=0,$E$6,0)+IF(Y58<=0,$E$7,0)+IF(AB58<=0,$E$8,0)+IF(AE58<=0,$E$9,0)+IF(AH58<=0,$E$10,0)+IF(AK58<=0,$E$11,0)+IF(AN58<=0,$E$12,0)+IF(AQ58<=0,$E$13,0)+IF(AT58<=0,$E$14,0)+IF(AW58<=0,$E$15,0)+IF(AZ58<=0,$E$16,0)))) -> 0 | L59: =IF(J58<=0,'Debt Calculator'!$B$6+IF(J58<=0,$E$2,0)+IF(M58<=0,$E$3,0)+IF(P58<=0,$E$4,0)+IF(S58<=0,$E$5,0)+IF(V58<=0,$E$6,0)+IF(Y58<=0,$E$7,0)+IF(AB58<=0,$E$8,0)+IF(AE58<=0,$E$9,0)+IF(AH58<=0,$E$10,0)+IF(AK58<=0,$E$11,0)+IF(AN58<=0,$E$12,0)+IF(AQ58<=0,$E$13,0)+IF(AT58<=0,$E$14,0)+IF(AW58<=0,$E$15,0)+IF(AZ58<=0,$E$16,0),MAX(0,($E$2+'Debt Calculator'!$B$6+IF(J58<=0,$E$2,0)+IF(M58<=0,$E$3,0)+IF(P58<=0,$E$4,0)+IF(S58<=0,$E$5,0)+IF(V58<=0,$E$6,0)+IF(Y58<=0,$E$7,0)+IF(AB58<=0,$E$8,0)+IF(AE58<=0,$E$9,0)+IF(AH58<=0,$E$10,0)+IF(AK58<=0,$E$11,0)+IF(AN58<=0,$E$12,0)+IF(AQ58<=0,$E$13,0)+IF(AT58<=0,$E$14,0)+IF(AW58<=0,$E$15,0)+IF(AZ58<=0,$E$16,0))-(J58*(1+$D$2/1200)))) -> 705 | M59: 0 | N59: 0 | O59: 705 | P59: 0 | Q59: 0 | R59: 705 | S59: 18249.05986 | T59: 885 | U59: 0 | V59: 82467.21599 | W59: 1500 | X59: 0 | Y59: 0 | Z59: 0 | AA59: 0 | AB59: 0 | AC59: 0 | AD59: 0 | AE59: 0 | AF59: 0 | AG59: 0 | AH59: 0 | AI59: 0 | AJ59: 0 | AK59: 0 | AL59: 0 | AM59: 0 | AN59: 0 | AO59: 0 | AP59: 0 | AQ59: 0 | AR59: 0 | AS59: 0 | AT59: 0 | AU59: 0 | AV59: 0 | AW59: 0 | AX59: 0 | AY59: 0 | AZ59: 0 | BA59: 0 | BB59: 0
H60: =57 -> 57 | I60: 2031-04-15 | J60: =MAX(0,(J59*(1+$D$2/1200))-IF(J59<=0,0,MIN((J59*(1+$D$2/1200)),($E$2+'Debt Calculator'!$B$6+IF(J59<=0,$E$2,0)+IF(M59<=0,$E$3,0)+IF(P59<=0,$E$4,0)+IF(S59<=0,$E$5,0)+IF(V59<=0,$E$6,0)+IF(Y59<=0,$E$7,0)+IF(AB59<=0,$E$8,0)+IF(AE59<=0,$E$9,0)+IF(AH59<=0,$E$10,0)+IF(AK59<=0,$E$11,0)+IF(AN59<=0,$E$12,0)+IF(AQ59<=0,$E$13,0)+IF(AT59<=0,$E$14,0)+IF(AW59<=0,$E$15,0)+IF(AZ59<=0,$E$16,0))))) -> 0 | K60: =IF(J59<=0,0,MIN((J59*(1+$D$2/1200)),($E$2+'Debt Calculator'!$B$6+IF(J59<=0,$E$2,0)+IF(M59<=0,$E$3,0)+IF(P59<=0,$E$4,0)+IF(S59<=0,$E$5,0)+IF(V59<=0,$E$6,0)+IF(Y59<=0,$E$7,0)+IF(AB59<=0,$E$8,0)+IF(AE59<=0,$E$9,0)+IF(AH59<=0,$E$10,0)+IF(AK59<=0,$E$11,0)+IF(AN59<=0,$E$12,0)+IF(AQ59<=0,$E$13,0)+IF(AT59<=0,$E$14,0)+IF(AW59<=0,$E$15,0)+IF(AZ59<=0,$E$16,0)))) -> 0 | L60: =IF(J59<=0,'Debt Calculator'!$B$6+IF(J59<=0,$E$2,0)+IF(M59<=0,$E$3,0)+IF(P59<=0,$E$4,0)+IF(S59<=0,$E$5,0)+IF(V59<=0,$E$6,0)+IF(Y59<=0,$E$7,0)+IF(AB59<=0,$E$8,0)+IF(AE59<=0,$E$9,0)+IF(AH59<=0,$E$10,0)+IF(AK59<=0,$E$11,0)+IF(AN59<=0,$E$12,0)+IF(AQ59<=0,$E$13,0)+IF(AT59<=0,$E$14,0)+IF(AW59<=0,$E$15,0)+IF(AZ59<=0,$E$16,0),MAX(0,($E$2+'Debt Calculator'!$B$6+IF(J59<=0,$E$2,0)+IF(M59<=0,$E$3,0)+IF(P59<=0,$E$4,0)+IF(S59<=0,$E$5,0)+IF(V59<=0,$E$6,0)+IF(Y59<=0,$E$7,0)+IF(AB59<=0,$E$8,0)+IF(AE59<=0,$E$9,0)+IF(AH59<=0,$E$10,0)+IF(AK59<=0,$E$11,0)+IF(AN59<=0,$E$12,0)+IF(AQ59<=0,$E$13,0)+IF(AT59<=0,$E$14,0)+IF(AW59<=0,$E$15,0)+IF(AZ59<=0,$E$16,0))-(J59*(1+$D$2/1200)))) -> 705 | M60: 0 | N60: 0 | O60: 705 | P60: 0 | Q60: 0 | R60: 705 | S60: 17402.07873 | T60: 885 | U60: 0 | V60: 81173.38403 | W60: 1500 | X60: 0 | Y60: 0 | Z60: 0 | AA60: 0 | AB60: 0 | AC60: 0 | AD60: 0 | AE60: 0 | AF60: 0 | AG60: 0 | AH60: 0 | AI60: 0 | AJ60: 0 | AK60: 0 | AL60: 0 | AM60: 0 | AN60: 0 | AO60: 0 | AP60: 0 | AQ60: 0 | AR60: 0 | AS60: 0 | AT60: 0 | AU60: 0 | AV60: 0 | AW60: 0 | AX60: 0 | AY60: 0 | AZ60: 0 | BA60: 0 | BB60: 0
H61: =58 -> 58 | I61: 2031-05-15 | J61: =MAX(0,(J60*(1+$D$2/1200))-IF(J60<=0,0,MIN((J60*(1+$D$2/1200)),($E$2+'Debt Calculator'!$B$6+IF(J60<=0,$E$2,0)+IF(M60<=0,$E$3,0)+IF(P60<=0,$E$4,0)+IF(S60<=0,$E$5,0)+IF(V60<=0,$E$6,0)+IF(Y60<=0,$E$7,0)+IF(AB60<=0,$E$8,0)+IF(AE60<=0,$E$9,0)+IF(AH60<=0,$E$10,0)+IF(AK60<=0,$E$11,0)+IF(AN60<=0,$E$12,0)+IF(AQ60<=0,$E$13,0)+IF(AT60<=0,$E$14,0)+IF(AW60<=0,$E$15,0)+IF(AZ60<=0,$E$16,0))))) -> 0 | K61: =IF(J60<=0,0,MIN((J60*(1+$D$2/1200)),($E$2+'Debt Calculator'!$B$6+IF(J60<=0,$E$2,0)+IF(M60<=0,$E$3,0)+IF(P60<=0,$E$4,0)+IF(S60<=0,$E$5,0)+IF(V60<=0,$E$6,0)+IF(Y60<=0,$E$7,0)+IF(AB60<=0,$E$8,0)+IF(AE60<=0,$E$9,0)+IF(AH60<=0,$E$10,0)+IF(AK60<=0,$E$11,0)+IF(AN60<=0,$E$12,0)+IF(AQ60<=0,$E$13,0)+IF(AT60<=0,$E$14,0)+IF(AW60<=0,$E$15,0)+IF(AZ60<=0,$E$16,0)))) -> 0 | L61: =IF(J60<=0,'Debt Calculator'!$B$6+IF(J60<=0,$E$2,0)+IF(M60<=0,$E$3,0)+IF(P60<=0,$E$4,0)+IF(S60<=0,$E$5,0)+IF(V60<=0,$E$6,0)+IF(Y60<=0,$E$7,0)+IF(AB60<=0,$E$8,0)+IF(AE60<=0,$E$9,0)+IF(AH60<=0,$E$10,0)+IF(AK60<=0,$E$11,0)+IF(AN60<=0,$E$12,0)+IF(AQ60<=0,$E$13,0)+IF(AT60<=0,$E$14,0)+IF(AW60<=0,$E$15,0)+IF(AZ60<=0,$E$16,0),MAX(0,($E$2+'Debt Calculator'!$B$6+IF(J60<=0,$E$2,0)+IF(M60<=0,$E$3,0)+IF(P60<=0,$E$4,0)+IF(S60<=0,$E$5,0)+IF(V60<=0,$E$6,0)+IF(Y60<=0,$E$7,0)+IF(AB60<=0,$E$8,0)+IF(AE60<=0,$E$9,0)+IF(AH60<=0,$E$10,0)+IF(AK60<=0,$E$11,0)+IF(AN60<=0,$E$12,0)+IF(AQ60<=0,$E$13,0)+IF(AT60<=0,$E$14,0)+IF(AW60<=0,$E$15,0)+IF(AZ60<=0,$E$16,0))-(J60*(1+$D$2/1200)))) -> 705 | M61: 0 | N61: 0 | O61: 705 | P61: 0 | Q61: 0 | R61: 705 | S61: 16553.33306 | T61: 885 | U61: 0 | V61: 79876.31749 | W61: 1500 | X61: 0 | Y61: 0 | Z61: 0 | AA61: 0 | AB61: 0 | AC61: 0 | AD61: 0 | AE61: 0 | AF61: 0 | AG61: 0 | AH61: 0 | AI61: 0 | AJ61: 0 | AK61: 0 | AL61: 0 | AM61: 0 | AN61: 0 | AO61: 0 | AP61: 0 | AQ61: 0 | AR61: 0 | AS61: 0 | AT61: 0 | AU61: 0 | AV61: 0 | AW61: 0 | AX61: 0 | AY61: 0 | AZ61: 0 | BA61: 0 | BB61: 0
H62: =59 -> 59 | I62: 2031-06-15 | J62: =MAX(0,(J61*(1+$D$2/1200))-IF(J61<=0,0,MIN((J61*(1+$D$2/1200)),($E$2+'Debt Calculator'!$B$6+IF(J61<=0,$E$2,0)+IF(M61<=0,$E$3,0)+IF(P61<=0,$E$4,0)+IF(S61<=0,$E$5,0)+IF(V61<=0,$E$6,0)+IF(Y61<=0,$E$7,0)+IF(AB61<=0,$E$8,0)+IF(AE61<=0,$E$9,0)+IF(AH61<=0,$E$10,0)+IF(AK61<=0,$E$11,0)+IF(AN61<=0,$E$12,0)+IF(AQ61<=0,$E$13,0)+IF(AT61<=0,$E$14,0)+IF(AW61<=0,$E$15,0)+IF(AZ61<=0,$E$16,0))))) -> 0 | K62: =IF(J61<=0,0,MIN((J61*(1+$D$2/1200)),($E$2+'Debt Calculator'!$B$6+IF(J61<=0,$E$2,0)+IF(M61<=0,$E$3,0)+IF(P61<=0,$E$4,0)+IF(S61<=0,$E$5,0)+IF(V61<=0,$E$6,0)+IF(Y61<=0,$E$7,0)+IF(AB61<=0,$E$8,0)+IF(AE61<=0,$E$9,0)+IF(AH61<=0,$E$10,0)+IF(AK61<=0,$E$11,0)+IF(AN61<=0,$E$12,0)+IF(AQ61<=0,$E$13,0)+IF(AT61<=0,$E$14,0)+IF(AW61<=0,$E$15,0)+IF(AZ61<=0,$E$16,0)))) -> 0 | L62: =IF(J61<=0,'Debt Calculator'!$B$6+IF(J61<=0,$E$2,0)+IF(M61<=0,$E$3,0)+IF(P61<=0,$E$4,0)+IF(S61<=0,$E$5,0)+IF(V61<=0,$E$6,0)+IF(Y61<=0,$E$7,0)+IF(AB61<=0,$E$8,0)+IF(AE61<=0,$E$9,0)+IF(AH61<=0,$E$10,0)+IF(AK61<=0,$E$11,0)+IF(AN61<=0,$E$12,0)+IF(AQ61<=0,$E$13,0)+IF(AT61<=0,$E$14,0)+IF(AW61<=0,$E$15,0)+IF(AZ61<=0,$E$16,0),MAX(0,($E$2+'Debt Calculator'!$B$6+IF(J61<=0,$E$2,0)+IF(M61<=0,$E$3,0)+IF(P61<=0,$E$4,0)+IF(S61<=0,$E$5,0)+IF(V61<=0,$E$6,0)+IF(Y61<=0,$E$7,0)+IF(AB61<=0,$E$8,0)+IF(AE61<=0,$E$9,0)+IF(AH61<=0,$E$10,0)+IF(AK61<=0,$E$11,0)+IF(AN61<=0,$E$12,0)+IF(AQ61<=0,$E$13,0)+IF(AT61<=0,$E$14,0)+IF(AW61<=0,$E$15,0)+IF(AZ61<=0,$E$16,0))-(J61*(1+$D$2/1200)))) -> 705 | M62: 0 | N62: 0 | O62: 705 | P62: 0 | Q62: 0 | R62: 705 | S62: 15702.81918 | T62: 885 | U62: 0 | V62: 78576.00828 | W62: 1500 | X62: 0 | Y62: 0 | Z62: 0 | AA62: 0 | AB62: 0 | AC62: 0 | AD62: 0 | AE62: 0 | AF62: 0 | AG62: 0 | AH62: 0 | AI62: 0 | AJ62: 0 | AK62: 0 | AL62: 0 | AM62: 0 | AN62: 0 | AO62: 0 | AP62: 0 | AQ62: 0 | AR62: 0 | AS62: 0 | AT62: 0 | AU62: 0 | AV62: 0 | AW62: 0 | AX62: 0 | AY62: 0 | AZ62: 0 | BA62: 0 | BB62: 0
H63: =60 -> 60 | I63: 2031-07-15 | J63: =MAX(0,(J62*(1+$D$2/1200))-IF(J62<=0,0,MIN((J62*(1+$D$2/1200)),($E$2+'Debt Calculator'!$B$6+IF(J62<=0,$E$2,0)+IF(M62<=0,$E$3,0)+IF(P62<=0,$E$4,0)+IF(S62<=0,$E$5,0)+IF(V62<=0,$E$6,0)+IF(Y62<=0,$E$7,0)+IF(AB62<=0,$E$8,0)+IF(AE62<=0,$E$9,0)+IF(AH62<=0,$E$10,0)+IF(AK62<=0,$E$11,0)+IF(AN62<=0,$E$12,0)+IF(AQ62<=0,$E$13,0)+IF(AT62<=0,$E$14,0)+IF(AW62<=0,$E$15,0)+IF(AZ62<=0,$E$16,0))))) -> 0 | K63: =IF(J62<=0,0,MIN((J62*(1+$D$2/1200)),($E$2+'Debt Calculator'!$B$6+IF(J62<=0,$E$2,0)+IF(M62<=0,$E$3,0)+IF(P62<=0,$E$4,0)+IF(S62<=0,$E$5,0)+IF(V62<=0,$E$6,0)+IF(Y62<=0,$E$7,0)+IF(AB62<=0,$E$8,0)+IF(AE62<=0,$E$9,0)+IF(AH62<=0,$E$10,0)+IF(AK62<=0,$E$11,0)+IF(AN62<=0,$E$12,0)+IF(AQ62<=0,$E$13,0)+IF(AT62<=0,$E$14,0)+IF(AW62<=0,$E$15,0)+IF(AZ62<=0,$E$16,0)))) -> 0 | L63: =IF(J62<=0,'Debt Calculator'!$B$6+IF(J62<=0,$E$2,0)+IF(M62<=0,$E$3,0)+IF(P62<=0,$E$4,0)+IF(S62<=0,$E$5,0)+IF(V62<=0,$E$6,0)+IF(Y62<=0,$E$7,0)+IF(AB62<=0,$E$8,0)+IF(AE62<=0,$E$9,0)+IF(AH62<=0,$E$10,0)+IF(AK62<=0,$E$11,0)+IF(AN62<=0,$E$12,0)+IF(AQ62<=0,$E$13,0)+IF(AT62<=0,$E$14,0)+IF(AW62<=0,$E$15,0)+IF(AZ62<=0,$E$16,0),MAX(0,($E$2+'Debt Calculator'!$B$6+IF(J62<=0,$E$2,0)+IF(M62<=0,$E$3,0)+IF(P62<=0,$E$4,0)+IF(S62<=0,$E$5,0)+IF(V62<=0,$E$6,0)+IF(Y62<=0,$E$7,0)+IF(AB62<=0,$E$8,0)+IF(AE62<=0,$E$9,0)+IF(AH62<=0,$E$10,0)+IF(AK62<=0,$E$11,0)+IF(AN62<=0,$E$12,0)+IF(AQ62<=0,$E$13,0)+IF(AT62<=0,$E$14,0)+IF(AW62<=0,$E$15,0)+IF(AZ62<=0,$E$16,0))-(J62*(1+$D$2/1200)))) -> 705 | M63: 0 | N63: 0 | O63: 705 | P63: 0 | Q63: 0 | R63: 705 | S63: 14850.53338 | T63: 885 | U63: 0 | V63: 77272.4483 | W63: 1500 | X63: 0 | Y63: 0 | Z63: 0 | AA63: 0 | AB63: 0 | AC63: 0 | AD63: 0 | AE63: 0 | AF63: 0 | AG63: 0 | AH63: 0 | AI63: 0 | AJ63: 0 | AK63: 0 | AL63: 0 | AM63: 0 | AN63: 0 | AO63: 0 | AP63: 0 | AQ63: 0 | AR63: 0 | AS63: 0 | AT63: 0 | AU63: 0 | AV63: 0 | AW63: 0 | AX63: 0 | AY63: 0 | AZ63: 0 | BA63: 0 | BB63: 0
H64: =61 -> 61 | I64: 2031-08-15 | J64: =MAX(0,(J63*(1+$D$2/1200))-IF(J63<=0,0,MIN((J63*(1+$D$2/1200)),($E$2+'Debt Calculator'!$B$6+IF(J63<=0,$E$2,0)+IF(M63<=0,$E$3,0)+IF(P63<=0,$E$4,0)+IF(S63<=0,$E$5,0)+IF(V63<=0,$E$6,0)+IF(Y63<=0,$E$7,0)+IF(AB63<=0,$E$8,0)+IF(AE63<=0,$E$9,0)+IF(AH63<=0,$E$10,0)+IF(AK63<=0,$E$11,0)+IF(AN63<=0,$E$12,0)+IF(AQ63<=0,$E$13,0)+IF(AT63<=0,$E$14,0)+IF(AW63<=0,$E$15,0)+IF(AZ63<=0,$E$16,0))))) -> 0 | K64: =IF(J63<=0,0,MIN((J63*(1+$D$2/1200)),($E$2+'Debt Calculator'!$B$6+IF(J63<=0,$E$2,0)+IF(M63<=0,$E$3,0)+IF(P63<=0,$E$4,0)+IF(S63<=0,$E$5,0)+IF(V63<=0,$E$6,0)+IF(Y63<=0,$E$7,0)+IF(AB63<=0,$E$8,0)+IF(AE63<=0,$E$9,0)+IF(AH63<=0,$E$10,0)+IF(AK63<=0,$E$11,0)+IF(AN63<=0,$E$12,0)+IF(AQ63<=0,$E$13,0)+IF(AT63<=0,$E$14,0)+IF(AW63<=0,$E$15,0)+IF(AZ63<=0,$E$16,0)))) -> 0 | L64: =IF(J63<=0,'Debt Calculator'!$B$6+IF(J63<=0,$E$2,0)+IF(M63<=0,$E$3,0)+IF(P63<=0,$E$4,0)+IF(S63<=0,$E$5,0)+IF(V63<=0,$E$6,0)+IF(Y63<=0,$E$7,0)+IF(AB63<=0,$E$8,0)+IF(AE63<=0,$E$9,0)+IF(AH63<=0,$E$10,0)+IF(AK63<=0,$E$11,0)+IF(AN63<=0,$E$12,0)+IF(AQ63<=0,$E$13,0)+IF(AT63<=0,$E$14,0)+IF(AW63<=0,$E$15,0)+IF(AZ63<=0,$E$16,0),MAX(0,($E$2+'Debt Calculator'!$B$6+IF(J63<=0,$E$2,0)+IF(M63<=0,$E$3,0)+IF(P63<=0,$E$4,0)+IF(S63<=0,$E$5,0)+IF(V63<=0,$E$6,0)+IF(Y63<=0,$E$7,0)+IF(AB63<=0,$E$8,0)+IF(AE63<=0,$E$9,0)+IF(AH63<=0,$E$10,0)+IF(AK63<=0,$E$11,0)+IF(AN63<=0,$E$12,0)+IF(AQ63<=0,$E$13,0)+IF(AT63<=0,$E$14,0)+IF(AW63<=0,$E$15,0)+IF(AZ63<=0,$E$16,0))-(J63*(1+$D$2/1200)))) -> 705 | M64: 0 | N64: 0 | O64: 705 | P64: 0 | Q64: 0 | R64: 705 | S64: 13996.47199 | T64: 885 | U64: 0 | V64: 75965.62942 | W64: 1500 | X64: 0 | Y64: 0 | Z64: 0 | AA64: 0 | AB64: 0 | AC64: 0 | AD64: 0 | AE64: 0 | AF64: 0 | AG64: 0 | AH64: 0 | AI64: 0 | AJ64: 0 | AK64: 0 | AL64: 0 | AM64: 0 | AN64: 0 | AO64: 0 | AP64: 0 | AQ64: 0 | AR64: 0 | AS64: 0 | AT64: 0 | AU64: 0 | AV64: 0 | AW64: 0 | AX64: 0 | AY64: 0 | AZ64: 0 | BA64: 0 | BB64: 0
H65: =62 -> 62 | I65: 2031-09-15 | J65: =MAX(0,(J64*(1+$D$2/1200))-IF(J64<=0,0,MIN((J64*(1+$D$2/1200)),($E$2+'Debt Calculator'!$B$6+IF(J64<=0,$E$2,0)+IF(M64<=0,$E$3,0)+IF(P64<=0,$E$4,0)+IF(S64<=0,$E$5,0)+IF(V64<=0,$E$6,0)+IF(Y64<=0,$E$7,0)+IF(AB64<=0,$E$8,0)+IF(AE64<=0,$E$9,0)+IF(AH64<=0,$E$10,0)+IF(AK64<=0,$E$11,0)+IF(AN64<=0,$E$12,0)+IF(AQ64<=0,$E$13,0)+IF(AT64<=0,$E$14,0)+IF(AW64<=0,$E$15,0)+IF(AZ64<=0,$E$16,0))))) -> 0 | K65: =IF(J64<=0,0,MIN((J64*(1+$D$2/1200)),($E$2+'Debt Calculator'!$B$6+IF(J64<=0,$E$2,0)+IF(M64<=0,$E$3,0)+IF(P64<=0,$E$4,0)+IF(S64<=0,$E$5,0)+IF(V64<=0,$E$6,0)+IF(Y64<=0,$E$7,0)+IF(AB64<=0,$E$8,0)+IF(AE64<=0,$E$9,0)+IF(AH64<=0,$E$10,0)+IF(AK64<=0,$E$11,0)+IF(AN64<=0,$E$12,0)+IF(AQ64<=0,$E$13,0)+IF(AT64<=0,$E$14,0)+IF(AW64<=0,$E$15,0)+IF(AZ64<=0,$E$16,0)))) -> 0 | L65: =IF(J64<=0,'Debt Calculator'!$B$6+IF(J64<=0,$E$2,0)+IF(M64<=0,$E$3,0)+IF(P64<=0,$E$4,0)+IF(S64<=0,$E$5,0)+IF(V64<=0,$E$6,0)+IF(Y64<=0,$E$7,0)+IF(AB64<=0,$E$8,0)+IF(AE64<=0,$E$9,0)+IF(AH64<=0,$E$10,0)+IF(AK64<=0,$E$11,0)+IF(AN64<=0,$E$12,0)+IF(AQ64<=0,$E$13,0)+IF(AT64<=0,$E$14,0)+IF(AW64<=0,$E$15,0)+IF(AZ64<=0,$E$16,0),MAX(0,($E$2+'Debt Calculator'!$B$6+IF(J64<=0,$E$2,0)+IF(M64<=0,$E$3,0)+IF(P64<=0,$E$4,0)+IF(S64<=0,$E$5,0)+IF(V64<=0,$E$6,0)+IF(Y64<=0,$E$7,0)+IF(AB64<=0,$E$8,0)+IF(AE64<=0,$E$9,0)+IF(AH64<=0,$E$10,0)+IF(AK64<=0,$E$11,0)+IF(AN64<=0,$E$12,0)+IF(AQ64<=0,$E$13,0)+IF(AT64<=0,$E$14,0)+IF(AW64<=0,$E$15,0)+IF(AZ64<=0,$E$16,0))-(J64*(1+$D$2/1200)))) -> 705 | M65: 0 | N65: 0 | O65: 705 | P65: 0 | Q65: 0 | R65: 705 | S65: 13140.63131 | T65: 885 | U65: 0 | V65: 74655.54349 | W65: 1500 | X65: 0 | Y65: 0 | Z65: 0 | AA65: 0 | AB65: 0 | AC65: 0 | AD65: 0 | AE65: 0 | AF65: 0 | AG65: 0 | AH65: 0 | AI65: 0 | AJ65: 0 | AK65: 0 | AL65: 0 | AM65: 0 | AN65: 0 | AO65: 0 | AP65: 0 | AQ65: 0 | AR65: 0 | AS65: 0 | AT65: 0 | AU65: 0 | AV65: 0 | AW65: 0 | AX65: 0 | AY65: 0 | AZ65: 0 | BA65: 0 | BB65: 0
H66: =63 -> 63 | I66: 2031-10-15 | J66: =MAX(0,(J65*(1+$D$2/1200))-IF(J65<=0,0,MIN((J65*(1+$D$2/1200)),($E$2+'Debt Calculator'!$B$6+IF(J65<=0,$E$2,0)+IF(M65<=0,$E$3,0)+IF(P65<=0,$E$4,0)+IF(S65<=0,$E$5,0)+IF(V65<=0,$E$6,0)+IF(Y65<=0,$E$7,0)+IF(AB65<=0,$E$8,0)+IF(AE65<=0,$E$9,0)+IF(AH65<=0,$E$10,0)+IF(AK65<=0,$E$11,0)+IF(AN65<=0,$E$12,0)+IF(AQ65<=0,$E$13,0)+IF(AT65<=0,$E$14,0)+IF(AW65<=0,$E$15,0)+IF(AZ65<=0,$E$16,0))))) -> 0 | K66: =IF(J65<=0,0,MIN((J65*(1+$D$2/1200)),($E$2+'Debt Calculator'!$B$6+IF(J65<=0,$E$2,0)+IF(M65<=0,$E$3,0)+IF(P65<=0,$E$4,0)+IF(S65<=0,$E$5,0)+IF(V65<=0,$E$6,0)+IF(Y65<=0,$E$7,0)+IF(AB65<=0,$E$8,0)+IF(AE65<=0,$E$9,0)+IF(AH65<=0,$E$10,0)+IF(AK65<=0,$E$11,0)+IF(AN65<=0,$E$12,0)+IF(AQ65<=0,$E$13,0)+IF(AT65<=0,$E$14,0)+IF(AW65<=0,$E$15,0)+IF(AZ65<=0,$E$16,0)))) -> 0 | L66: =IF(J65<=0,'Debt Calculator'!$B$6+IF(J65<=0,$E$2,0)+IF(M65<=0,$E$3,0)+IF(P65<=0,$E$4,0)+IF(S65<=0,$E$5,0)+IF(V65<=0,$E$6,0)+IF(Y65<=0,$E$7,0)+IF(AB65<=0,$E$8,0)+IF(AE65<=0,$E$9,0)+IF(AH65<=0,$E$10,0)+IF(AK65<=0,$E$11,0)+IF(AN65<=0,$E$12,0)+IF(AQ65<=0,$E$13,0)+IF(AT65<=0,$E$14,0)+IF(AW65<=0,$E$15,0)+IF(AZ65<=0,$E$16,0),MAX(0,($E$2+'Debt Calculator'!$B$6+IF(J65<=0,$E$2,0)+IF(M65<=0,$E$3,0)+IF(P65<=0,$E$4,0)+IF(S65<=0,$E$5,0)+IF(V65<=0,$E$6,0)+IF(Y65<=0,$E$7,0)+IF(AB65<=0,$E$8,0)+IF(AE65<=0,$E$9,0)+IF(AH65<=0,$E$10,0)+IF(AK65<=0,$E$11,0)+IF(AN65<=0,$E$12,0)+IF(AQ65<=0,$E$13,0)+IF(AT65<=0,$E$14,0)+IF(AW65<=0,$E$15,0)+IF(AZ65<=0,$E$16,0))-(J65*(1+$D$2/1200)))) -> 705 | M66: 0 | N66: 0 | O66: 705 | P66: 0 | Q66: 0 | R66: 705 | S66: 12283.00762 | T66: 885 | U66: 0 | V66: 73342.18235 | W66: 1500 | X66: 0 | Y66: 0 | Z66: 0 | AA66: 0 | AB66: 0 | AC66: 0 | AD66: 0 | AE66: 0 | AF66: 0 | AG66: 0 | AH66: 0 | AI66: 0 | AJ66: 0 | AK66: 0 | AL66: 0 | AM66: 0 | AN66: 0 | AO66: 0 | AP66: 0 | AQ66: 0 | AR66: 0 | AS66: 0 | AT66: 0 | AU66: 0 | AV66: 0 | AW66: 0 | AX66: 0 | AY66: 0 | AZ66: 0 | BA66: 0 | BB66: 0
H67: =64 -> 64 | I67: 2031-11-15 | J67: =MAX(0,(J66*(1+$D$2/1200))-IF(J66<=0,0,MIN((J66*(1+$D$2/1200)),($E$2+'Debt Calculator'!$B$6+IF(J66<=0,$E$2,0)+IF(M66<=0,$E$3,0)+IF(P66<=0,$E$4,0)+IF(S66<=0,$E$5,0)+IF(V66<=0,$E$6,0)+IF(Y66<=0,$E$7,0)+IF(AB66<=0,$E$8,0)+IF(AE66<=0,$E$9,0)+IF(AH66<=0,$E$10,0)+IF(AK66<=0,$E$11,0)+IF(AN66<=0,$E$12,0)+IF(AQ66<=0,$E$13,0)+IF(AT66<=0,$E$14,0)+IF(AW66<=0,$E$15,0)+IF(AZ66<=0,$E$16,0))))) -> 0 | K67: =IF(J66<=0,0,MIN((J66*(1+$D$2/1200)),($E$2+'Debt Calculator'!$B$6+IF(J66<=0,$E$2,0)+IF(M66<=0,$E$3,0)+IF(P66<=0,$E$4,0)+IF(S66<=0,$E$5,0)+IF(V66<=0,$E$6,0)+IF(Y66<=0,$E$7,0)+IF(AB66<=0,$E$8,0)+IF(AE66<=0,$E$9,0)+IF(AH66<=0,$E$10,0)+IF(AK66<=0,$E$11,0)+IF(AN66<=0,$E$12,0)+IF(AQ66<=0,$E$13,0)+IF(AT66<=0,$E$14,0)+IF(AW66<=0,$E$15,0)+IF(AZ66<=0,$E$16,0)))) -> 0 | L67: =IF(J66<=0,'Debt Calculator'!$B$6+IF(J66<=0,$E$2,0)+IF(M66<=0,$E$3,0)+IF(P66<=0,$E$4,0)+IF(S66<=0,$E$5,0)+IF(V66<=0,$E$6,0)+IF(Y66<=0,$E$7,0)+IF(AB66<=0,$E$8,0)+IF(AE66<=0,$E$9,0)+IF(AH66<=0,$E$10,0)+IF(AK66<=0,$E$11,0)+IF(AN66<=0,$E$12,0)+IF(AQ66<=0,$E$13,0)+IF(AT66<=0,$E$14,0)+IF(AW66<=0,$E$15,0)+IF(AZ66<=0,$E$16,0),MAX(0,($E$2+'Debt Calculator'!$B$6+IF(J66<=0,$E$2,0)+IF(M66<=0,$E$3,0)+IF(P66<=0,$E$4,0)+IF(S66<=0,$E$5,0)+IF(V66<=0,$E$6,0)+IF(Y66<=0,$E$7,0)+IF(AB66<=0,$E$8,0)+IF(AE66<=0,$E$9,0)+IF(AH66<=0,$E$10,0)+IF(AK66<=0,$E$11,0)+IF(AN66<=0,$E$12,0)+IF(AQ66<=0,$E$13,0)+IF(AT66<=0,$E$14,0)+IF(AW66<=0,$E$15,0)+IF(AZ66<=0,$E$16,0))-(J66*(1+$D$2/1200)))) -> 705 | M67: 0 | N67: 0 | O67: 705 | P67: 0 | Q67: 0 | R67: 705 | S67: 11423.59722 | T67: 885 | U67: 0 | V67: 72025.53781 | W67: 1500 | X67: 0 | Y67: 0 | Z67: 0 | AA67: 0 | AB67: 0 | AC67: 0 | AD67: 0 | AE67: 0 | AF67: 0 | AG67: 0 | AH67: 0 | AI67: 0 | AJ67: 0 | AK67: 0 | AL67: 0 | AM67: 0 | AN67: 0 | AO67: 0 | AP67: 0 | AQ67: 0 | AR67: 0 | AS67: 0 | AT67: 0 | AU67: 0 | AV67: 0 | AW67: 0 | AX67: 0 | AY67: 0 | AZ67: 0 | BA67: 0 | BB67: 0
H68: =65 -> 65 | I68: 2031-12-15 | J68: =MAX(0,(J67*(1+$D$2/1200))-IF(J67<=0,0,MIN((J67*(1+$D$2/1200)),($E$2+'Debt Calculator'!$B$6+IF(J67<=0,$E$2,0)+IF(M67<=0,$E$3,0)+IF(P67<=0,$E$4,0)+IF(S67<=0,$E$5,0)+IF(V67<=0,$E$6,0)+IF(Y67<=0,$E$7,0)+IF(AB67<=0,$E$8,0)+IF(AE67<=0,$E$9,0)+IF(AH67<=0,$E$10,0)+IF(AK67<=0,$E$11,0)+IF(AN67<=0,$E$12,0)+IF(AQ67<=0,$E$13,0)+IF(AT67<=0,$E$14,0)+IF(AW67<=0,$E$15,0)+IF(AZ67<=0,$E$16,0))))) -> 0 | K68: =IF(J67<=0,0,MIN((J67*(1+$D$2/1200)),($E$2+'Debt Calculator'!$B$6+IF(J67<=0,$E$2,0)+IF(M67<=0,$E$3,0)+IF(P67<=0,$E$4,0)+IF(S67<=0,$E$5,0)+IF(V67<=0,$E$6,0)+IF(Y67<=0,$E$7,0)+IF(AB67<=0,$E$8,0)+IF(AE67<=0,$E$9,0)+IF(AH67<=0,$E$10,0)+IF(AK67<=0,$E$11,0)+IF(AN67<=0,$E$12,0)+IF(AQ67<=0,$E$13,0)+IF(AT67<=0,$E$14,0)+IF(AW67<=0,$E$15,0)+IF(AZ67<=0,$E$16,0)))) -> 0 | L68: =IF(J67<=0,'Debt Calculator'!$B$6+IF(J67<=0,$E$2,0)+IF(M67<=0,$E$3,0)+IF(P67<=0,$E$4,0)+IF(S67<=0,$E$5,0)+IF(V67<=0,$E$6,0)+IF(Y67<=0,$E$7,0)+IF(AB67<=0,$E$8,0)+IF(AE67<=0,$E$9,0)+IF(AH67<=0,$E$10,0)+IF(AK67<=0,$E$11,0)+IF(AN67<=0,$E$12,0)+IF(AQ67<=0,$E$13,0)+IF(AT67<=0,$E$14,0)+IF(AW67<=0,$E$15,0)+IF(AZ67<=0,$E$16,0),MAX(0,($E$2+'Debt Calculator'!$B$6+IF(J67<=0,$E$2,0)+IF(M67<=0,$E$3,0)+IF(P67<=0,$E$4,0)+IF(S67<=0,$E$5,0)+IF(V67<=0,$E$6,0)+IF(Y67<=0,$E$7,0)+IF(AB67<=0,$E$8,0)+IF(AE67<=0,$E$9,0)+IF(AH67<=0,$E$10,0)+IF(AK67<=0,$E$11,0)+IF(AN67<=0,$E$12,0)+IF(AQ67<=0,$E$13,0)+IF(AT67<=0,$E$14,0)+IF(AW67<=0,$E$15,0)+IF(AZ67<=0,$E$16,0))-(J67*(1+$D$2/1200)))) -> 705 | M68: 0 | N68: 0 | O68: 705 | P68: 0 | Q68: 0 | R68: 705 | S68: 10562.39638 | T68: 885 | U68: 0 | V68: 70705.60165 | W68: 1500 | X68: 0 | Y68: 0 | Z68: 0 | AA68: 0 | AB68: 0 | AC68: 0 | AD68: 0 | AE68: 0 | AF68: 0 | AG68: 0 | AH68: 0 | AI68: 0 | AJ68: 0 | AK68: 0 | AL68: 0 | AM68: 0 | AN68: 0 | AO68: 0 | AP68: 0 | AQ68: 0 | AR68: 0 | AS68: 0 | AT68: 0 | AU68: 0 | AV68: 0 | AW68: 0 | AX68: 0 | AY68: 0 | AZ68: 0 | BA68: 0 | BB68: 0
H69: =66 -> 66 | I69: 2032-01-15 | J69: =MAX(0,(J68*(1+$D$2/1200))-IF(J68<=0,0,MIN((J68*(1+$D$2/1200)),($E$2+'Debt Calculator'!$B$6+IF(J68<=0,$E$2,0)+IF(M68<=0,$E$3,0)+IF(P68<=0,$E$4,0)+IF(S68<=0,$E$5,0)+IF(V68<=0,$E$6,0)+IF(Y68<=0,$E$7,0)+IF(AB68<=0,$E$8,0)+IF(AE68<=0,$E$9,0)+IF(AH68<=0,$E$10,0)+IF(AK68<=0,$E$11,0)+IF(AN68<=0,$E$12,0)+IF(AQ68<=0,$E$13,0)+IF(AT68<=0,$E$14,0)+IF(AW68<=0,$E$15,0)+IF(AZ68<=0,$E$16,0))))) -> 0 | K69: =IF(J68<=0,0,MIN((J68*(1+$D$2/1200)),($E$2+'Debt Calculator'!$B$6+IF(J68<=0,$E$2,0)+IF(M68<=0,$E$3,0)+IF(P68<=0,$E$4,0)+IF(S68<=0,$E$5,0)+IF(V68<=0,$E$6,0)+IF(Y68<=0,$E$7,0)+IF(AB68<=0,$E$8,0)+IF(AE68<=0,$E$9,0)+IF(AH68<=0,$E$10,0)+IF(AK68<=0,$E$11,0)+IF(AN68<=0,$E$12,0)+IF(AQ68<=0,$E$13,0)+IF(AT68<=0,$E$14,0)+IF(AW68<=0,$E$15,0)+IF(AZ68<=0,$E$16,0)))) -> 0 | L69: =IF(J68<=0,'Debt Calculator'!$B$6+IF(J68<=0,$E$2,0)+IF(M68<=0,$E$3,0)+IF(P68<=0,$E$4,0)+IF(S68<=0,$E$5,0)+IF(V68<=0,$E$6,0)+IF(Y68<=0,$E$7,0)+IF(AB68<=0,$E$8,0)+IF(AE68<=0,$E$9,0)+IF(AH68<=0,$E$10,0)+IF(AK68<=0,$E$11,0)+IF(AN68<=0,$E$12,0)+IF(AQ68<=0,$E$13,0)+IF(AT68<=0,$E$14,0)+IF(AW68<=0,$E$15,0)+IF(AZ68<=0,$E$16,0),MAX(0,($E$2+'Debt Calculator'!$B$6+IF(J68<=0,$E$2,0)+IF(M68<=0,$E$3,0)+IF(P68<=0,$E$4,0)+IF(S68<=0,$E$5,0)+IF(V68<=0,$E$6,0)+IF(Y68<=0,$E$7,0)+IF(AB68<=0,$E$8,0)+IF(AE68<=0,$E$9,0)+IF(AH68<=0,$E$10,0)+IF(AK68<=0,$E$11,0)+IF(AN68<=0,$E$12,0)+IF(AQ68<=0,$E$13,0)+IF(AT68<=0,$E$14,0)+IF(AW68<=0,$E$15,0)+IF(AZ68<=0,$E$16,0))-(J68*(1+$D$2/1200)))) -> 705 | M69: 0 | N69: 0 | O69: 705 | P69: 0 | Q69: 0 | R69: 705 | S69: 9699.401377 | T69: 885 | U69: 0 | V69: 69382.36566 | W69: 1500 | X69: 0 | Y69: 0 | Z69: 0 | AA69: 0 | AB69: 0 | AC69: 0 | AD69: 0 | AE69: 0 | AF69: 0 | AG69: 0 | AH69: 0 | AI69: 0 | AJ69: 0 | AK69: 0 | AL69: 0 | AM69: 0 | AN69: 0 | AO69: 0 | AP69: 0 | AQ69: 0 | AR69: 0 | AS69: 0 | AT69: 0 | AU69: 0 | AV69: 0 | AW69: 0 | AX69: 0 | AY69: 0 | AZ69: 0 | BA69: 0 | BB69: 0
H70: =67 -> 67 | I70: 2032-02-15 | J70: =MAX(0,(J69*(1+$D$2/1200))-IF(J69<=0,0,MIN((J69*(1+$D$2/1200)),($E$2+'Debt Calculator'!$B$6+IF(J69<=0,$E$2,0)+IF(M69<=0,$E$3,0)+IF(P69<=0,$E$4,0)+IF(S69<=0,$E$5,0)+IF(V69<=0,$E$6,0)+IF(Y69<=0,$E$7,0)+IF(AB69<=0,$E$8,0)+IF(AE69<=0,$E$9,0)+IF(AH69<=0,$E$10,0)+IF(AK69<=0,$E$11,0)+IF(AN69<=0,$E$12,0)+IF(AQ69<=0,$E$13,0)+IF(AT69<=0,$E$14,0)+IF(AW69<=0,$E$15,0)+IF(AZ69<=0,$E$16,0))))) -> 0 | K70: =IF(J69<=0,0,MIN((J69*(1+$D$2/1200)),($E$2+'Debt Calculator'!$B$6+IF(J69<=0,$E$2,0)+IF(M69<=0,$E$3,0)+IF(P69<=0,$E$4,0)+IF(S69<=0,$E$5,0)+IF(V69<=0,$E$6,0)+IF(Y69<=0,$E$7,0)+IF(AB69<=0,$E$8,0)+IF(AE69<=0,$E$9,0)+IF(AH69<=0,$E$10,0)+IF(AK69<=0,$E$11,0)+IF(AN69<=0,$E$12,0)+IF(AQ69<=0,$E$13,0)+IF(AT69<=0,$E$14,0)+IF(AW69<=0,$E$15,0)+IF(AZ69<=0,$E$16,0)))) -> 0 | L70: =IF(J69<=0,'Debt Calculator'!$B$6+IF(J69<=0,$E$2,0)+IF(M69<=0,$E$3,0)+IF(P69<=0,$E$4,0)+IF(S69<=0,$E$5,0)+IF(V69<=0,$E$6,0)+IF(Y69<=0,$E$7,0)+IF(AB69<=0,$E$8,0)+IF(AE69<=0,$E$9,0)+IF(AH69<=0,$E$10,0)+IF(AK69<=0,$E$11,0)+IF(AN69<=0,$E$12,0)+IF(AQ69<=0,$E$13,0)+IF(AT69<=0,$E$14,0)+IF(AW69<=0,$E$15,0)+IF(AZ69<=0,$E$16,0),MAX(0,($E$2+'Debt Calculator'!$B$6+IF(J69<=0,$E$2,0)+IF(M69<=0,$E$3,0)+IF(P69<=0,$E$4,0)+IF(S69<=0,$E$5,0)+IF(V69<=0,$E$6,0)+IF(Y69<=0,$E$7,0)+IF(AB69<=0,$E$8,0)+IF(AE69<=0,$E$9,0)+IF(AH69<=0,$E$10,0)+IF(AK69<=0,$E$11,0)+IF(AN69<=0,$E$12,0)+IF(AQ69<=0,$E$13,0)+IF(AT69<=0,$E$14,0)+IF(AW69<=0,$E$15,0)+IF(AZ69<=0,$E$16,0))-(J69*(1+$D$2/1200)))) -> 705 | M70: 0 | N70: 0 | O70: 705 | P70: 0 | Q70: 0 | R70: 705 | S70: 8834.608463 | T70: 885 | U70: 0 | V70: 68055.82157 | W70: 1500 | X70: 0 | Y70: 0 | Z70: 0 | AA70: 0 | AB70: 0 | AC70: 0 | AD70: 0 | AE70: 0 | AF70: 0 | AG70: 0 | AH70: 0 | AI70: 0 | AJ70: 0 | AK70: 0 | AL70: 0 | AM70: 0 | AN70: 0 | AO70: 0 | AP70: 0 | AQ70: 0 | AR70: 0 | AS70: 0 | AT70: 0 | AU70: 0 | AV70: 0 | AW70: 0 | AX70: 0 | AY70: 0 | AZ70: 0 | BA70: 0 | BB70: 0
H71: =68 -> 68 | I71: 2032-03-15 | J71: =MAX(0,(J70*(1+$D$2/1200))-IF(J70<=0,0,MIN((J70*(1+$D$2/1200)),($E$2+'Debt Calculator'!$B$6+IF(J70<=0,$E$2,0)+IF(M70<=0,$E$3,0)+IF(P70<=0,$E$4,0)+IF(S70<=0,$E$5,0)+IF(V70<=0,$E$6,0)+IF(Y70<=0,$E$7,0)+IF(AB70<=0,$E$8,0)+IF(AE70<=0,$E$9,0)+IF(AH70<=0,$E$10,0)+IF(AK70<=0,$E$11,0)+IF(AN70<=0,$E$12,0)+IF(AQ70<=0,$E$13,0)+IF(AT70<=0,$E$14,0)+IF(AW70<=0,$E$15,0)+IF(AZ70<=0,$E$16,0))))) -> 0 | K71: =IF(J70<=0,0,MIN((J70*(1+$D$2/1200)),($E$2+'Debt Calculator'!$B$6+IF(J70<=0,$E$2,0)+IF(M70<=0,$E$3,0)+IF(P70<=0,$E$4,0)+IF(S70<=0,$E$5,0)+IF(V70<=0,$E$6,0)+IF(Y70<=0,$E$7,0)+IF(AB70<=0,$E$8,0)+IF(AE70<=0,$E$9,0)+IF(AH70<=0,$E$10,0)+IF(AK70<=0,$E$11,0)+IF(AN70<=0,$E$12,0)+IF(AQ70<=0,$E$13,0)+IF(AT70<=0,$E$14,0)+IF(AW70<=0,$E$15,0)+IF(AZ70<=0,$E$16,0)))) -> 0 | L71: =IF(J70<=0,'Debt Calculator'!$B$6+IF(J70<=0,$E$2,0)+IF(M70<=0,$E$3,0)+IF(P70<=0,$E$4,0)+IF(S70<=0,$E$5,0)+IF(V70<=0,$E$6,0)+IF(Y70<=0,$E$7,0)+IF(AB70<=0,$E$8,0)+IF(AE70<=0,$E$9,0)+IF(AH70<=0,$E$10,0)+IF(AK70<=0,$E$11,0)+IF(AN70<=0,$E$12,0)+IF(AQ70<=0,$E$13,0)+IF(AT70<=0,$E$14,0)+IF(AW70<=0,$E$15,0)+IF(AZ70<=0,$E$16,0),MAX(0,($E$2+'Debt Calculator'!$B$6+IF(J70<=0,$E$2,0)+IF(M70<=0,$E$3,0)+IF(P70<=0,$E$4,0)+IF(S70<=0,$E$5,0)+IF(V70<=0,$E$6,0)+IF(Y70<=0,$E$7,0)+IF(AB70<=0,$E$8,0)+IF(AE70<=0,$E$9,0)+IF(AH70<=0,$E$10,0)+IF(AK70<=0,$E$11,0)+IF(AN70<=0,$E$12,0)+IF(AQ70<=0,$E$13,0)+IF(AT70<=0,$E$14,0)+IF(AW70<=0,$E$15,0)+IF(AZ70<=0,$E$16,0))-(J70*(1+$D$2/1200)))) -> 705 | M71: 0 | N71: 0 | O71: 705 | P71: 0 | Q71: 0 | R71: 705 | S71: 7968.013898 | T71: 885 | U71: 0 | V71: 66725.96113 | W71: 1500 | X71: 0 | Y71: 0 | Z71: 0 | AA71: 0 | AB71: 0 | AC71: 0 | AD71: 0 | AE71: 0 | AF71: 0 | AG71: 0 | AH71: 0 | AI71: 0 | AJ71: 0 | AK71: 0 | AL71: 0 | AM71: 0 | AN71: 0 | AO71: 0 | AP71: 0 | AQ71: 0 | AR71: 0 | AS71: 0 | AT71: 0 | AU71: 0 | AV71: 0 | AW71: 0 | AX71: 0 | AY71: 0 | AZ71: 0 | BA71: 0 | BB71: 0
H72: =69 -> 69 | I72: 2032-04-15 | J72: =MAX(0,(J71*(1+$D$2/1200))-IF(J71<=0,0,MIN((J71*(1+$D$2/1200)),($E$2+'Debt Calculator'!$B$6+IF(J71<=0,$E$2,0)+IF(M71<=0,$E$3,0)+IF(P71<=0,$E$4,0)+IF(S71<=0,$E$5,0)+IF(V71<=0,$E$6,0)+IF(Y71<=0,$E$7,0)+IF(AB71<=0,$E$8,0)+IF(AE71<=0,$E$9,0)+IF(AH71<=0,$E$10,0)+IF(AK71<=0,$E$11,0)+IF(AN71<=0,$E$12,0)+IF(AQ71<=0,$E$13,0)+IF(AT71<=0,$E$14,0)+IF(AW71<=0,$E$15,0)+IF(AZ71<=0,$E$16,0))))) -> 0 | K72: =IF(J71<=0,0,MIN((J71*(1+$D$2/1200)),($E$2+'Debt Calculator'!$B$6+IF(J71<=0,$E$2,0)+IF(M71<=0,$E$3,0)+IF(P71<=0,$E$4,0)+IF(S71<=0,$E$5,0)+IF(V71<=0,$E$6,0)+IF(Y71<=0,$E$7,0)+IF(AB71<=0,$E$8,0)+IF(AE71<=0,$E$9,0)+IF(AH71<=0,$E$10,0)+IF(AK71<=0,$E$11,0)+IF(AN71<=0,$E$12,0)+IF(AQ71<=0,$E$13,0)+IF(AT71<=0,$E$14,0)+IF(AW71<=0,$E$15,0)+IF(AZ71<=0,$E$16,0)))) -> 0 | L72: =IF(J71<=0,'Debt Calculator'!$B$6+IF(J71<=0,$E$2,0)+IF(M71<=0,$E$3,0)+IF(P71<=0,$E$4,0)+IF(S71<=0,$E$5,0)+IF(V71<=0,$E$6,0)+IF(Y71<=0,$E$7,0)+IF(AB71<=0,$E$8,0)+IF(AE71<=0,$E$9,0)+IF(AH71<=0,$E$10,0)+IF(AK71<=0,$E$11,0)+IF(AN71<=0,$E$12,0)+IF(AQ71<=0,$E$13,0)+IF(AT71<=0,$E$14,0)+IF(AW71<=0,$E$15,0)+IF(AZ71<=0,$E$16,0),MAX(0,($E$2+'Debt Calculator'!$B$6+IF(J71<=0,$E$2,0)+IF(M71<=0,$E$3,0)+IF(P71<=0,$E$4,0)+IF(S71<=0,$E$5,0)+IF(V71<=0,$E$6,0)+IF(Y71<=0,$E$7,0)+IF(AB71<=0,$E$8,0)+IF(AE71<=0,$E$9,0)+IF(AH71<=0,$E$10,0)+IF(AK71<=0,$E$11,0)+IF(AN71<=0,$E$12,0)+IF(AQ71<=0,$E$13,0)+IF(AT71<=0,$E$14,0)+IF(AW71<=0,$E$15,0)+IF(AZ71<=0,$E$16,0))-(J71*(1+$D$2/1200)))) -> 705 | M72: 0 | N72: 0 | O72: 705 | P72: 0 | Q72: 0 | R72: 705 | S72: 7099.613927 | T72: 885 | U72: 0 | V72: 65392.77603 | W72: 1500 | X72: 0 | Y72: 0 | Z72: 0 | AA72: 0 | AB72: 0 | AC72: 0 | AD72: 0 | AE72: 0 | AF72: 0 | AG72: 0 | AH72: 0 | AI72: 0 | AJ72: 0 | AK72: 0 | AL72: 0 | AM72: 0 | AN72: 0 | AO72: 0 | AP72: 0 | AQ72: 0 | AR72: 0 | AS72: 0 | AT72: 0 | AU72: 0 | AV72: 0 | AW72: 0 | AX72: 0 | AY72: 0 | AZ72: 0 | BA72: 0 | BB72: 0
H73: =70 -> 70 | I73: 2032-05-15 | J73: =MAX(0,(J72*(1+$D$2/1200))-IF(J72<=0,0,MIN((J72*(1+$D$2/1200)),($E$2+'Debt Calculator'!$B$6+IF(J72<=0,$E$2,0)+IF(M72<=0,$E$3,0)+IF(P72<=0,$E$4,0)+IF(S72<=0,$E$5,0)+IF(V72<=0,$E$6,0)+IF(Y72<=0,$E$7,0)+IF(AB72<=0,$E$8,0)+IF(AE72<=0,$E$9,0)+IF(AH72<=0,$E$10,0)+IF(AK72<=0,$E$11,0)+IF(AN72<=0,$E$12,0)+IF(AQ72<=0,$E$13,0)+IF(AT72<=0,$E$14,0)+IF(AW72<=0,$E$15,0)+IF(AZ72<=0,$E$16,0))))) -> 0 | K73: =IF(J72<=0,0,MIN((J72*(1+$D$2/1200)),($E$2+'Debt Calculator'!$B$6+IF(J72<=0,$E$2,0)+IF(M72<=0,$E$3,0)+IF(P72<=0,$E$4,0)+IF(S72<=0,$E$5,0)+IF(V72<=0,$E$6,0)+IF(Y72<=0,$E$7,0)+IF(AB72<=0,$E$8,0)+IF(AE72<=0,$E$9,0)+IF(AH72<=0,$E$10,0)+IF(AK72<=0,$E$11,0)+IF(AN72<=0,$E$12,0)+IF(AQ72<=0,$E$13,0)+IF(AT72<=0,$E$14,0)+IF(AW72<=0,$E$15,0)+IF(AZ72<=0,$E$16,0)))) -> 0 | L73: =IF(J72<=0,'Debt Calculator'!$B$6+IF(J72<=0,$E$2,0)+IF(M72<=0,$E$3,0)+IF(P72<=0,$E$4,0)+IF(S72<=0,$E$5,0)+IF(V72<=0,$E$6,0)+IF(Y72<=0,$E$7,0)+IF(AB72<=0,$E$8,0)+IF(AE72<=0,$E$9,0)+IF(AH72<=0,$E$10,0)+IF(AK72<=0,$E$11,0)+IF(AN72<=0,$E$12,0)+IF(AQ72<=0,$E$13,0)+IF(AT72<=0,$E$14,0)+IF(AW72<=0,$E$15,0)+IF(AZ72<=0,$E$16,0),MAX(0,($E$2+'Debt Calculator'!$B$6+IF(J72<=0,$E$2,0)+IF(M72<=0,$E$3,0)+IF(P72<=0,$E$4,0)+IF(S72<=0,$E$5,0)+IF(V72<=0,$E$6,0)+IF(Y72<=0,$E$7,0)+IF(AB72<=0,$E$8,0)+IF(AE72<=0,$E$9,0)+IF(AH72<=0,$E$10,0)+IF(AK72<=0,$E$11,0)+IF(AN72<=0,$E$12,0)+IF(AQ72<=0,$E$13,0)+IF(AT72<=0,$E$14,0)+IF(AW72<=0,$E$15,0)+IF(AZ72<=0,$E$16,0))-(J72*(1+$D$2/1200)))) -> 705 | M73: 0 | N73: 0 | O73: 705 | P73: 0 | Q73: 0 | R73: 705 | S73: 6229.404789 | T73: 885 | U73: 0 | V73: 64056.25797 | W73: 1500 | X73: 0 | Y73: 0 | Z73: 0 | AA73: 0 | AB73: 0 | AC73: 0 | AD73: 0 | AE73: 0 | AF73: 0 | AG73: 0 | AH73: 0 | AI73: 0 | AJ73: 0 | AK73: 0 | AL73: 0 | AM73: 0 | AN73: 0 | AO73: 0 | AP73: 0 | AQ73: 0 | AR73: 0 | AS73: 0 | AT73: 0 | AU73: 0 | AV73: 0 | AW73: 0 | AX73: 0 | AY73: 0 | AZ73: 0 | BA73: 0 | BB73: 0
H74: =71 -> 71 | I74: 2032-06-15 | J74: =MAX(0,(J73*(1+$D$2/1200))-IF(J73<=0,0,MIN((J73*(1+$D$2/1200)),($E$2+'Debt Calculator'!$B$6+IF(J73<=0,$E$2,0)+IF(M73<=0,$E$3,0)+IF(P73<=0,$E$4,0)+IF(S73<=0,$E$5,0)+IF(V73<=0,$E$6,0)+IF(Y73<=0,$E$7,0)+IF(AB73<=0,$E$8,0)+IF(AE73<=0,$E$9,0)+IF(AH73<=0,$E$10,0)+IF(AK73<=0,$E$11,0)+IF(AN73<=0,$E$12,0)+IF(AQ73<=0,$E$13,0)+IF(AT73<=0,$E$14,0)+IF(AW73<=0,$E$15,0)+IF(AZ73<=0,$E$16,0))))) -> 0 | K74: =IF(J73<=0,0,MIN((J73*(1+$D$2/1200)),($E$2+'Debt Calculator'!$B$6+IF(J73<=0,$E$2,0)+IF(M73<=0,$E$3,0)+IF(P73<=0,$E$4,0)+IF(S73<=0,$E$5,0)+IF(V73<=0,$E$6,0)+IF(Y73<=0,$E$7,0)+IF(AB73<=0,$E$8,0)+IF(AE73<=0,$E$9,0)+IF(AH73<=0,$E$10,0)+IF(AK73<=0,$E$11,0)+IF(AN73<=0,$E$12,0)+IF(AQ73<=0,$E$13,0)+IF(AT73<=0,$E$14,0)+IF(AW73<=0,$E$15,0)+IF(AZ73<=0,$E$16,0)))) -> 0 | L74: =IF(J73<=0,'Debt Calculator'!$B$6+IF(J73<=0,$E$2,0)+IF(M73<=0,$E$3,0)+IF(P73<=0,$E$4,0)+IF(S73<=0,$E$5,0)+IF(V73<=0,$E$6,0)+IF(Y73<=0,$E$7,0)+IF(AB73<=0,$E$8,0)+IF(AE73<=0,$E$9,0)+IF(AH73<=0,$E$10,0)+IF(AK73<=0,$E$11,0)+IF(AN73<=0,$E$12,0)+IF(AQ73<=0,$E$13,0)+IF(AT73<=0,$E$14,0)+IF(AW73<=0,$E$15,0)+IF(AZ73<=0,$E$16,0),MAX(0,($E$2+'Debt Calculator'!$B$6+IF(J73<=0,$E$2,0)+IF(M73<=0,$E$3,0)+IF(P73<=0,$E$4,0)+IF(S73<=0,$E$5,0)+IF(V73<=0,$E$6,0)+IF(Y73<=0,$E$7,0)+IF(AB73<=0,$E$8,0)+IF(AE73<=0,$E$9,0)+IF(AH73<=0,$E$10,0)+IF(AK73<=0,$E$11,0)+IF(AN73<=0,$E$12,0)+IF(AQ73<=0,$E$13,0)+IF(AT73<=0,$E$14,0)+IF(AW73<=0,$E$15,0)+IF(AZ73<=0,$E$16,0))-(J73*(1+$D$2/1200)))) -> 705 | M74: 0 | N74: 0 | O74: 705 | P74: 0 | Q74: 0 | R74: 705 | S74: 5357.382716 | T74: 885 | U74: 0 | V74: 62716.39861 | W74: 1500 | X74: 0 | Y74: 0 | Z74: 0 | AA74: 0 | AB74: 0 | AC74: 0 | AD74: 0 | AE74: 0 | AF74: 0 | AG74: 0 | AH74: 0 | AI74: 0 | AJ74: 0 | AK74: 0 | AL74: 0 | AM74: 0 | AN74: 0 | AO74: 0 | AP74: 0 | AQ74: 0 | AR74: 0 | AS74: 0 | AT74: 0 | AU74: 0 | AV74: 0 | AW74: 0 | AX74: 0 | AY74: 0 | AZ74: 0 | BA74: 0 | BB74: 0
H75: =72 -> 72 | I75: 2032-07-15 | J75: =MAX(0,(J74*(1+$D$2/1200))-IF(J74<=0,0,MIN((J74*(1+$D$2/1200)),($E$2+'Debt Calculator'!$B$6+IF(J74<=0,$E$2,0)+IF(M74<=0,$E$3,0)+IF(P74<=0,$E$4,0)+IF(S74<=0,$E$5,0)+IF(V74<=0,$E$6,0)+IF(Y74<=0,$E$7,0)+IF(AB74<=0,$E$8,0)+IF(AE74<=0,$E$9,0)+IF(AH74<=0,$E$10,0)+IF(AK74<=0,$E$11,0)+IF(AN74<=0,$E$12,0)+IF(AQ74<=0,$E$13,0)+IF(AT74<=0,$E$14,0)+IF(AW74<=0,$E$15,0)+IF(AZ74<=0,$E$16,0))))) -> 0 | K75: =IF(J74<=0,0,MIN((J74*(1+$D$2/1200)),($E$2+'Debt Calculator'!$B$6+IF(J74<=0,$E$2,0)+IF(M74<=0,$E$3,0)+IF(P74<=0,$E$4,0)+IF(S74<=0,$E$5,0)+IF(V74<=0,$E$6,0)+IF(Y74<=0,$E$7,0)+IF(AB74<=0,$E$8,0)+IF(AE74<=0,$E$9,0)+IF(AH74<=0,$E$10,0)+IF(AK74<=0,$E$11,0)+IF(AN74<=0,$E$12,0)+IF(AQ74<=0,$E$13,0)+IF(AT74<=0,$E$14,0)+IF(AW74<=0,$E$15,0)+IF(AZ74<=0,$E$16,0)))) -> 0 | L75: =IF(J74<=0,'Debt Calculator'!$B$6+IF(J74<=0,$E$2,0)+IF(M74<=0,$E$3,0)+IF(P74<=0,$E$4,0)+IF(S74<=0,$E$5,0)+IF(V74<=0,$E$6,0)+IF(Y74<=0,$E$7,0)+IF(AB74<=0,$E$8,0)+IF(AE74<=0,$E$9,0)+IF(AH74<=0,$E$10,0)+IF(AK74<=0,$E$11,0)+IF(AN74<=0,$E$12,0)+IF(AQ74<=0,$E$13,0)+IF(AT74<=0,$E$14,0)+IF(AW74<=0,$E$15,0)+IF(AZ74<=0,$E$16,0),MAX(0,($E$2+'Debt Calculator'!$B$6+IF(J74<=0,$E$2,0)+IF(M74<=0,$E$3,0)+IF(P74<=0,$E$4,0)+IF(S74<=0,$E$5,0)+IF(V74<=0,$E$6,0)+IF(Y74<=0,$E$7,0)+IF(AB74<=0,$E$8,0)+IF(AE74<=0,$E$9,0)+IF(AH74<=0,$E$10,0)+IF(AK74<=0,$E$11,0)+IF(AN74<=0,$E$12,0)+IF(AQ74<=0,$E$13,0)+IF(AT74<=0,$E$14,0)+IF(AW74<=0,$E$15,0)+IF(AZ74<=0,$E$16,0))-(J74*(1+$D$2/1200)))) -> 705 | M75: 0 | N75: 0 | O75: 705 | P75: 0 | Q75: 0 | R75: 705 | S75: 4483.54393 | T75: 885 | U75: 0 | V75: 61373.18961 | W75: 1500 | X75: 0 | Y75: 0 | Z75: 0 | AA75: 0 | AB75: 0 | AC75: 0 | AD75: 0 | AE75: 0 | AF75: 0 | AG75: 0 | AH75: 0 | AI75: 0 | AJ75: 0 | AK75: 0 | AL75: 0 | AM75: 0 | AN75: 0 | AO75: 0 | AP75: 0 | AQ75: 0 | AR75: 0 | AS75: 0 | AT75: 0 | AU75: 0 | AV75: 0 | AW75: 0 | AX75: 0 | AY75: 0 | AZ75: 0 | BA75: 0 | BB75: 0
H76: =73 -> 73 | I76: 2032-08-15 | J76: =MAX(0,(J75*(1+$D$2/1200))-IF(J75<=0,0,MIN((J75*(1+$D$2/1200)),($E$2+'Debt Calculator'!$B$6+IF(J75<=0,$E$2,0)+IF(M75<=0,$E$3,0)+IF(P75<=0,$E$4,0)+IF(S75<=0,$E$5,0)+IF(V75<=0,$E$6,0)+IF(Y75<=0,$E$7,0)+IF(AB75<=0,$E$8,0)+IF(AE75<=0,$E$9,0)+IF(AH75<=0,$E$10,0)+IF(AK75<=0,$E$11,0)+IF(AN75<=0,$E$12,0)+IF(AQ75<=0,$E$13,0)+IF(AT75<=0,$E$14,0)+IF(AW75<=0,$E$15,0)+IF(AZ75<=0,$E$16,0))))) -> 0 | K76: =IF(J75<=0,0,MIN((J75*(1+$D$2/1200)),($E$2+'Debt Calculator'!$B$6+IF(J75<=0,$E$2,0)+IF(M75<=0,$E$3,0)+IF(P75<=0,$E$4,0)+IF(S75<=0,$E$5,0)+IF(V75<=0,$E$6,0)+IF(Y75<=0,$E$7,0)+IF(AB75<=0,$E$8,0)+IF(AE75<=0,$E$9,0)+IF(AH75<=0,$E$10,0)+IF(AK75<=0,$E$11,0)+IF(AN75<=0,$E$12,0)+IF(AQ75<=0,$E$13,0)+IF(AT75<=0,$E$14,0)+IF(AW75<=0,$E$15,0)+IF(AZ75<=0,$E$16,0)))) -> 0 | L76: =IF(J75<=0,'Debt Calculator'!$B$6+IF(J75<=0,$E$2,0)+IF(M75<=0,$E$3,0)+IF(P75<=0,$E$4,0)+IF(S75<=0,$E$5,0)+IF(V75<=0,$E$6,0)+IF(Y75<=0,$E$7,0)+IF(AB75<=0,$E$8,0)+IF(AE75<=0,$E$9,0)+IF(AH75<=0,$E$10,0)+IF(AK75<=0,$E$11,0)+IF(AN75<=0,$E$12,0)+IF(AQ75<=0,$E$13,0)+IF(AT75<=0,$E$14,0)+IF(AW75<=0,$E$15,0)+IF(AZ75<=0,$E$16,0),MAX(0,($E$2+'Debt Calculator'!$B$6+IF(J75<=0,$E$2,0)+IF(M75<=0,$E$3,0)+IF(P75<=0,$E$4,0)+IF(S75<=0,$E$5,0)+IF(V75<=0,$E$6,0)+IF(Y75<=0,$E$7,0)+IF(AB75<=0,$E$8,0)+IF(AE75<=0,$E$9,0)+IF(AH75<=0,$E$10,0)+IF(AK75<=0,$E$11,0)+IF(AN75<=0,$E$12,0)+IF(AQ75<=0,$E$13,0)+IF(AT75<=0,$E$14,0)+IF(AW75<=0,$E$15,0)+IF(AZ75<=0,$E$16,0))-(J75*(1+$D$2/1200)))) -> 705 | M76: 0 | N76: 0 | O76: 705 | P76: 0 | Q76: 0 | R76: 705 | S76: 3607.884646 | T76: 885 | U76: 0 | V76: 60026.62258 | W76: 1500 | X76: 0 | Y76: 0 | Z76: 0 | AA76: 0 | AB76: 0 | AC76: 0 | AD76: 0 | AE76: 0 | AF76: 0 | AG76: 0 | AH76: 0 | AI76: 0 | AJ76: 0 | AK76: 0 | AL76: 0 | AM76: 0 | AN76: 0 | AO76: 0 | AP76: 0 | AQ76: 0 | AR76: 0 | AS76: 0 | AT76: 0 | AU76: 0 | AV76: 0 | AW76: 0 | AX76: 0 | AY76: 0 | AZ76: 0 | BA76: 0 | BB76: 0
H77: =74 -> 74 | I77: 2032-09-15 | J77: =MAX(0,(J76*(1+$D$2/1200))-IF(J76<=0,0,MIN((J76*(1+$D$2/1200)),($E$2+'Debt Calculator'!$B$6+IF(J76<=0,$E$2,0)+IF(M76<=0,$E$3,0)+IF(P76<=0,$E$4,0)+IF(S76<=0,$E$5,0)+IF(V76<=0,$E$6,0)+IF(Y76<=0,$E$7,0)+IF(AB76<=0,$E$8,0)+IF(AE76<=0,$E$9,0)+IF(AH76<=0,$E$10,0)+IF(AK76<=0,$E$11,0)+IF(AN76<=0,$E$12,0)+IF(AQ76<=0,$E$13,0)+IF(AT76<=0,$E$14,0)+IF(AW76<=0,$E$15,0)+IF(AZ76<=0,$E$16,0))))) -> 0 | K77: =IF(J76<=0,0,MIN((J76*(1+$D$2/1200)),($E$2+'Debt Calculator'!$B$6+IF(J76<=0,$E$2,0)+IF(M76<=0,$E$3,0)+IF(P76<=0,$E$4,0)+IF(S76<=0,$E$5,0)+IF(V76<=0,$E$6,0)+IF(Y76<=0,$E$7,0)+IF(AB76<=0,$E$8,0)+IF(AE76<=0,$E$9,0)+IF(AH76<=0,$E$10,0)+IF(AK76<=0,$E$11,0)+IF(AN76<=0,$E$12,0)+IF(AQ76<=0,$E$13,0)+IF(AT76<=0,$E$14,0)+IF(AW76<=0,$E$15,0)+IF(AZ76<=0,$E$16,0)))) -> 0 | L77: =IF(J76<=0,'Debt Calculator'!$B$6+IF(J76<=0,$E$2,0)+IF(M76<=0,$E$3,0)+IF(P76<=0,$E$4,0)+IF(S76<=0,$E$5,0)+IF(V76<=0,$E$6,0)+IF(Y76<=0,$E$7,0)+IF(AB76<=0,$E$8,0)+IF(AE76<=0,$E$9,0)+IF(AH76<=0,$E$10,0)+IF(AK76<=0,$E$11,0)+IF(AN76<=0,$E$12,0)+IF(AQ76<=0,$E$13,0)+IF(AT76<=0,$E$14,0)+IF(AW76<=0,$E$15,0)+IF(AZ76<=0,$E$16,0),MAX(0,($E$2+'Debt Calculator'!$B$6+IF(J76<=0,$E$2,0)+IF(M76<=0,$E$3,0)+IF(P76<=0,$E$4,0)+IF(S76<=0,$E$5,0)+IF(V76<=0,$E$6,0)+IF(Y76<=0,$E$7,0)+IF(AB76<=0,$E$8,0)+IF(AE76<=0,$E$9,0)+IF(AH76<=0,$E$10,0)+IF(AK76<=0,$E$11,0)+IF(AN76<=0,$E$12,0)+IF(AQ76<=0,$E$13,0)+IF(AT76<=0,$E$14,0)+IF(AW76<=0,$E$15,0)+IF(AZ76<=0,$E$16,0))-(J76*(1+$D$2/1200)))) -> 705 | M77: 0 | N77: 0 | O77: 705 | P77: 0 | Q77: 0 | R77: 705 | S77: 2730.401073 | T77: 885 | U77: 0 | V77: 58676.68914 | W77: 1500 | X77: 0 | Y77: 0 | Z77: 0 | AA77: 0 | AB77: 0 | AC77: 0 | AD77: 0 | AE77: 0 | AF77: 0 | AG77: 0 | AH77: 0 | AI77: 0 | AJ77: 0 | AK77: 0 | AL77: 0 | AM77: 0 | AN77: 0 | AO77: 0 | AP77: 0 | AQ77: 0 | AR77: 0 | AS77: 0 | AT77: 0 | AU77: 0 | AV77: 0 | AW77: 0 | AX77: 0 | AY77: 0 | AZ77: 0 | BA77: 0 | BB77: 0
H78: =75 -> 75 | I78: 2032-10-15 | J78: =MAX(0,(J77*(1+$D$2/1200))-IF(J77<=0,0,MIN((J77*(1+$D$2/1200)),($E$2+'Debt Calculator'!$B$6+IF(J77<=0,$E$2,0)+IF(M77<=0,$E$3,0)+IF(P77<=0,$E$4,0)+IF(S77<=0,$E$5,0)+IF(V77<=0,$E$6,0)+IF(Y77<=0,$E$7,0)+IF(AB77<=0,$E$8,0)+IF(AE77<=0,$E$9,0)+IF(AH77<=0,$E$10,0)+IF(AK77<=0,$E$11,0)+IF(AN77<=0,$E$12,0)+IF(AQ77<=0,$E$13,0)+IF(AT77<=0,$E$14,0)+IF(AW77<=0,$E$15,0)+IF(AZ77<=0,$E$16,0))))) -> 0 | K78: =IF(J77<=0,0,MIN((J77*(1+$D$2/1200)),($E$2+'Debt Calculator'!$B$6+IF(J77<=0,$E$2,0)+IF(M77<=0,$E$3,0)+IF(P77<=0,$E$4,0)+IF(S77<=0,$E$5,0)+IF(V77<=0,$E$6,0)+IF(Y77<=0,$E$7,0)+IF(AB77<=0,$E$8,0)+IF(AE77<=0,$E$9,0)+IF(AH77<=0,$E$10,0)+IF(AK77<=0,$E$11,0)+IF(AN77<=0,$E$12,0)+IF(AQ77<=0,$E$13,0)+IF(AT77<=0,$E$14,0)+IF(AW77<=0,$E$15,0)+IF(AZ77<=0,$E$16,0)))) -> 0 | L78: =IF(J77<=0,'Debt Calculator'!$B$6+IF(J77<=0,$E$2,0)+IF(M77<=0,$E$3,0)+IF(P77<=0,$E$4,0)+IF(S77<=0,$E$5,0)+IF(V77<=0,$E$6,0)+IF(Y77<=0,$E$7,0)+IF(AB77<=0,$E$8,0)+IF(AE77<=0,$E$9,0)+IF(AH77<=0,$E$10,0)+IF(AK77<=0,$E$11,0)+IF(AN77<=0,$E$12,0)+IF(AQ77<=0,$E$13,0)+IF(AT77<=0,$E$14,0)+IF(AW77<=0,$E$15,0)+IF(AZ77<=0,$E$16,0),MAX(0,($E$2+'Debt Calculator'!$B$6+IF(J77<=0,$E$2,0)+IF(M77<=0,$E$3,0)+IF(P77<=0,$E$4,0)+IF(S77<=0,$E$5,0)+IF(V77<=0,$E$6,0)+IF(Y77<=0,$E$7,0)+IF(AB77<=0,$E$8,0)+IF(AE77<=0,$E$9,0)+IF(AH77<=0,$E$10,0)+IF(AK77<=0,$E$11,0)+IF(AN77<=0,$E$12,0)+IF(AQ77<=0,$E$13,0)+IF(AT77<=0,$E$14,0)+IF(AW77<=0,$E$15,0)+IF(AZ77<=0,$E$16,0))-(J77*(1+$D$2/1200)))) -> 705 | M78: 0 | N78: 0 | O78: 705 | P78: 0 | Q78: 0 | R78: 705 | S78: 1851.089408 | T78: 885 | U78: 0 | V78: 57323.38086 | W78: 1500 | X78: 0 | Y78: 0 | Z78: 0 | AA78: 0 | AB78: 0 | AC78: 0 | AD78: 0 | AE78: 0 | AF78: 0 | AG78: 0 | AH78: 0 | AI78: 0 | AJ78: 0 | AK78: 0 | AL78: 0 | AM78: 0 | AN78: 0 | AO78: 0 | AP78: 0 | AQ78: 0 | AR78: 0 | AS78: 0 | AT78: 0 | AU78: 0 | AV78: 0 | AW78: 0 | AX78: 0 | AY78: 0 | AZ78: 0 | BA78: 0 | BB78: 0
H79: =76 -> 76 | I79: 2032-11-15 | J79: =MAX(0,(J78*(1+$D$2/1200))-IF(J78<=0,0,MIN((J78*(1+$D$2/1200)),($E$2+'Debt Calculator'!$B$6+IF(J78<=0,$E$2,0)+IF(M78<=0,$E$3,0)+IF(P78<=0,$E$4,0)+IF(S78<=0,$E$5,0)+IF(V78<=0,$E$6,0)+IF(Y78<=0,$E$7,0)+IF(AB78<=0,$E$8,0)+IF(AE78<=0,$E$9,0)+IF(AH78<=0,$E$10,0)+IF(AK78<=0,$E$11,0)+IF(AN78<=0,$E$12,0)+IF(AQ78<=0,$E$13,0)+IF(AT78<=0,$E$14,0)+IF(AW78<=0,$E$15,0)+IF(AZ78<=0,$E$16,0))))) -> 0 | K79: =IF(J78<=0,0,MIN((J78*(1+$D$2/1200)),($E$2+'Debt Calculator'!$B$6+IF(J78<=0,$E$2,0)+IF(M78<=0,$E$3,0)+IF(P78<=0,$E$4,0)+IF(S78<=0,$E$5,0)+IF(V78<=0,$E$6,0)+IF(Y78<=0,$E$7,0)+IF(AB78<=0,$E$8,0)+IF(AE78<=0,$E$9,0)+IF(AH78<=0,$E$10,0)+IF(AK78<=0,$E$11,0)+IF(AN78<=0,$E$12,0)+IF(AQ78<=0,$E$13,0)+IF(AT78<=0,$E$14,0)+IF(AW78<=0,$E$15,0)+IF(AZ78<=0,$E$16,0)))) -> 0 | L79: =IF(J78<=0,'Debt Calculator'!$B$6+IF(J78<=0,$E$2,0)+IF(M78<=0,$E$3,0)+IF(P78<=0,$E$4,0)+IF(S78<=0,$E$5,0)+IF(V78<=0,$E$6,0)+IF(Y78<=0,$E$7,0)+IF(AB78<=0,$E$8,0)+IF(AE78<=0,$E$9,0)+IF(AH78<=0,$E$10,0)+IF(AK78<=0,$E$11,0)+IF(AN78<=0,$E$12,0)+IF(AQ78<=0,$E$13,0)+IF(AT78<=0,$E$14,0)+IF(AW78<=0,$E$15,0)+IF(AZ78<=0,$E$16,0),MAX(0,($E$2+'Debt Calculator'!$B$6+IF(J78<=0,$E$2,0)+IF(M78<=0,$E$3,0)+IF(P78<=0,$E$4,0)+IF(S78<=0,$E$5,0)+IF(V78<=0,$E$6,0)+IF(Y78<=0,$E$7,0)+IF(AB78<=0,$E$8,0)+IF(AE78<=0,$E$9,0)+IF(AH78<=0,$E$10,0)+IF(AK78<=0,$E$11,0)+IF(AN78<=0,$E$12,0)+IF(AQ78<=0,$E$13,0)+IF(AT78<=0,$E$14,0)+IF(AW78<=0,$E$15,0)+IF(AZ78<=0,$E$16,0))-(J78*(1+$D$2/1200)))) -> 705 | M79: 0 | N79: 0 | O79: 705 | P79: 0 | Q79: 0 | R79: 705 | S79: 969.9458444 | T79: 885 | U79: 0 | V79: 55966.68932 | W79: 1500 | X79: 0 | Y79: 0 | Z79: 0 | AA79: 0 | AB79: 0 | AC79: 0 | AD79: 0 | AE79: 0 | AF79: 0 | AG79: 0 | AH79: 0 | AI79: 0 | AJ79: 0 | AK79: 0 | AL79: 0 | AM79: 0 | AN79: 0 | AO79: 0 | AP79: 0 | AQ79: 0 | AR79: 0 | AS79: 0 | AT79: 0 | AU79: 0 | AV79: 0 | AW79: 0 | AX79: 0 | AY79: 0 | AZ79: 0 | BA79: 0 | BB79: 0
H80: =77 -> 77 | I80: 2032-12-15 | J80: =MAX(0,(J79*(1+$D$2/1200))-IF(J79<=0,0,MIN((J79*(1+$D$2/1200)),($E$2+'Debt Calculator'!$B$6+IF(J79<=0,$E$2,0)+IF(M79<=0,$E$3,0)+IF(P79<=0,$E$4,0)+IF(S79<=0,$E$5,0)+IF(V79<=0,$E$6,0)+IF(Y79<=0,$E$7,0)+IF(AB79<=0,$E$8,0)+IF(AE79<=0,$E$9,0)+IF(AH79<=0,$E$10,0)+IF(AK79<=0,$E$11,0)+IF(AN79<=0,$E$12,0)+IF(AQ79<=0,$E$13,0)+IF(AT79<=0,$E$14,0)+IF(AW79<=0,$E$15,0)+IF(AZ79<=0,$E$16,0))))) -> 0 | K80: =IF(J79<=0,0,MIN((J79*(1+$D$2/1200)),($E$2+'Debt Calculator'!$B$6+IF(J79<=0,$E$2,0)+IF(M79<=0,$E$3,0)+IF(P79<=0,$E$4,0)+IF(S79<=0,$E$5,0)+IF(V79<=0,$E$6,0)+IF(Y79<=0,$E$7,0)+IF(AB79<=0,$E$8,0)+IF(AE79<=0,$E$9,0)+IF(AH79<=0,$E$10,0)+IF(AK79<=0,$E$11,0)+IF(AN79<=0,$E$12,0)+IF(AQ79<=0,$E$13,0)+IF(AT79<=0,$E$14,0)+IF(AW79<=0,$E$15,0)+IF(AZ79<=0,$E$16,0)))) -> 0 | L80: =IF(J79<=0,'Debt Calculator'!$B$6+IF(J79<=0,$E$2,0)+IF(M79<=0,$E$3,0)+IF(P79<=0,$E$4,0)+IF(S79<=0,$E$5,0)+IF(V79<=0,$E$6,0)+IF(Y79<=0,$E$7,0)+IF(AB79<=0,$E$8,0)+IF(AE79<=0,$E$9,0)+IF(AH79<=0,$E$10,0)+IF(AK79<=0,$E$11,0)+IF(AN79<=0,$E$12,0)+IF(AQ79<=0,$E$13,0)+IF(AT79<=0,$E$14,0)+IF(AW79<=0,$E$15,0)+IF(AZ79<=0,$E$16,0),MAX(0,($E$2+'Debt Calculator'!$B$6+IF(J79<=0,$E$2,0)+IF(M79<=0,$E$3,0)+IF(P79<=0,$E$4,0)+IF(S79<=0,$E$5,0)+IF(V79<=0,$E$6,0)+IF(Y79<=0,$E$7,0)+IF(AB79<=0,$E$8,0)+IF(AE79<=0,$E$9,0)+IF(AH79<=0,$E$10,0)+IF(AK79<=0,$E$11,0)+IF(AN79<=0,$E$12,0)+IF(AQ79<=0,$E$13,0)+IF(AT79<=0,$E$14,0)+IF(AW79<=0,$E$15,0)+IF(AZ79<=0,$E$16,0))-(J79*(1+$D$2/1200)))) -> 705 | M80: 0 | N80: 0 | O80: 705 | P80: 0 | Q80: 0 | R80: 705 | S80: 86.96656493 | T80: 885 | U80: 0 | V80: 54606.60604 | W80: 1500 | X80: 0 | Y80: 0 | Z80: 0 | AA80: 0 | AB80: 0 | AC80: 0 | AD80: 0 | AE80: 0 | AF80: 0 | AG80: 0 | AH80: 0 | AI80: 0 | AJ80: 0 | AK80: 0 | AL80: 0 | AM80: 0 | AN80: 0 | AO80: 0 | AP80: 0 | AQ80: 0 | AR80: 0 | AS80: 0 | AT80: 0 | AU80: 0 | AV80: 0 | AW80: 0 | AX80: 0 | AY80: 0 | AZ80: 0 | BA80: 0 | BB80: 0
H81: =78 -> 78 | I81: 2033-01-15 | J81: =MAX(0,(J80*(1+$D$2/1200))-IF(J80<=0,0,MIN((J80*(1+$D$2/1200)),($E$2+'Debt Calculator'!$B$6+IF(J80<=0,$E$2,0)+IF(M80<=0,$E$3,0)+IF(P80<=0,$E$4,0)+IF(S80<=0,$E$5,0)+IF(V80<=0,$E$6,0)+IF(Y80<=0,$E$7,0)+IF(AB80<=0,$E$8,0)+IF(AE80<=0,$E$9,0)+IF(AH80<=0,$E$10,0)+IF(AK80<=0,$E$11,0)+IF(AN80<=0,$E$12,0)+IF(AQ80<=0,$E$13,0)+IF(AT80<=0,$E$14,0)+IF(AW80<=0,$E$15,0)+IF(AZ80<=0,$E$16,0))))) -> 0 | K81: =IF(J80<=0,0,MIN((J80*(1+$D$2/1200)),($E$2+'Debt Calculator'!$B$6+IF(J80<=0,$E$2,0)+IF(M80<=0,$E$3,0)+IF(P80<=0,$E$4,0)+IF(S80<=0,$E$5,0)+IF(V80<=0,$E$6,0)+IF(Y80<=0,$E$7,0)+IF(AB80<=0,$E$8,0)+IF(AE80<=0,$E$9,0)+IF(AH80<=0,$E$10,0)+IF(AK80<=0,$E$11,0)+IF(AN80<=0,$E$12,0)+IF(AQ80<=0,$E$13,0)+IF(AT80<=0,$E$14,0)+IF(AW80<=0,$E$15,0)+IF(AZ80<=0,$E$16,0)))) -> 0 | L81: =IF(J80<=0,'Debt Calculator'!$B$6+IF(J80<=0,$E$2,0)+IF(M80<=0,$E$3,0)+IF(P80<=0,$E$4,0)+IF(S80<=0,$E$5,0)+IF(V80<=0,$E$6,0)+IF(Y80<=0,$E$7,0)+IF(AB80<=0,$E$8,0)+IF(AE80<=0,$E$9,0)+IF(AH80<=0,$E$10,0)+IF(AK80<=0,$E$11,0)+IF(AN80<=0,$E$12,0)+IF(AQ80<=0,$E$13,0)+IF(AT80<=0,$E$14,0)+IF(AW80<=0,$E$15,0)+IF(AZ80<=0,$E$16,0),MAX(0,($E$2+'Debt Calculator'!$B$6+IF(J80<=0,$E$2,0)+IF(M80<=0,$E$3,0)+IF(P80<=0,$E$4,0)+IF(S80<=0,$E$5,0)+IF(V80<=0,$E$6,0)+IF(Y80<=0,$E$7,0)+IF(AB80<=0,$E$8,0)+IF(AE80<=0,$E$9,0)+IF(AH80<=0,$E$10,0)+IF(AK80<=0,$E$11,0)+IF(AN80<=0,$E$12,0)+IF(AQ80<=0,$E$13,0)+IF(AT80<=0,$E$14,0)+IF(AW80<=0,$E$15,0)+IF(AZ80<=0,$E$16,0))-(J80*(1+$D$2/1200)))) -> 705 | M81: 0 | N81: 0 | O81: 705 | P81: 0 | Q81: 0 | R81: 705 | S81: 0 | T81: 87.14774527 | U81: 797.8522547 | V81: 52445.2703 | W81: 2297.852255 | X81: 0 | Y81: 0 | Z81: 0 | AA81: 0 | AB81: 0 | AC81: 0 | AD81: 0 | AE81: 0 | AF81: 0 | AG81: 0 | AH81: 0 | AI81: 0 | AJ81: 0 | AK81: 0 | AL81: 0 | AM81: 0 | AN81: 0 | AO81: 0 | AP81: 0 | AQ81: 0 | AR81: 0 | AS81: 0 | AT81: 0 | AU81: 0 | AV81: 0 | AW81: 0 | AX81: 0 | AY81: 0 | AZ81: 0 | BA81: 0 | BB81: 0
H82: =79 -> 79 | I82: 2033-02-15 | J82: =MAX(0,(J81*(1+$D$2/1200))-IF(J81<=0,0,MIN((J81*(1+$D$2/1200)),($E$2+'Debt Calculator'!$B$6+IF(J81<=0,$E$2,0)+IF(M81<=0,$E$3,0)+IF(P81<=0,$E$4,0)+IF(S81<=0,$E$5,0)+IF(V81<=0,$E$6,0)+IF(Y81<=0,$E$7,0)+IF(AB81<=0,$E$8,0)+IF(AE81<=0,$E$9,0)+IF(AH81<=0,$E$10,0)+IF(AK81<=0,$E$11,0)+IF(AN81<=0,$E$12,0)+IF(AQ81<=0,$E$13,0)+IF(AT81<=0,$E$14,0)+IF(AW81<=0,$E$15,0)+IF(AZ81<=0,$E$16,0))))) -> 0 | K82: =IF(J81<=0,0,MIN((J81*(1+$D$2/1200)),($E$2+'Debt Calculator'!$B$6+IF(J81<=0,$E$2,0)+IF(M81<=0,$E$3,0)+IF(P81<=0,$E$4,0)+IF(S81<=0,$E$5,0)+IF(V81<=0,$E$6,0)+IF(Y81<=0,$E$7,0)+IF(AB81<=0,$E$8,0)+IF(AE81<=0,$E$9,0)+IF(AH81<=0,$E$10,0)+IF(AK81<=0,$E$11,0)+IF(AN81<=0,$E$12,0)+IF(AQ81<=0,$E$13,0)+IF(AT81<=0,$E$14,0)+IF(AW81<=0,$E$15,0)+IF(AZ81<=0,$E$16,0)))) -> 0 | L82: =IF(J81<=0,'Debt Calculator'!$B$6+IF(J81<=0,$E$2,0)+IF(M81<=0,$E$3,0)+IF(P81<=0,$E$4,0)+IF(S81<=0,$E$5,0)+IF(V81<=0,$E$6,0)+IF(Y81<=0,$E$7,0)+IF(AB81<=0,$E$8,0)+IF(AE81<=0,$E$9,0)+IF(AH81<=0,$E$10,0)+IF(AK81<=0,$E$11,0)+IF(AN81<=0,$E$12,0)+IF(AQ81<=0,$E$13,0)+IF(AT81<=0,$E$14,0)+IF(AW81<=0,$E$15,0)+IF(AZ81<=0,$E$16,0),MAX(0,($E$2+'Debt Calculator'!$B$6+IF(J81<=0,$E$2,0)+IF(M81<=0,$E$3,0)+IF(P81<=0,$E$4,0)+IF(S81<=0,$E$5,0)+IF(V81<=0,$E$6,0)+IF(Y81<=0,$E$7,0)+IF(AB81<=0,$E$8,0)+IF(AE81<=0,$E$9,0)+IF(AH81<=0,$E$10,0)+IF(AK81<=0,$E$11,0)+IF(AN81<=0,$E$12,0)+IF(AQ81<=0,$E$13,0)+IF(AT81<=0,$E$14,0)+IF(AW81<=0,$E$15,0)+IF(AZ81<=0,$E$16,0))-(J81*(1+$D$2/1200)))) -> 885 | M82: 0 | N82: 0 | O82: 885 | P82: 0 | Q82: 0 | R82: 885 | S82: 0 | T82: 0 | U82: 885 | V82: 50191.38348 | W82: 2385 | X82: 0 | Y82: 0 | Z82: 0 | AA82: 0 | AB82: 0 | AC82: 0 | AD82: 0 | AE82: 0 | AF82: 0 | AG82: 0 | AH82: 0 | AI82: 0 | AJ82: 0 | AK82: 0 | AL82: 0 | AM82: 0 | AN82: 0 | AO82: 0 | AP82: 0 | AQ82: 0 | AR82: 0 | AS82: 0 | AT82: 0 | AU82: 0 | AV82: 0 | AW82: 0 | AX82: 0 | AY82: 0 | AZ82: 0 | BA82: 0 | BB82: 0
H83: =80 -> 80 | I83: 2033-03-15 | J83: =MAX(0,(J82*(1+$D$2/1200))-IF(J82<=0,0,MIN((J82*(1+$D$2/1200)),($E$2+'Debt Calculator'!$B$6+IF(J82<=0,$E$2,0)+IF(M82<=0,$E$3,0)+IF(P82<=0,$E$4,0)+IF(S82<=0,$E$5,0)+IF(V82<=0,$E$6,0)+IF(Y82<=0,$E$7,0)+IF(AB82<=0,$E$8,0)+IF(AE82<=0,$E$9,0)+IF(AH82<=0,$E$10,0)+IF(AK82<=0,$E$11,0)+IF(AN82<=0,$E$12,0)+IF(AQ82<=0,$E$13,0)+IF(AT82<=0,$E$14,0)+IF(AW82<=0,$E$15,0)+IF(AZ82<=0,$E$16,0))))) -> 0 | K83: =IF(J82<=0,0,MIN((J82*(1+$D$2/1200)),($E$2+'Debt Calculator'!$B$6+IF(J82<=0,$E$2,0)+IF(M82<=0,$E$3,0)+IF(P82<=0,$E$4,0)+IF(S82<=0,$E$5,0)+IF(V82<=0,$E$6,0)+IF(Y82<=0,$E$7,0)+IF(AB82<=0,$E$8,0)+IF(AE82<=0,$E$9,0)+IF(AH82<=0,$E$10,0)+IF(AK82<=0,$E$11,0)+IF(AN82<=0,$E$12,0)+IF(AQ82<=0,$E$13,0)+IF(AT82<=0,$E$14,0)+IF(AW82<=0,$E$15,0)+IF(AZ82<=0,$E$16,0)))) -> 0 | L83: =IF(J82<=0,'Debt Calculator'!$B$6+IF(J82<=0,$E$2,0)+IF(M82<=0,$E$3,0)+IF(P82<=0,$E$4,0)+IF(S82<=0,$E$5,0)+IF(V82<=0,$E$6,0)+IF(Y82<=0,$E$7,0)+IF(AB82<=0,$E$8,0)+IF(AE82<=0,$E$9,0)+IF(AH82<=0,$E$10,0)+IF(AK82<=0,$E$11,0)+IF(AN82<=0,$E$12,0)+IF(AQ82<=0,$E$13,0)+IF(AT82<=0,$E$14,0)+IF(AW82<=0,$E$15,0)+IF(AZ82<=0,$E$16,0),MAX(0,($E$2+'Debt Calculator'!$B$6+IF(J82<=0,$E$2,0)+IF(M82<=0,$E$3,0)+IF(P82<=0,$E$4,0)+IF(S82<=0,$E$5,0)+IF(V82<=0,$E$6,0)+IF(Y82<=0,$E$7,0)+IF(AB82<=0,$E$8,0)+IF(AE82<=0,$E$9,0)+IF(AH82<=0,$E$10,0)+IF(AK82<=0,$E$11,0)+IF(AN82<=0,$E$12,0)+IF(AQ82<=0,$E$13,0)+IF(AT82<=0,$E$14,0)+IF(AW82<=0,$E$15,0)+IF(AZ82<=0,$E$16,0))-(J82*(1+$D$2/1200)))) -> 885 | M83: 0 | N83: 0 | O83: 885 | P83: 0 | Q83: 0 | R83: 885 | S83: 0 | T83: 0 | U83: 885 | V83: 47931.86193 | W83: 2385 | X83: 0 | Y83: 0 | Z83: 0 | AA83: 0 | AB83: 0 | AC83: 0 | AD83: 0 | AE83: 0 | AF83: 0 | AG83: 0 | AH83: 0 | AI83: 0 | AJ83: 0 | AK83: 0 | AL83: 0 | AM83: 0 | AN83: 0 | AO83: 0 | AP83: 0 | AQ83: 0 | AR83: 0 | AS83: 0 | AT83: 0 | AU83: 0 | AV83: 0 | AW83: 0 | AX83: 0 | AY83: 0 | AZ83: 0 | BA83: 0 | BB83: 0
H84: =81 -> 81 | I84: 2033-04-15 | J84: =MAX(0,(J83*(1+$D$2/1200))-IF(J83<=0,0,MIN((J83*(1+$D$2/1200)),($E$2+'Debt Calculator'!$B$6+IF(J83<=0,$E$2,0)+IF(M83<=0,$E$3,0)+IF(P83<=0,$E$4,0)+IF(S83<=0,$E$5,0)+IF(V83<=0,$E$6,0)+IF(Y83<=0,$E$7,0)+IF(AB83<=0,$E$8,0)+IF(AE83<=0,$E$9,0)+IF(AH83<=0,$E$10,0)+IF(AK83<=0,$E$11,0)+IF(AN83<=0,$E$12,0)+IF(AQ83<=0,$E$13,0)+IF(AT83<=0,$E$14,0)+IF(AW83<=0,$E$15,0)+IF(AZ83<=0,$E$16,0))))) -> 0 | K84: =IF(J83<=0,0,MIN((J83*(1+$D$2/1200)),($E$2+'Debt Calculator'!$B$6+IF(J83<=0,$E$2,0)+IF(M83<=0,$E$3,0)+IF(P83<=0,$E$4,0)+IF(S83<=0,$E$5,0)+IF(V83<=0,$E$6,0)+IF(Y83<=0,$E$7,0)+IF(AB83<=0,$E$8,0)+IF(AE83<=0,$E$9,0)+IF(AH83<=0,$E$10,0)+IF(AK83<=0,$E$11,0)+IF(AN83<=0,$E$12,0)+IF(AQ83<=0,$E$13,0)+IF(AT83<=0,$E$14,0)+IF(AW83<=0,$E$15,0)+IF(AZ83<=0,$E$16,0)))) -> 0 | L84: =IF(J83<=0,'Debt Calculator'!$B$6+IF(J83<=0,$E$2,0)+IF(M83<=0,$E$3,0)+IF(P83<=0,$E$4,0)+IF(S83<=0,$E$5,0)+IF(V83<=0,$E$6,0)+IF(Y83<=0,$E$7,0)+IF(AB83<=0,$E$8,0)+IF(AE83<=0,$E$9,0)+IF(AH83<=0,$E$10,0)+IF(AK83<=0,$E$11,0)+IF(AN83<=0,$E$12,0)+IF(AQ83<=0,$E$13,0)+IF(AT83<=0,$E$14,0)+IF(AW83<=0,$E$15,0)+IF(AZ83<=0,$E$16,0),MAX(0,($E$2+'Debt Calculator'!$B$6+IF(J83<=0,$E$2,0)+IF(M83<=0,$E$3,0)+IF(P83<=0,$E$4,0)+IF(S83<=0,$E$5,0)+IF(V83<=0,$E$6,0)+IF(Y83<=0,$E$7,0)+IF(AB83<=0,$E$8,0)+IF(AE83<=0,$E$9,0)+IF(AH83<=0,$E$10,0)+IF(AK83<=0,$E$11,0)+IF(AN83<=0,$E$12,0)+IF(AQ83<=0,$E$13,0)+IF(AT83<=0,$E$14,0)+IF(AW83<=0,$E$15,0)+IF(AZ83<=0,$E$16,0))-(J83*(1+$D$2/1200)))) -> 885 | M84: 0 | N84: 0 | O84: 885 | P84: 0 | Q84: 0 | R84: 885 | S84: 0 | T84: 0 | U84: 885 | V84: 45666.69159 | W84: 2385 | X84: 0 | Y84: 0 | Z84: 0 | AA84: 0 | AB84: 0 | AC84: 0 | AD84: 0 | AE84: 0 | AF84: 0 | AG84: 0 | AH84: 0 | AI84: 0 | AJ84: 0 | AK84: 0 | AL84: 0 | AM84: 0 | AN84: 0 | AO84: 0 | AP84: 0 | AQ84: 0 | AR84: 0 | AS84: 0 | AT84: 0 | AU84: 0 | AV84: 0 | AW84: 0 | AX84: 0 | AY84: 0 | AZ84: 0 | BA84: 0 | BB84: 0
H85: =82 -> 82 | I85: 2033-05-15 | J85: =MAX(0,(J84*(1+$D$2/1200))-IF(J84<=0,0,MIN((J84*(1+$D$2/1200)),($E$2+'Debt Calculator'!$B$6+IF(J84<=0,$E$2,0)+IF(M84<=0,$E$3,0)+IF(P84<=0,$E$4,0)+IF(S84<=0,$E$5,0)+IF(V84<=0,$E$6,0)+IF(Y84<=0,$E$7,0)+IF(AB84<=0,$E$8,0)+IF(AE84<=0,$E$9,0)+IF(AH84<=0,$E$10,0)+IF(AK84<=0,$E$11,0)+IF(AN84<=0,$E$12,0)+IF(AQ84<=0,$E$13,0)+IF(AT84<=0,$E$14,0)+IF(AW84<=0,$E$15,0)+IF(AZ84<=0,$E$16,0))))) -> 0 | K85: =IF(J84<=0,0,MIN((J84*(1+$D$2/1200)),($E$2+'Debt Calculator'!$B$6+IF(J84<=0,$E$2,0)+IF(M84<=0,$E$3,0)+IF(P84<=0,$E$4,0)+IF(S84<=0,$E$5,0)+IF(V84<=0,$E$6,0)+IF(Y84<=0,$E$7,0)+IF(AB84<=0,$E$8,0)+IF(AE84<=0,$E$9,0)+IF(AH84<=0,$E$10,0)+IF(AK84<=0,$E$11,0)+IF(AN84<=0,$E$12,0)+IF(AQ84<=0,$E$13,0)+IF(AT84<=0,$E$14,0)+IF(AW84<=0,$E$15,0)+IF(AZ84<=0,$E$16,0)))) -> 0 | L85: =IF(J84<=0,'Debt Calculator'!$B$6+IF(J84<=0,$E$2,0)+IF(M84<=0,$E$3,0)+IF(P84<=0,$E$4,0)+IF(S84<=0,$E$5,0)+IF(V84<=0,$E$6,0)+IF(Y84<=0,$E$7,0)+IF(AB84<=0,$E$8,0)+IF(AE84<=0,$E$9,0)+IF(AH84<=0,$E$10,0)+IF(AK84<=0,$E$11,0)+IF(AN84<=0,$E$12,0)+IF(AQ84<=0,$E$13,0)+IF(AT84<=0,$E$14,0)+IF(AW84<=0,$E$15,0)+IF(AZ84<=0,$E$16,0),MAX(0,($E$2+'Debt Calculator'!$B$6+IF(J84<=0,$E$2,0)+IF(M84<=0,$E$3,0)+IF(P84<=0,$E$4,0)+IF(S84<=0,$E$5,0)+IF(V84<=0,$E$6,0)+IF(Y84<=0,$E$7,0)+IF(AB84<=0,$E$8,0)+IF(AE84<=0,$E$9,0)+IF(AH84<=0,$E$10,0)+IF(AK84<=0,$E$11,0)+IF(AN84<=0,$E$12,0)+IF(AQ84<=0,$E$13,0)+IF(AT84<=0,$E$14,0)+IF(AW84<=0,$E$15,0)+IF(AZ84<=0,$E$16,0))-(J84*(1+$D$2/1200)))) -> 885 | M85: 0 | N85: 0 | O85: 885 | P85: 0 | Q85: 0 | R85: 885 | S85: 0 | T85: 0 | U85: 885 | V85: 43395.85832 | W85: 2385 | X85: 0 | Y85: 0 | Z85: 0 | AA85: 0 | AB85: 0 | AC85: 0 | AD85: 0 | AE85: 0 | AF85: 0 | AG85: 0 | AH85: 0 | AI85: 0 | AJ85: 0 | AK85: 0 | AL85: 0 | AM85: 0 | AN85: 0 | AO85: 0 | AP85: 0 | AQ85: 0 | AR85: 0 | AS85: 0 | AT85: 0 | AU85: 0 | AV85: 0 | AW85: 0 | AX85: 0 | AY85: 0 | AZ85: 0 | BA85: 0 | BB85: 0
H86: =83 -> 83 | I86: 2033-06-15 | J86: =MAX(0,(J85*(1+$D$2/1200))-IF(J85<=0,0,MIN((J85*(1+$D$2/1200)),($E$2+'Debt Calculator'!$B$6+IF(J85<=0,$E$2,0)+IF(M85<=0,$E$3,0)+IF(P85<=0,$E$4,0)+IF(S85<=0,$E$5,0)+IF(V85<=0,$E$6,0)+IF(Y85<=0,$E$7,0)+IF(AB85<=0,$E$8,0)+IF(AE85<=0,$E$9,0)+IF(AH85<=0,$E$10,0)+IF(AK85<=0,$E$11,0)+IF(AN85<=0,$E$12,0)+IF(AQ85<=0,$E$13,0)+IF(AT85<=0,$E$14,0)+IF(AW85<=0,$E$15,0)+IF(AZ85<=0,$E$16,0))))) -> 0 | K86: =IF(J85<=0,0,MIN((J85*(1+$D$2/1200)),($E$2+'Debt Calculator'!$B$6+IF(J85<=0,$E$2,0)+IF(M85<=0,$E$3,0)+IF(P85<=0,$E$4,0)+IF(S85<=0,$E$5,0)+IF(V85<=0,$E$6,0)+IF(Y85<=0,$E$7,0)+IF(AB85<=0,$E$8,0)+IF(AE85<=0,$E$9,0)+IF(AH85<=0,$E$10,0)+IF(AK85<=0,$E$11,0)+IF(AN85<=0,$E$12,0)+IF(AQ85<=0,$E$13,0)+IF(AT85<=0,$E$14,0)+IF(AW85<=0,$E$15,0)+IF(AZ85<=0,$E$16,0)))) -> 0 | L86: =IF(J85<=0,'Debt Calculator'!$B$6+IF(J85<=0,$E$2,0)+IF(M85<=0,$E$3,0)+IF(P85<=0,$E$4,0)+IF(S85<=0,$E$5,0)+IF(V85<=0,$E$6,0)+IF(Y85<=0,$E$7,0)+IF(AB85<=0,$E$8,0)+IF(AE85<=0,$E$9,0)+IF(AH85<=0,$E$10,0)+IF(AK85<=0,$E$11,0)+IF(AN85<=0,$E$12,0)+IF(AQ85<=0,$E$13,0)+IF(AT85<=0,$E$14,0)+IF(AW85<=0,$E$15,0)+IF(AZ85<=0,$E$16,0),MAX(0,($E$2+'Debt Calculator'!$B$6+IF(J85<=0,$E$2,0)+IF(M85<=0,$E$3,0)+IF(P85<=0,$E$4,0)+IF(S85<=0,$E$5,0)+IF(V85<=0,$E$6,0)+IF(Y85<=0,$E$7,0)+IF(AB85<=0,$E$8,0)+IF(AE85<=0,$E$9,0)+IF(AH85<=0,$E$10,0)+IF(AK85<=0,$E$11,0)+IF(AN85<=0,$E$12,0)+IF(AQ85<=0,$E$13,0)+IF(AT85<=0,$E$14,0)+IF(AW85<=0,$E$15,0)+IF(AZ85<=0,$E$16,0))-(J85*(1+$D$2/1200)))) -> 885 | M86: 0 | N86: 0 | O86: 885 | P86: 0 | Q86: 0 | R86: 885 | S86: 0 | T86: 0 | U86: 885 | V86: 41119.34796 | W86: 2385 | X86: 0 | Y86: 0 | Z86: 0 | AA86: 0 | AB86: 0 | AC86: 0 | AD86: 0 | AE86: 0 | AF86: 0 | AG86: 0 | AH86: 0 | AI86: 0 | AJ86: 0 | AK86: 0 | AL86: 0 | AM86: 0 | AN86: 0 | AO86: 0 | AP86: 0 | AQ86: 0 | AR86: 0 | AS86: 0 | AT86: 0 | AU86: 0 | AV86: 0 | AW86: 0 | AX86: 0 | AY86: 0 | AZ86: 0 | BA86: 0 | BB86: 0
H87: =84 -> 84 | I87: 2033-07-15 | J87: =MAX(0,(J86*(1+$D$2/1200))-IF(J86<=0,0,MIN((J86*(1+$D$2/1200)),($E$2+'Debt Calculator'!$B$6+IF(J86<=0,$E$2,0)+IF(M86<=0,$E$3,0)+IF(P86<=0,$E$4,0)+IF(S86<=0,$E$5,0)+IF(V86<=0,$E$6,0)+IF(Y86<=0,$E$7,0)+IF(AB86<=0,$E$8,0)+IF(AE86<=0,$E$9,0)+IF(AH86<=0,$E$10,0)+IF(AK86<=0,$E$11,0)+IF(AN86<=0,$E$12,0)+IF(AQ86<=0,$E$13,0)+IF(AT86<=0,$E$14,0)+IF(AW86<=0,$E$15,0)+IF(AZ86<=0,$E$16,0))))) -> 0 | K87: =IF(J86<=0,0,MIN((J86*(1+$D$2/1200)),($E$2+'Debt Calculator'!$B$6+IF(J86<=0,$E$2,0)+IF(M86<=0,$E$3,0)+IF(P86<=0,$E$4,0)+IF(S86<=0,$E$5,0)+IF(V86<=0,$E$6,0)+IF(Y86<=0,$E$7,0)+IF(AB86<=0,$E$8,0)+IF(AE86<=0,$E$9,0)+IF(AH86<=0,$E$10,0)+IF(AK86<=0,$E$11,0)+IF(AN86<=0,$E$12,0)+IF(AQ86<=0,$E$13,0)+IF(AT86<=0,$E$14,0)+IF(AW86<=0,$E$15,0)+IF(AZ86<=0,$E$16,0)))) -> 0 | L87: =IF(J86<=0,'Debt Calculator'!$B$6+IF(J86<=0,$E$2,0)+IF(M86<=0,$E$3,0)+IF(P86<=0,$E$4,0)+IF(S86<=0,$E$5,0)+IF(V86<=0,$E$6,0)+IF(Y86<=0,$E$7,0)+IF(AB86<=0,$E$8,0)+IF(AE86<=0,$E$9,0)+IF(AH86<=0,$E$10,0)+IF(AK86<=0,$E$11,0)+IF(AN86<=0,$E$12,0)+IF(AQ86<=0,$E$13,0)+IF(AT86<=0,$E$14,0)+IF(AW86<=0,$E$15,0)+IF(AZ86<=0,$E$16,0),MAX(0,($E$2+'Debt Calculator'!$B$6+IF(J86<=0,$E$2,0)+IF(M86<=0,$E$3,0)+IF(P86<=0,$E$4,0)+IF(S86<=0,$E$5,0)+IF(V86<=0,$E$6,0)+IF(Y86<=0,$E$7,0)+IF(AB86<=0,$E$8,0)+IF(AE86<=0,$E$9,0)+IF(AH86<=0,$E$10,0)+IF(AK86<=0,$E$11,0)+IF(AN86<=0,$E$12,0)+IF(AQ86<=0,$E$13,0)+IF(AT86<=0,$E$14,0)+IF(AW86<=0,$E$15,0)+IF(AZ86<=0,$E$16,0))-(J86*(1+$D$2/1200)))) -> 885 | M87: 0 | N87: 0 | O87: 885 | P87: 0 | Q87: 0 | R87: 885 | S87: 0 | T87: 0 | U87: 885 | V87: 38837.14633 | W87: 2385 | X87: 0 | Y87: 0 | Z87: 0 | AA87: 0 | AB87: 0 | AC87: 0 | AD87: 0 | AE87: 0 | AF87: 0 | AG87: 0 | AH87: 0 | AI87: 0 | AJ87: 0 | AK87: 0 | AL87: 0 | AM87: 0 | AN87: 0 | AO87: 0 | AP87: 0 | AQ87: 0 | AR87: 0 | AS87: 0 | AT87: 0 | AU87: 0 | AV87: 0 | AW87: 0 | AX87: 0 | AY87: 0 | AZ87: 0 | BA87: 0 | BB87: 0
H88: =85 -> 85 | I88: 2033-08-15 | J88: =MAX(0,(J87*(1+$D$2/1200))-IF(J87<=0,0,MIN((J87*(1+$D$2/1200)),($E$2+'Debt Calculator'!$B$6+IF(J87<=0,$E$2,0)+IF(M87<=0,$E$3,0)+IF(P87<=0,$E$4,0)+IF(S87<=0,$E$5,0)+IF(V87<=0,$E$6,0)+IF(Y87<=0,$E$7,0)+IF(AB87<=0,$E$8,0)+IF(AE87<=0,$E$9,0)+IF(AH87<=0,$E$10,0)+IF(AK87<=0,$E$11,0)+IF(AN87<=0,$E$12,0)+IF(AQ87<=0,$E$13,0)+IF(AT87<=0,$E$14,0)+IF(AW87<=0,$E$15,0)+IF(AZ87<=0,$E$16,0))))) -> 0 | K88: =IF(J87<=0,0,MIN((J87*(1+$D$2/1200)),($E$2+'Debt Calculator'!$B$6+IF(J87<=0,$E$2,0)+IF(M87<=0,$E$3,0)+IF(P87<=0,$E$4,0)+IF(S87<=0,$E$5,0)+IF(V87<=0,$E$6,0)+IF(Y87<=0,$E$7,0)+IF(AB87<=0,$E$8,0)+IF(AE87<=0,$E$9,0)+IF(AH87<=0,$E$10,0)+IF(AK87<=0,$E$11,0)+IF(AN87<=0,$E$12,0)+IF(AQ87<=0,$E$13,0)+IF(AT87<=0,$E$14,0)+IF(AW87<=0,$E$15,0)+IF(AZ87<=0,$E$16,0)))) -> 0 | L88: =IF(J87<=0,'Debt Calculator'!$B$6+IF(J87<=0,$E$2,0)+IF(M87<=0,$E$3,0)+IF(P87<=0,$E$4,0)+IF(S87<=0,$E$5,0)+IF(V87<=0,$E$6,0)+IF(Y87<=0,$E$7,0)+IF(AB87<=0,$E$8,0)+IF(AE87<=0,$E$9,0)+IF(AH87<=0,$E$10,0)+IF(AK87<=0,$E$11,0)+IF(AN87<=0,$E$12,0)+IF(AQ87<=0,$E$13,0)+IF(AT87<=0,$E$14,0)+IF(AW87<=0,$E$15,0)+IF(AZ87<=0,$E$16,0),MAX(0,($E$2+'Debt Calculator'!$B$6+IF(J87<=0,$E$2,0)+IF(M87<=0,$E$3,0)+IF(P87<=0,$E$4,0)+IF(S87<=0,$E$5,0)+IF(V87<=0,$E$6,0)+IF(Y87<=0,$E$7,0)+IF(AB87<=0,$E$8,0)+IF(AE87<=0,$E$9,0)+IF(AH87<=0,$E$10,0)+IF(AK87<=0,$E$11,0)+IF(AN87<=0,$E$12,0)+IF(AQ87<=0,$E$13,0)+IF(AT87<=0,$E$14,0)+IF(AW87<=0,$E$15,0)+IF(AZ87<=0,$E$16,0))-(J87*(1+$D$2/1200)))) -> 885 | M88: 0 | N88: 0 | O88: 885 | P88: 0 | Q88: 0 | R88: 885 | S88: 0 | T88: 0 | U88: 885 | V88: 36549.2392 | W88: 2385 | X88: 0 | Y88: 0 | Z88: 0 | AA88: 0 | AB88: 0 | AC88: 0 | AD88: 0 | AE88: 0 | AF88: 0 | AG88: 0 | AH88: 0 | AI88: 0 | AJ88: 0 | AK88: 0 | AL88: 0 | AM88: 0 | AN88: 0 | AO88: 0 | AP88: 0 | AQ88: 0 | AR88: 0 | AS88: 0 | AT88: 0 | AU88: 0 | AV88: 0 | AW88: 0 | AX88: 0 | AY88: 0 | AZ88: 0 | BA88: 0 | BB88: 0
H89: =86 -> 86 | I89: 2033-09-15 | J89: =MAX(0,(J88*(1+$D$2/1200))-IF(J88<=0,0,MIN((J88*(1+$D$2/1200)),($E$2+'Debt Calculator'!$B$6+IF(J88<=0,$E$2,0)+IF(M88<=0,$E$3,0)+IF(P88<=0,$E$4,0)+IF(S88<=0,$E$5,0)+IF(V88<=0,$E$6,0)+IF(Y88<=0,$E$7,0)+IF(AB88<=0,$E$8,0)+IF(AE88<=0,$E$9,0)+IF(AH88<=0,$E$10,0)+IF(AK88<=0,$E$11,0)+IF(AN88<=0,$E$12,0)+IF(AQ88<=0,$E$13,0)+IF(AT88<=0,$E$14,0)+IF(AW88<=0,$E$15,0)+IF(AZ88<=0,$E$16,0))))) -> 0 | K89: =IF(J88<=0,0,MIN((J88*(1+$D$2/1200)),($E$2+'Debt Calculator'!$B$6+IF(J88<=0,$E$2,0)+IF(M88<=0,$E$3,0)+IF(P88<=0,$E$4,0)+IF(S88<=0,$E$5,0)+IF(V88<=0,$E$6,0)+IF(Y88<=0,$E$7,0)+IF(AB88<=0,$E$8,0)+IF(AE88<=0,$E$9,0)+IF(AH88<=0,$E$10,0)+IF(AK88<=0,$E$11,0)+IF(AN88<=0,$E$12,0)+IF(AQ88<=0,$E$13,0)+IF(AT88<=0,$E$14,0)+IF(AW88<=0,$E$15,0)+IF(AZ88<=0,$E$16,0)))) -> 0 | L89: =IF(J88<=0,'Debt Calculator'!$B$6+IF(J88<=0,$E$2,0)+IF(M88<=0,$E$3,0)+IF(P88<=0,$E$4,0)+IF(S88<=0,$E$5,0)+IF(V88<=0,$E$6,0)+IF(Y88<=0,$E$7,0)+IF(AB88<=0,$E$8,0)+IF(AE88<=0,$E$9,0)+IF(AH88<=0,$E$10,0)+IF(AK88<=0,$E$11,0)+IF(AN88<=0,$E$12,0)+IF(AQ88<=0,$E$13,0)+IF(AT88<=0,$E$14,0)+IF(AW88<=0,$E$15,0)+IF(AZ88<=0,$E$16,0),MAX(0,($E$2+'Debt Calculator'!$B$6+IF(J88<=0,$E$2,0)+IF(M88<=0,$E$3,0)+IF(P88<=0,$E$4,0)+IF(S88<=0,$E$5,0)+IF(V88<=0,$E$6,0)+IF(Y88<=0,$E$7,0)+IF(AB88<=0,$E$8,0)+IF(AE88<=0,$E$9,0)+IF(AH88<=0,$E$10,0)+IF(AK88<=0,$E$11,0)+IF(AN88<=0,$E$12,0)+IF(AQ88<=0,$E$13,0)+IF(AT88<=0,$E$14,0)+IF(AW88<=0,$E$15,0)+IF(AZ88<=0,$E$16,0))-(J88*(1+$D$2/1200)))) -> 885 | M89: 0 | N89: 0 | O89: 885 | P89: 0 | Q89: 0 | R89: 885 | S89: 0 | T89: 0 | U89: 885 | V89: 34255.6123 | W89: 2385 | X89: 0 | Y89: 0 | Z89: 0 | AA89: 0 | AB89: 0 | AC89: 0 | AD89: 0 | AE89: 0 | AF89: 0 | AG89: 0 | AH89: 0 | AI89: 0 | AJ89: 0 | AK89: 0 | AL89: 0 | AM89: 0 | AN89: 0 | AO89: 0 | AP89: 0 | AQ89: 0 | AR89: 0 | AS89: 0 | AT89: 0 | AU89: 0 | AV89: 0 | AW89: 0 | AX89: 0 | AY89: 0 | AZ89: 0 | BA89: 0 | BB89: 0
H90: =87 -> 87 | I90: 2033-10-15 | J90: =MAX(0,(J89*(1+$D$2/1200))-IF(J89<=0,0,MIN((J89*(1+$D$2/1200)),($E$2+'Debt Calculator'!$B$6+IF(J89<=0,$E$2,0)+IF(M89<=0,$E$3,0)+IF(P89<=0,$E$4,0)+IF(S89<=0,$E$5,0)+IF(V89<=0,$E$6,0)+IF(Y89<=0,$E$7,0)+IF(AB89<=0,$E$8,0)+IF(AE89<=0,$E$9,0)+IF(AH89<=0,$E$10,0)+IF(AK89<=0,$E$11,0)+IF(AN89<=0,$E$12,0)+IF(AQ89<=0,$E$13,0)+IF(AT89<=0,$E$14,0)+IF(AW89<=0,$E$15,0)+IF(AZ89<=0,$E$16,0))))) -> 0 | K90: =IF(J89<=0,0,MIN((J89*(1+$D$2/1200)),($E$2+'Debt Calculator'!$B$6+IF(J89<=0,$E$2,0)+IF(M89<=0,$E$3,0)+IF(P89<=0,$E$4,0)+IF(S89<=0,$E$5,0)+IF(V89<=0,$E$6,0)+IF(Y89<=0,$E$7,0)+IF(AB89<=0,$E$8,0)+IF(AE89<=0,$E$9,0)+IF(AH89<=0,$E$10,0)+IF(AK89<=0,$E$11,0)+IF(AN89<=0,$E$12,0)+IF(AQ89<=0,$E$13,0)+IF(AT89<=0,$E$14,0)+IF(AW89<=0,$E$15,0)+IF(AZ89<=0,$E$16,0)))) -> 0 | L90: =IF(J89<=0,'Debt Calculator'!$B$6+IF(J89<=0,$E$2,0)+IF(M89<=0,$E$3,0)+IF(P89<=0,$E$4,0)+IF(S89<=0,$E$5,0)+IF(V89<=0,$E$6,0)+IF(Y89<=0,$E$7,0)+IF(AB89<=0,$E$8,0)+IF(AE89<=0,$E$9,0)+IF(AH89<=0,$E$10,0)+IF(AK89<=0,$E$11,0)+IF(AN89<=0,$E$12,0)+IF(AQ89<=0,$E$13,0)+IF(AT89<=0,$E$14,0)+IF(AW89<=0,$E$15,0)+IF(AZ89<=0,$E$16,0),MAX(0,($E$2+'Debt Calculator'!$B$6+IF(J89<=0,$E$2,0)+IF(M89<=0,$E$3,0)+IF(P89<=0,$E$4,0)+IF(S89<=0,$E$5,0)+IF(V89<=0,$E$6,0)+IF(Y89<=0,$E$7,0)+IF(AB89<=0,$E$8,0)+IF(AE89<=0,$E$9,0)+IF(AH89<=0,$E$10,0)+IF(AK89<=0,$E$11,0)+IF(AN89<=0,$E$12,0)+IF(AQ89<=0,$E$13,0)+IF(AT89<=0,$E$14,0)+IF(AW89<=0,$E$15,0)+IF(AZ89<=0,$E$16,0))-(J89*(1+$D$2/1200)))) -> 885 | M90: 0 | N90: 0 | O90: 885 | P90: 0 | Q90: 0 | R90: 885 | S90: 0 | T90: 0 | U90: 885 | V90: 31956.25133 | W90: 2385 | X90: 0 | Y90: 0 | Z90: 0 | AA90: 0 | AB90: 0 | AC90: 0 | AD90: 0 | AE90: 0 | AF90: 0 | AG90: 0 | AH90: 0 | AI90: 0 | AJ90: 0 | AK90: 0 | AL90: 0 | AM90: 0 | AN90: 0 | AO90: 0 | AP90: 0 | AQ90: 0 | AR90: 0 | AS90: 0 | AT90: 0 | AU90: 0 | AV90: 0 | AW90: 0 | AX90: 0 | AY90: 0 | AZ90: 0 | BA90: 0 | BB90: 0
H91: =88 -> 88 | I91: 2033-11-15 | J91: =MAX(0,(J90*(1+$D$2/1200))-IF(J90<=0,0,MIN((J90*(1+$D$2/1200)),($E$2+'Debt Calculator'!$B$6+IF(J90<=0,$E$2,0)+IF(M90<=0,$E$3,0)+IF(P90<=0,$E$4,0)+IF(S90<=0,$E$5,0)+IF(V90<=0,$E$6,0)+IF(Y90<=0,$E$7,0)+IF(AB90<=0,$E$8,0)+IF(AE90<=0,$E$9,0)+IF(AH90<=0,$E$10,0)+IF(AK90<=0,$E$11,0)+IF(AN90<=0,$E$12,0)+IF(AQ90<=0,$E$13,0)+IF(AT90<=0,$E$14,0)+IF(AW90<=0,$E$15,0)+IF(AZ90<=0,$E$16,0))))) -> 0 | K91: =IF(J90<=0,0,MIN((J90*(1+$D$2/1200)),($E$2+'Debt Calculator'!$B$6+IF(J90<=0,$E$2,0)+IF(M90<=0,$E$3,0)+IF(P90<=0,$E$4,0)+IF(S90<=0,$E$5,0)+IF(V90<=0,$E$6,0)+IF(Y90<=0,$E$7,0)+IF(AB90<=0,$E$8,0)+IF(AE90<=0,$E$9,0)+IF(AH90<=0,$E$10,0)+IF(AK90<=0,$E$11,0)+IF(AN90<=0,$E$12,0)+IF(AQ90<=0,$E$13,0)+IF(AT90<=0,$E$14,0)+IF(AW90<=0,$E$15,0)+IF(AZ90<=0,$E$16,0)))) -> 0 | L91: =IF(J90<=0,'Debt Calculator'!$B$6+IF(J90<=0,$E$2,0)+IF(M90<=0,$E$3,0)+IF(P90<=0,$E$4,0)+IF(S90<=0,$E$5,0)+IF(V90<=0,$E$6,0)+IF(Y90<=0,$E$7,0)+IF(AB90<=0,$E$8,0)+IF(AE90<=0,$E$9,0)+IF(AH90<=0,$E$10,0)+IF(AK90<=0,$E$11,0)+IF(AN90<=0,$E$12,0)+IF(AQ90<=0,$E$13,0)+IF(AT90<=0,$E$14,0)+IF(AW90<=0,$E$15,0)+IF(AZ90<=0,$E$16,0),MAX(0,($E$2+'Debt Calculator'!$B$6+IF(J90<=0,$E$2,0)+IF(M90<=0,$E$3,0)+IF(P90<=0,$E$4,0)+IF(S90<=0,$E$5,0)+IF(V90<=0,$E$6,0)+IF(Y90<=0,$E$7,0)+IF(AB90<=0,$E$8,0)+IF(AE90<=0,$E$9,0)+IF(AH90<=0,$E$10,0)+IF(AK90<=0,$E$11,0)+IF(AN90<=0,$E$12,0)+IF(AQ90<=0,$E$13,0)+IF(AT90<=0,$E$14,0)+IF(AW90<=0,$E$15,0)+IF(AZ90<=0,$E$16,0))-(J90*(1+$D$2/1200)))) -> 885 | M91: 0 | N91: 0 | O91: 885 | P91: 0 | Q91: 0 | R91: 885 | S91: 0 | T91: 0 | U91: 885 | V91: 29651.14196 | W91: 2385 | X91: 0 | Y91: 0 | Z91: 0 | AA91: 0 | AB91: 0 | AC91: 0 | AD91: 0 | AE91: 0 | AF91: 0 | AG91: 0 | AH91: 0 | AI91: 0 | AJ91: 0 | AK91: 0 | AL91: 0 | AM91: 0 | AN91: 0 | AO91: 0 | AP91: 0 | AQ91: 0 | AR91: 0 | AS91: 0 | AT91: 0 | AU91: 0 | AV91: 0 | AW91: 0 | AX91: 0 | AY91: 0 | AZ91: 0 | BA91: 0 | BB91: 0
H92: =89 -> 89 | I92: 2033-12-15 | J92: =MAX(0,(J91*(1+$D$2/1200))-IF(J91<=0,0,MIN((J91*(1+$D$2/1200)),($E$2+'Debt Calculator'!$B$6+IF(J91<=0,$E$2,0)+IF(M91<=0,$E$3,0)+IF(P91<=0,$E$4,0)+IF(S91<=0,$E$5,0)+IF(V91<=0,$E$6,0)+IF(Y91<=0,$E$7,0)+IF(AB91<=0,$E$8,0)+IF(AE91<=0,$E$9,0)+IF(AH91<=0,$E$10,0)+IF(AK91<=0,$E$11,0)+IF(AN91<=0,$E$12,0)+IF(AQ91<=0,$E$13,0)+IF(AT91<=0,$E$14,0)+IF(AW91<=0,$E$15,0)+IF(AZ91<=0,$E$16,0))))) -> 0 | K92: =IF(J91<=0,0,MIN((J91*(1+$D$2/1200)),($E$2+'Debt Calculator'!$B$6+IF(J91<=0,$E$2,0)+IF(M91<=0,$E$3,0)+IF(P91<=0,$E$4,0)+IF(S91<=0,$E$5,0)+IF(V91<=0,$E$6,0)+IF(Y91<=0,$E$7,0)+IF(AB91<=0,$E$8,0)+IF(AE91<=0,$E$9,0)+IF(AH91<=0,$E$10,0)+IF(AK91<=0,$E$11,0)+IF(AN91<=0,$E$12,0)+IF(AQ91<=0,$E$13,0)+IF(AT91<=0,$E$14,0)+IF(AW91<=0,$E$15,0)+IF(AZ91<=0,$E$16,0)))) -> 0 | L92: =IF(J91<=0,'Debt Calculator'!$B$6+IF(J91<=0,$E$2,0)+IF(M91<=0,$E$3,0)+IF(P91<=0,$E$4,0)+IF(S91<=0,$E$5,0)+IF(V91<=0,$E$6,0)+IF(Y91<=0,$E$7,0)+IF(AB91<=0,$E$8,0)+IF(AE91<=0,$E$9,0)+IF(AH91<=0,$E$10,0)+IF(AK91<=0,$E$11,0)+IF(AN91<=0,$E$12,0)+IF(AQ91<=0,$E$13,0)+IF(AT91<=0,$E$14,0)+IF(AW91<=0,$E$15,0)+IF(AZ91<=0,$E$16,0),MAX(0,($E$2+'Debt Calculator'!$B$6+IF(J91<=0,$E$2,0)+IF(M91<=0,$E$3,0)+IF(P91<=0,$E$4,0)+IF(S91<=0,$E$5,0)+IF(V91<=0,$E$6,0)+IF(Y91<=0,$E$7,0)+IF(AB91<=0,$E$8,0)+IF(AE91<=0,$E$9,0)+IF(AH91<=0,$E$10,0)+IF(AK91<=0,$E$11,0)+IF(AN91<=0,$E$12,0)+IF(AQ91<=0,$E$13,0)+IF(AT91<=0,$E$14,0)+IF(AW91<=0,$E$15,0)+IF(AZ91<=0,$E$16,0))-(J91*(1+$D$2/1200)))) -> 885 | M92: 0 | N92: 0 | O92: 885 | P92: 0 | Q92: 0 | R92: 885 | S92: 0 | T92: 0 | U92: 885 | V92: 27340.26981 | W92: 2385 | X92: 0 | Y92: 0 | Z92: 0 | AA92: 0 | AB92: 0 | AC92: 0 | AD92: 0 | AE92: 0 | AF92: 0 | AG92: 0 | AH92: 0 | AI92: 0 | AJ92: 0 | AK92: 0 | AL92: 0 | AM92: 0 | AN92: 0 | AO92: 0 | AP92: 0 | AQ92: 0 | AR92: 0 | AS92: 0 | AT92: 0 | AU92: 0 | AV92: 0 | AW92: 0 | AX92: 0 | AY92: 0 | AZ92: 0 | BA92: 0 | BB92: 0
H93: =90 -> 90 | I93: 2034-01-15 | J93: =MAX(0,(J92*(1+$D$2/1200))-IF(J92<=0,0,MIN((J92*(1+$D$2/1200)),($E$2+'Debt Calculator'!$B$6+IF(J92<=0,$E$2,0)+IF(M92<=0,$E$3,0)+IF(P92<=0,$E$4,0)+IF(S92<=0,$E$5,0)+IF(V92<=0,$E$6,0)+IF(Y92<=0,$E$7,0)+IF(AB92<=0,$E$8,0)+IF(AE92<=0,$E$9,0)+IF(AH92<=0,$E$10,0)+IF(AK92<=0,$E$11,0)+IF(AN92<=0,$E$12,0)+IF(AQ92<=0,$E$13,0)+IF(AT92<=0,$E$14,0)+IF(AW92<=0,$E$15,0)+IF(AZ92<=0,$E$16,0))))) -> 0 | K93: =IF(J92<=0,0,MIN((J92*(1+$D$2/1200)),($E$2+'Debt Calculator'!$B$6+IF(J92<=0,$E$2,0)+IF(M92<=0,$E$3,0)+IF(P92<=0,$E$4,0)+IF(S92<=0,$E$5,0)+IF(V92<=0,$E$6,0)+IF(Y92<=0,$E$7,0)+IF(AB92<=0,$E$8,0)+IF(AE92<=0,$E$9,0)+IF(AH92<=0,$E$10,0)+IF(AK92<=0,$E$11,0)+IF(AN92<=0,$E$12,0)+IF(AQ92<=0,$E$13,0)+IF(AT92<=0,$E$14,0)+IF(AW92<=0,$E$15,0)+IF(AZ92<=0,$E$16,0)))) -> 0 | L93: =IF(J92<=0,'Debt Calculator'!$B$6+IF(J92<=0,$E$2,0)+IF(M92<=0,$E$3,0)+IF(P92<=0,$E$4,0)+IF(S92<=0,$E$5,0)+IF(V92<=0,$E$6,0)+IF(Y92<=0,$E$7,0)+IF(AB92<=0,$E$8,0)+IF(AE92<=0,$E$9,0)+IF(AH92<=0,$E$10,0)+IF(AK92<=0,$E$11,0)+IF(AN92<=0,$E$12,0)+IF(AQ92<=0,$E$13,0)+IF(AT92<=0,$E$14,0)+IF(AW92<=0,$E$15,0)+IF(AZ92<=0,$E$16,0),MAX(0,($E$2+'Debt Calculator'!$B$6+IF(J92<=0,$E$2,0)+IF(M92<=0,$E$3,0)+IF(P92<=0,$E$4,0)+IF(S92<=0,$E$5,0)+IF(V92<=0,$E$6,0)+IF(Y92<=0,$E$7,0)+IF(AB92<=0,$E$8,0)+IF(AE92<=0,$E$9,0)+IF(AH92<=0,$E$10,0)+IF(AK92<=0,$E$11,0)+IF(AN92<=0,$E$12,0)+IF(AQ92<=0,$E$13,0)+IF(AT92<=0,$E$14,0)+IF(AW92<=0,$E$15,0)+IF(AZ92<=0,$E$16,0))-(J92*(1+$D$2/1200)))) -> 885 | M93: 0 | N93: 0 | O93: 885 | P93: 0 | Q93: 0 | R93: 885 | S93: 0 | T93: 0 | U93: 885 | V93: 25023.62049 | W93: 2385 | X93: 0 | Y93: 0 | Z93: 0 | AA93: 0 | AB93: 0 | AC93: 0 | AD93: 0 | AE93: 0 | AF93: 0 | AG93: 0 | AH93: 0 | AI93: 0 | AJ93: 0 | AK93: 0 | AL93: 0 | AM93: 0 | AN93: 0 | AO93: 0 | AP93: 0 | AQ93: 0 | AR93: 0 | AS93: 0 | AT93: 0 | AU93: 0 | AV93: 0 | AW93: 0 | AX93: 0 | AY93: 0 | AZ93: 0 | BA93: 0 | BB93: 0
H94: =91 -> 91 | I94: 2034-02-15 | J94: =MAX(0,(J93*(1+$D$2/1200))-IF(J93<=0,0,MIN((J93*(1+$D$2/1200)),($E$2+'Debt Calculator'!$B$6+IF(J93<=0,$E$2,0)+IF(M93<=0,$E$3,0)+IF(P93<=0,$E$4,0)+IF(S93<=0,$E$5,0)+IF(V93<=0,$E$6,0)+IF(Y93<=0,$E$7,0)+IF(AB93<=0,$E$8,0)+IF(AE93<=0,$E$9,0)+IF(AH93<=0,$E$10,0)+IF(AK93<=0,$E$11,0)+IF(AN93<=0,$E$12,0)+IF(AQ93<=0,$E$13,0)+IF(AT93<=0,$E$14,0)+IF(AW93<=0,$E$15,0)+IF(AZ93<=0,$E$16,0))))) -> 0 | K94: =IF(J93<=0,0,MIN((J93*(1+$D$2/1200)),($E$2+'Debt Calculator'!$B$6+IF(J93<=0,$E$2,0)+IF(M93<=0,$E$3,0)+IF(P93<=0,$E$4,0)+IF(S93<=0,$E$5,0)+IF(V93<=0,$E$6,0)+IF(Y93<=0,$E$7,0)+IF(AB93<=0,$E$8,0)+IF(AE93<=0,$E$9,0)+IF(AH93<=0,$E$10,0)+IF(AK93<=0,$E$11,0)+IF(AN93<=0,$E$12,0)+IF(AQ93<=0,$E$13,0)+IF(AT93<=0,$E$14,0)+IF(AW93<=0,$E$15,0)+IF(AZ93<=0,$E$16,0)))) -> 0 | L94: =IF(J93<=0,'Debt Calculator'!$B$6+IF(J93<=0,$E$2,0)+IF(M93<=0,$E$3,0)+IF(P93<=0,$E$4,0)+IF(S93<=0,$E$5,0)+IF(V93<=0,$E$6,0)+IF(Y93<=0,$E$7,0)+IF(AB93<=0,$E$8,0)+IF(AE93<=0,$E$9,0)+IF(AH93<=0,$E$10,0)+IF(AK93<=0,$E$11,0)+IF(AN93<=0,$E$12,0)+IF(AQ93<=0,$E$13,0)+IF(AT93<=0,$E$14,0)+IF(AW93<=0,$E$15,0)+IF(AZ93<=0,$E$16,0),MAX(0,($E$2+'Debt Calculator'!$B$6+IF(J93<=0,$E$2,0)+IF(M93<=0,$E$3,0)+IF(P93<=0,$E$4,0)+IF(S93<=0,$E$5,0)+IF(V93<=0,$E$6,0)+IF(Y93<=0,$E$7,0)+IF(AB93<=0,$E$8,0)+IF(AE93<=0,$E$9,0)+IF(AH93<=0,$E$10,0)+IF(AK93<=0,$E$11,0)+IF(AN93<=0,$E$12,0)+IF(AQ93<=0,$E$13,0)+IF(AT93<=0,$E$14,0)+IF(AW93<=0,$E$15,0)+IF(AZ93<=0,$E$16,0))-(J93*(1+$D$2/1200)))) -> 885 | M94: 0 | N94: 0 | O94: 885 | P94: 0 | Q94: 0 | R94: 885 | S94: 0 | T94: 0 | U94: 885 | V94: 22701.17954 | W94: 2385 | X94: 0 | Y94: 0 | Z94: 0 | AA94: 0 | AB94: 0 | AC94: 0 | AD94: 0 | AE94: 0 | AF94: 0 | AG94: 0 | AH94: 0 | AI94: 0 | AJ94: 0 | AK94: 0 | AL94: 0 | AM94: 0 | AN94: 0 | AO94: 0 | AP94: 0 | AQ94: 0 | AR94: 0 | AS94: 0 | AT94: 0 | AU94: 0 | AV94: 0 | AW94: 0 | AX94: 0 | AY94: 0 | AZ94: 0 | BA94: 0 | BB94: 0
H95: =92 -> 92 | I95: 2034-03-15 | J95: =MAX(0,(J94*(1+$D$2/1200))-IF(J94<=0,0,MIN((J94*(1+$D$2/1200)),($E$2+'Debt Calculator'!$B$6+IF(J94<=0,$E$2,0)+IF(M94<=0,$E$3,0)+IF(P94<=0,$E$4,0)+IF(S94<=0,$E$5,0)+IF(V94<=0,$E$6,0)+IF(Y94<=0,$E$7,0)+IF(AB94<=0,$E$8,0)+IF(AE94<=0,$E$9,0)+IF(AH94<=0,$E$10,0)+IF(AK94<=0,$E$11,0)+IF(AN94<=0,$E$12,0)+IF(AQ94<=0,$E$13,0)+IF(AT94<=0,$E$14,0)+IF(AW94<=0,$E$15,0)+IF(AZ94<=0,$E$16,0))))) -> 0 | K95: =IF(J94<=0,0,MIN((J94*(1+$D$2/1200)),($E$2+'Debt Calculator'!$B$6+IF(J94<=0,$E$2,0)+IF(M94<=0,$E$3,0)+IF(P94<=0,$E$4,0)+IF(S94<=0,$E$5,0)+IF(V94<=0,$E$6,0)+IF(Y94<=0,$E$7,0)+IF(AB94<=0,$E$8,0)+IF(AE94<=0,$E$9,0)+IF(AH94<=0,$E$10,0)+IF(AK94<=0,$E$11,0)+IF(AN94<=0,$E$12,0)+IF(AQ94<=0,$E$13,0)+IF(AT94<=0,$E$14,0)+IF(AW94<=0,$E$15,0)+IF(AZ94<=0,$E$16,0)))) -> 0 | L95: =IF(J94<=0,'Debt Calculator'!$B$6+IF(J94<=0,$E$2,0)+IF(M94<=0,$E$3,0)+IF(P94<=0,$E$4,0)+IF(S94<=0,$E$5,0)+IF(V94<=0,$E$6,0)+IF(Y94<=0,$E$7,0)+IF(AB94<=0,$E$8,0)+IF(AE94<=0,$E$9,0)+IF(AH94<=0,$E$10,0)+IF(AK94<=0,$E$11,0)+IF(AN94<=0,$E$12,0)+IF(AQ94<=0,$E$13,0)+IF(AT94<=0,$E$14,0)+IF(AW94<=0,$E$15,0)+IF(AZ94<=0,$E$16,0),MAX(0,($E$2+'Debt Calculator'!$B$6+IF(J94<=0,$E$2,0)+IF(M94<=0,$E$3,0)+IF(P94<=0,$E$4,0)+IF(S94<=0,$E$5,0)+IF(V94<=0,$E$6,0)+IF(Y94<=0,$E$7,0)+IF(AB94<=0,$E$8,0)+IF(AE94<=0,$E$9,0)+IF(AH94<=0,$E$10,0)+IF(AK94<=0,$E$11,0)+IF(AN94<=0,$E$12,0)+IF(AQ94<=0,$E$13,0)+IF(AT94<=0,$E$14,0)+IF(AW94<=0,$E$15,0)+IF(AZ94<=0,$E$16,0))-(J94*(1+$D$2/1200)))) -> 885 | M95: 0 | N95: 0 | O95: 885 | P95: 0 | Q95: 0 | R95: 885 | S95: 0 | T95: 0 | U95: 885 | V95: 20372.93249 | W95: 2385 | X95: 0 | Y95: 0 | Z95: 0 | AA95: 0 | AB95: 0 | AC95: 0 | AD95: 0 | AE95: 0 | AF95: 0 | AG95: 0 | AH95: 0 | AI95: 0 | AJ95: 0 | AK95: 0 | AL95: 0 | AM95: 0 | AN95: 0 | AO95: 0 | AP95: 0 | AQ95: 0 | AR95: 0 | AS95: 0 | AT95: 0 | AU95: 0 | AV95: 0 | AW95: 0 | AX95: 0 | AY95: 0 | AZ95: 0 | BA95: 0 | BB95: 0
H96: =93 -> 93 | I96: 2034-04-15 | J96: =MAX(0,(J95*(1+$D$2/1200))-IF(J95<=0,0,MIN((J95*(1+$D$2/1200)),($E$2+'Debt Calculator'!$B$6+IF(J95<=0,$E$2,0)+IF(M95<=0,$E$3,0)+IF(P95<=0,$E$4,0)+IF(S95<=0,$E$5,0)+IF(V95<=0,$E$6,0)+IF(Y95<=0,$E$7,0)+IF(AB95<=0,$E$8,0)+IF(AE95<=0,$E$9,0)+IF(AH95<=0,$E$10,0)+IF(AK95<=0,$E$11,0)+IF(AN95<=0,$E$12,0)+IF(AQ95<=0,$E$13,0)+IF(AT95<=0,$E$14,0)+IF(AW95<=0,$E$15,0)+IF(AZ95<=0,$E$16,0))))) -> 0 | K96: =IF(J95<=0,0,MIN((J95*(1+$D$2/1200)),($E$2+'Debt Calculator'!$B$6+IF(J95<=0,$E$2,0)+IF(M95<=0,$E$3,0)+IF(P95<=0,$E$4,0)+IF(S95<=0,$E$5,0)+IF(V95<=0,$E$6,0)+IF(Y95<=0,$E$7,0)+IF(AB95<=0,$E$8,0)+IF(AE95<=0,$E$9,0)+IF(AH95<=0,$E$10,0)+IF(AK95<=0,$E$11,0)+IF(AN95<=0,$E$12,0)+IF(AQ95<=0,$E$13,0)+IF(AT95<=0,$E$14,0)+IF(AW95<=0,$E$15,0)+IF(AZ95<=0,$E$16,0)))) -> 0 | L96: =IF(J95<=0,'Debt Calculator'!$B$6+IF(J95<=0,$E$2,0)+IF(M95<=0,$E$3,0)+IF(P95<=0,$E$4,0)+IF(S95<=0,$E$5,0)+IF(V95<=0,$E$6,0)+IF(Y95<=0,$E$7,0)+IF(AB95<=0,$E$8,0)+IF(AE95<=0,$E$9,0)+IF(AH95<=0,$E$10,0)+IF(AK95<=0,$E$11,0)+IF(AN95<=0,$E$12,0)+IF(AQ95<=0,$E$13,0)+IF(AT95<=0,$E$14,0)+IF(AW95<=0,$E$15,0)+IF(AZ95<=0,$E$16,0),MAX(0,($E$2+'Debt Calculator'!$B$6+IF(J95<=0,$E$2,0)+IF(M95<=0,$E$3,0)+IF(P95<=0,$E$4,0)+IF(S95<=0,$E$5,0)+IF(V95<=0,$E$6,0)+IF(Y95<=0,$E$7,0)+IF(AB95<=0,$E$8,0)+IF(AE95<=0,$E$9,0)+IF(AH95<=0,$E$10,0)+IF(AK95<=0,$E$11,0)+IF(AN95<=0,$E$12,0)+IF(AQ95<=0,$E$13,0)+IF(AT95<=0,$E$14,0)+IF(AW95<=0,$E$15,0)+IF(AZ95<=0,$E$16,0))-(J95*(1+$D$2/1200)))) -> 885 | M96: 0 | N96: 0 | O96: 885 | P96: 0 | Q96: 0 | R96: 885 | S96: 0 | T96: 0 | U96: 885 | V96: 18038.86482 | W96: 2385 | X96: 0 | Y96: 0 | Z96: 0 | AA96: 0 | AB96: 0 | AC96: 0 | AD96: 0 | AE96: 0 | AF96: 0 | AG96: 0 | AH96: 0 | AI96: 0 | AJ96: 0 | AK96: 0 | AL96: 0 | AM96: 0 | AN96: 0 | AO96: 0 | AP96: 0 | AQ96: 0 | AR96: 0 | AS96: 0 | AT96: 0 | AU96: 0 | AV96: 0 | AW96: 0 | AX96: 0 | AY96: 0 | AZ96: 0 | BA96: 0 | BB96: 0
H97: =94 -> 94 | I97: 2034-05-15 | J97: =MAX(0,(J96*(1+$D$2/1200))-IF(J96<=0,0,MIN((J96*(1+$D$2/1200)),($E$2+'Debt Calculator'!$B$6+IF(J96<=0,$E$2,0)+IF(M96<=0,$E$3,0)+IF(P96<=0,$E$4,0)+IF(S96<=0,$E$5,0)+IF(V96<=0,$E$6,0)+IF(Y96<=0,$E$7,0)+IF(AB96<=0,$E$8,0)+IF(AE96<=0,$E$9,0)+IF(AH96<=0,$E$10,0)+IF(AK96<=0,$E$11,0)+IF(AN96<=0,$E$12,0)+IF(AQ96<=0,$E$13,0)+IF(AT96<=0,$E$14,0)+IF(AW96<=0,$E$15,0)+IF(AZ96<=0,$E$16,0))))) -> 0 | K97: =IF(J96<=0,0,MIN((J96*(1+$D$2/1200)),($E$2+'Debt Calculator'!$B$6+IF(J96<=0,$E$2,0)+IF(M96<=0,$E$3,0)+IF(P96<=0,$E$4,0)+IF(S96<=0,$E$5,0)+IF(V96<=0,$E$6,0)+IF(Y96<=0,$E$7,0)+IF(AB96<=0,$E$8,0)+IF(AE96<=0,$E$9,0)+IF(AH96<=0,$E$10,0)+IF(AK96<=0,$E$11,0)+IF(AN96<=0,$E$12,0)+IF(AQ96<=0,$E$13,0)+IF(AT96<=0,$E$14,0)+IF(AW96<=0,$E$15,0)+IF(AZ96<=0,$E$16,0)))) -> 0 | L97: =IF(J96<=0,'Debt Calculator'!$B$6+IF(J96<=0,$E$2,0)+IF(M96<=0,$E$3,0)+IF(P96<=0,$E$4,0)+IF(S96<=0,$E$5,0)+IF(V96<=0,$E$6,0)+IF(Y96<=0,$E$7,0)+IF(AB96<=0,$E$8,0)+IF(AE96<=0,$E$9,0)+IF(AH96<=0,$E$10,0)+IF(AK96<=0,$E$11,0)+IF(AN96<=0,$E$12,0)+IF(AQ96<=0,$E$13,0)+IF(AT96<=0,$E$14,0)+IF(AW96<=0,$E$15,0)+IF(AZ96<=0,$E$16,0),MAX(0,($E$2+'Debt Calculator'!$B$6+IF(J96<=0,$E$2,0)+IF(M96<=0,$E$3,0)+IF(P96<=0,$E$4,0)+IF(S96<=0,$E$5,0)+IF(V96<=0,$E$6,0)+IF(Y96<=0,$E$7,0)+IF(AB96<=0,$E$8,0)+IF(AE96<=0,$E$9,0)+IF(AH96<=0,$E$10,0)+IF(AK96<=0,$E$11,0)+IF(AN96<=0,$E$12,0)+IF(AQ96<=0,$E$13,0)+IF(AT96<=0,$E$14,0)+IF(AW96<=0,$E$15,0)+IF(AZ96<=0,$E$16,0))-(J96*(1+$D$2/1200)))) -> 885 | M97: 0 | N97: 0 | O97: 885 | P97: 0 | Q97: 0 | R97: 885 | S97: 0 | T97: 0 | U97: 885 | V97: 15698.96198 | W97: 2385 | X97: 0 | Y97: 0 | Z97: 0 | AA97: 0 | AB97: 0 | AC97: 0 | AD97: 0 | AE97: 0 | AF97: 0 | AG97: 0 | AH97: 0 | AI97: 0 | AJ97: 0 | AK97: 0 | AL97: 0 | AM97: 0 | AN97: 0 | AO97: 0 | AP97: 0 | AQ97: 0 | AR97: 0 | AS97: 0 | AT97: 0 | AU97: 0 | AV97: 0 | AW97: 0 | AX97: 0 | AY97: 0 | AZ97: 0 | BA97: 0 | BB97: 0
H98: =95 -> 95 | I98: 2034-06-15 | J98: =MAX(0,(J97*(1+$D$2/1200))-IF(J97<=0,0,MIN((J97*(1+$D$2/1200)),($E$2+'Debt Calculator'!$B$6+IF(J97<=0,$E$2,0)+IF(M97<=0,$E$3,0)+IF(P97<=0,$E$4,0)+IF(S97<=0,$E$5,0)+IF(V97<=0,$E$6,0)+IF(Y97<=0,$E$7,0)+IF(AB97<=0,$E$8,0)+IF(AE97<=0,$E$9,0)+IF(AH97<=0,$E$10,0)+IF(AK97<=0,$E$11,0)+IF(AN97<=0,$E$12,0)+IF(AQ97<=0,$E$13,0)+IF(AT97<=0,$E$14,0)+IF(AW97<=0,$E$15,0)+IF(AZ97<=0,$E$16,0))))) -> 0 | K98: =IF(J97<=0,0,MIN((J97*(1+$D$2/1200)),($E$2+'Debt Calculator'!$B$6+IF(J97<=0,$E$2,0)+IF(M97<=0,$E$3,0)+IF(P97<=0,$E$4,0)+IF(S97<=0,$E$5,0)+IF(V97<=0,$E$6,0)+IF(Y97<=0,$E$7,0)+IF(AB97<=0,$E$8,0)+IF(AE97<=0,$E$9,0)+IF(AH97<=0,$E$10,0)+IF(AK97<=0,$E$11,0)+IF(AN97<=0,$E$12,0)+IF(AQ97<=0,$E$13,0)+IF(AT97<=0,$E$14,0)+IF(AW97<=0,$E$15,0)+IF(AZ97<=0,$E$16,0)))) -> 0 | L98: =IF(J97<=0,'Debt Calculator'!$B$6+IF(J97<=0,$E$2,0)+IF(M97<=0,$E$3,0)+IF(P97<=0,$E$4,0)+IF(S97<=0,$E$5,0)+IF(V97<=0,$E$6,0)+IF(Y97<=0,$E$7,0)+IF(AB97<=0,$E$8,0)+IF(AE97<=0,$E$9,0)+IF(AH97<=0,$E$10,0)+IF(AK97<=0,$E$11,0)+IF(AN97<=0,$E$12,0)+IF(AQ97<=0,$E$13,0)+IF(AT97<=0,$E$14,0)+IF(AW97<=0,$E$15,0)+IF(AZ97<=0,$E$16,0),MAX(0,($E$2+'Debt Calculator'!$B$6+IF(J97<=0,$E$2,0)+IF(M97<=0,$E$3,0)+IF(P97<=0,$E$4,0)+IF(S97<=0,$E$5,0)+IF(V97<=0,$E$6,0)+IF(Y97<=0,$E$7,0)+IF(AB97<=0,$E$8,0)+IF(AE97<=0,$E$9,0)+IF(AH97<=0,$E$10,0)+IF(AK97<=0,$E$11,0)+IF(AN97<=0,$E$12,0)+IF(AQ97<=0,$E$13,0)+IF(AT97<=0,$E$14,0)+IF(AW97<=0,$E$15,0)+IF(AZ97<=0,$E$16,0))-(J97*(1+$D$2/1200)))) -> 885 | M98: 0 | N98: 0 | O98: 885 | P98: 0 | Q98: 0 | R98: 885 | S98: 0 | T98: 0 | U98: 885 | V98: 13353.20938 | W98: 2385 | X98: 0 | Y98: 0 | Z98: 0 | AA98: 0 | AB98: 0 | AC98: 0 | AD98: 0 | AE98: 0 | AF98: 0 | AG98: 0 | AH98: 0 | AI98: 0 | AJ98: 0 | AK98: 0 | AL98: 0 | AM98: 0 | AN98: 0 | AO98: 0 | AP98: 0 | AQ98: 0 | AR98: 0 | AS98: 0 | AT98: 0 | AU98: 0 | AV98: 0 | AW98: 0 | AX98: 0 | AY98: 0 | AZ98: 0 | BA98: 0 | BB98: 0
H99: =96 -> 96 | I99: 2034-07-15 | J99: =MAX(0,(J98*(1+$D$2/1200))-IF(J98<=0,0,MIN((J98*(1+$D$2/1200)),($E$2+'Debt Calculator'!$B$6+IF(J98<=0,$E$2,0)+IF(M98<=0,$E$3,0)+IF(P98<=0,$E$4,0)+IF(S98<=0,$E$5,0)+IF(V98<=0,$E$6,0)+IF(Y98<=0,$E$7,0)+IF(AB98<=0,$E$8,0)+IF(AE98<=0,$E$9,0)+IF(AH98<=0,$E$10,0)+IF(AK98<=0,$E$11,0)+IF(AN98<=0,$E$12,0)+IF(AQ98<=0,$E$13,0)+IF(AT98<=0,$E$14,0)+IF(AW98<=0,$E$15,0)+IF(AZ98<=0,$E$16,0))))) -> 0 | K99: =IF(J98<=0,0,MIN((J98*(1+$D$2/1200)),($E$2+'Debt Calculator'!$B$6+IF(J98<=0,$E$2,0)+IF(M98<=0,$E$3,0)+IF(P98<=0,$E$4,0)+IF(S98<=0,$E$5,0)+IF(V98<=0,$E$6,0)+IF(Y98<=0,$E$7,0)+IF(AB98<=0,$E$8,0)+IF(AE98<=0,$E$9,0)+IF(AH98<=0,$E$10,0)+IF(AK98<=0,$E$11,0)+IF(AN98<=0,$E$12,0)+IF(AQ98<=0,$E$13,0)+IF(AT98<=0,$E$14,0)+IF(AW98<=0,$E$15,0)+IF(AZ98<=0,$E$16,0)))) -> 0 | L99: =IF(J98<=0,'Debt Calculator'!$B$6+IF(J98<=0,$E$2,0)+IF(M98<=0,$E$3,0)+IF(P98<=0,$E$4,0)+IF(S98<=0,$E$5,0)+IF(V98<=0,$E$6,0)+IF(Y98<=0,$E$7,0)+IF(AB98<=0,$E$8,0)+IF(AE98<=0,$E$9,0)+IF(AH98<=0,$E$10,0)+IF(AK98<=0,$E$11,0)+IF(AN98<=0,$E$12,0)+IF(AQ98<=0,$E$13,0)+IF(AT98<=0,$E$14,0)+IF(AW98<=0,$E$15,0)+IF(AZ98<=0,$E$16,0),MAX(0,($E$2+'Debt Calculator'!$B$6+IF(J98<=0,$E$2,0)+IF(M98<=0,$E$3,0)+IF(P98<=0,$E$4,0)+IF(S98<=0,$E$5,0)+IF(V98<=0,$E$6,0)+IF(Y98<=0,$E$7,0)+IF(AB98<=0,$E$8,0)+IF(AE98<=0,$E$9,0)+IF(AH98<=0,$E$10,0)+IF(AK98<=0,$E$11,0)+IF(AN98<=0,$E$12,0)+IF(AQ98<=0,$E$13,0)+IF(AT98<=0,$E$14,0)+IF(AW98<=0,$E$15,0)+IF(AZ98<=0,$E$16,0))-(J98*(1+$D$2/1200)))) -> 885 | M99: 0 | N99: 0 | O99: 885 | P99: 0 | Q99: 0 | R99: 885 | S99: 0 | T99: 0 | U99: 885 | V99: 11001.59241 | W99: 2385 | X99: 0 | Y99: 0 | Z99: 0 | AA99: 0 | AB99: 0 | AC99: 0 | AD99: 0 | AE99: 0 | AF99: 0 | AG99: 0 | AH99: 0 | AI99: 0 | AJ99: 0 | AK99: 0 | AL99: 0 | AM99: 0 | AN99: 0 | AO99: 0 | AP99: 0 | AQ99: 0 | AR99: 0 | AS99: 0 | AT99: 0 | AU99: 0 | AV99: 0 | AW99: 0 | AX99: 0 | AY99: 0 | AZ99: 0 | BA99: 0 | BB99: 0
H100: =97 -> 97 | I100: 2034-08-15 | J100: =MAX(0,(J99*(1+$D$2/1200))-IF(J99<=0,0,MIN((J99*(1+$D$2/1200)),($E$2+'Debt Calculator'!$B$6+IF(J99<=0,$E$2,0)+IF(M99<=0,$E$3,0)+IF(P99<=0,$E$4,0)+IF(S99<=0,$E$5,0)+IF(V99<=0,$E$6,0)+IF(Y99<=0,$E$7,0)+IF(AB99<=0,$E$8,0)+IF(AE99<=0,$E$9,0)+IF(AH99<=0,$E$10,0)+IF(AK99<=0,$E$11,0)+IF(AN99<=0,$E$12,0)+IF(AQ99<=0,$E$13,0)+IF(AT99<=0,$E$14,0)+IF(AW99<=0,$E$15,0)+IF(AZ99<=0,$E$16,0))))) -> 0 | K100: =IF(J99<=0,0,MIN((J99*(1+$D$2/1200)),($E$2+'Debt Calculator'!$B$6+IF(J99<=0,$E$2,0)+IF(M99<=0,$E$3,0)+IF(P99<=0,$E$4,0)+IF(S99<=0,$E$5,0)+IF(V99<=0,$E$6,0)+IF(Y99<=0,$E$7,0)+IF(AB99<=0,$E$8,0)+IF(AE99<=0,$E$9,0)+IF(AH99<=0,$E$10,0)+IF(AK99<=0,$E$11,0)+IF(AN99<=0,$E$12,0)+IF(AQ99<=0,$E$13,0)+IF(AT99<=0,$E$14,0)+IF(AW99<=0,$E$15,0)+IF(AZ99<=0,$E$16,0)))) -> 0 | L100: =IF(J99<=0,'Debt Calculator'!$B$6+IF(J99<=0,$E$2,0)+IF(M99<=0,$E$3,0)+IF(P99<=0,$E$4,0)+IF(S99<=0,$E$5,0)+IF(V99<=0,$E$6,0)+IF(Y99<=0,$E$7,0)+IF(AB99<=0,$E$8,0)+IF(AE99<=0,$E$9,0)+IF(AH99<=0,$E$10,0)+IF(AK99<=0,$E$11,0)+IF(AN99<=0,$E$12,0)+IF(AQ99<=0,$E$13,0)+IF(AT99<=0,$E$14,0)+IF(AW99<=0,$E$15,0)+IF(AZ99<=0,$E$16,0),MAX(0,($E$2+'Debt Calculator'!$B$6+IF(J99<=0,$E$2,0)+IF(M99<=0,$E$3,0)+IF(P99<=0,$E$4,0)+IF(S99<=0,$E$5,0)+IF(V99<=0,$E$6,0)+IF(Y99<=0,$E$7,0)+IF(AB99<=0,$E$8,0)+IF(AE99<=0,$E$9,0)+IF(AH99<=0,$E$10,0)+IF(AK99<=0,$E$11,0)+IF(AN99<=0,$E$12,0)+IF(AQ99<=0,$E$13,0)+IF(AT99<=0,$E$14,0)+IF(AW99<=0,$E$15,0)+IF(AZ99<=0,$E$16,0))-(J99*(1+$D$2/1200)))) -> 885 | M100: 0 | N100: 0 | O100: 885 | P100: 0 | Q100: 0 | R100: 885 | S100: 0 | T100: 0 | U100: 885 | V100: 8644.096388 | W100: 2385 | X100: 0 | Y100: 0 | Z100: 0 | AA100: 0 | AB100: 0 | AC100: 0 | AD100: 0 | AE100: 0 | AF100: 0 | AG100: 0 | AH100: 0 | AI100: 0 | AJ100: 0 | AK100: 0 | AL100: 0 | AM100: 0 | AN100: 0 | AO100: 0 | AP100: 0 | AQ100: 0 | AR100: 0 | AS100: 0 | AT100: 0 | AU100: 0 | AV100: 0 | AW100: 0 | AX100: 0 | AY100: 0 | AZ100: 0 | BA100: 0 | BB100: 0
H101: =98 -> 98 | I101: 2034-09-15 | J101: =MAX(0,(J100*(1+$D$2/1200))-IF(J100<=0,0,MIN((J100*(1+$D$2/1200)),($E$2+'Debt Calculator'!$B$6+IF(J100<=0,$E$2,0)+IF(M100<=0,$E$3,0)+IF(P100<=0,$E$4,0)+IF(S100<=0,$E$5,0)+IF(V100<=0,$E$6,0)+IF(Y100<=0,$E$7,0)+IF(AB100<=0,$E$8,0)+IF(AE100<=0,$E$9,0)+IF(AH100<=0,$E$10,0)+IF(AK100<=0,$E$11,0)+IF(AN100<=0,$E$12,0)+IF(AQ100<=0,$E$13,0)+IF(AT100<=0,$E$14,0)+IF(AW100<=0,$E$15,0)+IF(AZ100<=0,$E$16,0))))) -> 0 | K101: =IF(J100<=0,0,MIN((J100*(1+$D$2/1200)),($E$2+'Debt Calculator'!$B$6+IF(J100<=0,$E$2,0)+IF(M100<=0,$E$3,0)+IF(P100<=0,$E$4,0)+IF(S100<=0,$E$5,0)+IF(V100<=0,$E$6,0)+IF(Y100<=0,$E$7,0)+IF(AB100<=0,$E$8,0)+IF(AE100<=0,$E$9,0)+IF(AH100<=0,$E$10,0)+IF(AK100<=0,$E$11,0)+IF(AN100<=0,$E$12,0)+IF(AQ100<=0,$E$13,0)+IF(AT100<=0,$E$14,0)+IF(AW100<=0,$E$15,0)+IF(AZ100<=0,$E$16,0)))) -> 0 | L101: =IF(J100<=0,'Debt Calculator'!$B$6+IF(J100<=0,$E$2,0)+IF(M100<=0,$E$3,0)+IF(P100<=0,$E$4,0)+IF(S100<=0,$E$5,0)+IF(V100<=0,$E$6,0)+IF(Y100<=0,$E$7,0)+IF(AB100<=0,$E$8,0)+IF(AE100<=0,$E$9,0)+IF(AH100<=0,$E$10,0)+IF(AK100<=0,$E$11,0)+IF(AN100<=0,$E$12,0)+IF(AQ100<=0,$E$13,0)+IF(AT100<=0,$E$14,0)+IF(AW100<=0,$E$15,0)+IF(AZ100<=0,$E$16,0),MAX(0,($E$2+'Debt Calculator'!$B$6+IF(J100<=0,$E$2,0)+IF(M100<=0,$E$3,0)+IF(P100<=0,$E$4,0)+IF(S100<=0,$E$5,0)+IF(V100<=0,$E$6,0)+IF(Y100<=0,$E$7,0)+IF(AB100<=0,$E$8,0)+IF(AE100<=0,$E$9,0)+IF(AH100<=0,$E$10,0)+IF(AK100<=0,$E$11,0)+IF(AN100<=0,$E$12,0)+IF(AQ100<=0,$E$13,0)+IF(AT100<=0,$E$14,0)+IF(AW100<=0,$E$15,0)+IF(AZ100<=0,$E$16,0))-(J100*(1+$D$2/1200)))) -> 885 | M101: 0 | N101: 0 | O101: 885 | P101: 0 | Q101: 0 | R101: 885 | S101: 0 | T101: 0 | U101: 885 | V101: 6280.706629 | W101: 2385 | X101: 0 | Y101: 0 | Z101: 0 | AA101: 0 | AB101: 0 | AC101: 0 | AD101: 0 | AE101: 0 | AF101: 0 | AG101: 0 | AH101: 0 | AI101: 0 | AJ101: 0 | AK101: 0 | AL101: 0 | AM101: 0 | AN101: 0 | AO101: 0 | AP101: 0 | AQ101: 0 | AR101: 0 | AS101: 0 | AT101: 0 | AU101: 0 | AV101: 0 | AW101: 0 | AX101: 0 | AY101: 0 | AZ101: 0 | BA101: 0 | BB101: 0
H102: =99 -> 99 | I102: 2034-10-15 | J102: =MAX(0,(J101*(1+$D$2/1200))-IF(J101<=0,0,MIN((J101*(1+$D$2/1200)),($E$2+'Debt Calculator'!$B$6+IF(J101<=0,$E$2,0)+IF(M101<=0,$E$3,0)+IF(P101<=0,$E$4,0)+IF(S101<=0,$E$5,0)+IF(V101<=0,$E$6,0)+IF(Y101<=0,$E$7,0)+IF(AB101<=0,$E$8,0)+IF(AE101<=0,$E$9,0)+IF(AH101<=0,$E$10,0)+IF(AK101<=0,$E$11,0)+IF(AN101<=0,$E$12,0)+IF(AQ101<=0,$E$13,0)+IF(AT101<=0,$E$14,0)+IF(AW101<=0,$E$15,0)+IF(AZ101<=0,$E$16,0))))) -> 0 | K102: =IF(J101<=0,0,MIN((J101*(1+$D$2/1200)),($E$2+'Debt Calculator'!$B$6+IF(J101<=0,$E$2,0)+IF(M101<=0,$E$3,0)+IF(P101<=0,$E$4,0)+IF(S101<=0,$E$5,0)+IF(V101<=0,$E$6,0)+IF(Y101<=0,$E$7,0)+IF(AB101<=0,$E$8,0)+IF(AE101<=0,$E$9,0)+IF(AH101<=0,$E$10,0)+IF(AK101<=0,$E$11,0)+IF(AN101<=0,$E$12,0)+IF(AQ101<=0,$E$13,0)+IF(AT101<=0,$E$14,0)+IF(AW101<=0,$E$15,0)+IF(AZ101<=0,$E$16,0)))) -> 0 | L102: =IF(J101<=0,'Debt Calculator'!$B$6+IF(J101<=0,$E$2,0)+IF(M101<=0,$E$3,0)+IF(P101<=0,$E$4,0)+IF(S101<=0,$E$5,0)+IF(V101<=0,$E$6,0)+IF(Y101<=0,$E$7,0)+IF(AB101<=0,$E$8,0)+IF(AE101<=0,$E$9,0)+IF(AH101<=0,$E$10,0)+IF(AK101<=0,$E$11,0)+IF(AN101<=0,$E$12,0)+IF(AQ101<=0,$E$13,0)+IF(AT101<=0,$E$14,0)+IF(AW101<=0,$E$15,0)+IF(AZ101<=0,$E$16,0),MAX(0,($E$2+'Debt Calculator'!$B$6+IF(J101<=0,$E$2,0)+IF(M101<=0,$E$3,0)+IF(P101<=0,$E$4,0)+IF(S101<=0,$E$5,0)+IF(V101<=0,$E$6,0)+IF(Y101<=0,$E$7,0)+IF(AB101<=0,$E$8,0)+IF(AE101<=0,$E$9,0)+IF(AH101<=0,$E$10,0)+IF(AK101<=0,$E$11,0)+IF(AN101<=0,$E$12,0)+IF(AQ101<=0,$E$13,0)+IF(AT101<=0,$E$14,0)+IF(AW101<=0,$E$15,0)+IF(AZ101<=0,$E$16,0))-(J101*(1+$D$2/1200)))) -> 885 | M102: 0 | N102: 0 | O102: 885 | P102: 0 | Q102: 0 | R102: 885 | S102: 0 | T102: 0 | U102: 885 | V102: 3911.408396 | W102: 2385 | X102: 0 | Y102: 0 | Z102: 0 | AA102: 0 | AB102: 0 | AC102: 0 | AD102: 0 | AE102: 0 | AF102: 0 | AG102: 0 | AH102: 0 | AI102: 0 | AJ102: 0 | AK102: 0 | AL102: 0 | AM102: 0 | AN102: 0 | AO102: 0 | AP102: 0 | AQ102: 0 | AR102: 0 | AS102: 0 | AT102: 0 | AU102: 0 | AV102: 0 | AW102: 0 | AX102: 0 | AY102: 0 | AZ102: 0 | BA102: 0 | BB102: 0
H103: =100 -> 100 | I103: 2034-11-15 | J103: =MAX(0,(J102*(1+$D$2/1200))-IF(J102<=0,0,MIN((J102*(1+$D$2/1200)),($E$2+'Debt Calculator'!$B$6+IF(J102<=0,$E$2,0)+IF(M102<=0,$E$3,0)+IF(P102<=0,$E$4,0)+IF(S102<=0,$E$5,0)+IF(V102<=0,$E$6,0)+IF(Y102<=0,$E$7,0)+IF(AB102<=0,$E$8,0)+IF(AE102<=0,$E$9,0)+IF(AH102<=0,$E$10,0)+IF(AK102<=0,$E$11,0)+IF(AN102<=0,$E$12,0)+IF(AQ102<=0,$E$13,0)+IF(AT102<=0,$E$14,0)+IF(AW102<=0,$E$15,0)+IF(AZ102<=0,$E$16,0))))) -> 0 | K103: =IF(J102<=0,0,MIN((J102*(1+$D$2/1200)),($E$2+'Debt Calculator'!$B$6+IF(J102<=0,$E$2,0)+IF(M102<=0,$E$3,0)+IF(P102<=0,$E$4,0)+IF(S102<=0,$E$5,0)+IF(V102<=0,$E$6,0)+IF(Y102<=0,$E$7,0)+IF(AB102<=0,$E$8,0)+IF(AE102<=0,$E$9,0)+IF(AH102<=0,$E$10,0)+IF(AK102<=0,$E$11,0)+IF(AN102<=0,$E$12,0)+IF(AQ102<=0,$E$13,0)+IF(AT102<=0,$E$14,0)+IF(AW102<=0,$E$15,0)+IF(AZ102<=0,$E$16,0)))) -> 0 | L103: =IF(J102<=0,'Debt Calculator'!$B$6+IF(J102<=0,$E$2,0)+IF(M102<=0,$E$3,0)+IF(P102<=0,$E$4,0)+IF(S102<=0,$E$5,0)+IF(V102<=0,$E$6,0)+IF(Y102<=0,$E$7,0)+IF(AB102<=0,$E$8,0)+IF(AE102<=0,$E$9,0)+IF(AH102<=0,$E$10,0)+IF(AK102<=0,$E$11,0)+IF(AN102<=0,$E$12,0)+IF(AQ102<=0,$E$13,0)+IF(AT102<=0,$E$14,0)+IF(AW102<=0,$E$15,0)+IF(AZ102<=0,$E$16,0),MAX(0,($E$2+'Debt Calculator'!$B$6+IF(J102<=0,$E$2,0)+IF(M102<=0,$E$3,0)+IF(P102<=0,$E$4,0)+IF(S102<=0,$E$5,0)+IF(V102<=0,$E$6,0)+IF(Y102<=0,$E$7,0)+IF(AB102<=0,$E$8,0)+IF(AE102<=0,$E$9,0)+IF(AH102<=0,$E$10,0)+IF(AK102<=0,$E$11,0)+IF(AN102<=0,$E$12,0)+IF(AQ102<=0,$E$13,0)+IF(AT102<=0,$E$14,0)+IF(AW102<=0,$E$15,0)+IF(AZ102<=0,$E$16,0))-(J102*(1+$D$2/1200)))) -> 885 | M103: 0 | N103: 0 | O103: 885 | P103: 0 | Q103: 0 | R103: 885 | S103: 0 | T103: 0 | U103: 885 | V103: 1536.186917 | W103: 2385 | X103: 0 | Y103: 0 | Z103: 0 | AA103: 0 | AB103: 0 | AC103: 0 | AD103: 0 | AE103: 0 | AF103: 0 | AG103: 0 | AH103: 0 | AI103: 0 | AJ103: 0 | AK103: 0 | AL103: 0 | AM103: 0 | AN103: 0 | AO103: 0 | AP103: 0 | AQ103: 0 | AR103: 0 | AS103: 0 | AT103: 0 | AU103: 0 | AV103: 0 | AW103: 0 | AX103: 0 | AY103: 0 | AZ103: 0 | BA103: 0 | BB103: 0
H104: =101 -> 101 | I104: 2034-12-15 | J104: =MAX(0,(J103*(1+$D$2/1200))-IF(J103<=0,0,MIN((J103*(1+$D$2/1200)),($E$2+'Debt Calculator'!$B$6+IF(J103<=0,$E$2,0)+IF(M103<=0,$E$3,0)+IF(P103<=0,$E$4,0)+IF(S103<=0,$E$5,0)+IF(V103<=0,$E$6,0)+IF(Y103<=0,$E$7,0)+IF(AB103<=0,$E$8,0)+IF(AE103<=0,$E$9,0)+IF(AH103<=0,$E$10,0)+IF(AK103<=0,$E$11,0)+IF(AN103<=0,$E$12,0)+IF(AQ103<=0,$E$13,0)+IF(AT103<=0,$E$14,0)+IF(AW103<=0,$E$15,0)+IF(AZ103<=0,$E$16,0))))) -> 0 | K104: =IF(J103<=0,0,MIN((J103*(1+$D$2/1200)),($E$2+'Debt Calculator'!$B$6+IF(J103<=0,$E$2,0)+IF(M103<=0,$E$3,0)+IF(P103<=0,$E$4,0)+IF(S103<=0,$E$5,0)+IF(V103<=0,$E$6,0)+IF(Y103<=0,$E$7,0)+IF(AB103<=0,$E$8,0)+IF(AE103<=0,$E$9,0)+IF(AH103<=0,$E$10,0)+IF(AK103<=0,$E$11,0)+IF(AN103<=0,$E$12,0)+IF(AQ103<=0,$E$13,0)+IF(AT103<=0,$E$14,0)+IF(AW103<=0,$E$15,0)+IF(AZ103<=0,$E$16,0)))) -> 0 | L104: =IF(J103<=0,'Debt Calculator'!$B$6+IF(J103<=0,$E$2,0)+IF(M103<=0,$E$3,0)+IF(P103<=0,$E$4,0)+IF(S103<=0,$E$5,0)+IF(V103<=0,$E$6,0)+IF(Y103<=0,$E$7,0)+IF(AB103<=0,$E$8,0)+IF(AE103<=0,$E$9,0)+IF(AH103<=0,$E$10,0)+IF(AK103<=0,$E$11,0)+IF(AN103<=0,$E$12,0)+IF(AQ103<=0,$E$13,0)+IF(AT103<=0,$E$14,0)+IF(AW103<=0,$E$15,0)+IF(AZ103<=0,$E$16,0),MAX(0,($E$2+'Debt Calculator'!$B$6+IF(J103<=0,$E$2,0)+IF(M103<=0,$E$3,0)+IF(P103<=0,$E$4,0)+IF(S103<=0,$E$5,0)+IF(V103<=0,$E$6,0)+IF(Y103<=0,$E$7,0)+IF(AB103<=0,$E$8,0)+IF(AE103<=0,$E$9,0)+IF(AH103<=0,$E$10,0)+IF(AK103<=0,$E$11,0)+IF(AN103<=0,$E$12,0)+IF(AQ103<=0,$E$13,0)+IF(AT103<=0,$E$14,0)+IF(AW103<=0,$E$15,0)+IF(AZ103<=0,$E$16,0))-(J103*(1+$D$2/1200)))) -> 885 | M104: 0 | N104: 0 | O104: 885 | P104: 0 | Q104: 0 | R104: 885 | S104: 0 | T104: 0 | U104: 885 | V104: 0 | W104: 1540.027384 | X104: 844.9726159 | Y104: 0 | Z104: 0 | AA104: 844.9726159 | AB104: 0 | AC104: 0 | AD104: 844.9726159 | AE104: 0 | AF104: 0 | AG104: 844.9726159 | AH104: 0 | AI104: 0 | AJ104: 844.9726159 | AK104: 0 | AL104: 0 | AM104: 844.9726159 | AN104: 0 | AO104: 0 | AP104: 844.9726159 | AQ104: 0 | AR104: 0 | AS104: 844.9726159 | AT104: 0 | AU104: 0 | AV104: 844.9726159 | AW104: 0 | AX104: 0 | AY104: 844.9726159 | AZ104: 0 | BA104: 0 | BB104: 844.9726159
H105: =102 -> 102 | I105: 2035-01-15 | J105: =MAX(0,(J104*(1+$D$2/1200))-IF(J104<=0,0,MIN((J104*(1+$D$2/1200)),($E$2+'Debt Calculator'!$B$6+IF(J104<=0,$E$2,0)+IF(M104<=0,$E$3,0)+IF(P104<=0,$E$4,0)+IF(S104<=0,$E$5,0)+IF(V104<=0,$E$6,0)+IF(Y104<=0,$E$7,0)+IF(AB104<=0,$E$8,0)+IF(AE104<=0,$E$9,0)+IF(AH104<=0,$E$10,0)+IF(AK104<=0,$E$11,0)+IF(AN104<=0,$E$12,0)+IF(AQ104<=0,$E$13,0)+IF(AT104<=0,$E$14,0)+IF(AW104<=0,$E$15,0)+IF(AZ104<=0,$E$16,0))))) -> 0 | K105: =IF(J104<=0,0,MIN((J104*(1+$D$2/1200)),($E$2+'Debt Calculator'!$B$6+IF(J104<=0,$E$2,0)+IF(M104<=0,$E$3,0)+IF(P104<=0,$E$4,0)+IF(S104<=0,$E$5,0)+IF(V104<=0,$E$6,0)+IF(Y104<=0,$E$7,0)+IF(AB104<=0,$E$8,0)+IF(AE104<=0,$E$9,0)+IF(AH104<=0,$E$10,0)+IF(AK104<=0,$E$11,0)+IF(AN104<=0,$E$12,0)+IF(AQ104<=0,$E$13,0)+IF(AT104<=0,$E$14,0)+IF(AW104<=0,$E$15,0)+IF(AZ104<=0,$E$16,0)))) -> 0 | L105: =IF(J104<=0,'Debt Calculator'!$B$6+IF(J104<=0,$E$2,0)+IF(M104<=0,$E$3,0)+IF(P104<=0,$E$4,0)+IF(S104<=0,$E$5,0)+IF(V104<=0,$E$6,0)+IF(Y104<=0,$E$7,0)+IF(AB104<=0,$E$8,0)+IF(AE104<=0,$E$9,0)+IF(AH104<=0,$E$10,0)+IF(AK104<=0,$E$11,0)+IF(AN104<=0,$E$12,0)+IF(AQ104<=0,$E$13,0)+IF(AT104<=0,$E$14,0)+IF(AW104<=0,$E$15,0)+IF(AZ104<=0,$E$16,0),MAX(0,($E$2+'Debt Calculator'!$B$6+IF(J104<=0,$E$2,0)+IF(M104<=0,$E$3,0)+IF(P104<=0,$E$4,0)+IF(S104<=0,$E$5,0)+IF(V104<=0,$E$6,0)+IF(Y104<=0,$E$7,0)+IF(AB104<=0,$E$8,0)+IF(AE104<=0,$E$9,0)+IF(AH104<=0,$E$10,0)+IF(AK104<=0,$E$11,0)+IF(AN104<=0,$E$12,0)+IF(AQ104<=0,$E$13,0)+IF(AT104<=0,$E$14,0)+IF(AW104<=0,$E$15,0)+IF(AZ104<=0,$E$16,0))-(J104*(1+$D$2/1200)))) -> 2385 | M105: 0 | N105: 0 | O105: 2385 | P105: 0 | Q105: 0 | R105: 2385 | S105: 0 | T105: 0 | U105: 2385 | V105: 0 | W105: 0 | X105: 2385 | Y105: 0 | Z105: 0 | AA105: 2385 | AB105: 0 | AC105: 0 | AD105: 2385 | AE105: 0 | AF105: 0 | AG105: 2385 | AH105: 0 | AI105: 0 | AJ105: 2385 | AK105: 0 | AL105: 0 | AM105: 2385 | AN105: 0 | AO105: 0 | AP105: 2385 | AQ105: 0 | AR105: 0 | AS105: 2385 | AT105: 0 | AU105: 0 | AV105: 2385 | AW105: 0 | AX105: 0 | AY105: 2385 | AZ105: 0 | BA105: 0 | BB105: 2385
H106: =103 -> 103 | I106: 2035-02-15 | J106: =MAX(0,(J105*(1+$D$2/1200))-IF(J105<=0,0,MIN((J105*(1+$D$2/1200)),($E$2+'Debt Calculator'!$B$6+IF(J105<=0,$E$2,0)+IF(M105<=0,$E$3,0)+IF(P105<=0,$E$4,0)+IF(S105<=0,$E$5,0)+IF(V105<=0,$E$6,0)+IF(Y105<=0,$E$7,0)+IF(AB105<=0,$E$8,0)+IF(AE105<=0,$E$9,0)+IF(AH105<=0,$E$10,0)+IF(AK105<=0,$E$11,0)+IF(AN105<=0,$E$12,0)+IF(AQ105<=0,$E$13,0)+IF(AT105<=0,$E$14,0)+IF(AW105<=0,$E$15,0)+IF(AZ105<=0,$E$16,0))))) -> 0 | K106: =IF(J105<=0,0,MIN((J105*(1+$D$2/1200)),($E$2+'Debt Calculator'!$B$6+IF(J105<=0,$E$2,0)+IF(M105<=0,$E$3,0)+IF(P105<=0,$E$4,0)+IF(S105<=0,$E$5,0)+IF(V105<=0,$E$6,0)+IF(Y105<=0,$E$7,0)+IF(AB105<=0,$E$8,0)+IF(AE105<=0,$E$9,0)+IF(AH105<=0,$E$10,0)+IF(AK105<=0,$E$11,0)+IF(AN105<=0,$E$12,0)+IF(AQ105<=0,$E$13,0)+IF(AT105<=0,$E$14,0)+IF(AW105<=0,$E$15,0)+IF(AZ105<=0,$E$16,0)))) -> 0 | L106: =IF(J105<=0,'Debt Calculator'!$B$6+IF(J105<=0,$E$2,0)+IF(M105<=0,$E$3,0)+IF(P105<=0,$E$4,0)+IF(S105<=0,$E$5,0)+IF(V105<=0,$E$6,0)+IF(Y105<=0,$E$7,0)+IF(AB105<=0,$E$8,0)+IF(AE105<=0,$E$9,0)+IF(AH105<=0,$E$10,0)+IF(AK105<=0,$E$11,0)+IF(AN105<=0,$E$12,0)+IF(AQ105<=0,$E$13,0)+IF(AT105<=0,$E$14,0)+IF(AW105<=0,$E$15,0)+IF(AZ105<=0,$E$16,0),MAX(0,($E$2+'Debt Calculator'!$B$6+IF(J105<=0,$E$2,0)+IF(M105<=0,$E$3,0)+IF(P105<=0,$E$4,0)+IF(S105<=0,$E$5,0)+IF(V105<=0,$E$6,0)+IF(Y105<=0,$E$7,0)+IF(AB105<=0,$E$8,0)+IF(AE105<=0,$E$9,0)+IF(AH105<=0,$E$10,0)+IF(AK105<=0,$E$11,0)+IF(AN105<=0,$E$12,0)+IF(AQ105<=0,$E$13,0)+IF(AT105<=0,$E$14,0)+IF(AW105<=0,$E$15,0)+IF(AZ105<=0,$E$16,0))-(J105*(1+$D$2/1200)))) -> 2385 | M106: 0 | N106: 0 | O106: 2385 | P106: 0 | Q106: 0 | R106: 2385 | S106: 0 | T106: 0 | U106: 2385 | V106: 0 | W106: 0 | X106: 2385 | Y106: 0 | Z106: 0 | AA106: 2385 | AB106: 0 | AC106: 0 | AD106: 2385 | AE106: 0 | AF106: 0 | AG106: 2385 | AH106: 0 | AI106: 0 | AJ106: 2385 | AK106: 0 | AL106: 0 | AM106: 2385 | AN106: 0 | AO106: 0 | AP106: 2385 | AQ106: 0 | AR106: 0 | AS106: 2385 | AT106: 0 | AU106: 0 | AV106: 2385 | AW106: 0 | AX106: 0 | AY106: 2385 | AZ106: 0 | BA106: 0 | BB106: 2385
H107: =104 -> 104 | I107: 2035-03-15 | J107: =MAX(0,(J106*(1+$D$2/1200))-IF(J106<=0,0,MIN((J106*(1+$D$2/1200)),($E$2+'Debt Calculator'!$B$6+IF(J106<=0,$E$2,0)+IF(M106<=0,$E$3,0)+IF(P106<=0,$E$4,0)+IF(S106<=0,$E$5,0)+IF(V106<=0,$E$6,0)+IF(Y106<=0,$E$7,0)+IF(AB106<=0,$E$8,0)+IF(AE106<=0,$E$9,0)+IF(AH106<=0,$E$10,0)+IF(AK106<=0,$E$11,0)+IF(AN106<=0,$E$12,0)+IF(AQ106<=0,$E$13,0)+IF(AT106<=0,$E$14,0)+IF(AW106<=0,$E$15,0)+IF(AZ106<=0,$E$16,0))))) -> 0 | K107: =IF(J106<=0,0,MIN((J106*(1+$D$2/1200)),($E$2+'Debt Calculator'!$B$6+IF(J106<=0,$E$2,0)+IF(M106<=0,$E$3,0)+IF(P106<=0,$E$4,0)+IF(S106<=0,$E$5,0)+IF(V106<=0,$E$6,0)+IF(Y106<=0,$E$7,0)+IF(AB106<=0,$E$8,0)+IF(AE106<=0,$E$9,0)+IF(AH106<=0,$E$10,0)+IF(AK106<=0,$E$11,0)+IF(AN106<=0,$E$12,0)+IF(AQ106<=0,$E$13,0)+IF(AT106<=0,$E$14,0)+IF(AW106<=0,$E$15,0)+IF(AZ106<=0,$E$16,0)))) -> 0 | L107: =IF(J106<=0,'Debt Calculator'!$B$6+IF(J106<=0,$E$2,0)+IF(M106<=0,$E$3,0)+IF(P106<=0,$E$4,0)+IF(S106<=0,$E$5,0)+IF(V106<=0,$E$6,0)+IF(Y106<=0,$E$7,0)+IF(AB106<=0,$E$8,0)+IF(AE106<=0,$E$9,0)+IF(AH106<=0,$E$10,0)+IF(AK106<=0,$E$11,0)+IF(AN106<=0,$E$12,0)+IF(AQ106<=0,$E$13,0)+IF(AT106<=0,$E$14,0)+IF(AW106<=0,$E$15,0)+IF(AZ106<=0,$E$16,0),MAX(0,($E$2+'Debt Calculator'!$B$6+IF(J106<=0,$E$2,0)+IF(M106<=0,$E$3,0)+IF(P106<=0,$E$4,0)+IF(S106<=0,$E$5,0)+IF(V106<=0,$E$6,0)+IF(Y106<=0,$E$7,0)+IF(AB106<=0,$E$8,0)+IF(AE106<=0,$E$9,0)+IF(AH106<=0,$E$10,0)+IF(AK106<=0,$E$11,0)+IF(AN106<=0,$E$12,0)+IF(AQ106<=0,$E$13,0)+IF(AT106<=0,$E$14,0)+IF(AW106<=0,$E$15,0)+IF(AZ106<=0,$E$16,0))-(J106*(1+$D$2/1200)))) -> 2385 | M107: 0 | N107: 0 | O107: 2385 | P107: 0 | Q107: 0 | R107: 2385 | S107: 0 | T107: 0 | U107: 2385 | V107: 0 | W107: 0 | X107: 2385 | Y107: 0 | Z107: 0 | AA107: 2385 | AB107: 0 | AC107: 0 | AD107: 2385 | AE107: 0 | AF107: 0 | AG107: 2385 | AH107: 0 | AI107: 0 | AJ107: 2385 | AK107: 0 | AL107: 0 | AM107: 2385 | AN107: 0 | AO107: 0 | AP107: 2385 | AQ107: 0 | AR107: 0 | AS107: 2385 | AT107: 0 | AU107: 0 | AV107: 2385 | AW107: 0 | AX107: 0 | AY107: 2385 | AZ107: 0 | BA107: 0 | BB107: 2385
H108: =105 -> 105 | I108: 2035-04-15 | J108: =MAX(0,(J107*(1+$D$2/1200))-IF(J107<=0,0,MIN((J107*(1+$D$2/1200)),($E$2+'Debt Calculator'!$B$6+IF(J107<=0,$E$2,0)+IF(M107<=0,$E$3,0)+IF(P107<=0,$E$4,0)+IF(S107<=0,$E$5,0)+IF(V107<=0,$E$6,0)+IF(Y107<=0,$E$7,0)+IF(AB107<=0,$E$8,0)+IF(AE107<=0,$E$9,0)+IF(AH107<=0,$E$10,0)+IF(AK107<=0,$E$11,0)+IF(AN107<=0,$E$12,0)+IF(AQ107<=0,$E$13,0)+IF(AT107<=0,$E$14,0)+IF(AW107<=0,$E$15,0)+IF(AZ107<=0,$E$16,0))))) -> 0 | K108: =IF(J107<=0,0,MIN((J107*(1+$D$2/1200)),($E$2+'Debt Calculator'!$B$6+IF(J107<=0,$E$2,0)+IF(M107<=0,$E$3,0)+IF(P107<=0,$E$4,0)+IF(S107<=0,$E$5,0)+IF(V107<=0,$E$6,0)+IF(Y107<=0,$E$7,0)+IF(AB107<=0,$E$8,0)+IF(AE107<=0,$E$9,0)+IF(AH107<=0,$E$10,0)+IF(AK107<=0,$E$11,0)+IF(AN107<=0,$E$12,0)+IF(AQ107<=0,$E$13,0)+IF(AT107<=0,$E$14,0)+IF(AW107<=0,$E$15,0)+IF(AZ107<=0,$E$16,0)))) -> 0 | L108: =IF(J107<=0,'Debt Calculator'!$B$6+IF(J107<=0,$E$2,0)+IF(M107<=0,$E$3,0)+IF(P107<=0,$E$4,0)+IF(S107<=0,$E$5,0)+IF(V107<=0,$E$6,0)+IF(Y107<=0,$E$7,0)+IF(AB107<=0,$E$8,0)+IF(AE107<=0,$E$9,0)+IF(AH107<=0,$E$10,0)+IF(AK107<=0,$E$11,0)+IF(AN107<=0,$E$12,0)+IF(AQ107<=0,$E$13,0)+IF(AT107<=0,$E$14,0)+IF(AW107<=0,$E$15,0)+IF(AZ107<=0,$E$16,0),MAX(0,($E$2+'Debt Calculator'!$B$6+IF(J107<=0,$E$2,0)+IF(M107<=0,$E$3,0)+IF(P107<=0,$E$4,0)+IF(S107<=0,$E$5,0)+IF(V107<=0,$E$6,0)+IF(Y107<=0,$E$7,0)+IF(AB107<=0,$E$8,0)+IF(AE107<=0,$E$9,0)+IF(AH107<=0,$E$10,0)+IF(AK107<=0,$E$11,0)+IF(AN107<=0,$E$12,0)+IF(AQ107<=0,$E$13,0)+IF(AT107<=0,$E$14,0)+IF(AW107<=0,$E$15,0)+IF(AZ107<=0,$E$16,0))-(J107*(1+$D$2/1200)))) -> 2385 | M108: 0 | N108: 0 | O108: 2385 | P108: 0 | Q108: 0 | R108: 2385 | S108: 0 | T108: 0 | U108: 2385 | V108: 0 | W108: 0 | X108: 2385 | Y108: 0 | Z108: 0 | AA108: 2385 | AB108: 0 | AC108: 0 | AD108: 2385 | AE108: 0 | AF108: 0 | AG108: 2385 | AH108: 0 | AI108: 0 | AJ108: 2385 | AK108: 0 | AL108: 0 | AM108: 2385 | AN108: 0 | AO108: 0 | AP108: 2385 | AQ108: 0 | AR108: 0 | AS108: 2385 | AT108: 0 | AU108: 0 | AV108: 2385 | AW108: 0 | AX108: 0 | AY108: 2385 | AZ108: 0 | BA108: 0 | BB108: 2385
H109: =106 -> 106 | I109: 2035-05-15 | J109: =MAX(0,(J108*(1+$D$2/1200))-IF(J108<=0,0,MIN((J108*(1+$D$2/1200)),($E$2+'Debt Calculator'!$B$6+IF(J108<=0,$E$2,0)+IF(M108<=0,$E$3,0)+IF(P108<=0,$E$4,0)+IF(S108<=0,$E$5,0)+IF(V108<=0,$E$6,0)+IF(Y108<=0,$E$7,0)+IF(AB108<=0,$E$8,0)+IF(AE108<=0,$E$9,0)+IF(AH108<=0,$E$10,0)+IF(AK108<=0,$E$11,0)+IF(AN108<=0,$E$12,0)+IF(AQ108<=0,$E$13,0)+IF(AT108<=0,$E$14,0)+IF(AW108<=0,$E$15,0)+IF(AZ108<=0,$E$16,0))))) -> 0 | K109: =IF(J108<=0,0,MIN((J108*(1+$D$2/1200)),($E$2+'Debt Calculator'!$B$6+IF(J108<=0,$E$2,0)+IF(M108<=0,$E$3,0)+IF(P108<=0,$E$4,0)+IF(S108<=0,$E$5,0)+IF(V108<=0,$E$6,0)+IF(Y108<=0,$E$7,0)+IF(AB108<=0,$E$8,0)+IF(AE108<=0,$E$9,0)+IF(AH108<=0,$E$10,0)+IF(AK108<=0,$E$11,0)+IF(AN108<=0,$E$12,0)+IF(AQ108<=0,$E$13,0)+IF(AT108<=0,$E$14,0)+IF(AW108<=0,$E$15,0)+IF(AZ108<=0,$E$16,0)))) -> 0 | L109: =IF(J108<=0,'Debt Calculator'!$B$6+IF(J108<=0,$E$2,0)+IF(M108<=0,$E$3,0)+IF(P108<=0,$E$4,0)+IF(S108<=0,$E$5,0)+IF(V108<=0,$E$6,0)+IF(Y108<=0,$E$7,0)+IF(AB108<=0,$E$8,0)+IF(AE108<=0,$E$9,0)+IF(AH108<=0,$E$10,0)+IF(AK108<=0,$E$11,0)+IF(AN108<=0,$E$12,0)+IF(AQ108<=0,$E$13,0)+IF(AT108<=0,$E$14,0)+IF(AW108<=0,$E$15,0)+IF(AZ108<=0,$E$16,0),MAX(0,($E$2+'Debt Calculator'!$B$6+IF(J108<=0,$E$2,0)+IF(M108<=0,$E$3,0)+IF(P108<=0,$E$4,0)+IF(S108<=0,$E$5,0)+IF(V108<=0,$E$6,0)+IF(Y108<=0,$E$7,0)+IF(AB108<=0,$E$8,0)+IF(AE108<=0,$E$9,0)+IF(AH108<=0,$E$10,0)+IF(AK108<=0,$E$11,0)+IF(AN108<=0,$E$12,0)+IF(AQ108<=0,$E$13,0)+IF(AT108<=0,$E$14,0)+IF(AW108<=0,$E$15,0)+IF(AZ108<=0,$E$16,0))-(J108*(1+$D$2/1200)))) -> 2385 | M109: 0 | N109: 0 | O109: 2385 | P109: 0 | Q109: 0 | R109: 2385 | S109: 0 | T109: 0 | U109: 2385 | V109: 0 | W109: 0 | X109: 2385 | Y109: 0 | Z109: 0 | AA109: 2385 | AB109: 0 | AC109: 0 | AD109: 2385 | AE109: 0 | AF109: 0 | AG109: 2385 | AH109: 0 | AI109: 0 | AJ109: 2385 | AK109: 0 | AL109: 0 | AM109: 2385 | AN109: 0 | AO109: 0 | AP109: 2385 | AQ109: 0 | AR109: 0 | AS109: 2385 | AT109: 0 | AU109: 0 | AV109: 2385 | AW109: 0 | AX109: 0 | AY109: 2385 | AZ109: 0 | BA109: 0 | BB109: 2385
H110: =107 -> 107 | I110: 2035-06-15 | J110: =MAX(0,(J109*(1+$D$2/1200))-IF(J109<=0,0,MIN((J109*(1+$D$2/1200)),($E$2+'Debt Calculator'!$B$6+IF(J109<=0,$E$2,0)+IF(M109<=0,$E$3,0)+IF(P109<=0,$E$4,0)+IF(S109<=0,$E$5,0)+IF(V109<=0,$E$6,0)+IF(Y109<=0,$E$7,0)+IF(AB109<=0,$E$8,0)+IF(AE109<=0,$E$9,0)+IF(AH109<=0,$E$10,0)+IF(AK109<=0,$E$11,0)+IF(AN109<=0,$E$12,0)+IF(AQ109<=0,$E$13,0)+IF(AT109<=0,$E$14,0)+IF(AW109<=0,$E$15,0)+IF(AZ109<=0,$E$16,0))))) -> 0 | K110: =IF(J109<=0,0,MIN((J109*(1+$D$2/1200)),($E$2+'Debt Calculator'!$B$6+IF(J109<=0,$E$2,0)+IF(M109<=0,$E$3,0)+IF(P109<=0,$E$4,0)+IF(S109<=0,$E$5,0)+IF(V109<=0,$E$6,0)+IF(Y109<=0,$E$7,0)+IF(AB109<=0,$E$8,0)+IF(AE109<=0,$E$9,0)+IF(AH109<=0,$E$10,0)+IF(AK109<=0,$E$11,0)+IF(AN109<=0,$E$12,0)+IF(AQ109<=0,$E$13,0)+IF(AT109<=0,$E$14,0)+IF(AW109<=0,$E$15,0)+IF(AZ109<=0,$E$16,0)))) -> 0 | L110: =IF(J109<=0,'Debt Calculator'!$B$6+IF(J109<=0,$E$2,0)+IF(M109<=0,$E$3,0)+IF(P109<=0,$E$4,0)+IF(S109<=0,$E$5,0)+IF(V109<=0,$E$6,0)+IF(Y109<=0,$E$7,0)+IF(AB109<=0,$E$8,0)+IF(AE109<=0,$E$9,0)+IF(AH109<=0,$E$10,0)+IF(AK109<=0,$E$11,0)+IF(AN109<=0,$E$12,0)+IF(AQ109<=0,$E$13,0)+IF(AT109<=0,$E$14,0)+IF(AW109<=0,$E$15,0)+IF(AZ109<=0,$E$16,0),MAX(0,($E$2+'Debt Calculator'!$B$6+IF(J109<=0,$E$2,0)+IF(M109<=0,$E$3,0)+IF(P109<=0,$E$4,0)+IF(S109<=0,$E$5,0)+IF(V109<=0,$E$6,0)+IF(Y109<=0,$E$7,0)+IF(AB109<=0,$E$8,0)+IF(AE109<=0,$E$9,0)+IF(AH109<=0,$E$10,0)+IF(AK109<=0,$E$11,0)+IF(AN109<=0,$E$12,0)+IF(AQ109<=0,$E$13,0)+IF(AT109<=0,$E$14,0)+IF(AW109<=0,$E$15,0)+IF(AZ109<=0,$E$16,0))-(J109*(1+$D$2/1200)))) -> 2385 | M110: 0 | N110: 0 | O110: 2385 | P110: 0 | Q110: 0 | R110: 2385 | S110: 0 | T110: 0 | U110: 2385 | V110: 0 | W110: 0 | X110: 2385 | Y110: 0 | Z110: 0 | AA110: 2385 | AB110: 0 | AC110: 0 | AD110: 2385 | AE110: 0 | AF110: 0 | AG110: 2385 | AH110: 0 | AI110: 0 | AJ110: 2385 | AK110: 0 | AL110: 0 | AM110: 2385 | AN110: 0 | AO110: 0 | AP110: 2385 | AQ110: 0 | AR110: 0 | AS110: 2385 | AT110: 0 | AU110: 0 | AV110: 2385 | AW110: 0 | AX110: 0 | AY110: 2385 | AZ110: 0 | BA110: 0 | BB110: 2385
H111: =108 -> 108 | I111: 2035-07-15 | J111: =MAX(0,(J110*(1+$D$2/1200))-IF(J110<=0,0,MIN((J110*(1+$D$2/1200)),($E$2+'Debt Calculator'!$B$6+IF(J110<=0,$E$2,0)+IF(M110<=0,$E$3,0)+IF(P110<=0,$E$4,0)+IF(S110<=0,$E$5,0)+IF(V110<=0,$E$6,0)+IF(Y110<=0,$E$7,0)+IF(AB110<=0,$E$8,0)+IF(AE110<=0,$E$9,0)+IF(AH110<=0,$E$10,0)+IF(AK110<=0,$E$11,0)+IF(AN110<=0,$E$12,0)+IF(AQ110<=0,$E$13,0)+IF(AT110<=0,$E$14,0)+IF(AW110<=0,$E$15,0)+IF(AZ110<=0,$E$16,0))))) -> 0 | K111: =IF(J110<=0,0,MIN((J110*(1+$D$2/1200)),($E$2+'Debt Calculator'!$B$6+IF(J110<=0,$E$2,0)+IF(M110<=0,$E$3,0)+IF(P110<=0,$E$4,0)+IF(S110<=0,$E$5,0)+IF(V110<=0,$E$6,0)+IF(Y110<=0,$E$7,0)+IF(AB110<=0,$E$8,0)+IF(AE110<=0,$E$9,0)+IF(AH110<=0,$E$10,0)+IF(AK110<=0,$E$11,0)+IF(AN110<=0,$E$12,0)+IF(AQ110<=0,$E$13,0)+IF(AT110<=0,$E$14,0)+IF(AW110<=0,$E$15,0)+IF(AZ110<=0,$E$16,0)))) -> 0 | L111: =IF(J110<=0,'Debt Calculator'!$B$6+IF(J110<=0,$E$2,0)+IF(M110<=0,$E$3,0)+IF(P110<=0,$E$4,0)+IF(S110<=0,$E$5,0)+IF(V110<=0,$E$6,0)+IF(Y110<=0,$E$7,0)+IF(AB110<=0,$E$8,0)+IF(AE110<=0,$E$9,0)+IF(AH110<=0,$E$10,0)+IF(AK110<=0,$E$11,0)+IF(AN110<=0,$E$12,0)+IF(AQ110<=0,$E$13,0)+IF(AT110<=0,$E$14,0)+IF(AW110<=0,$E$15,0)+IF(AZ110<=0,$E$16,0),MAX(0,($E$2+'Debt Calculator'!$B$6+IF(J110<=0,$E$2,0)+IF(M110<=0,$E$3,0)+IF(P110<=0,$E$4,0)+IF(S110<=0,$E$5,0)+IF(V110<=0,$E$6,0)+IF(Y110<=0,$E$7,0)+IF(AB110<=0,$E$8,0)+IF(AE110<=0,$E$9,0)+IF(AH110<=0,$E$10,0)+IF(AK110<=0,$E$11,0)+IF(AN110<=0,$E$12,0)+IF(AQ110<=0,$E$13,0)+IF(AT110<=0,$E$14,0)+IF(AW110<=0,$E$15,0)+IF(AZ110<=0,$E$16,0))-(J110*(1+$D$2/1200)))) -> 2385 | M111: 0 | N111: 0 | O111: 2385 | P111: 0 | Q111: 0 | R111: 2385 | S111: 0 | T111: 0 | U111: 2385 | V111: 0 | W111: 0 | X111: 2385 | Y111: 0 | Z111: 0 | AA111: 2385 | AB111: 0 | AC111: 0 | AD111: 2385 | AE111: 0 | AF111: 0 | AG111: 2385 | AH111: 0 | AI111: 0 | AJ111: 2385 | AK111: 0 | AL111: 0 | AM111: 2385 | AN111: 0 | AO111: 0 | AP111: 2385 | AQ111: 0 | AR111: 0 | AS111: 2385 | AT111: 0 | AU111: 0 | AV111: 2385 | AW111: 0 | AX111: 0 | AY111: 2385 | AZ111: 0 | BA111: 0 | BB111: 2385
H112: =109 -> 109 | I112: 2035-08-15 | J112: =MAX(0,(J111*(1+$D$2/1200))-IF(J111<=0,0,MIN((J111*(1+$D$2/1200)),($E$2+'Debt Calculator'!$B$6+IF(J111<=0,$E$2,0)+IF(M111<=0,$E$3,0)+IF(P111<=0,$E$4,0)+IF(S111<=0,$E$5,0)+IF(V111<=0,$E$6,0)+IF(Y111<=0,$E$7,0)+IF(AB111<=0,$E$8,0)+IF(AE111<=0,$E$9,0)+IF(AH111<=0,$E$10,0)+IF(AK111<=0,$E$11,0)+IF(AN111<=0,$E$12,0)+IF(AQ111<=0,$E$13,0)+IF(AT111<=0,$E$14,0)+IF(AW111<=0,$E$15,0)+IF(AZ111<=0,$E$16,0))))) -> 0 | K112: =IF(J111<=0,0,MIN((J111*(1+$D$2/1200)),($E$2+'Debt Calculator'!$B$6+IF(J111<=0,$E$2,0)+IF(M111<=0,$E$3,0)+IF(P111<=0,$E$4,0)+IF(S111<=0,$E$5,0)+IF(V111<=0,$E$6,0)+IF(Y111<=0,$E$7,0)+IF(AB111<=0,$E$8,0)+IF(AE111<=0,$E$9,0)+IF(AH111<=0,$E$10,0)+IF(AK111<=0,$E$11,0)+IF(AN111<=0,$E$12,0)+IF(AQ111<=0,$E$13,0)+IF(AT111<=0,$E$14,0)+IF(AW111<=0,$E$15,0)+IF(AZ111<=0,$E$16,0)))) -> 0 | L112: =IF(J111<=0,'Debt Calculator'!$B$6+IF(J111<=0,$E$2,0)+IF(M111<=0,$E$3,0)+IF(P111<=0,$E$4,0)+IF(S111<=0,$E$5,0)+IF(V111<=0,$E$6,0)+IF(Y111<=0,$E$7,0)+IF(AB111<=0,$E$8,0)+IF(AE111<=0,$E$9,0)+IF(AH111<=0,$E$10,0)+IF(AK111<=0,$E$11,0)+IF(AN111<=0,$E$12,0)+IF(AQ111<=0,$E$13,0)+IF(AT111<=0,$E$14,0)+IF(AW111<=0,$E$15,0)+IF(AZ111<=0,$E$16,0),MAX(0,($E$2+'Debt Calculator'!$B$6+IF(J111<=0,$E$2,0)+IF(M111<=0,$E$3,0)+IF(P111<=0,$E$4,0)+IF(S111<=0,$E$5,0)+IF(V111<=0,$E$6,0)+IF(Y111<=0,$E$7,0)+IF(AB111<=0,$E$8,0)+IF(AE111<=0,$E$9,0)+IF(AH111<=0,$E$10,0)+IF(AK111<=0,$E$11,0)+IF(AN111<=0,$E$12,0)+IF(AQ111<=0,$E$13,0)+IF(AT111<=0,$E$14,0)+IF(AW111<=0,$E$15,0)+IF(AZ111<=0,$E$16,0))-(J111*(1+$D$2/1200)))) -> 2385 | M112: 0 | N112: 0 | O112: 2385 | P112: 0 | Q112: 0 | R112: 2385 | S112: 0 | T112: 0 | U112: 2385 | V112: 0 | W112: 0 | X112: 2385 | Y112: 0 | Z112: 0 | AA112: 2385 | AB112: 0 | AC112: 0 | AD112: 2385 | AE112: 0 | AF112: 0 | AG112: 2385 | AH112: 0 | AI112: 0 | AJ112: 2385 | AK112: 0 | AL112: 0 | AM112: 2385 | AN112: 0 | AO112: 0 | AP112: 2385 | AQ112: 0 | AR112: 0 | AS112: 2385 | AT112: 0 | AU112: 0 | AV112: 2385 | AW112: 0 | AX112: 0 | AY112: 2385 | AZ112: 0 | BA112: 0 | BB112: 2385
H113: =110 -> 110 | I113: 2035-09-15 | J113: =MAX(0,(J112*(1+$D$2/1200))-IF(J112<=0,0,MIN((J112*(1+$D$2/1200)),($E$2+'Debt Calculator'!$B$6+IF(J112<=0,$E$2,0)+IF(M112<=0,$E$3,0)+IF(P112<=0,$E$4,0)+IF(S112<=0,$E$5,0)+IF(V112<=0,$E$6,0)+IF(Y112<=0,$E$7,0)+IF(AB112<=0,$E$8,0)+IF(AE112<=0,$E$9,0)+IF(AH112<=0,$E$10,0)+IF(AK112<=0,$E$11,0)+IF(AN112<=0,$E$12,0)+IF(AQ112<=0,$E$13,0)+IF(AT112<=0,$E$14,0)+IF(AW112<=0,$E$15,0)+IF(AZ112<=0,$E$16,0))))) -> 0 | K113: =IF(J112<=0,0,MIN((J112*(1+$D$2/1200)),($E$2+'Debt Calculator'!$B$6+IF(J112<=0,$E$2,0)+IF(M112<=0,$E$3,0)+IF(P112<=0,$E$4,0)+IF(S112<=0,$E$5,0)+IF(V112<=0,$E$6,0)+IF(Y112<=0,$E$7,0)+IF(AB112<=0,$E$8,0)+IF(AE112<=0,$E$9,0)+IF(AH112<=0,$E$10,0)+IF(AK112<=0,$E$11,0)+IF(AN112<=0,$E$12,0)+IF(AQ112<=0,$E$13,0)+IF(AT112<=0,$E$14,0)+IF(AW112<=0,$E$15,0)+IF(AZ112<=0,$E$16,0)))) -> 0 | L113: =IF(J112<=0,'Debt Calculator'!$B$6+IF(J112<=0,$E$2,0)+IF(M112<=0,$E$3,0)+IF(P112<=0,$E$4,0)+IF(S112<=0,$E$5,0)+IF(V112<=0,$E$6,0)+IF(Y112<=0,$E$7,0)+IF(AB112<=0,$E$8,0)+IF(AE112<=0,$E$9,0)+IF(AH112<=0,$E$10,0)+IF(AK112<=0,$E$11,0)+IF(AN112<=0,$E$12,0)+IF(AQ112<=0,$E$13,0)+IF(AT112<=0,$E$14,0)+IF(AW112<=0,$E$15,0)+IF(AZ112<=0,$E$16,0),MAX(0,($E$2+'Debt Calculator'!$B$6+IF(J112<=0,$E$2,0)+IF(M112<=0,$E$3,0)+IF(P112<=0,$E$4,0)+IF(S112<=0,$E$5,0)+IF(V112<=0,$E$6,0)+IF(Y112<=0,$E$7,0)+IF(AB112<=0,$E$8,0)+IF(AE112<=0,$E$9,0)+IF(AH112<=0,$E$10,0)+IF(AK112<=0,$E$11,0)+IF(AN112<=0,$E$12,0)+IF(AQ112<=0,$E$13,0)+IF(AT112<=0,$E$14,0)+IF(AW112<=0,$E$15,0)+IF(AZ112<=0,$E$16,0))-(J112*(1+$D$2/1200)))) -> 2385 | M113: 0 | N113: 0 | O113: 2385 | P113: 0 | Q113: 0 | R113: 2385 | S113: 0 | T113: 0 | U113: 2385 | V113: 0 | W113: 0 | X113: 2385 | Y113: 0 | Z113: 0 | AA113: 2385 | AB113: 0 | AC113: 0 | AD113: 2385 | AE113: 0 | AF113: 0 | AG113: 2385 | AH113: 0 | AI113: 0 | AJ113: 2385 | AK113: 0 | AL113: 0 | AM113: 2385 | AN113: 0 | AO113: 0 | AP113: 2385 | AQ113: 0 | AR113: 0 | AS113: 2385 | AT113: 0 | AU113: 0 | AV113: 2385 | AW113: 0 | AX113: 0 | AY113: 2385 | AZ113: 0 | BA113: 0 | BB113: 2385
H114: =111 -> 111 | I114: 2035-10-15 | J114: =MAX(0,(J113*(1+$D$2/1200))-IF(J113<=0,0,MIN((J113*(1+$D$2/1200)),($E$2+'Debt Calculator'!$B$6+IF(J113<=0,$E$2,0)+IF(M113<=0,$E$3,0)+IF(P113<=0,$E$4,0)+IF(S113<=0,$E$5,0)+IF(V113<=0,$E$6,0)+IF(Y113<=0,$E$7,0)+IF(AB113<=0,$E$8,0)+IF(AE113<=0,$E$9,0)+IF(AH113<=0,$E$10,0)+IF(AK113<=0,$E$11,0)+IF(AN113<=0,$E$12,0)+IF(AQ113<=0,$E$13,0)+IF(AT113<=0,$E$14,0)+IF(AW113<=0,$E$15,0)+IF(AZ113<=0,$E$16,0))))) -> 0 | K114: =IF(J113<=0,0,MIN((J113*(1+$D$2/1200)),($E$2+'Debt Calculator'!$B$6+IF(J113<=0,$E$2,0)+IF(M113<=0,$E$3,0)+IF(P113<=0,$E$4,0)+IF(S113<=0,$E$5,0)+IF(V113<=0,$E$6,0)+IF(Y113<=0,$E$7,0)+IF(AB113<=0,$E$8,0)+IF(AE113<=0,$E$9,0)+IF(AH113<=0,$E$10,0)+IF(AK113<=0,$E$11,0)+IF(AN113<=0,$E$12,0)+IF(AQ113<=0,$E$13,0)+IF(AT113<=0,$E$14,0)+IF(AW113<=0,$E$15,0)+IF(AZ113<=0,$E$16,0)))) -> 0 | L114: =IF(J113<=0,'Debt Calculator'!$B$6+IF(J113<=0,$E$2,0)+IF(M113<=0,$E$3,0)+IF(P113<=0,$E$4,0)+IF(S113<=0,$E$5,0)+IF(V113<=0,$E$6,0)+IF(Y113<=0,$E$7,0)+IF(AB113<=0,$E$8,0)+IF(AE113<=0,$E$9,0)+IF(AH113<=0,$E$10,0)+IF(AK113<=0,$E$11,0)+IF(AN113<=0,$E$12,0)+IF(AQ113<=0,$E$13,0)+IF(AT113<=0,$E$14,0)+IF(AW113<=0,$E$15,0)+IF(AZ113<=0,$E$16,0),MAX(0,($E$2+'Debt Calculator'!$B$6+IF(J113<=0,$E$2,0)+IF(M113<=0,$E$3,0)+IF(P113<=0,$E$4,0)+IF(S113<=0,$E$5,0)+IF(V113<=0,$E$6,0)+IF(Y113<=0,$E$7,0)+IF(AB113<=0,$E$8,0)+IF(AE113<=0,$E$9,0)+IF(AH113<=0,$E$10,0)+IF(AK113<=0,$E$11,0)+IF(AN113<=0,$E$12,0)+IF(AQ113<=0,$E$13,0)+IF(AT113<=0,$E$14,0)+IF(AW113<=0,$E$15,0)+IF(AZ113<=0,$E$16,0))-(J113*(1+$D$2/1200)))) -> 2385 | M114: 0 | N114: 0 | O114: 2385 | P114: 0 | Q114: 0 | R114: 2385 | S114: 0 | T114: 0 | U114: 2385 | V114: 0 | W114: 0 | X114: 2385 | Y114: 0 | Z114: 0 | AA114: 2385 | AB114: 0 | AC114: 0 | AD114: 2385 | AE114: 0 | AF114: 0 | AG114: 2385 | AH114: 0 | AI114: 0 | AJ114: 2385 | AK114: 0 | AL114: 0 | AM114: 2385 | AN114: 0 | AO114: 0 | AP114: 2385 | AQ114: 0 | AR114: 0 | AS114: 2385 | AT114: 0 | AU114: 0 | AV114: 2385 | AW114: 0 | AX114: 0 | AY114: 2385 | AZ114: 0 | BA114: 0 | BB114: 2385
H115: =112 -> 112 | I115: 2035-11-15 | J115: =MAX(0,(J114*(1+$D$2/1200))-IF(J114<=0,0,MIN((J114*(1+$D$2/1200)),($E$2+'Debt Calculator'!$B$6+IF(J114<=0,$E$2,0)+IF(M114<=0,$E$3,0)+IF(P114<=0,$E$4,0)+IF(S114<=0,$E$5,0)+IF(V114<=0,$E$6,0)+IF(Y114<=0,$E$7,0)+IF(AB114<=0,$E$8,0)+IF(AE114<=0,$E$9,0)+IF(AH114<=0,$E$10,0)+IF(AK114<=0,$E$11,0)+IF(AN114<=0,$E$12,0)+IF(AQ114<=0,$E$13,0)+IF(AT114<=0,$E$14,0)+IF(AW114<=0,$E$15,0)+IF(AZ114<=0,$E$16,0))))) -> 0 | K115: =IF(J114<=0,0,MIN((J114*(1+$D$2/1200)),($E$2+'Debt Calculator'!$B$6+IF(J114<=0,$E$2,0)+IF(M114<=0,$E$3,0)+IF(P114<=0,$E$4,0)+IF(S114<=0,$E$5,0)+IF(V114<=0,$E$6,0)+IF(Y114<=0,$E$7,0)+IF(AB114<=0,$E$8,0)+IF(AE114<=0,$E$9,0)+IF(AH114<=0,$E$10,0)+IF(AK114<=0,$E$11,0)+IF(AN114<=0,$E$12,0)+IF(AQ114<=0,$E$13,0)+IF(AT114<=0,$E$14,0)+IF(AW114<=0,$E$15,0)+IF(AZ114<=0,$E$16,0)))) -> 0 | L115: =IF(J114<=0,'Debt Calculator'!$B$6+IF(J114<=0,$E$2,0)+IF(M114<=0,$E$3,0)+IF(P114<=0,$E$4,0)+IF(S114<=0,$E$5,0)+IF(V114<=0,$E$6,0)+IF(Y114<=0,$E$7,0)+IF(AB114<=0,$E$8,0)+IF(AE114<=0,$E$9,0)+IF(AH114<=0,$E$10,0)+IF(AK114<=0,$E$11,0)+IF(AN114<=0,$E$12,0)+IF(AQ114<=0,$E$13,0)+IF(AT114<=0,$E$14,0)+IF(AW114<=0,$E$15,0)+IF(AZ114<=0,$E$16,0),MAX(0,($E$2+'Debt Calculator'!$B$6+IF(J114<=0,$E$2,0)+IF(M114<=0,$E$3,0)+IF(P114<=0,$E$4,0)+IF(S114<=0,$E$5,0)+IF(V114<=0,$E$6,0)+IF(Y114<=0,$E$7,0)+IF(AB114<=0,$E$8,0)+IF(AE114<=0,$E$9,0)+IF(AH114<=0,$E$10,0)+IF(AK114<=0,$E$11,0)+IF(AN114<=0,$E$12,0)+IF(AQ114<=0,$E$13,0)+IF(AT114<=0,$E$14,0)+IF(AW114<=0,$E$15,0)+IF(AZ114<=0,$E$16,0))-(J114*(1+$D$2/1200)))) -> 2385 | M115: 0 | N115: 0 | O115: 2385 | P115: 0 | Q115: 0 | R115: 2385 | S115: 0 | T115: 0 | U115: 2385 | V115: 0 | W115: 0 | X115: 2385 | Y115: 0 | Z115: 0 | AA115: 2385 | AB115: 0 | AC115: 0 | AD115: 2385 | AE115: 0 | AF115: 0 | AG115: 2385 | AH115: 0 | AI115: 0 | AJ115: 2385 | AK115: 0 | AL115: 0 | AM115: 2385 | AN115: 0 | AO115: 0 | AP115: 2385 | AQ115: 0 | AR115: 0 | AS115: 2385 | AT115: 0 | AU115: 0 | AV115: 2385 | AW115: 0 | AX115: 0 | AY115: 2385 | AZ115: 0 | BA115: 0 | BB115: 2385
H116: =113 -> 113 | I116: 2035-12-15 | J116: =MAX(0,(J115*(1+$D$2/1200))-IF(J115<=0,0,MIN((J115*(1+$D$2/1200)),($E$2+'Debt Calculator'!$B$6+IF(J115<=0,$E$2,0)+IF(M115<=0,$E$3,0)+IF(P115<=0,$E$4,0)+IF(S115<=0,$E$5,0)+IF(V115<=0,$E$6,0)+IF(Y115<=0,$E$7,0)+IF(AB115<=0,$E$8,0)+IF(AE115<=0,$E$9,0)+IF(AH115<=0,$E$10,0)+IF(AK115<=0,$E$11,0)+IF(AN115<=0,$E$12,0)+IF(AQ115<=0,$E$13,0)+IF(AT115<=0,$E$14,0)+IF(AW115<=0,$E$15,0)+IF(AZ115<=0,$E$16,0))))) -> 0 | K116: =IF(J115<=0,0,MIN((J115*(1+$D$2/1200)),($E$2+'Debt Calculator'!$B$6+IF(J115<=0,$E$2,0)+IF(M115<=0,$E$3,0)+IF(P115<=0,$E$4,0)+IF(S115<=0,$E$5,0)+IF(V115<=0,$E$6,0)+IF(Y115<=0,$E$7,0)+IF(AB115<=0,$E$8,0)+IF(AE115<=0,$E$9,0)+IF(AH115<=0,$E$10,0)+IF(AK115<=0,$E$11,0)+IF(AN115<=0,$E$12,0)+IF(AQ115<=0,$E$13,0)+IF(AT115<=0,$E$14,0)+IF(AW115<=0,$E$15,0)+IF(AZ115<=0,$E$16,0)))) -> 0 | L116: =IF(J115<=0,'Debt Calculator'!$B$6+IF(J115<=0,$E$2,0)+IF(M115<=0,$E$3,0)+IF(P115<=0,$E$4,0)+IF(S115<=0,$E$5,0)+IF(V115<=0,$E$6,0)+IF(Y115<=0,$E$7,0)+IF(AB115<=0,$E$8,0)+IF(AE115<=0,$E$9,0)+IF(AH115<=0,$E$10,0)+IF(AK115<=0,$E$11,0)+IF(AN115<=0,$E$12,0)+IF(AQ115<=0,$E$13,0)+IF(AT115<=0,$E$14,0)+IF(AW115<=0,$E$15,0)+IF(AZ115<=0,$E$16,0),MAX(0,($E$2+'Debt Calculator'!$B$6+IF(J115<=0,$E$2,0)+IF(M115<=0,$E$3,0)+IF(P115<=0,$E$4,0)+IF(S115<=0,$E$5,0)+IF(V115<=0,$E$6,0)+IF(Y115<=0,$E$7,0)+IF(AB115<=0,$E$8,0)+IF(AE115<=0,$E$9,0)+IF(AH115<=0,$E$10,0)+IF(AK115<=0,$E$11,0)+IF(AN115<=0,$E$12,0)+IF(AQ115<=0,$E$13,0)+IF(AT115<=0,$E$14,0)+IF(AW115<=0,$E$15,0)+IF(AZ115<=0,$E$16,0))-(J115*(1+$D$2/1200)))) -> 2385 | M116: 0 | N116: 0 | O116: 2385 | P116: 0 | Q116: 0 | R116: 2385 | S116: 0 | T116: 0 | U116: 2385 | V116: 0 | W116: 0 | X116: 2385 | Y116: 0 | Z116: 0 | AA116: 2385 | AB116: 0 | AC116: 0 | AD116: 2385 | AE116: 0 | AF116: 0 | AG116: 2385 | AH116: 0 | AI116: 0 | AJ116: 2385 | AK116: 0 | AL116: 0 | AM116: 2385 | AN116: 0 | AO116: 0 | AP116: 2385 | AQ116: 0 | AR116: 0 | AS116: 2385 | AT116: 0 | AU116: 0 | AV116: 2385 | AW116: 0 | AX116: 0 | AY116: 2385 | AZ116: 0 | BA116: 0 | BB116: 2385
H117: =114 -> 114 | I117: 2036-01-15 | J117: =MAX(0,(J116*(1+$D$2/1200))-IF(J116<=0,0,MIN((J116*(1+$D$2/1200)),($E$2+'Debt Calculator'!$B$6+IF(J116<=0,$E$2,0)+IF(M116<=0,$E$3,0)+IF(P116<=0,$E$4,0)+IF(S116<=0,$E$5,0)+IF(V116<=0,$E$6,0)+IF(Y116<=0,$E$7,0)+IF(AB116<=0,$E$8,0)+IF(AE116<=0,$E$9,0)+IF(AH116<=0,$E$10,0)+IF(AK116<=0,$E$11,0)+IF(AN116<=0,$E$12,0)+IF(AQ116<=0,$E$13,0)+IF(AT116<=0,$E$14,0)+IF(AW116<=0,$E$15,0)+IF(AZ116<=0,$E$16,0))))) -> 0 | K117: =IF(J116<=0,0,MIN((J116*(1+$D$2/1200)),($E$2+'Debt Calculator'!$B$6+IF(J116<=0,$E$2,0)+IF(M116<=0,$E$3,0)+IF(P116<=0,$E$4,0)+IF(S116<=0,$E$5,0)+IF(V116<=0,$E$6,0)+IF(Y116<=0,$E$7,0)+IF(AB116<=0,$E$8,0)+IF(AE116<=0,$E$9,0)+IF(AH116<=0,$E$10,0)+IF(AK116<=0,$E$11,0)+IF(AN116<=0,$E$12,0)+IF(AQ116<=0,$E$13,0)+IF(AT116<=0,$E$14,0)+IF(AW116<=0,$E$15,0)+IF(AZ116<=0,$E$16,0)))) -> 0 | L117: =IF(J116<=0,'Debt Calculator'!$B$6+IF(J116<=0,$E$2,0)+IF(M116<=0,$E$3,0)+IF(P116<=0,$E$4,0)+IF(S116<=0,$E$5,0)+IF(V116<=0,$E$6,0)+IF(Y116<=0,$E$7,0)+IF(AB116<=0,$E$8,0)+IF(AE116<=0,$E$9,0)+IF(AH116<=0,$E$10,0)+IF(AK116<=0,$E$11,0)+IF(AN116<=0,$E$12,0)+IF(AQ116<=0,$E$13,0)+IF(AT116<=0,$E$14,0)+IF(AW116<=0,$E$15,0)+IF(AZ116<=0,$E$16,0),MAX(0,($E$2+'Debt Calculator'!$B$6+IF(J116<=0,$E$2,0)+IF(M116<=0,$E$3,0)+IF(P116<=0,$E$4,0)+IF(S116<=0,$E$5,0)+IF(V116<=0,$E$6,0)+IF(Y116<=0,$E$7,0)+IF(AB116<=0,$E$8,0)+IF(AE116<=0,$E$9,0)+IF(AH116<=0,$E$10,0)+IF(AK116<=0,$E$11,0)+IF(AN116<=0,$E$12,0)+IF(AQ116<=0,$E$13,0)+IF(AT116<=0,$E$14,0)+IF(AW116<=0,$E$15,0)+IF(AZ116<=0,$E$16,0))-(J116*(1+$D$2/1200)))) -> 2385 | M117: 0 | N117: 0 | O117: 2385 | P117: 0 | Q117: 0 | R117: 2385 | S117: 0 | T117: 0 | U117: 2385 | V117: 0 | W117: 0 | X117: 2385 | Y117: 0 | Z117: 0 | AA117: 2385 | AB117: 0 | AC117: 0 | AD117: 2385 | AE117: 0 | AF117: 0 | AG117: 2385 | AH117: 0 | AI117: 0 | AJ117: 2385 | AK117: 0 | AL117: 0 | AM117: 2385 | AN117: 0 | AO117: 0 | AP117: 2385 | AQ117: 0 | AR117: 0 | AS117: 2385 | AT117: 0 | AU117: 0 | AV117: 2385 | AW117: 0 | AX117: 0 | AY117: 2385 | AZ117: 0 | BA117: 0 | BB117: 2385
H118: =115 -> 115 | I118: 2036-02-15 | J118: =MAX(0,(J117*(1+$D$2/1200))-IF(J117<=0,0,MIN((J117*(1+$D$2/1200)),($E$2+'Debt Calculator'!$B$6+IF(J117<=0,$E$2,0)+IF(M117<=0,$E$3,0)+IF(P117<=0,$E$4,0)+IF(S117<=0,$E$5,0)+IF(V117<=0,$E$6,0)+IF(Y117<=0,$E$7,0)+IF(AB117<=0,$E$8,0)+IF(AE117<=0,$E$9,0)+IF(AH117<=0,$E$10,0)+IF(AK117<=0,$E$11,0)+IF(AN117<=0,$E$12,0)+IF(AQ117<=0,$E$13,0)+IF(AT117<=0,$E$14,0)+IF(AW117<=0,$E$15,0)+IF(AZ117<=0,$E$16,0))))) -> 0 | K118: =IF(J117<=0,0,MIN((J117*(1+$D$2/1200)),($E$2+'Debt Calculator'!$B$6+IF(J117<=0,$E$2,0)+IF(M117<=0,$E$3,0)+IF(P117<=0,$E$4,0)+IF(S117<=0,$E$5,0)+IF(V117<=0,$E$6,0)+IF(Y117<=0,$E$7,0)+IF(AB117<=0,$E$8,0)+IF(AE117<=0,$E$9,0)+IF(AH117<=0,$E$10,0)+IF(AK117<=0,$E$11,0)+IF(AN117<=0,$E$12,0)+IF(AQ117<=0,$E$13,0)+IF(AT117<=0,$E$14,0)+IF(AW117<=0,$E$15,0)+IF(AZ117<=0,$E$16,0)))) -> 0 | L118: =IF(J117<=0,'Debt Calculator'!$B$6+IF(J117<=0,$E$2,0)+IF(M117<=0,$E$3,0)+IF(P117<=0,$E$4,0)+IF(S117<=0,$E$5,0)+IF(V117<=0,$E$6,0)+IF(Y117<=0,$E$7,0)+IF(AB117<=0,$E$8,0)+IF(AE117<=0,$E$9,0)+IF(AH117<=0,$E$10,0)+IF(AK117<=0,$E$11,0)+IF(AN117<=0,$E$12,0)+IF(AQ117<=0,$E$13,0)+IF(AT117<=0,$E$14,0)+IF(AW117<=0,$E$15,0)+IF(AZ117<=0,$E$16,0),MAX(0,($E$2+'Debt Calculator'!$B$6+IF(J117<=0,$E$2,0)+IF(M117<=0,$E$3,0)+IF(P117<=0,$E$4,0)+IF(S117<=0,$E$5,0)+IF(V117<=0,$E$6,0)+IF(Y117<=0,$E$7,0)+IF(AB117<=0,$E$8,0)+IF(AE117<=0,$E$9,0)+IF(AH117<=0,$E$10,0)+IF(AK117<=0,$E$11,0)+IF(AN117<=0,$E$12,0)+IF(AQ117<=0,$E$13,0)+IF(AT117<=0,$E$14,0)+IF(AW117<=0,$E$15,0)+IF(AZ117<=0,$E$16,0))-(J117*(1+$D$2/1200)))) -> 2385 | M118: 0 | N118: 0 | O118: 2385 | P118: 0 | Q118: 0 | R118: 2385 | S118: 0 | T118: 0 | U118: 2385 | V118: 0 | W118: 0 | X118: 2385 | Y118: 0 | Z118: 0 | AA118: 2385 | AB118: 0 | AC118: 0 | AD118: 2385 | AE118: 0 | AF118: 0 | AG118: 2385 | AH118: 0 | AI118: 0 | AJ118: 2385 | AK118: 0 | AL118: 0 | AM118: 2385 | AN118: 0 | AO118: 0 | AP118: 2385 | AQ118: 0 | AR118: 0 | AS118: 2385 | AT118: 0 | AU118: 0 | AV118: 2385 | AW118: 0 | AX118: 0 | AY118: 2385 | AZ118: 0 | BA118: 0 | BB118: 2385
H119: =116 -> 116 | I119: 2036-03-15 | J119: =MAX(0,(J118*(1+$D$2/1200))-IF(J118<=0,0,MIN((J118*(1+$D$2/1200)),($E$2+'Debt Calculator'!$B$6+IF(J118<=0,$E$2,0)+IF(M118<=0,$E$3,0)+IF(P118<=0,$E$4,0)+IF(S118<=0,$E$5,0)+IF(V118<=0,$E$6,0)+IF(Y118<=0,$E$7,0)+IF(AB118<=0,$E$8,0)+IF(AE118<=0,$E$9,0)+IF(AH118<=0,$E$10,0)+IF(AK118<=0,$E$11,0)+IF(AN118<=0,$E$12,0)+IF(AQ118<=0,$E$13,0)+IF(AT118<=0,$E$14,0)+IF(AW118<=0,$E$15,0)+IF(AZ118<=0,$E$16,0))))) -> 0 | K119: =IF(J118<=0,0,MIN((J118*(1+$D$2/1200)),($E$2+'Debt Calculator'!$B$6+IF(J118<=0,$E$2,0)+IF(M118<=0,$E$3,0)+IF(P118<=0,$E$4,0)+IF(S118<=0,$E$5,0)+IF(V118<=0,$E$6,0)+IF(Y118<=0,$E$7,0)+IF(AB118<=0,$E$8,0)+IF(AE118<=0,$E$9,0)+IF(AH118<=0,$E$10,0)+IF(AK118<=0,$E$11,0)+IF(AN118<=0,$E$12,0)+IF(AQ118<=0,$E$13,0)+IF(AT118<=0,$E$14,0)+IF(AW118<=0,$E$15,0)+IF(AZ118<=0,$E$16,0)))) -> 0 | L119: =IF(J118<=0,'Debt Calculator'!$B$6+IF(J118<=0,$E$2,0)+IF(M118<=0,$E$3,0)+IF(P118<=0,$E$4,0)+IF(S118<=0,$E$5,0)+IF(V118<=0,$E$6,0)+IF(Y118<=0,$E$7,0)+IF(AB118<=0,$E$8,0)+IF(AE118<=0,$E$9,0)+IF(AH118<=0,$E$10,0)+IF(AK118<=0,$E$11,0)+IF(AN118<=0,$E$12,0)+IF(AQ118<=0,$E$13,0)+IF(AT118<=0,$E$14,0)+IF(AW118<=0,$E$15,0)+IF(AZ118<=0,$E$16,0),MAX(0,($E$2+'Debt Calculator'!$B$6+IF(J118<=0,$E$2,0)+IF(M118<=0,$E$3,0)+IF(P118<=0,$E$4,0)+IF(S118<=0,$E$5,0)+IF(V118<=0,$E$6,0)+IF(Y118<=0,$E$7,0)+IF(AB118<=0,$E$8,0)+IF(AE118<=0,$E$9,0)+IF(AH118<=0,$E$10,0)+IF(AK118<=0,$E$11,0)+IF(AN118<=0,$E$12,0)+IF(AQ118<=0,$E$13,0)+IF(AT118<=0,$E$14,0)+IF(AW118<=0,$E$15,0)+IF(AZ118<=0,$E$16,0))-(J118*(1+$D$2/1200)))) -> 2385 | M119: 0 | N119: 0 | O119: 2385 | P119: 0 | Q119: 0 | R119: 2385 | S119: 0 | T119: 0 | U119: 2385 | V119: 0 | W119: 0 | X119: 2385 | Y119: 0 | Z119: 0 | AA119: 2385 | AB119: 0 | AC119: 0 | AD119: 2385 | AE119: 0 | AF119: 0 | AG119: 2385 | AH119: 0 | AI119: 0 | AJ119: 2385 | AK119: 0 | AL119: 0 | AM119: 2385 | AN119: 0 | AO119: 0 | AP119: 2385 | AQ119: 0 | AR119: 0 | AS119: 2385 | AT119: 0 | AU119: 0 | AV119: 2385 | AW119: 0 | AX119: 0 | AY119: 2385 | AZ119: 0 | BA119: 0 | BB119: 2385
H120: =117 -> 117 | I120: 2036-04-15 | J120: =MAX(0,(J119*(1+$D$2/1200))-IF(J119<=0,0,MIN((J119*(1+$D$2/1200)),($E$2+'Debt Calculator'!$B$6+IF(J119<=0,$E$2,0)+IF(M119<=0,$E$3,0)+IF(P119<=0,$E$4,0)+IF(S119<=0,$E$5,0)+IF(V119<=0,$E$6,0)+IF(Y119<=0,$E$7,0)+IF(AB119<=0,$E$8,0)+IF(AE119<=0,$E$9,0)+IF(AH119<=0,$E$10,0)+IF(AK119<=0,$E$11,0)+IF(AN119<=0,$E$12,0)+IF(AQ119<=0,$E$13,0)+IF(AT119<=0,$E$14,0)+IF(AW119<=0,$E$15,0)+IF(AZ119<=0,$E$16,0))))) -> 0 | K120: =IF(J119<=0,0,MIN((J119*(1+$D$2/1200)),($E$2+'Debt Calculator'!$B$6+IF(J119<=0,$E$2,0)+IF(M119<=0,$E$3,0)+IF(P119<=0,$E$4,0)+IF(S119<=0,$E$5,0)+IF(V119<=0,$E$6,0)+IF(Y119<=0,$E$7,0)+IF(AB119<=0,$E$8,0)+IF(AE119<=0,$E$9,0)+IF(AH119<=0,$E$10,0)+IF(AK119<=0,$E$11,0)+IF(AN119<=0,$E$12,0)+IF(AQ119<=0,$E$13,0)+IF(AT119<=0,$E$14,0)+IF(AW119<=0,$E$15,0)+IF(AZ119<=0,$E$16,0)))) -> 0 | L120: =IF(J119<=0,'Debt Calculator'!$B$6+IF(J119<=0,$E$2,0)+IF(M119<=0,$E$3,0)+IF(P119<=0,$E$4,0)+IF(S119<=0,$E$5,0)+IF(V119<=0,$E$6,0)+IF(Y119<=0,$E$7,0)+IF(AB119<=0,$E$8,0)+IF(AE119<=0,$E$9,0)+IF(AH119<=0,$E$10,0)+IF(AK119<=0,$E$11,0)+IF(AN119<=0,$E$12,0)+IF(AQ119<=0,$E$13,0)+IF(AT119<=0,$E$14,0)+IF(AW119<=0,$E$15,0)+IF(AZ119<=0,$E$16,0),MAX(0,($E$2+'Debt Calculator'!$B$6+IF(J119<=0,$E$2,0)+IF(M119<=0,$E$3,0)+IF(P119<=0,$E$4,0)+IF(S119<=0,$E$5,0)+IF(V119<=0,$E$6,0)+IF(Y119<=0,$E$7,0)+IF(AB119<=0,$E$8,0)+IF(AE119<=0,$E$9,0)+IF(AH119<=0,$E$10,0)+IF(AK119<=0,$E$11,0)+IF(AN119<=0,$E$12,0)+IF(AQ119<=0,$E$13,0)+IF(AT119<=0,$E$14,0)+IF(AW119<=0,$E$15,0)+IF(AZ119<=0,$E$16,0))-(J119*(1+$D$2/1200)))) -> 2385 | M120: 0 | N120: 0 | O120: 2385 | P120: 0 | Q120: 0 | R120: 2385 | S120: 0 | T120: 0 | U120: 2385 | V120: 0 | W120: 0 | X120: 2385 | Y120: 0 | Z120: 0 | AA120: 2385 | AB120: 0 | AC120: 0 | AD120: 2385 | AE120: 0 | AF120: 0 | AG120: 2385 | AH120: 0 | AI120: 0 | AJ120: 2385 | AK120: 0 | AL120: 0 | AM120: 2385 | AN120: 0 | AO120: 0 | AP120: 2385 | AQ120: 0 | AR120: 0 | AS120: 2385 | AT120: 0 | AU120: 0 | AV120: 2385 | AW120: 0 | AX120: 0 | AY120: 2385 | AZ120: 0 | BA120: 0 | BB120: 2385
H121: =118 -> 118 | I121: 2036-05-15 | J121: =MAX(0,(J120*(1+$D$2/1200))-IF(J120<=0,0,MIN((J120*(1+$D$2/1200)),($E$2+'Debt Calculator'!$B$6+IF(J120<=0,$E$2,0)+IF(M120<=0,$E$3,0)+IF(P120<=0,$E$4,0)+IF(S120<=0,$E$5,0)+IF(V120<=0,$E$6,0)+IF(Y120<=0,$E$7,0)+IF(AB120<=0,$E$8,0)+IF(AE120<=0,$E$9,0)+IF(AH120<=0,$E$10,0)+IF(AK120<=0,$E$11,0)+IF(AN120<=0,$E$12,0)+IF(AQ120<=0,$E$13,0)+IF(AT120<=0,$E$14,0)+IF(AW120<=0,$E$15,0)+IF(AZ120<=0,$E$16,0))))) -> 0 | K121: =IF(J120<=0,0,MIN((J120*(1+$D$2/1200)),($E$2+'Debt Calculator'!$B$6+IF(J120<=0,$E$2,0)+IF(M120<=0,$E$3,0)+IF(P120<=0,$E$4,0)+IF(S120<=0,$E$5,0)+IF(V120<=0,$E$6,0)+IF(Y120<=0,$E$7,0)+IF(AB120<=0,$E$8,0)+IF(AE120<=0,$E$9,0)+IF(AH120<=0,$E$10,0)+IF(AK120<=0,$E$11,0)+IF(AN120<=0,$E$12,0)+IF(AQ120<=0,$E$13,0)+IF(AT120<=0,$E$14,0)+IF(AW120<=0,$E$15,0)+IF(AZ120<=0,$E$16,0)))) -> 0 | L121: =IF(J120<=0,'Debt Calculator'!$B$6+IF(J120<=0,$E$2,0)+IF(M120<=0,$E$3,0)+IF(P120<=0,$E$4,0)+IF(S120<=0,$E$5,0)+IF(V120<=0,$E$6,0)+IF(Y120<=0,$E$7,0)+IF(AB120<=0,$E$8,0)+IF(AE120<=0,$E$9,0)+IF(AH120<=0,$E$10,0)+IF(AK120<=0,$E$11,0)+IF(AN120<=0,$E$12,0)+IF(AQ120<=0,$E$13,0)+IF(AT120<=0,$E$14,0)+IF(AW120<=0,$E$15,0)+IF(AZ120<=0,$E$16,0),MAX(0,($E$2+'Debt Calculator'!$B$6+IF(J120<=0,$E$2,0)+IF(M120<=0,$E$3,0)+IF(P120<=0,$E$4,0)+IF(S120<=0,$E$5,0)+IF(V120<=0,$E$6,0)+IF(Y120<=0,$E$7,0)+IF(AB120<=0,$E$8,0)+IF(AE120<=0,$E$9,0)+IF(AH120<=0,$E$10,0)+IF(AK120<=0,$E$11,0)+IF(AN120<=0,$E$12,0)+IF(AQ120<=0,$E$13,0)+IF(AT120<=0,$E$14,0)+IF(AW120<=0,$E$15,0)+IF(AZ120<=0,$E$16,0))-(J120*(1+$D$2/1200)))) -> 2385 | M121: 0 | N121: 0 | O121: 2385 | P121: 0 | Q121: 0 | R121: 2385 | S121: 0 | T121: 0 | U121: 2385 | V121: 0 | W121: 0 | X121: 2385 | Y121: 0 | Z121: 0 | AA121: 2385 | AB121: 0 | AC121: 0 | AD121: 2385 | AE121: 0 | AF121: 0 | AG121: 2385 | AH121: 0 | AI121: 0 | AJ121: 2385 | AK121: 0 | AL121: 0 | AM121: 2385 | AN121: 0 | AO121: 0 | AP121: 2385 | AQ121: 0 | AR121: 0 | AS121: 2385 | AT121: 0 | AU121: 0 | AV121: 2385 | AW121: 0 | AX121: 0 | AY121: 2385 | AZ121: 0 | BA121: 0 | BB121: 2385
H122: =119 -> 119 | I122: 2036-06-15 | J122: =MAX(0,(J121*(1+$D$2/1200))-IF(J121<=0,0,MIN((J121*(1+$D$2/1200)),($E$2+'Debt Calculator'!$B$6+IF(J121<=0,$E$2,0)+IF(M121<=0,$E$3,0)+IF(P121<=0,$E$4,0)+IF(S121<=0,$E$5,0)+IF(V121<=0,$E$6,0)+IF(Y121<=0,$E$7,0)+IF(AB121<=0,$E$8,0)+IF(AE121<=0,$E$9,0)+IF(AH121<=0,$E$10,0)+IF(AK121<=0,$E$11,0)+IF(AN121<=0,$E$12,0)+IF(AQ121<=0,$E$13,0)+IF(AT121<=0,$E$14,0)+IF(AW121<=0,$E$15,0)+IF(AZ121<=0,$E$16,0))))) -> 0 | K122: =IF(J121<=0,0,MIN((J121*(1+$D$2/1200)),($E$2+'Debt Calculator'!$B$6+IF(J121<=0,$E$2,0)+IF(M121<=0,$E$3,0)+IF(P121<=0,$E$4,0)+IF(S121<=0,$E$5,0)+IF(V121<=0,$E$6,0)+IF(Y121<=0,$E$7,0)+IF(AB121<=0,$E$8,0)+IF(AE121<=0,$E$9,0)+IF(AH121<=0,$E$10,0)+IF(AK121<=0,$E$11,0)+IF(AN121<=0,$E$12,0)+IF(AQ121<=0,$E$13,0)+IF(AT121<=0,$E$14,0)+IF(AW121<=0,$E$15,0)+IF(AZ121<=0,$E$16,0)))) -> 0 | L122: =IF(J121<=0,'Debt Calculator'!$B$6+IF(J121<=0,$E$2,0)+IF(M121<=0,$E$3,0)+IF(P121<=0,$E$4,0)+IF(S121<=0,$E$5,0)+IF(V121<=0,$E$6,0)+IF(Y121<=0,$E$7,0)+IF(AB121<=0,$E$8,0)+IF(AE121<=0,$E$9,0)+IF(AH121<=0,$E$10,0)+IF(AK121<=0,$E$11,0)+IF(AN121<=0,$E$12,0)+IF(AQ121<=0,$E$13,0)+IF(AT121<=0,$E$14,0)+IF(AW121<=0,$E$15,0)+IF(AZ121<=0,$E$16,0),MAX(0,($E$2+'Debt Calculator'!$B$6+IF(J121<=0,$E$2,0)+IF(M121<=0,$E$3,0)+IF(P121<=0,$E$4,0)+IF(S121<=0,$E$5,0)+IF(V121<=0,$E$6,0)+IF(Y121<=0,$E$7,0)+IF(AB121<=0,$E$8,0)+IF(AE121<=0,$E$9,0)+IF(AH121<=0,$E$10,0)+IF(AK121<=0,$E$11,0)+IF(AN121<=0,$E$12,0)+IF(AQ121<=0,$E$13,0)+IF(AT121<=0,$E$14,0)+IF(AW121<=0,$E$15,0)+IF(AZ121<=0,$E$16,0))-(J121*(1+$D$2/1200)))) -> 2385 | M122: 0 | N122: 0 | O122: 2385 | P122: 0 | Q122: 0 | R122: 2385 | S122: 0 | T122: 0 | U122: 2385 | V122: 0 | W122: 0 | X122: 2385 | Y122: 0 | Z122: 0 | AA122: 2385 | AB122: 0 | AC122: 0 | AD122: 2385 | AE122: 0 | AF122: 0 | AG122: 2385 | AH122: 0 | AI122: 0 | AJ122: 2385 | AK122: 0 | AL122: 0 | AM122: 2385 | AN122: 0 | AO122: 0 | AP122: 2385 | AQ122: 0 | AR122: 0 | AS122: 2385 | AT122: 0 | AU122: 0 | AV122: 2385 | AW122: 0 | AX122: 0 | AY122: 2385 | AZ122: 0 | BA122: 0 | BB122: 2385
H123: =120 -> 120 | I123: 2036-07-15 | J123: =MAX(0,(J122*(1+$D$2/1200))-IF(J122<=0,0,MIN((J122*(1+$D$2/1200)),($E$2+'Debt Calculator'!$B$6+IF(J122<=0,$E$2,0)+IF(M122<=0,$E$3,0)+IF(P122<=0,$E$4,0)+IF(S122<=0,$E$5,0)+IF(V122<=0,$E$6,0)+IF(Y122<=0,$E$7,0)+IF(AB122<=0,$E$8,0)+IF(AE122<=0,$E$9,0)+IF(AH122<=0,$E$10,0)+IF(AK122<=0,$E$11,0)+IF(AN122<=0,$E$12,0)+IF(AQ122<=0,$E$13,0)+IF(AT122<=0,$E$14,0)+IF(AW122<=0,$E$15,0)+IF(AZ122<=0,$E$16,0))))) -> 0 | K123: =IF(J122<=0,0,MIN((J122*(1+$D$2/1200)),($E$2+'Debt Calculator'!$B$6+IF(J122<=0,$E$2,0)+IF(M122<=0,$E$3,0)+IF(P122<=0,$E$4,0)+IF(S122<=0,$E$5,0)+IF(V122<=0,$E$6,0)+IF(Y122<=0,$E$7,0)+IF(AB122<=0,$E$8,0)+IF(AE122<=0,$E$9,0)+IF(AH122<=0,$E$10,0)+IF(AK122<=0,$E$11,0)+IF(AN122<=0,$E$12,0)+IF(AQ122<=0,$E$13,0)+IF(AT122<=0,$E$14,0)+IF(AW122<=0,$E$15,0)+IF(AZ122<=0,$E$16,0)))) -> 0 | L123: =IF(J122<=0,'Debt Calculator'!$B$6+IF(J122<=0,$E$2,0)+IF(M122<=0,$E$3,0)+IF(P122<=0,$E$4,0)+IF(S122<=0,$E$5,0)+IF(V122<=0,$E$6,0)+IF(Y122<=0,$E$7,0)+IF(AB122<=0,$E$8,0)+IF(AE122<=0,$E$9,0)+IF(AH122<=0,$E$10,0)+IF(AK122<=0,$E$11,0)+IF(AN122<=0,$E$12,0)+IF(AQ122<=0,$E$13,0)+IF(AT122<=0,$E$14,0)+IF(AW122<=0,$E$15,0)+IF(AZ122<=0,$E$16,0),MAX(0,($E$2+'Debt Calculator'!$B$6+IF(J122<=0,$E$2,0)+IF(M122<=0,$E$3,0)+IF(P122<=0,$E$4,0)+IF(S122<=0,$E$5,0)+IF(V122<=0,$E$6,0)+IF(Y122<=0,$E$7,0)+IF(AB122<=0,$E$8,0)+IF(AE122<=0,$E$9,0)+IF(AH122<=0,$E$10,0)+IF(AK122<=0,$E$11,0)+IF(AN122<=0,$E$12,0)+IF(AQ122<=0,$E$13,0)+IF(AT122<=0,$E$14,0)+IF(AW122<=0,$E$15,0)+IF(AZ122<=0,$E$16,0))-(J122*(1+$D$2/1200)))) -> 2385 | M123: 0 | N123: 0 | O123: 2385 | P123: 0 | Q123: 0 | R123: 2385 | S123: 0 | T123: 0 | U123: 2385 | V123: 0 | W123: 0 | X123: 2385 | Y123: 0 | Z123: 0 | AA123: 2385 | AB123: 0 | AC123: 0 | AD123: 2385 | AE123: 0 | AF123: 0 | AG123: 2385 | AH123: 0 | AI123: 0 | AJ123: 2385 | AK123: 0 | AL123: 0 | AM123: 2385 | AN123: 0 | AO123: 0 | AP123: 2385 | AQ123: 0 | AR123: 0 | AS123: 2385 | AT123: 0 | AU123: 0 | AV123: 2385 | AW123: 0 | AX123: 0 | AY123: 2385 | AZ123: 0 | BA123: 0 | BB123: 2385
H124: =121 -> 121 | I124: 2036-08-15 | J124: =MAX(0,(J123*(1+$D$2/1200))-IF(J123<=0,0,MIN((J123*(1+$D$2/1200)),($E$2+'Debt Calculator'!$B$6+IF(J123<=0,$E$2,0)+IF(M123<=0,$E$3,0)+IF(P123<=0,$E$4,0)+IF(S123<=0,$E$5,0)+IF(V123<=0,$E$6,0)+IF(Y123<=0,$E$7,0)+IF(AB123<=0,$E$8,0)+IF(AE123<=0,$E$9,0)+IF(AH123<=0,$E$10,0)+IF(AK123<=0,$E$11,0)+IF(AN123<=0,$E$12,0)+IF(AQ123<=0,$E$13,0)+IF(AT123<=0,$E$14,0)+IF(AW123<=0,$E$15,0)+IF(AZ123<=0,$E$16,0))))) -> 0 | K124: =IF(J123<=0,0,MIN((J123*(1+$D$2/1200)),($E$2+'Debt Calculator'!$B$6+IF(J123<=0,$E$2,0)+IF(M123<=0,$E$3,0)+IF(P123<=0,$E$4,0)+IF(S123<=0,$E$5,0)+IF(V123<=0,$E$6,0)+IF(Y123<=0,$E$7,0)+IF(AB123<=0,$E$8,0)+IF(AE123<=0,$E$9,0)+IF(AH123<=0,$E$10,0)+IF(AK123<=0,$E$11,0)+IF(AN123<=0,$E$12,0)+IF(AQ123<=0,$E$13,0)+IF(AT123<=0,$E$14,0)+IF(AW123<=0,$E$15,0)+IF(AZ123<=0,$E$16,0)))) -> 0 | L124: =IF(J123<=0,'Debt Calculator'!$B$6+IF(J123<=0,$E$2,0)+IF(M123<=0,$E$3,0)+IF(P123<=0,$E$4,0)+IF(S123<=0,$E$5,0)+IF(V123<=0,$E$6,0)+IF(Y123<=0,$E$7,0)+IF(AB123<=0,$E$8,0)+IF(AE123<=0,$E$9,0)+IF(AH123<=0,$E$10,0)+IF(AK123<=0,$E$11,0)+IF(AN123<=0,$E$12,0)+IF(AQ123<=0,$E$13,0)+IF(AT123<=0,$E$14,0)+IF(AW123<=0,$E$15,0)+IF(AZ123<=0,$E$16,0),MAX(0,($E$2+'Debt Calculator'!$B$6+IF(J123<=0,$E$2,0)+IF(M123<=0,$E$3,0)+IF(P123<=0,$E$4,0)+IF(S123<=0,$E$5,0)+IF(V123<=0,$E$6,0)+IF(Y123<=0,$E$7,0)+IF(AB123<=0,$E$8,0)+IF(AE123<=0,$E$9,0)+IF(AH123<=0,$E$10,0)+IF(AK123<=0,$E$11,0)+IF(AN123<=0,$E$12,0)+IF(AQ123<=0,$E$13,0)+IF(AT123<=0,$E$14,0)+IF(AW123<=0,$E$15,0)+IF(AZ123<=0,$E$16,0))-(J123*(1+$D$2/1200)))) -> 2385 | M124: 0 | N124: 0 | O124: 2385 | P124: 0 | Q124: 0 | R124: 2385 | S124: 0 | T124: 0 | U124: 2385 | V124: 0 | W124: 0 | X124: 2385 | Y124: 0 | Z124: 0 | AA124: 2385 | AB124: 0 | AC124: 0 | AD124: 2385 | AE124: 0 | AF124: 0 | AG124: 2385 | AH124: 0 | AI124: 0 | AJ124: 2385 | AK124: 0 | AL124: 0 | AM124: 2385 | AN124: 0 | AO124: 0 | AP124: 2385 | AQ124: 0 | AR124: 0 | AS124: 2385 | AT124: 0 | AU124: 0 | AV124: 2385 | AW124: 0 | AX124: 0 | AY124: 2385 | AZ124: 0 | BA124: 0 | BB124: 2385
H125: =122 -> 122 | I125: 2036-09-15 | J125: =MAX(0,(J124*(1+$D$2/1200))-IF(J124<=0,0,MIN((J124*(1+$D$2/1200)),($E$2+'Debt Calculator'!$B$6+IF(J124<=0,$E$2,0)+IF(M124<=0,$E$3,0)+IF(P124<=0,$E$4,0)+IF(S124<=0,$E$5,0)+IF(V124<=0,$E$6,0)+IF(Y124<=0,$E$7,0)+IF(AB124<=0,$E$8,0)+IF(AE124<=0,$E$9,0)+IF(AH124<=0,$E$10,0)+IF(AK124<=0,$E$11,0)+IF(AN124<=0,$E$12,0)+IF(AQ124<=0,$E$13,0)+IF(AT124<=0,$E$14,0)+IF(AW124<=0,$E$15,0)+IF(AZ124<=0,$E$16,0))))) -> 0 | K125: =IF(J124<=0,0,MIN((J124*(1+$D$2/1200)),($E$2+'Debt Calculator'!$B$6+IF(J124<=0,$E$2,0)+IF(M124<=0,$E$3,0)+IF(P124<=0,$E$4,0)+IF(S124<=0,$E$5,0)+IF(V124<=0,$E$6,0)+IF(Y124<=0,$E$7,0)+IF(AB124<=0,$E$8,0)+IF(AE124<=0,$E$9,0)+IF(AH124<=0,$E$10,0)+IF(AK124<=0,$E$11,0)+IF(AN124<=0,$E$12,0)+IF(AQ124<=0,$E$13,0)+IF(AT124<=0,$E$14,0)+IF(AW124<=0,$E$15,0)+IF(AZ124<=0,$E$16,0)))) -> 0 | L125: =IF(J124<=0,'Debt Calculator'!$B$6+IF(J124<=0,$E$2,0)+IF(M124<=0,$E$3,0)+IF(P124<=0,$E$4,0)+IF(S124<=0,$E$5,0)+IF(V124<=0,$E$6,0)+IF(Y124<=0,$E$7,0)+IF(AB124<=0,$E$8,0)+IF(AE124<=0,$E$9,0)+IF(AH124<=0,$E$10,0)+IF(AK124<=0,$E$11,0)+IF(AN124<=0,$E$12,0)+IF(AQ124<=0,$E$13,0)+IF(AT124<=0,$E$14,0)+IF(AW124<=0,$E$15,0)+IF(AZ124<=0,$E$16,0),MAX(0,($E$2+'Debt Calculator'!$B$6+IF(J124<=0,$E$2,0)+IF(M124<=0,$E$3,0)+IF(P124<=0,$E$4,0)+IF(S124<=0,$E$5,0)+IF(V124<=0,$E$6,0)+IF(Y124<=0,$E$7,0)+IF(AB124<=0,$E$8,0)+IF(AE124<=0,$E$9,0)+IF(AH124<=0,$E$10,0)+IF(AK124<=0,$E$11,0)+IF(AN124<=0,$E$12,0)+IF(AQ124<=0,$E$13,0)+IF(AT124<=0,$E$14,0)+IF(AW124<=0,$E$15,0)+IF(AZ124<=0,$E$16,0))-(J124*(1+$D$2/1200)))) -> 2385 | M125: 0 | N125: 0 | O125: 2385 | P125: 0 | Q125: 0 | R125: 2385 | S125: 0 | T125: 0 | U125: 2385 | V125: 0 | W125: 0 | X125: 2385 | Y125: 0 | Z125: 0 | AA125: 2385 | AB125: 0 | AC125: 0 | AD125: 2385 | AE125: 0 | AF125: 0 | AG125: 2385 | AH125: 0 | AI125: 0 | AJ125: 2385 | AK125: 0 | AL125: 0 | AM125: 2385 | AN125: 0 | AO125: 0 | AP125: 2385 | AQ125: 0 | AR125: 0 | AS125: 2385 | AT125: 0 | AU125: 0 | AV125: 2385 | AW125: 0 | AX125: 0 | AY125: 2385 | AZ125: 0 | BA125: 0 | BB125: 2385
H126: =123 -> 123 | I126: 2036-10-15 | J126: =MAX(0,(J125*(1+$D$2/1200))-IF(J125<=0,0,MIN((J125*(1+$D$2/1200)),($E$2+'Debt Calculator'!$B$6+IF(J125<=0,$E$2,0)+IF(M125<=0,$E$3,0)+IF(P125<=0,$E$4,0)+IF(S125<=0,$E$5,0)+IF(V125<=0,$E$6,0)+IF(Y125<=0,$E$7,0)+IF(AB125<=0,$E$8,0)+IF(AE125<=0,$E$9,0)+IF(AH125<=0,$E$10,0)+IF(AK125<=0,$E$11,0)+IF(AN125<=0,$E$12,0)+IF(AQ125<=0,$E$13,0)+IF(AT125<=0,$E$14,0)+IF(AW125<=0,$E$15,0)+IF(AZ125<=0,$E$16,0))))) -> 0 | K126: =IF(J125<=0,0,MIN((J125*(1+$D$2/1200)),($E$2+'Debt Calculator'!$B$6+IF(J125<=0,$E$2,0)+IF(M125<=0,$E$3,0)+IF(P125<=0,$E$4,0)+IF(S125<=0,$E$5,0)+IF(V125<=0,$E$6,0)+IF(Y125<=0,$E$7,0)+IF(AB125<=0,$E$8,0)+IF(AE125<=0,$E$9,0)+IF(AH125<=0,$E$10,0)+IF(AK125<=0,$E$11,0)+IF(AN125<=0,$E$12,0)+IF(AQ125<=0,$E$13,0)+IF(AT125<=0,$E$14,0)+IF(AW125<=0,$E$15,0)+IF(AZ125<=0,$E$16,0)))) -> 0 | L126: =IF(J125<=0,'Debt Calculator'!$B$6+IF(J125<=0,$E$2,0)+IF(M125<=0,$E$3,0)+IF(P125<=0,$E$4,0)+IF(S125<=0,$E$5,0)+IF(V125<=0,$E$6,0)+IF(Y125<=0,$E$7,0)+IF(AB125<=0,$E$8,0)+IF(AE125<=0,$E$9,0)+IF(AH125<=0,$E$10,0)+IF(AK125<=0,$E$11,0)+IF(AN125<=0,$E$12,0)+IF(AQ125<=0,$E$13,0)+IF(AT125<=0,$E$14,0)+IF(AW125<=0,$E$15,0)+IF(AZ125<=0,$E$16,0),MAX(0,($E$2+'Debt Calculator'!$B$6+IF(J125<=0,$E$2,0)+IF(M125<=0,$E$3,0)+IF(P125<=0,$E$4,0)+IF(S125<=0,$E$5,0)+IF(V125<=0,$E$6,0)+IF(Y125<=0,$E$7,0)+IF(AB125<=0,$E$8,0)+IF(AE125<=0,$E$9,0)+IF(AH125<=0,$E$10,0)+IF(AK125<=0,$E$11,0)+IF(AN125<=0,$E$12,0)+IF(AQ125<=0,$E$13,0)+IF(AT125<=0,$E$14,0)+IF(AW125<=0,$E$15,0)+IF(AZ125<=0,$E$16,0))-(J125*(1+$D$2/1200)))) -> 2385 | M126: 0 | N126: 0 | O126: 2385 | P126: 0 | Q126: 0 | R126: 2385 | S126: 0 | T126: 0 | U126: 2385 | V126: 0 | W126: 0 | X126: 2385 | Y126: 0 | Z126: 0 | AA126: 2385 | AB126: 0 | AC126: 0 | AD126: 2385 | AE126: 0 | AF126: 0 | AG126: 2385 | AH126: 0 | AI126: 0 | AJ126: 2385 | AK126: 0 | AL126: 0 | AM126: 2385 | AN126: 0 | AO126: 0 | AP126: 2385 | AQ126: 0 | AR126: 0 | AS126: 2385 | AT126: 0 | AU126: 0 | AV126: 2385 | AW126: 0 | AX126: 0 | AY126: 2385 | AZ126: 0 | BA126: 0 | BB126: 2385
H127: =124 -> 124 | I127: 2036-11-15 | J127: =MAX(0,(J126*(1+$D$2/1200))-IF(J126<=0,0,MIN((J126*(1+$D$2/1200)),($E$2+'Debt Calculator'!$B$6+IF(J126<=0,$E$2,0)+IF(M126<=0,$E$3,0)+IF(P126<=0,$E$4,0)+IF(S126<=0,$E$5,0)+IF(V126<=0,$E$6,0)+IF(Y126<=0,$E$7,0)+IF(AB126<=0,$E$8,0)+IF(AE126<=0,$E$9,0)+IF(AH126<=0,$E$10,0)+IF(AK126<=0,$E$11,0)+IF(AN126<=0,$E$12,0)+IF(AQ126<=0,$E$13,0)+IF(AT126<=0,$E$14,0)+IF(AW126<=0,$E$15,0)+IF(AZ126<=0,$E$16,0))))) -> 0 | K127: =IF(J126<=0,0,MIN((J126*(1+$D$2/1200)),($E$2+'Debt Calculator'!$B$6+IF(J126<=0,$E$2,0)+IF(M126<=0,$E$3,0)+IF(P126<=0,$E$4,0)+IF(S126<=0,$E$5,0)+IF(V126<=0,$E$6,0)+IF(Y126<=0,$E$7,0)+IF(AB126<=0,$E$8,0)+IF(AE126<=0,$E$9,0)+IF(AH126<=0,$E$10,0)+IF(AK126<=0,$E$11,0)+IF(AN126<=0,$E$12,0)+IF(AQ126<=0,$E$13,0)+IF(AT126<=0,$E$14,0)+IF(AW126<=0,$E$15,0)+IF(AZ126<=0,$E$16,0)))) -> 0 | L127: =IF(J126<=0,'Debt Calculator'!$B$6+IF(J126<=0,$E$2,0)+IF(M126<=0,$E$3,0)+IF(P126<=0,$E$4,0)+IF(S126<=0,$E$5,0)+IF(V126<=0,$E$6,0)+IF(Y126<=0,$E$7,0)+IF(AB126<=0,$E$8,0)+IF(AE126<=0,$E$9,0)+IF(AH126<=0,$E$10,0)+IF(AK126<=0,$E$11,0)+IF(AN126<=0,$E$12,0)+IF(AQ126<=0,$E$13,0)+IF(AT126<=0,$E$14,0)+IF(AW126<=0,$E$15,0)+IF(AZ126<=0,$E$16,0),MAX(0,($E$2+'Debt Calculator'!$B$6+IF(J126<=0,$E$2,0)+IF(M126<=0,$E$3,0)+IF(P126<=0,$E$4,0)+IF(S126<=0,$E$5,0)+IF(V126<=0,$E$6,0)+IF(Y126<=0,$E$7,0)+IF(AB126<=0,$E$8,0)+IF(AE126<=0,$E$9,0)+IF(AH126<=0,$E$10,0)+IF(AK126<=0,$E$11,0)+IF(AN126<=0,$E$12,0)+IF(AQ126<=0,$E$13,0)+IF(AT126<=0,$E$14,0)+IF(AW126<=0,$E$15,0)+IF(AZ126<=0,$E$16,0))-(J126*(1+$D$2/1200)))) -> 2385 | M127: 0 | N127: 0 | O127: 2385 | P127: 0 | Q127: 0 | R127: 2385 | S127: 0 | T127: 0 | U127: 2385 | V127: 0 | W127: 0 | X127: 2385 | Y127: 0 | Z127: 0 | AA127: 2385 | AB127: 0 | AC127: 0 | AD127: 2385 | AE127: 0 | AF127: 0 | AG127: 2385 | AH127: 0 | AI127: 0 | AJ127: 2385 | AK127: 0 | AL127: 0 | AM127: 2385 | AN127: 0 | AO127: 0 | AP127: 2385 | AQ127: 0 | AR127: 0 | AS127: 2385 | AT127: 0 | AU127: 0 | AV127: 2385 | AW127: 0 | AX127: 0 | AY127: 2385 | AZ127: 0 | BA127: 0 | BB127: 2385
H128: =125 -> 125 | I128: 2036-12-15 | J128: =MAX(0,(J127*(1+$D$2/1200))-IF(J127<=0,0,MIN((J127*(1+$D$2/1200)),($E$2+'Debt Calculator'!$B$6+IF(J127<=0,$E$2,0)+IF(M127<=0,$E$3,0)+IF(P127<=0,$E$4,0)+IF(S127<=0,$E$5,0)+IF(V127<=0,$E$6,0)+IF(Y127<=0,$E$7,0)+IF(AB127<=0,$E$8,0)+IF(AE127<=0,$E$9,0)+IF(AH127<=0,$E$10,0)+IF(AK127<=0,$E$11,0)+IF(AN127<=0,$E$12,0)+IF(AQ127<=0,$E$13,0)+IF(AT127<=0,$E$14,0)+IF(AW127<=0,$E$15,0)+IF(AZ127<=0,$E$16,0))))) -> 0 | K128: =IF(J127<=0,0,MIN((J127*(1+$D$2/1200)),($E$2+'Debt Calculator'!$B$6+IF(J127<=0,$E$2,0)+IF(M127<=0,$E$3,0)+IF(P127<=0,$E$4,0)+IF(S127<=0,$E$5,0)+IF(V127<=0,$E$6,0)+IF(Y127<=0,$E$7,0)+IF(AB127<=0,$E$8,0)+IF(AE127<=0,$E$9,0)+IF(AH127<=0,$E$10,0)+IF(AK127<=0,$E$11,0)+IF(AN127<=0,$E$12,0)+IF(AQ127<=0,$E$13,0)+IF(AT127<=0,$E$14,0)+IF(AW127<=0,$E$15,0)+IF(AZ127<=0,$E$16,0)))) -> 0 | L128: =IF(J127<=0,'Debt Calculator'!$B$6+IF(J127<=0,$E$2,0)+IF(M127<=0,$E$3,0)+IF(P127<=0,$E$4,0)+IF(S127<=0,$E$5,0)+IF(V127<=0,$E$6,0)+IF(Y127<=0,$E$7,0)+IF(AB127<=0,$E$8,0)+IF(AE127<=0,$E$9,0)+IF(AH127<=0,$E$10,0)+IF(AK127<=0,$E$11,0)+IF(AN127<=0,$E$12,0)+IF(AQ127<=0,$E$13,0)+IF(AT127<=0,$E$14,0)+IF(AW127<=0,$E$15,0)+IF(AZ127<=0,$E$16,0),MAX(0,($E$2+'Debt Calculator'!$B$6+IF(J127<=0,$E$2,0)+IF(M127<=0,$E$3,0)+IF(P127<=0,$E$4,0)+IF(S127<=0,$E$5,0)+IF(V127<=0,$E$6,0)+IF(Y127<=0,$E$7,0)+IF(AB127<=0,$E$8,0)+IF(AE127<=0,$E$9,0)+IF(AH127<=0,$E$10,0)+IF(AK127<=0,$E$11,0)+IF(AN127<=0,$E$12,0)+IF(AQ127<=0,$E$13,0)+IF(AT127<=0,$E$14,0)+IF(AW127<=0,$E$15,0)+IF(AZ127<=0,$E$16,0))-(J127*(1+$D$2/1200)))) -> 2385 | M128: 0 | N128: 0 | O128: 2385 | P128: 0 | Q128: 0 | R128: 2385 | S128: 0 | T128: 0 | U128: 2385 | V128: 0 | W128: 0 | X128: 2385 | Y128: 0 | Z128: 0 | AA128: 2385 | AB128: 0 | AC128: 0 | AD128: 2385 | AE128: 0 | AF128: 0 | AG128: 2385 | AH128: 0 | AI128: 0 | AJ128: 2385 | AK128: 0 | AL128: 0 | AM128: 2385 | AN128: 0 | AO128: 0 | AP128: 2385 | AQ128: 0 | AR128: 0 | AS128: 2385 | AT128: 0 | AU128: 0 | AV128: 2385 | AW128: 0 | AX128: 0 | AY128: 2385 | AZ128: 0 | BA128: 0 | BB128: 2385
H129: =126 -> 126 | I129: 2037-01-15 | J129: =MAX(0,(J128*(1+$D$2/1200))-IF(J128<=0,0,MIN((J128*(1+$D$2/1200)),($E$2+'Debt Calculator'!$B$6+IF(J128<=0,$E$2,0)+IF(M128<=0,$E$3,0)+IF(P128<=0,$E$4,0)+IF(S128<=0,$E$5,0)+IF(V128<=0,$E$6,0)+IF(Y128<=0,$E$7,0)+IF(AB128<=0,$E$8,0)+IF(AE128<=0,$E$9,0)+IF(AH128<=0,$E$10,0)+IF(AK128<=0,$E$11,0)+IF(AN128<=0,$E$12,0)+IF(AQ128<=0,$E$13,0)+IF(AT128<=0,$E$14,0)+IF(AW128<=0,$E$15,0)+IF(AZ128<=0,$E$16,0))))) -> 0 | K129: =IF(J128<=0,0,MIN((J128*(1+$D$2/1200)),($E$2+'Debt Calculator'!$B$6+IF(J128<=0,$E$2,0)+IF(M128<=0,$E$3,0)+IF(P128<=0,$E$4,0)+IF(S128<=0,$E$5,0)+IF(V128<=0,$E$6,0)+IF(Y128<=0,$E$7,0)+IF(AB128<=0,$E$8,0)+IF(AE128<=0,$E$9,0)+IF(AH128<=0,$E$10,0)+IF(AK128<=0,$E$11,0)+IF(AN128<=0,$E$12,0)+IF(AQ128<=0,$E$13,0)+IF(AT128<=0,$E$14,0)+IF(AW128<=0,$E$15,0)+IF(AZ128<=0,$E$16,0)))) -> 0 | L129: =IF(J128<=0,'Debt Calculator'!$B$6+IF(J128<=0,$E$2,0)+IF(M128<=0,$E$3,0)+IF(P128<=0,$E$4,0)+IF(S128<=0,$E$5,0)+IF(V128<=0,$E$6,0)+IF(Y128<=0,$E$7,0)+IF(AB128<=0,$E$8,0)+IF(AE128<=0,$E$9,0)+IF(AH128<=0,$E$10,0)+IF(AK128<=0,$E$11,0)+IF(AN128<=0,$E$12,0)+IF(AQ128<=0,$E$13,0)+IF(AT128<=0,$E$14,0)+IF(AW128<=0,$E$15,0)+IF(AZ128<=0,$E$16,0),MAX(0,($E$2+'Debt Calculator'!$B$6+IF(J128<=0,$E$2,0)+IF(M128<=0,$E$3,0)+IF(P128<=0,$E$4,0)+IF(S128<=0,$E$5,0)+IF(V128<=0,$E$6,0)+IF(Y128<=0,$E$7,0)+IF(AB128<=0,$E$8,0)+IF(AE128<=0,$E$9,0)+IF(AH128<=0,$E$10,0)+IF(AK128<=0,$E$11,0)+IF(AN128<=0,$E$12,0)+IF(AQ128<=0,$E$13,0)+IF(AT128<=0,$E$14,0)+IF(AW128<=0,$E$15,0)+IF(AZ128<=0,$E$16,0))-(J128*(1+$D$2/1200)))) -> 2385 | M129: 0 | N129: 0 | O129: 2385 | P129: 0 | Q129: 0 | R129: 2385 | S129: 0 | T129: 0 | U129: 2385 | V129: 0 | W129: 0 | X129: 2385 | Y129: 0 | Z129: 0 | AA129: 2385 | AB129: 0 | AC129: 0 | AD129: 2385 | AE129: 0 | AF129: 0 | AG129: 2385 | AH129: 0 | AI129: 0 | AJ129: 2385 | AK129: 0 | AL129: 0 | AM129: 2385 | AN129: 0 | AO129: 0 | AP129: 2385 | AQ129: 0 | AR129: 0 | AS129: 2385 | AT129: 0 | AU129: 0 | AV129: 2385 | AW129: 0 | AX129: 0 | AY129: 2385 | AZ129: 0 | BA129: 0 | BB129: 2385
H130: =127 -> 127 | I130: 2037-02-15 | J130: =MAX(0,(J129*(1+$D$2/1200))-IF(J129<=0,0,MIN((J129*(1+$D$2/1200)),($E$2+'Debt Calculator'!$B$6+IF(J129<=0,$E$2,0)+IF(M129<=0,$E$3,0)+IF(P129<=0,$E$4,0)+IF(S129<=0,$E$5,0)+IF(V129<=0,$E$6,0)+IF(Y129<=0,$E$7,0)+IF(AB129<=0,$E$8,0)+IF(AE129<=0,$E$9,0)+IF(AH129<=0,$E$10,0)+IF(AK129<=0,$E$11,0)+IF(AN129<=0,$E$12,0)+IF(AQ129<=0,$E$13,0)+IF(AT129<=0,$E$14,0)+IF(AW129<=0,$E$15,0)+IF(AZ129<=0,$E$16,0))))) -> 0 | K130: =IF(J129<=0,0,MIN((J129*(1+$D$2/1200)),($E$2+'Debt Calculator'!$B$6+IF(J129<=0,$E$2,0)+IF(M129<=0,$E$3,0)+IF(P129<=0,$E$4,0)+IF(S129<=0,$E$5,0)+IF(V129<=0,$E$6,0)+IF(Y129<=0,$E$7,0)+IF(AB129<=0,$E$8,0)+IF(AE129<=0,$E$9,0)+IF(AH129<=0,$E$10,0)+IF(AK129<=0,$E$11,0)+IF(AN129<=0,$E$12,0)+IF(AQ129<=0,$E$13,0)+IF(AT129<=0,$E$14,0)+IF(AW129<=0,$E$15,0)+IF(AZ129<=0,$E$16,0)))) -> 0 | L130: =IF(J129<=0,'Debt Calculator'!$B$6+IF(J129<=0,$E$2,0)+IF(M129<=0,$E$3,0)+IF(P129<=0,$E$4,0)+IF(S129<=0,$E$5,0)+IF(V129<=0,$E$6,0)+IF(Y129<=0,$E$7,0)+IF(AB129<=0,$E$8,0)+IF(AE129<=0,$E$9,0)+IF(AH129<=0,$E$10,0)+IF(AK129<=0,$E$11,0)+IF(AN129<=0,$E$12,0)+IF(AQ129<=0,$E$13,0)+IF(AT129<=0,$E$14,0)+IF(AW129<=0,$E$15,0)+IF(AZ129<=0,$E$16,0),MAX(0,($E$2+'Debt Calculator'!$B$6+IF(J129<=0,$E$2,0)+IF(M129<=0,$E$3,0)+IF(P129<=0,$E$4,0)+IF(S129<=0,$E$5,0)+IF(V129<=0,$E$6,0)+IF(Y129<=0,$E$7,0)+IF(AB129<=0,$E$8,0)+IF(AE129<=0,$E$9,0)+IF(AH129<=0,$E$10,0)+IF(AK129<=0,$E$11,0)+IF(AN129<=0,$E$12,0)+IF(AQ129<=0,$E$13,0)+IF(AT129<=0,$E$14,0)+IF(AW129<=0,$E$15,0)+IF(AZ129<=0,$E$16,0))-(J129*(1+$D$2/1200)))) -> 2385 | M130: 0 | N130: 0 | O130: 2385 | P130: 0 | Q130: 0 | R130: 2385 | S130: 0 | T130: 0 | U130: 2385 | V130: 0 | W130: 0 | X130: 2385 | Y130: 0 | Z130: 0 | AA130: 2385 | AB130: 0 | AC130: 0 | AD130: 2385 | AE130: 0 | AF130: 0 | AG130: 2385 | AH130: 0 | AI130: 0 | AJ130: 2385 | AK130: 0 | AL130: 0 | AM130: 2385 | AN130: 0 | AO130: 0 | AP130: 2385 | AQ130: 0 | AR130: 0 | AS130: 2385 | AT130: 0 | AU130: 0 | AV130: 2385 | AW130: 0 | AX130: 0 | AY130: 2385 | AZ130: 0 | BA130: 0 | BB130: 2385
H131: =128 -> 128 | I131: 2037-03-15 | J131: =MAX(0,(J130*(1+$D$2/1200))-IF(J130<=0,0,MIN((J130*(1+$D$2/1200)),($E$2+'Debt Calculator'!$B$6+IF(J130<=0,$E$2,0)+IF(M130<=0,$E$3,0)+IF(P130<=0,$E$4,0)+IF(S130<=0,$E$5,0)+IF(V130<=0,$E$6,0)+IF(Y130<=0,$E$7,0)+IF(AB130<=0,$E$8,0)+IF(AE130<=0,$E$9,0)+IF(AH130<=0,$E$10,0)+IF(AK130<=0,$E$11,0)+IF(AN130<=0,$E$12,0)+IF(AQ130<=0,$E$13,0)+IF(AT130<=0,$E$14,0)+IF(AW130<=0,$E$15,0)+IF(AZ130<=0,$E$16,0))))) -> 0 | K131: =IF(J130<=0,0,MIN((J130*(1+$D$2/1200)),($E$2+'Debt Calculator'!$B$6+IF(J130<=0,$E$2,0)+IF(M130<=0,$E$3,0)+IF(P130<=0,$E$4,0)+IF(S130<=0,$E$5,0)+IF(V130<=0,$E$6,0)+IF(Y130<=0,$E$7,0)+IF(AB130<=0,$E$8,0)+IF(AE130<=0,$E$9,0)+IF(AH130<=0,$E$10,0)+IF(AK130<=0,$E$11,0)+IF(AN130<=0,$E$12,0)+IF(AQ130<=0,$E$13,0)+IF(AT130<=0,$E$14,0)+IF(AW130<=0,$E$15,0)+IF(AZ130<=0,$E$16,0)))) -> 0 | L131: =IF(J130<=0,'Debt Calculator'!$B$6+IF(J130<=0,$E$2,0)+IF(M130<=0,$E$3,0)+IF(P130<=0,$E$4,0)+IF(S130<=0,$E$5,0)+IF(V130<=0,$E$6,0)+IF(Y130<=0,$E$7,0)+IF(AB130<=0,$E$8,0)+IF(AE130<=0,$E$9,0)+IF(AH130<=0,$E$10,0)+IF(AK130<=0,$E$11,0)+IF(AN130<=0,$E$12,0)+IF(AQ130<=0,$E$13,0)+IF(AT130<=0,$E$14,0)+IF(AW130<=0,$E$15,0)+IF(AZ130<=0,$E$16,0),MAX(0,($E$2+'Debt Calculator'!$B$6+IF(J130<=0,$E$2,0)+IF(M130<=0,$E$3,0)+IF(P130<=0,$E$4,0)+IF(S130<=0,$E$5,0)+IF(V130<=0,$E$6,0)+IF(Y130<=0,$E$7,0)+IF(AB130<=0,$E$8,0)+IF(AE130<=0,$E$9,0)+IF(AH130<=0,$E$10,0)+IF(AK130<=0,$E$11,0)+IF(AN130<=0,$E$12,0)+IF(AQ130<=0,$E$13,0)+IF(AT130<=0,$E$14,0)+IF(AW130<=0,$E$15,0)+IF(AZ130<=0,$E$16,0))-(J130*(1+$D$2/1200)))) -> 2385 | M131: 0 | N131: 0 | O131: 2385 | P131: 0 | Q131: 0 | R131: 2385 | S131: 0 | T131: 0 | U131: 2385 | V131: 0 | W131: 0 | X131: 2385 | Y131: 0 | Z131: 0 | AA131: 2385 | AB131: 0 | AC131: 0 | AD131: 2385 | AE131: 0 | AF131: 0 | AG131: 2385 | AH131: 0 | AI131: 0 | AJ131: 2385 | AK131: 0 | AL131: 0 | AM131: 2385 | AN131: 0 | AO131: 0 | AP131: 2385 | AQ131: 0 | AR131: 0 | AS131: 2385 | AT131: 0 | AU131: 0 | AV131: 2385 | AW131: 0 | AX131: 0 | AY131: 2385 | AZ131: 0 | BA131: 0 | BB131: 2385
H132: =129 -> 129 | I132: 2037-04-15 | J132: =MAX(0,(J131*(1+$D$2/1200))-IF(J131<=0,0,MIN((J131*(1+$D$2/1200)),($E$2+'Debt Calculator'!$B$6+IF(J131<=0,$E$2,0)+IF(M131<=0,$E$3,0)+IF(P131<=0,$E$4,0)+IF(S131<=0,$E$5,0)+IF(V131<=0,$E$6,0)+IF(Y131<=0,$E$7,0)+IF(AB131<=0,$E$8,0)+IF(AE131<=0,$E$9,0)+IF(AH131<=0,$E$10,0)+IF(AK131<=0,$E$11,0)+IF(AN131<=0,$E$12,0)+IF(AQ131<=0,$E$13,0)+IF(AT131<=0,$E$14,0)+IF(AW131<=0,$E$15,0)+IF(AZ131<=0,$E$16,0))))) -> 0 | K132: =IF(J131<=0,0,MIN((J131*(1+$D$2/1200)),($E$2+'Debt Calculator'!$B$6+IF(J131<=0,$E$2,0)+IF(M131<=0,$E$3,0)+IF(P131<=0,$E$4,0)+IF(S131<=0,$E$5,0)+IF(V131<=0,$E$6,0)+IF(Y131<=0,$E$7,0)+IF(AB131<=0,$E$8,0)+IF(AE131<=0,$E$9,0)+IF(AH131<=0,$E$10,0)+IF(AK131<=0,$E$11,0)+IF(AN131<=0,$E$12,0)+IF(AQ131<=0,$E$13,0)+IF(AT131<=0,$E$14,0)+IF(AW131<=0,$E$15,0)+IF(AZ131<=0,$E$16,0)))) -> 0 | L132: =IF(J131<=0,'Debt Calculator'!$B$6+IF(J131<=0,$E$2,0)+IF(M131<=0,$E$3,0)+IF(P131<=0,$E$4,0)+IF(S131<=0,$E$5,0)+IF(V131<=0,$E$6,0)+IF(Y131<=0,$E$7,0)+IF(AB131<=0,$E$8,0)+IF(AE131<=0,$E$9,0)+IF(AH131<=0,$E$10,0)+IF(AK131<=0,$E$11,0)+IF(AN131<=0,$E$12,0)+IF(AQ131<=0,$E$13,0)+IF(AT131<=0,$E$14,0)+IF(AW131<=0,$E$15,0)+IF(AZ131<=0,$E$16,0),MAX(0,($E$2+'Debt Calculator'!$B$6+IF(J131<=0,$E$2,0)+IF(M131<=0,$E$3,0)+IF(P131<=0,$E$4,0)+IF(S131<=0,$E$5,0)+IF(V131<=0,$E$6,0)+IF(Y131<=0,$E$7,0)+IF(AB131<=0,$E$8,0)+IF(AE131<=0,$E$9,0)+IF(AH131<=0,$E$10,0)+IF(AK131<=0,$E$11,0)+IF(AN131<=0,$E$12,0)+IF(AQ131<=0,$E$13,0)+IF(AT131<=0,$E$14,0)+IF(AW131<=0,$E$15,0)+IF(AZ131<=0,$E$16,0))-(J131*(1+$D$2/1200)))) -> 2385 | M132: 0 | N132: 0 | O132: 2385 | P132: 0 | Q132: 0 | R132: 2385 | S132: 0 | T132: 0 | U132: 2385 | V132: 0 | W132: 0 | X132: 2385 | Y132: 0 | Z132: 0 | AA132: 2385 | AB132: 0 | AC132: 0 | AD132: 2385 | AE132: 0 | AF132: 0 | AG132: 2385 | AH132: 0 | AI132: 0 | AJ132: 2385 | AK132: 0 | AL132: 0 | AM132: 2385 | AN132: 0 | AO132: 0 | AP132: 2385 | AQ132: 0 | AR132: 0 | AS132: 2385 | AT132: 0 | AU132: 0 | AV132: 2385 | AW132: 0 | AX132: 0 | AY132: 2385 | AZ132: 0 | BA132: 0 | BB132: 2385
H133: =130 -> 130 | I133: 2037-05-15 | J133: =MAX(0,(J132*(1+$D$2/1200))-IF(J132<=0,0,MIN((J132*(1+$D$2/1200)),($E$2+'Debt Calculator'!$B$6+IF(J132<=0,$E$2,0)+IF(M132<=0,$E$3,0)+IF(P132<=0,$E$4,0)+IF(S132<=0,$E$5,0)+IF(V132<=0,$E$6,0)+IF(Y132<=0,$E$7,0)+IF(AB132<=0,$E$8,0)+IF(AE132<=0,$E$9,0)+IF(AH132<=0,$E$10,0)+IF(AK132<=0,$E$11,0)+IF(AN132<=0,$E$12,0)+IF(AQ132<=0,$E$13,0)+IF(AT132<=0,$E$14,0)+IF(AW132<=0,$E$15,0)+IF(AZ132<=0,$E$16,0))))) -> 0 | K133: =IF(J132<=0,0,MIN((J132*(1+$D$2/1200)),($E$2+'Debt Calculator'!$B$6+IF(J132<=0,$E$2,0)+IF(M132<=0,$E$3,0)+IF(P132<=0,$E$4,0)+IF(S132<=0,$E$5,0)+IF(V132<=0,$E$6,0)+IF(Y132<=0,$E$7,0)+IF(AB132<=0,$E$8,0)+IF(AE132<=0,$E$9,0)+IF(AH132<=0,$E$10,0)+IF(AK132<=0,$E$11,0)+IF(AN132<=0,$E$12,0)+IF(AQ132<=0,$E$13,0)+IF(AT132<=0,$E$14,0)+IF(AW132<=0,$E$15,0)+IF(AZ132<=0,$E$16,0)))) -> 0 | L133: =IF(J132<=0,'Debt Calculator'!$B$6+IF(J132<=0,$E$2,0)+IF(M132<=0,$E$3,0)+IF(P132<=0,$E$4,0)+IF(S132<=0,$E$5,0)+IF(V132<=0,$E$6,0)+IF(Y132<=0,$E$7,0)+IF(AB132<=0,$E$8,0)+IF(AE132<=0,$E$9,0)+IF(AH132<=0,$E$10,0)+IF(AK132<=0,$E$11,0)+IF(AN132<=0,$E$12,0)+IF(AQ132<=0,$E$13,0)+IF(AT132<=0,$E$14,0)+IF(AW132<=0,$E$15,0)+IF(AZ132<=0,$E$16,0),MAX(0,($E$2+'Debt Calculator'!$B$6+IF(J132<=0,$E$2,0)+IF(M132<=0,$E$3,0)+IF(P132<=0,$E$4,0)+IF(S132<=0,$E$5,0)+IF(V132<=0,$E$6,0)+IF(Y132<=0,$E$7,0)+IF(AB132<=0,$E$8,0)+IF(AE132<=0,$E$9,0)+IF(AH132<=0,$E$10,0)+IF(AK132<=0,$E$11,0)+IF(AN132<=0,$E$12,0)+IF(AQ132<=0,$E$13,0)+IF(AT132<=0,$E$14,0)+IF(AW132<=0,$E$15,0)+IF(AZ132<=0,$E$16,0))-(J132*(1+$D$2/1200)))) -> 2385 | M133: 0 | N133: 0 | O133: 2385 | P133: 0 | Q133: 0 | R133: 2385 | S133: 0 | T133: 0 | U133: 2385 | V133: 0 | W133: 0 | X133: 2385 | Y133: 0 | Z133: 0 | AA133: 2385 | AB133: 0 | AC133: 0 | AD133: 2385 | AE133: 0 | AF133: 0 | AG133: 2385 | AH133: 0 | AI133: 0 | AJ133: 2385 | AK133: 0 | AL133: 0 | AM133: 2385 | AN133: 0 | AO133: 0 | AP133: 2385 | AQ133: 0 | AR133: 0 | AS133: 2385 | AT133: 0 | AU133: 0 | AV133: 2385 | AW133: 0 | AX133: 0 | AY133: 2385 | AZ133: 0 | BA133: 0 | BB133: 2385
H134: =131 -> 131 | I134: 2037-06-15 | J134: =MAX(0,(J133*(1+$D$2/1200))-IF(J133<=0,0,MIN((J133*(1+$D$2/1200)),($E$2+'Debt Calculator'!$B$6+IF(J133<=0,$E$2,0)+IF(M133<=0,$E$3,0)+IF(P133<=0,$E$4,0)+IF(S133<=0,$E$5,0)+IF(V133<=0,$E$6,0)+IF(Y133<=0,$E$7,0)+IF(AB133<=0,$E$8,0)+IF(AE133<=0,$E$9,0)+IF(AH133<=0,$E$10,0)+IF(AK133<=0,$E$11,0)+IF(AN133<=0,$E$12,0)+IF(AQ133<=0,$E$13,0)+IF(AT133<=0,$E$14,0)+IF(AW133<=0,$E$15,0)+IF(AZ133<=0,$E$16,0))))) -> 0 | K134: =IF(J133<=0,0,MIN((J133*(1+$D$2/1200)),($E$2+'Debt Calculator'!$B$6+IF(J133<=0,$E$2,0)+IF(M133<=0,$E$3,0)+IF(P133<=0,$E$4,0)+IF(S133<=0,$E$5,0)+IF(V133<=0,$E$6,0)+IF(Y133<=0,$E$7,0)+IF(AB133<=0,$E$8,0)+IF(AE133<=0,$E$9,0)+IF(AH133<=0,$E$10,0)+IF(AK133<=0,$E$11,0)+IF(AN133<=0,$E$12,0)+IF(AQ133<=0,$E$13,0)+IF(AT133<=0,$E$14,0)+IF(AW133<=0,$E$15,0)+IF(AZ133<=0,$E$16,0)))) -> 0 | L134: =IF(J133<=0,'Debt Calculator'!$B$6+IF(J133<=0,$E$2,0)+IF(M133<=0,$E$3,0)+IF(P133<=0,$E$4,0)+IF(S133<=0,$E$5,0)+IF(V133<=0,$E$6,0)+IF(Y133<=0,$E$7,0)+IF(AB133<=0,$E$8,0)+IF(AE133<=0,$E$9,0)+IF(AH133<=0,$E$10,0)+IF(AK133<=0,$E$11,0)+IF(AN133<=0,$E$12,0)+IF(AQ133<=0,$E$13,0)+IF(AT133<=0,$E$14,0)+IF(AW133<=0,$E$15,0)+IF(AZ133<=0,$E$16,0),MAX(0,($E$2+'Debt Calculator'!$B$6+IF(J133<=0,$E$2,0)+IF(M133<=0,$E$3,0)+IF(P133<=0,$E$4,0)+IF(S133<=0,$E$5,0)+IF(V133<=0,$E$6,0)+IF(Y133<=0,$E$7,0)+IF(AB133<=0,$E$8,0)+IF(AE133<=0,$E$9,0)+IF(AH133<=0,$E$10,0)+IF(AK133<=0,$E$11,0)+IF(AN133<=0,$E$12,0)+IF(AQ133<=0,$E$13,0)+IF(AT133<=0,$E$14,0)+IF(AW133<=0,$E$15,0)+IF(AZ133<=0,$E$16,0))-(J133*(1+$D$2/1200)))) -> 2385 | M134: 0 | N134: 0 | O134: 2385 | P134: 0 | Q134: 0 | R134: 2385 | S134: 0 | T134: 0 | U134: 2385 | V134: 0 | W134: 0 | X134: 2385 | Y134: 0 | Z134: 0 | AA134: 2385 | AB134: 0 | AC134: 0 | AD134: 2385 | AE134: 0 | AF134: 0 | AG134: 2385 | AH134: 0 | AI134: 0 | AJ134: 2385 | AK134: 0 | AL134: 0 | AM134: 2385 | AN134: 0 | AO134: 0 | AP134: 2385 | AQ134: 0 | AR134: 0 | AS134: 2385 | AT134: 0 | AU134: 0 | AV134: 2385 | AW134: 0 | AX134: 0 | AY134: 2385 | AZ134: 0 | BA134: 0 | BB134: 2385
H135: =132 -> 132 | I135: 2037-07-15 | J135: =MAX(0,(J134*(1+$D$2/1200))-IF(J134<=0,0,MIN((J134*(1+$D$2/1200)),($E$2+'Debt Calculator'!$B$6+IF(J134<=0,$E$2,0)+IF(M134<=0,$E$3,0)+IF(P134<=0,$E$4,0)+IF(S134<=0,$E$5,0)+IF(V134<=0,$E$6,0)+IF(Y134<=0,$E$7,0)+IF(AB134<=0,$E$8,0)+IF(AE134<=0,$E$9,0)+IF(AH134<=0,$E$10,0)+IF(AK134<=0,$E$11,0)+IF(AN134<=0,$E$12,0)+IF(AQ134<=0,$E$13,0)+IF(AT134<=0,$E$14,0)+IF(AW134<=0,$E$15,0)+IF(AZ134<=0,$E$16,0))))) -> 0 | K135: =IF(J134<=0,0,MIN((J134*(1+$D$2/1200)),($E$2+'Debt Calculator'!$B$6+IF(J134<=0,$E$2,0)+IF(M134<=0,$E$3,0)+IF(P134<=0,$E$4,0)+IF(S134<=0,$E$5,0)+IF(V134<=0,$E$6,0)+IF(Y134<=0,$E$7,0)+IF(AB134<=0,$E$8,0)+IF(AE134<=0,$E$9,0)+IF(AH134<=0,$E$10,0)+IF(AK134<=0,$E$11,0)+IF(AN134<=0,$E$12,0)+IF(AQ134<=0,$E$13,0)+IF(AT134<=0,$E$14,0)+IF(AW134<=0,$E$15,0)+IF(AZ134<=0,$E$16,0)))) -> 0 | L135: =IF(J134<=0,'Debt Calculator'!$B$6+IF(J134<=0,$E$2,0)+IF(M134<=0,$E$3,0)+IF(P134<=0,$E$4,0)+IF(S134<=0,$E$5,0)+IF(V134<=0,$E$6,0)+IF(Y134<=0,$E$7,0)+IF(AB134<=0,$E$8,0)+IF(AE134<=0,$E$9,0)+IF(AH134<=0,$E$10,0)+IF(AK134<=0,$E$11,0)+IF(AN134<=0,$E$12,0)+IF(AQ134<=0,$E$13,0)+IF(AT134<=0,$E$14,0)+IF(AW134<=0,$E$15,0)+IF(AZ134<=0,$E$16,0),MAX(0,($E$2+'Debt Calculator'!$B$6+IF(J134<=0,$E$2,0)+IF(M134<=0,$E$3,0)+IF(P134<=0,$E$4,0)+IF(S134<=0,$E$5,0)+IF(V134<=0,$E$6,0)+IF(Y134<=0,$E$7,0)+IF(AB134<=0,$E$8,0)+IF(AE134<=0,$E$9,0)+IF(AH134<=0,$E$10,0)+IF(AK134<=0,$E$11,0)+IF(AN134<=0,$E$12,0)+IF(AQ134<=0,$E$13,0)+IF(AT134<=0,$E$14,0)+IF(AW134<=0,$E$15,0)+IF(AZ134<=0,$E$16,0))-(J134*(1+$D$2/1200)))) -> 2385 | M135: 0 | N135: 0 | O135: 2385 | P135: 0 | Q135: 0 | R135: 2385 | S135: 0 | T135: 0 | U135: 2385 | V135: 0 | W135: 0 | X135: 2385 | Y135: 0 | Z135: 0 | AA135: 2385 | AB135: 0 | AC135: 0 | AD135: 2385 | AE135: 0 | AF135: 0 | AG135: 2385 | AH135: 0 | AI135: 0 | AJ135: 2385 | AK135: 0 | AL135: 0 | AM135: 2385 | AN135: 0 | AO135: 0 | AP135: 2385 | AQ135: 0 | AR135: 0 | AS135: 2385 | AT135: 0 | AU135: 0 | AV135: 2385 | AW135: 0 | AX135: 0 | AY135: 2385 | AZ135: 0 | BA135: 0 | BB135: 2385
H136: =133 -> 133 | I136: 2037-08-15 | J136: =MAX(0,(J135*(1+$D$2/1200))-IF(J135<=0,0,MIN((J135*(1+$D$2/1200)),($E$2+'Debt Calculator'!$B$6+IF(J135<=0,$E$2,0)+IF(M135<=0,$E$3,0)+IF(P135<=0,$E$4,0)+IF(S135<=0,$E$5,0)+IF(V135<=0,$E$6,0)+IF(Y135<=0,$E$7,0)+IF(AB135<=0,$E$8,0)+IF(AE135<=0,$E$9,0)+IF(AH135<=0,$E$10,0)+IF(AK135<=0,$E$11,0)+IF(AN135<=0,$E$12,0)+IF(AQ135<=0,$E$13,0)+IF(AT135<=0,$E$14,0)+IF(AW135<=0,$E$15,0)+IF(AZ135<=0,$E$16,0))))) -> 0 | K136: =IF(J135<=0,0,MIN((J135*(1+$D$2/1200)),($E$2+'Debt Calculator'!$B$6+IF(J135<=0,$E$2,0)+IF(M135<=0,$E$3,0)+IF(P135<=0,$E$4,0)+IF(S135<=0,$E$5,0)+IF(V135<=0,$E$6,0)+IF(Y135<=0,$E$7,0)+IF(AB135<=0,$E$8,0)+IF(AE135<=0,$E$9,0)+IF(AH135<=0,$E$10,0)+IF(AK135<=0,$E$11,0)+IF(AN135<=0,$E$12,0)+IF(AQ135<=0,$E$13,0)+IF(AT135<=0,$E$14,0)+IF(AW135<=0,$E$15,0)+IF(AZ135<=0,$E$16,0)))) -> 0 | L136: =IF(J135<=0,'Debt Calculator'!$B$6+IF(J135<=0,$E$2,0)+IF(M135<=0,$E$3,0)+IF(P135<=0,$E$4,0)+IF(S135<=0,$E$5,0)+IF(V135<=0,$E$6,0)+IF(Y135<=0,$E$7,0)+IF(AB135<=0,$E$8,0)+IF(AE135<=0,$E$9,0)+IF(AH135<=0,$E$10,0)+IF(AK135<=0,$E$11,0)+IF(AN135<=0,$E$12,0)+IF(AQ135<=0,$E$13,0)+IF(AT135<=0,$E$14,0)+IF(AW135<=0,$E$15,0)+IF(AZ135<=0,$E$16,0),MAX(0,($E$2+'Debt Calculator'!$B$6+IF(J135<=0,$E$2,0)+IF(M135<=0,$E$3,0)+IF(P135<=0,$E$4,0)+IF(S135<=0,$E$5,0)+IF(V135<=0,$E$6,0)+IF(Y135<=0,$E$7,0)+IF(AB135<=0,$E$8,0)+IF(AE135<=0,$E$9,0)+IF(AH135<=0,$E$10,0)+IF(AK135<=0,$E$11,0)+IF(AN135<=0,$E$12,0)+IF(AQ135<=0,$E$13,0)+IF(AT135<=0,$E$14,0)+IF(AW135<=0,$E$15,0)+IF(AZ135<=0,$E$16,0))-(J135*(1+$D$2/1200)))) -> 2385 | M136: 0 | N136: 0 | O136: 2385 | P136: 0 | Q136: 0 | R136: 2385 | S136: 0 | T136: 0 | U136: 2385 | V136: 0 | W136: 0 | X136: 2385 | Y136: 0 | Z136: 0 | AA136: 2385 | AB136: 0 | AC136: 0 | AD136: 2385 | AE136: 0 | AF136: 0 | AG136: 2385 | AH136: 0 | AI136: 0 | AJ136: 2385 | AK136: 0 | AL136: 0 | AM136: 2385 | AN136: 0 | AO136: 0 | AP136: 2385 | AQ136: 0 | AR136: 0 | AS136: 2385 | AT136: 0 | AU136: 0 | AV136: 2385 | AW136: 0 | AX136: 0 | AY136: 2385 | AZ136: 0 | BA136: 0 | BB136: 2385
H137: =134 -> 134 | I137: 2037-09-15 | J137: =MAX(0,(J136*(1+$D$2/1200))-IF(J136<=0,0,MIN((J136*(1+$D$2/1200)),($E$2+'Debt Calculator'!$B$6+IF(J136<=0,$E$2,0)+IF(M136<=0,$E$3,0)+IF(P136<=0,$E$4,0)+IF(S136<=0,$E$5,0)+IF(V136<=0,$E$6,0)+IF(Y136<=0,$E$7,0)+IF(AB136<=0,$E$8,0)+IF(AE136<=0,$E$9,0)+IF(AH136<=0,$E$10,0)+IF(AK136<=0,$E$11,0)+IF(AN136<=0,$E$12,0)+IF(AQ136<=0,$E$13,0)+IF(AT136<=0,$E$14,0)+IF(AW136<=0,$E$15,0)+IF(AZ136<=0,$E$16,0))))) -> 0 | K137: =IF(J136<=0,0,MIN((J136*(1+$D$2/1200)),($E$2+'Debt Calculator'!$B$6+IF(J136<=0,$E$2,0)+IF(M136<=0,$E$3,0)+IF(P136<=0,$E$4,0)+IF(S136<=0,$E$5,0)+IF(V136<=0,$E$6,0)+IF(Y136<=0,$E$7,0)+IF(AB136<=0,$E$8,0)+IF(AE136<=0,$E$9,0)+IF(AH136<=0,$E$10,0)+IF(AK136<=0,$E$11,0)+IF(AN136<=0,$E$12,0)+IF(AQ136<=0,$E$13,0)+IF(AT136<=0,$E$14,0)+IF(AW136<=0,$E$15,0)+IF(AZ136<=0,$E$16,0)))) -> 0 | L137: =IF(J136<=0,'Debt Calculator'!$B$6+IF(J136<=0,$E$2,0)+IF(M136<=0,$E$3,0)+IF(P136<=0,$E$4,0)+IF(S136<=0,$E$5,0)+IF(V136<=0,$E$6,0)+IF(Y136<=0,$E$7,0)+IF(AB136<=0,$E$8,0)+IF(AE136<=0,$E$9,0)+IF(AH136<=0,$E$10,0)+IF(AK136<=0,$E$11,0)+IF(AN136<=0,$E$12,0)+IF(AQ136<=0,$E$13,0)+IF(AT136<=0,$E$14,0)+IF(AW136<=0,$E$15,0)+IF(AZ136<=0,$E$16,0),MAX(0,($E$2+'Debt Calculator'!$B$6+IF(J136<=0,$E$2,0)+IF(M136<=0,$E$3,0)+IF(P136<=0,$E$4,0)+IF(S136<=0,$E$5,0)+IF(V136<=0,$E$6,0)+IF(Y136<=0,$E$7,0)+IF(AB136<=0,$E$8,0)+IF(AE136<=0,$E$9,0)+IF(AH136<=0,$E$10,0)+IF(AK136<=0,$E$11,0)+IF(AN136<=0,$E$12,0)+IF(AQ136<=0,$E$13,0)+IF(AT136<=0,$E$14,0)+IF(AW136<=0,$E$15,0)+IF(AZ136<=0,$E$16,0))-(J136*(1+$D$2/1200)))) -> 2385 | M137: 0 | N137: 0 | O137: 2385 | P137: 0 | Q137: 0 | R137: 2385 | S137: 0 | T137: 0 | U137: 2385 | V137: 0 | W137: 0 | X137: 2385 | Y137: 0 | Z137: 0 | AA137: 2385 | AB137: 0 | AC137: 0 | AD137: 2385 | AE137: 0 | AF137: 0 | AG137: 2385 | AH137: 0 | AI137: 0 | AJ137: 2385 | AK137: 0 | AL137: 0 | AM137: 2385 | AN137: 0 | AO137: 0 | AP137: 2385 | AQ137: 0 | AR137: 0 | AS137: 2385 | AT137: 0 | AU137: 0 | AV137: 2385 | AW137: 0 | AX137: 0 | AY137: 2385 | AZ137: 0 | BA137: 0 | BB137: 2385
H138: =135 -> 135 | I138: 2037-10-15 | J138: =MAX(0,(J137*(1+$D$2/1200))-IF(J137<=0,0,MIN((J137*(1+$D$2/1200)),($E$2+'Debt Calculator'!$B$6+IF(J137<=0,$E$2,0)+IF(M137<=0,$E$3,0)+IF(P137<=0,$E$4,0)+IF(S137<=0,$E$5,0)+IF(V137<=0,$E$6,0)+IF(Y137<=0,$E$7,0)+IF(AB137<=0,$E$8,0)+IF(AE137<=0,$E$9,0)+IF(AH137<=0,$E$10,0)+IF(AK137<=0,$E$11,0)+IF(AN137<=0,$E$12,0)+IF(AQ137<=0,$E$13,0)+IF(AT137<=0,$E$14,0)+IF(AW137<=0,$E$15,0)+IF(AZ137<=0,$E$16,0))))) -> 0 | K138: =IF(J137<=0,0,MIN((J137*(1+$D$2/1200)),($E$2+'Debt Calculator'!$B$6+IF(J137<=0,$E$2,0)+IF(M137<=0,$E$3,0)+IF(P137<=0,$E$4,0)+IF(S137<=0,$E$5,0)+IF(V137<=0,$E$6,0)+IF(Y137<=0,$E$7,0)+IF(AB137<=0,$E$8,0)+IF(AE137<=0,$E$9,0)+IF(AH137<=0,$E$10,0)+IF(AK137<=0,$E$11,0)+IF(AN137<=0,$E$12,0)+IF(AQ137<=0,$E$13,0)+IF(AT137<=0,$E$14,0)+IF(AW137<=0,$E$15,0)+IF(AZ137<=0,$E$16,0)))) -> 0 | L138: =IF(J137<=0,'Debt Calculator'!$B$6+IF(J137<=0,$E$2,0)+IF(M137<=0,$E$3,0)+IF(P137<=0,$E$4,0)+IF(S137<=0,$E$5,0)+IF(V137<=0,$E$6,0)+IF(Y137<=0,$E$7,0)+IF(AB137<=0,$E$8,0)+IF(AE137<=0,$E$9,0)+IF(AH137<=0,$E$10,0)+IF(AK137<=0,$E$11,0)+IF(AN137<=0,$E$12,0)+IF(AQ137<=0,$E$13,0)+IF(AT137<=0,$E$14,0)+IF(AW137<=0,$E$15,0)+IF(AZ137<=0,$E$16,0),MAX(0,($E$2+'Debt Calculator'!$B$6+IF(J137<=0,$E$2,0)+IF(M137<=0,$E$3,0)+IF(P137<=0,$E$4,0)+IF(S137<=0,$E$5,0)+IF(V137<=0,$E$6,0)+IF(Y137<=0,$E$7,0)+IF(AB137<=0,$E$8,0)+IF(AE137<=0,$E$9,0)+IF(AH137<=0,$E$10,0)+IF(AK137<=0,$E$11,0)+IF(AN137<=0,$E$12,0)+IF(AQ137<=0,$E$13,0)+IF(AT137<=0,$E$14,0)+IF(AW137<=0,$E$15,0)+IF(AZ137<=0,$E$16,0))-(J137*(1+$D$2/1200)))) -> 2385 | M138: 0 | N138: 0 | O138: 2385 | P138: 0 | Q138: 0 | R138: 2385 | S138: 0 | T138: 0 | U138: 2385 | V138: 0 | W138: 0 | X138: 2385 | Y138: 0 | Z138: 0 | AA138: 2385 | AB138: 0 | AC138: 0 | AD138: 2385 | AE138: 0 | AF138: 0 | AG138: 2385 | AH138: 0 | AI138: 0 | AJ138: 2385 | AK138: 0 | AL138: 0 | AM138: 2385 | AN138: 0 | AO138: 0 | AP138: 2385 | AQ138: 0 | AR138: 0 | AS138: 2385 | AT138: 0 | AU138: 0 | AV138: 2385 | AW138: 0 | AX138: 0 | AY138: 2385 | AZ138: 0 | BA138: 0 | BB138: 2385
H139: =136 -> 136 | I139: 2037-11-15 | J139: =MAX(0,(J138*(1+$D$2/1200))-IF(J138<=0,0,MIN((J138*(1+$D$2/1200)),($E$2+'Debt Calculator'!$B$6+IF(J138<=0,$E$2,0)+IF(M138<=0,$E$3,0)+IF(P138<=0,$E$4,0)+IF(S138<=0,$E$5,0)+IF(V138<=0,$E$6,0)+IF(Y138<=0,$E$7,0)+IF(AB138<=0,$E$8,0)+IF(AE138<=0,$E$9,0)+IF(AH138<=0,$E$10,0)+IF(AK138<=0,$E$11,0)+IF(AN138<=0,$E$12,0)+IF(AQ138<=0,$E$13,0)+IF(AT138<=0,$E$14,0)+IF(AW138<=0,$E$15,0)+IF(AZ138<=0,$E$16,0))))) -> 0 | K139: =IF(J138<=0,0,MIN((J138*(1+$D$2/1200)),($E$2+'Debt Calculator'!$B$6+IF(J138<=0,$E$2,0)+IF(M138<=0,$E$3,0)+IF(P138<=0,$E$4,0)+IF(S138<=0,$E$5,0)+IF(V138<=0,$E$6,0)+IF(Y138<=0,$E$7,0)+IF(AB138<=0,$E$8,0)+IF(AE138<=0,$E$9,0)+IF(AH138<=0,$E$10,0)+IF(AK138<=0,$E$11,0)+IF(AN138<=0,$E$12,0)+IF(AQ138<=0,$E$13,0)+IF(AT138<=0,$E$14,0)+IF(AW138<=0,$E$15,0)+IF(AZ138<=0,$E$16,0)))) -> 0 | L139: =IF(J138<=0,'Debt Calculator'!$B$6+IF(J138<=0,$E$2,0)+IF(M138<=0,$E$3,0)+IF(P138<=0,$E$4,0)+IF(S138<=0,$E$5,0)+IF(V138<=0,$E$6,0)+IF(Y138<=0,$E$7,0)+IF(AB138<=0,$E$8,0)+IF(AE138<=0,$E$9,0)+IF(AH138<=0,$E$10,0)+IF(AK138<=0,$E$11,0)+IF(AN138<=0,$E$12,0)+IF(AQ138<=0,$E$13,0)+IF(AT138<=0,$E$14,0)+IF(AW138<=0,$E$15,0)+IF(AZ138<=0,$E$16,0),MAX(0,($E$2+'Debt Calculator'!$B$6+IF(J138<=0,$E$2,0)+IF(M138<=0,$E$3,0)+IF(P138<=0,$E$4,0)+IF(S138<=0,$E$5,0)+IF(V138<=0,$E$6,0)+IF(Y138<=0,$E$7,0)+IF(AB138<=0,$E$8,0)+IF(AE138<=0,$E$9,0)+IF(AH138<=0,$E$10,0)+IF(AK138<=0,$E$11,0)+IF(AN138<=0,$E$12,0)+IF(AQ138<=0,$E$13,0)+IF(AT138<=0,$E$14,0)+IF(AW138<=0,$E$15,0)+IF(AZ138<=0,$E$16,0))-(J138*(1+$D$2/1200)))) -> 2385 | M139: 0 | N139: 0 | O139: 2385 | P139: 0 | Q139: 0 | R139: 2385 | S139: 0 | T139: 0 | U139: 2385 | V139: 0 | W139: 0 | X139: 2385 | Y139: 0 | Z139: 0 | AA139: 2385 | AB139: 0 | AC139: 0 | AD139: 2385 | AE139: 0 | AF139: 0 | AG139: 2385 | AH139: 0 | AI139: 0 | AJ139: 2385 | AK139: 0 | AL139: 0 | AM139: 2385 | AN139: 0 | AO139: 0 | AP139: 2385 | AQ139: 0 | AR139: 0 | AS139: 2385 | AT139: 0 | AU139: 0 | AV139: 2385 | AW139: 0 | AX139: 0 | AY139: 2385 | AZ139: 0 | BA139: 0 | BB139: 2385
H140: =137 -> 137 | I140: 2037-12-15 | J140: =MAX(0,(J139*(1+$D$2/1200))-IF(J139<=0,0,MIN((J139*(1+$D$2/1200)),($E$2+'Debt Calculator'!$B$6+IF(J139<=0,$E$2,0)+IF(M139<=0,$E$3,0)+IF(P139<=0,$E$4,0)+IF(S139<=0,$E$5,0)+IF(V139<=0,$E$6,0)+IF(Y139<=0,$E$7,0)+IF(AB139<=0,$E$8,0)+IF(AE139<=0,$E$9,0)+IF(AH139<=0,$E$10,0)+IF(AK139<=0,$E$11,0)+IF(AN139<=0,$E$12,0)+IF(AQ139<=0,$E$13,0)+IF(AT139<=0,$E$14,0)+IF(AW139<=0,$E$15,0)+IF(AZ139<=0,$E$16,0))))) -> 0 | K140: =IF(J139<=0,0,MIN((J139*(1+$D$2/1200)),($E$2+'Debt Calculator'!$B$6+IF(J139<=0,$E$2,0)+IF(M139<=0,$E$3,0)+IF(P139<=0,$E$4,0)+IF(S139<=0,$E$5,0)+IF(V139<=0,$E$6,0)+IF(Y139<=0,$E$7,0)+IF(AB139<=0,$E$8,0)+IF(AE139<=0,$E$9,0)+IF(AH139<=0,$E$10,0)+IF(AK139<=0,$E$11,0)+IF(AN139<=0,$E$12,0)+IF(AQ139<=0,$E$13,0)+IF(AT139<=0,$E$14,0)+IF(AW139<=0,$E$15,0)+IF(AZ139<=0,$E$16,0)))) -> 0 | L140: =IF(J139<=0,'Debt Calculator'!$B$6+IF(J139<=0,$E$2,0)+IF(M139<=0,$E$3,0)+IF(P139<=0,$E$4,0)+IF(S139<=0,$E$5,0)+IF(V139<=0,$E$6,0)+IF(Y139<=0,$E$7,0)+IF(AB139<=0,$E$8,0)+IF(AE139<=0,$E$9,0)+IF(AH139<=0,$E$10,0)+IF(AK139<=0,$E$11,0)+IF(AN139<=0,$E$12,0)+IF(AQ139<=0,$E$13,0)+IF(AT139<=0,$E$14,0)+IF(AW139<=0,$E$15,0)+IF(AZ139<=0,$E$16,0),MAX(0,($E$2+'Debt Calculator'!$B$6+IF(J139<=0,$E$2,0)+IF(M139<=0,$E$3,0)+IF(P139<=0,$E$4,0)+IF(S139<=0,$E$5,0)+IF(V139<=0,$E$6,0)+IF(Y139<=0,$E$7,0)+IF(AB139<=0,$E$8,0)+IF(AE139<=0,$E$9,0)+IF(AH139<=0,$E$10,0)+IF(AK139<=0,$E$11,0)+IF(AN139<=0,$E$12,0)+IF(AQ139<=0,$E$13,0)+IF(AT139<=0,$E$14,0)+IF(AW139<=0,$E$15,0)+IF(AZ139<=0,$E$16,0))-(J139*(1+$D$2/1200)))) -> 2385 | M140: 0 | N140: 0 | O140: 2385 | P140: 0 | Q140: 0 | R140: 2385 | S140: 0 | T140: 0 | U140: 2385 | V140: 0 | W140: 0 | X140: 2385 | Y140: 0 | Z140: 0 | AA140: 2385 | AB140: 0 | AC140: 0 | AD140: 2385 | AE140: 0 | AF140: 0 | AG140: 2385 | AH140: 0 | AI140: 0 | AJ140: 2385 | AK140: 0 | AL140: 0 | AM140: 2385 | AN140: 0 | AO140: 0 | AP140: 2385 | AQ140: 0 | AR140: 0 | AS140: 2385 | AT140: 0 | AU140: 0 | AV140: 2385 | AW140: 0 | AX140: 0 | AY140: 2385 | AZ140: 0 | BA140: 0 | BB140: 2385
H141: =138 -> 138 | I141: 2038-01-15 | J141: =MAX(0,(J140*(1+$D$2/1200))-IF(J140<=0,0,MIN((J140*(1+$D$2/1200)),($E$2+'Debt Calculator'!$B$6+IF(J140<=0,$E$2,0)+IF(M140<=0,$E$3,0)+IF(P140<=0,$E$4,0)+IF(S140<=0,$E$5,0)+IF(V140<=0,$E$6,0)+IF(Y140<=0,$E$7,0)+IF(AB140<=0,$E$8,0)+IF(AE140<=0,$E$9,0)+IF(AH140<=0,$E$10,0)+IF(AK140<=0,$E$11,0)+IF(AN140<=0,$E$12,0)+IF(AQ140<=0,$E$13,0)+IF(AT140<=0,$E$14,0)+IF(AW140<=0,$E$15,0)+IF(AZ140<=0,$E$16,0))))) -> 0 | K141: =IF(J140<=0,0,MIN((J140*(1+$D$2/1200)),($E$2+'Debt Calculator'!$B$6+IF(J140<=0,$E$2,0)+IF(M140<=0,$E$3,0)+IF(P140<=0,$E$4,0)+IF(S140<=0,$E$5,0)+IF(V140<=0,$E$6,0)+IF(Y140<=0,$E$7,0)+IF(AB140<=0,$E$8,0)+IF(AE140<=0,$E$9,0)+IF(AH140<=0,$E$10,0)+IF(AK140<=0,$E$11,0)+IF(AN140<=0,$E$12,0)+IF(AQ140<=0,$E$13,0)+IF(AT140<=0,$E$14,0)+IF(AW140<=0,$E$15,0)+IF(AZ140<=0,$E$16,0)))) -> 0 | L141: =IF(J140<=0,'Debt Calculator'!$B$6+IF(J140<=0,$E$2,0)+IF(M140<=0,$E$3,0)+IF(P140<=0,$E$4,0)+IF(S140<=0,$E$5,0)+IF(V140<=0,$E$6,0)+IF(Y140<=0,$E$7,0)+IF(AB140<=0,$E$8,0)+IF(AE140<=0,$E$9,0)+IF(AH140<=0,$E$10,0)+IF(AK140<=0,$E$11,0)+IF(AN140<=0,$E$12,0)+IF(AQ140<=0,$E$13,0)+IF(AT140<=0,$E$14,0)+IF(AW140<=0,$E$15,0)+IF(AZ140<=0,$E$16,0),MAX(0,($E$2+'Debt Calculator'!$B$6+IF(J140<=0,$E$2,0)+IF(M140<=0,$E$3,0)+IF(P140<=0,$E$4,0)+IF(S140<=0,$E$5,0)+IF(V140<=0,$E$6,0)+IF(Y140<=0,$E$7,0)+IF(AB140<=0,$E$8,0)+IF(AE140<=0,$E$9,0)+IF(AH140<=0,$E$10,0)+IF(AK140<=0,$E$11,0)+IF(AN140<=0,$E$12,0)+IF(AQ140<=0,$E$13,0)+IF(AT140<=0,$E$14,0)+IF(AW140<=0,$E$15,0)+IF(AZ140<=0,$E$16,0))-(J140*(1+$D$2/1200)))) -> 2385 | M141: 0 | N141: 0 | O141: 2385 | P141: 0 | Q141: 0 | R141: 2385 | S141: 0 | T141: 0 | U141: 2385 | V141: 0 | W141: 0 | X141: 2385 | Y141: 0 | Z141: 0 | AA141: 2385 | AB141: 0 | AC141: 0 | AD141: 2385 | AE141: 0 | AF141: 0 | AG141: 2385 | AH141: 0 | AI141: 0 | AJ141: 2385 | AK141: 0 | AL141: 0 | AM141: 2385 | AN141: 0 | AO141: 0 | AP141: 2385 | AQ141: 0 | AR141: 0 | AS141: 2385 | AT141: 0 | AU141: 0 | AV141: 2385 | AW141: 0 | AX141: 0 | AY141: 2385 | AZ141: 0 | BA141: 0 | BB141: 2385
H142: =139 -> 139 | I142: 2038-02-15 | J142: =MAX(0,(J141*(1+$D$2/1200))-IF(J141<=0,0,MIN((J141*(1+$D$2/1200)),($E$2+'Debt Calculator'!$B$6+IF(J141<=0,$E$2,0)+IF(M141<=0,$E$3,0)+IF(P141<=0,$E$4,0)+IF(S141<=0,$E$5,0)+IF(V141<=0,$E$6,0)+IF(Y141<=0,$E$7,0)+IF(AB141<=0,$E$8,0)+IF(AE141<=0,$E$9,0)+IF(AH141<=0,$E$10,0)+IF(AK141<=0,$E$11,0)+IF(AN141<=0,$E$12,0)+IF(AQ141<=0,$E$13,0)+IF(AT141<=0,$E$14,0)+IF(AW141<=0,$E$15,0)+IF(AZ141<=0,$E$16,0))))) -> 0 | K142: =IF(J141<=0,0,MIN((J141*(1+$D$2/1200)),($E$2+'Debt Calculator'!$B$6+IF(J141<=0,$E$2,0)+IF(M141<=0,$E$3,0)+IF(P141<=0,$E$4,0)+IF(S141<=0,$E$5,0)+IF(V141<=0,$E$6,0)+IF(Y141<=0,$E$7,0)+IF(AB141<=0,$E$8,0)+IF(AE141<=0,$E$9,0)+IF(AH141<=0,$E$10,0)+IF(AK141<=0,$E$11,0)+IF(AN141<=0,$E$12,0)+IF(AQ141<=0,$E$13,0)+IF(AT141<=0,$E$14,0)+IF(AW141<=0,$E$15,0)+IF(AZ141<=0,$E$16,0)))) -> 0 | L142: =IF(J141<=0,'Debt Calculator'!$B$6+IF(J141<=0,$E$2,0)+IF(M141<=0,$E$3,0)+IF(P141<=0,$E$4,0)+IF(S141<=0,$E$5,0)+IF(V141<=0,$E$6,0)+IF(Y141<=0,$E$7,0)+IF(AB141<=0,$E$8,0)+IF(AE141<=0,$E$9,0)+IF(AH141<=0,$E$10,0)+IF(AK141<=0,$E$11,0)+IF(AN141<=0,$E$12,0)+IF(AQ141<=0,$E$13,0)+IF(AT141<=0,$E$14,0)+IF(AW141<=0,$E$15,0)+IF(AZ141<=0,$E$16,0),MAX(0,($E$2+'Debt Calculator'!$B$6+IF(J141<=0,$E$2,0)+IF(M141<=0,$E$3,0)+IF(P141<=0,$E$4,0)+IF(S141<=0,$E$5,0)+IF(V141<=0,$E$6,0)+IF(Y141<=0,$E$7,0)+IF(AB141<=0,$E$8,0)+IF(AE141<=0,$E$9,0)+IF(AH141<=0,$E$10,0)+IF(AK141<=0,$E$11,0)+IF(AN141<=0,$E$12,0)+IF(AQ141<=0,$E$13,0)+IF(AT141<=0,$E$14,0)+IF(AW141<=0,$E$15,0)+IF(AZ141<=0,$E$16,0))-(J141*(1+$D$2/1200)))) -> 2385 | M142: 0 | N142: 0 | O142: 2385 | P142: 0 | Q142: 0 | R142: 2385 | S142: 0 | T142: 0 | U142: 2385 | V142: 0 | W142: 0 | X142: 2385 | Y142: 0 | Z142: 0 | AA142: 2385 | AB142: 0 | AC142: 0 | AD142: 2385 | AE142: 0 | AF142: 0 | AG142: 2385 | AH142: 0 | AI142: 0 | AJ142: 2385 | AK142: 0 | AL142: 0 | AM142: 2385 | AN142: 0 | AO142: 0 | AP142: 2385 | AQ142: 0 | AR142: 0 | AS142: 2385 | AT142: 0 | AU142: 0 | AV142: 2385 | AW142: 0 | AX142: 0 | AY142: 2385 | AZ142: 0 | BA142: 0 | BB142: 2385
H143: =140 -> 140 | I143: 2038-03-15 | J143: =MAX(0,(J142*(1+$D$2/1200))-IF(J142<=0,0,MIN((J142*(1+$D$2/1200)),($E$2+'Debt Calculator'!$B$6+IF(J142<=0,$E$2,0)+IF(M142<=0,$E$3,0)+IF(P142<=0,$E$4,0)+IF(S142<=0,$E$5,0)+IF(V142<=0,$E$6,0)+IF(Y142<=0,$E$7,0)+IF(AB142<=0,$E$8,0)+IF(AE142<=0,$E$9,0)+IF(AH142<=0,$E$10,0)+IF(AK142<=0,$E$11,0)+IF(AN142<=0,$E$12,0)+IF(AQ142<=0,$E$13,0)+IF(AT142<=0,$E$14,0)+IF(AW142<=0,$E$15,0)+IF(AZ142<=0,$E$16,0))))) -> 0 | K143: =IF(J142<=0,0,MIN((J142*(1+$D$2/1200)),($E$2+'Debt Calculator'!$B$6+IF(J142<=0,$E$2,0)+IF(M142<=0,$E$3,0)+IF(P142<=0,$E$4,0)+IF(S142<=0,$E$5,0)+IF(V142<=0,$E$6,0)+IF(Y142<=0,$E$7,0)+IF(AB142<=0,$E$8,0)+IF(AE142<=0,$E$9,0)+IF(AH142<=0,$E$10,0)+IF(AK142<=0,$E$11,0)+IF(AN142<=0,$E$12,0)+IF(AQ142<=0,$E$13,0)+IF(AT142<=0,$E$14,0)+IF(AW142<=0,$E$15,0)+IF(AZ142<=0,$E$16,0)))) -> 0 | L143: =IF(J142<=0,'Debt Calculator'!$B$6+IF(J142<=0,$E$2,0)+IF(M142<=0,$E$3,0)+IF(P142<=0,$E$4,0)+IF(S142<=0,$E$5,0)+IF(V142<=0,$E$6,0)+IF(Y142<=0,$E$7,0)+IF(AB142<=0,$E$8,0)+IF(AE142<=0,$E$9,0)+IF(AH142<=0,$E$10,0)+IF(AK142<=0,$E$11,0)+IF(AN142<=0,$E$12,0)+IF(AQ142<=0,$E$13,0)+IF(AT142<=0,$E$14,0)+IF(AW142<=0,$E$15,0)+IF(AZ142<=0,$E$16,0),MAX(0,($E$2+'Debt Calculator'!$B$6+IF(J142<=0,$E$2,0)+IF(M142<=0,$E$3,0)+IF(P142<=0,$E$4,0)+IF(S142<=0,$E$5,0)+IF(V142<=0,$E$6,0)+IF(Y142<=0,$E$7,0)+IF(AB142<=0,$E$8,0)+IF(AE142<=0,$E$9,0)+IF(AH142<=0,$E$10,0)+IF(AK142<=0,$E$11,0)+IF(AN142<=0,$E$12,0)+IF(AQ142<=0,$E$13,0)+IF(AT142<=0,$E$14,0)+IF(AW142<=0,$E$15,0)+IF(AZ142<=0,$E$16,0))-(J142*(1+$D$2/1200)))) -> 2385 | M143: 0 | N143: 0 | O143: 2385 | P143: 0 | Q143: 0 | R143: 2385 | S143: 0 | T143: 0 | U143: 2385 | V143: 0 | W143: 0 | X143: 2385 | Y143: 0 | Z143: 0 | AA143: 2385 | AB143: 0 | AC143: 0 | AD143: 2385 | AE143: 0 | AF143: 0 | AG143: 2385 | AH143: 0 | AI143: 0 | AJ143: 2385 | AK143: 0 | AL143: 0 | AM143: 2385 | AN143: 0 | AO143: 0 | AP143: 2385 | AQ143: 0 | AR143: 0 | AS143: 2385 | AT143: 0 | AU143: 0 | AV143: 2385 | AW143: 0 | AX143: 0 | AY143: 2385 | AZ143: 0 | BA143: 0 | BB143: 2385
H144: =141 -> 141 | I144: 2038-04-15 | J144: =MAX(0,(J143*(1+$D$2/1200))-IF(J143<=0,0,MIN((J143*(1+$D$2/1200)),($E$2+'Debt Calculator'!$B$6+IF(J143<=0,$E$2,0)+IF(M143<=0,$E$3,0)+IF(P143<=0,$E$4,0)+IF(S143<=0,$E$5,0)+IF(V143<=0,$E$6,0)+IF(Y143<=0,$E$7,0)+IF(AB143<=0,$E$8,0)+IF(AE143<=0,$E$9,0)+IF(AH143<=0,$E$10,0)+IF(AK143<=0,$E$11,0)+IF(AN143<=0,$E$12,0)+IF(AQ143<=0,$E$13,0)+IF(AT143<=0,$E$14,0)+IF(AW143<=0,$E$15,0)+IF(AZ143<=0,$E$16,0))))) -> 0 | K144: =IF(J143<=0,0,MIN((J143*(1+$D$2/1200)),($E$2+'Debt Calculator'!$B$6+IF(J143<=0,$E$2,0)+IF(M143<=0,$E$3,0)+IF(P143<=0,$E$4,0)+IF(S143<=0,$E$5,0)+IF(V143<=0,$E$6,0)+IF(Y143<=0,$E$7,0)+IF(AB143<=0,$E$8,0)+IF(AE143<=0,$E$9,0)+IF(AH143<=0,$E$10,0)+IF(AK143<=0,$E$11,0)+IF(AN143<=0,$E$12,0)+IF(AQ143<=0,$E$13,0)+IF(AT143<=0,$E$14,0)+IF(AW143<=0,$E$15,0)+IF(AZ143<=0,$E$16,0)))) -> 0 | L144: =IF(J143<=0,'Debt Calculator'!$B$6+IF(J143<=0,$E$2,0)+IF(M143<=0,$E$3,0)+IF(P143<=0,$E$4,0)+IF(S143<=0,$E$5,0)+IF(V143<=0,$E$6,0)+IF(Y143<=0,$E$7,0)+IF(AB143<=0,$E$8,0)+IF(AE143<=0,$E$9,0)+IF(AH143<=0,$E$10,0)+IF(AK143<=0,$E$11,0)+IF(AN143<=0,$E$12,0)+IF(AQ143<=0,$E$13,0)+IF(AT143<=0,$E$14,0)+IF(AW143<=0,$E$15,0)+IF(AZ143<=0,$E$16,0),MAX(0,($E$2+'Debt Calculator'!$B$6+IF(J143<=0,$E$2,0)+IF(M143<=0,$E$3,0)+IF(P143<=0,$E$4,0)+IF(S143<=0,$E$5,0)+IF(V143<=0,$E$6,0)+IF(Y143<=0,$E$7,0)+IF(AB143<=0,$E$8,0)+IF(AE143<=0,$E$9,0)+IF(AH143<=0,$E$10,0)+IF(AK143<=0,$E$11,0)+IF(AN143<=0,$E$12,0)+IF(AQ143<=0,$E$13,0)+IF(AT143<=0,$E$14,0)+IF(AW143<=0,$E$15,0)+IF(AZ143<=0,$E$16,0))-(J143*(1+$D$2/1200)))) -> 2385 | M144: 0 | N144: 0 | O144: 2385 | P144: 0 | Q144: 0 | R144: 2385 | S144: 0 | T144: 0 | U144: 2385 | V144: 0 | W144: 0 | X144: 2385 | Y144: 0 | Z144: 0 | AA144: 2385 | AB144: 0 | AC144: 0 | AD144: 2385 | AE144: 0 | AF144: 0 | AG144: 2385 | AH144: 0 | AI144: 0 | AJ144: 2385 | AK144: 0 | AL144: 0 | AM144: 2385 | AN144: 0 | AO144: 0 | AP144: 2385 | AQ144: 0 | AR144: 0 | AS144: 2385 | AT144: 0 | AU144: 0 | AV144: 2385 | AW144: 0 | AX144: 0 | AY144: 2385 | AZ144: 0 | BA144: 0 | BB144: 2385
